Workbook

Sheet Menu
B2: TABLERO DE CONTROL 2016 INSTITUTO COLOMBIANO DE BIENESTAR FAMILIAR ICBF MENU
C5: El tablero de control 2016, es la herramienta gerencial para medir los avances de la gestión institucional a nivel nacional, regional y zonal. A continuación se presentan las siguientes opciones para navegar en la herramienta:
C7: Noviembre | F7: Seleccione el mes de corte para revisión de información y de click en el botón gris para actualizar la herramienta
C9: Nacional
C11: Seleccione la opción que desea revisar:
D13: Avances de la gestión institucional a nivel nacional
D14: - Comportamiento Nacional (Tablero de Control, Plan de Acción y Plan Indicativo)
D15: - Plan de Acción Institucional (ranking regional)
D16: - Modelo Integrado de Planeación y Gestión (decreto 2482 de 2012)
D17: - Mapa Estrategico Institucional
D18: - Mapa de Procesos del ICBF
D19: - Analisis general de áreas
D20: - Objetivos SIGE
D21: Comportamiento Plan Indicativo Institucional
D22: Comportamiento SINERGIA
D23: Comportamiento macroregionales
D24: Comportamiento por agregados (indicadores)
D25: Matriz de seguimiento indicadores tablero de control
C27: Áreas
F29: Seleccione el área y escoja una de las siguientes opciones
C31: Seleccione la opción que desea revisar:
D33: Comportamiento áreas (ficha)
C35: Regional
E37: =+VLOOKUP(C37,referencias!$W$2:$X$34,2,FALSE) ->  | F37: Seleccione la regional y de click en el botón gris para actualizar la información
C39: Seleccione la opción que desea revisar:
D41: Avances de la gestión institucional a nivel regional
D42: =+"- Comportamiento Regional (Tablero de Control, Plan de Acción, Ranking regional, Centros zonales)" -> - Comportamiento Regional (Tablero de Control, Plan de Acción, Ranking regional, Centros zonales)
D43: - Modelo Integrado de Planeación y Gestión (decreto 2482 de 2012)
D44: - Mapa Estrategico Institucional
D45: - Mapa de Procesos del ICBF
D46: ="- Analisis áreas" -> - Analisis áreas
D47: - Objetivos SIGE
D49: =+"- Revisión Centros zonales:" -> - Revisión Centros zonales: | K49: =+IFERROR(VLOOKUP($C$37&$G$49,'información graf'!$CR$60:$CU$300,4,FALSE),"") -> 0
I50: Seleccione el centro zonal a revisar y de click en el boton verde
D51: Matriz de seguimiento indicadores tablero de control regional

Sheet nacional
C2: TABLERO DE CONTROL 2016 INSTITUTO COLOMBIANO DE BIENESTAR FAMILIAR ICBF SEGUIMIENTO TABLERO DE CONTROL - ANÁLISIS GENERAL
C5: Mes analisis | D5: =+Menu!C7 -> Noviembre | S5: Volver al menú
D6: =+VLOOKUP(D5,referencias!A131:C142,3,FALSE) -> Nov | E6: =+VLOOKUP(D6,referencias!C131:I142,7,FALSE) -> 11
N10: Comportamiento general
N11: T. control | O11: P. Acción | P11: P. Indicativo
L12: 2 | M12: Optimo | N12: =+HLOOKUP($D$6,'información graf'!$BO$3:$BZ$8,2,FALSE) -> 25 | O12: =+HLOOKUP($D$6,'información graf'!$BO$17:$BZ$22,2,FALSE) -> 12 | P12: =+HLOOKUP($D$6,'información graf'!$BO$31:$BZ$36,2,FALSE) -> 7
L13: 3 | M13: Adecuado | N13: =+HLOOKUP($D$6,'información graf'!$BO$3:$BZ$8,3,FALSE) -> 20 | O13: =+HLOOKUP($D$6,'información graf'!$BO$17:$BZ$22,3,FALSE) -> 10 | P13: =+HLOOKUP($D$6,'información graf'!$BO$31:$BZ$36,3,FALSE) -> 7
L14: 4 | M14: En riesgo | N14: =+HLOOKUP($D$6,'información graf'!$BO$3:$BZ$8,4,FALSE) -> 2 | O14: =+HLOOKUP($D$6,'información graf'!$BO$17:$BZ$22,4,FALSE) -> 2 | P14: =+HLOOKUP($D$6,'información graf'!$BO$31:$BZ$36,4,FALSE) -> 2
L15: 5 | M15: Critico | N15: =+HLOOKUP($D$6,'información graf'!$BO$3:$BZ$8,5,FALSE) -> 0 | O15: =+HLOOKUP($D$6,'información graf'!$BO$17:$BZ$22,5,FALSE) -> 0 | P15: =+HLOOKUP($D$6,'información graf'!$BO$31:$BZ$36,5,FALSE) -> 0
L16: 6 | M16: NA | N16: =+HLOOKUP($D$6,'información graf'!$BO$3:$BZ$8,6,FALSE) -> 116 | O16: =+HLOOKUP($D$6,'información graf'!$BO$17:$BZ$22,6,FALSE) -> 78 | P16: =+HLOOKUP($D$6,'información graf'!$BO$31:$BZ$36,6,FALSE) -> 58
L17: 7 | M17: Total | N17: =SUM(N12:N16) -> 163 | O17: =SUM(O12:O16) -> 102 | P17: =SUM(P12:P16) -> 74
M18: Aplicaron en el mes de corte | N18: =+N12+N13+N14+N15 -> 47 | O18: =+O12+O13+O14+O15 -> 24 | P18: =+P12+P13+P14+P15 -> 16 | AG18: Comparación vigencias 2015 - 2016
M19: =+"Corte "&$D$5 -> Corte Noviembre
D20: =+"Corte "&$D$5 -> Corte Noviembre
C23: Tablero de Control | H23: Plan de Acción | M23: Plan Indicativo
AH44: Tablero | AJ44: Ene | AK44: Feb | AL44: Mar | AM44: Abr | AN44: May | AO44: Jun | AP44: Jul | AQ44: Agt | AR44: Sep | AS44: Oct | AT44: Nov | AU44: Dic
AI45: 2015 | AJ45: =+'información graf'!AM4 -> 0.7583838906 | AK45: =+'información graf'!AN4 -> 0.7494365358 | AL45: =+'información graf'!AO4 -> 0.7152618223 | AM45: =+'información graf'!AP4 -> 0.7682663048 | AN45: =+'información graf'!AQ4 -> 0.7789227548 | AO45: =+'información graf'!AR4 -> 0.8234404689 | AP45: =+'información graf'!AS4 -> 0.8404075994 | AQ45: =+'información graf'!AT4 -> 0.8456698903 | AR45: =+'información graf'!AU4 -> 0.8637926815 | AS45: =+'información graf'!AV4 -> 0.8653250676 | AT45: =+'información graf'!AW4 -> 0.8653859837 | AU45: =+'información graf'!AX4 -> 
AI46: 2016 | AJ46: =+'información graf'!AM5 -> 0.8898165746 | AK46: =+'información graf'!AN5 -> 0.8994929302 | AL46: =+'información graf'!AO5 -> 0.8736798042 | AM46: =+'información graf'!AP5 -> 0.8947459802 | AN46: =+'información graf'!AQ5 -> 0.9466383162 | AO46: =+'información graf'!AR5 -> 0.9071946347 | AP46: =+'información graf'!AS5 -> 0.9565096378 | AQ46: =+'información graf'!AT5 -> 0.9344556856 | AR46: =+'información graf'!AU5 -> 0.8881054546 | AS46: =+'información graf'!AV5 -> 0.9127954185 | AT46: =+'información graf'!AW5 -> 0.9371449349 | AU46: =+'información graf'!AX5 -> 
C47: =+"Corte "&$D$5 -> Corte Noviembre | H47: =+"Corte "&$D$5 -> Corte Noviembre | M47: =+"Corte "&$D$5 -> Corte Noviembre | AI47: ∆ | AJ47: =+IFERROR((AJ46/AJ45)-1,0) -> 0.1733062709 | AK47: =+IFERROR((AK46/AK45)-1,0) -> 0.2002256193 | AL47: 0.2214825074 | AM47: 0.1646299918 | AN47: 0.2153173217 | AO47: 0.1017124722 | AP47: 0.138149677 | AQ47: 0.1049887153 | AR47: 0.02814653748 | AS47: 0.05485840257 | AT47: 0.08292132366 | AU47: 0
T48: 1 | U48: 2 | V48: 3 | W48: 4 | X48: 5 | Y48: 6 | Z48: 7 | AA48: 8 | AB48: 9 | AC48: 10 | AD48: 11 | AE48: 12
T49: Seguimiento mes a mes gestión ICBF | AH49: Plan de Acción | AJ49: Ene | AK49: Feb | AL49: Mar | AM49: Abr | AN49: May | AO49: Jun | AP49: Jul | AQ49: Agt | AR49: Sep | AS49: Oct | AT49: Nov | AU49: Dic
T50: Ene | U50: Feb | V50: Mar | W50: Abr | X50: May | Y50: Jun | Z50: Jul | AA50: Agt | AB50: Sep | AC50: Oct | AD50: Nov | AE50: Dic | AI50: 2015 | AJ50: =+'información graf'!AM8 -> 0.8064739884 | AK50: =+'información graf'!AN8 -> 0.8011268781 | AL50: =+'información graf'!AO8 -> 0.7353057459 | AM50: =+'información graf'!AP8 -> 0.7930644778 | AN50: =+'información graf'!AQ8 -> 0.7890853102 | AO50: =+'información graf'!AR8 -> 0.8438663151 | AP50: =+'información graf'!AS8 -> 0.8636857781 | AQ50: =+'información graf'!AT8 -> 0.8701375815 | AR50: =+'información graf'!AU8 -> 0.8875601926 | AS50: =+'información graf'!AV8 -> 0.8899695848 | AT50: =+'información graf'!AW8 -> 0.8890372917 | AU50: =+'información graf'!AX8 -> 
S51: T. control | T51: =+IFERROR('información graf'!BA4,"") -> 0.8898165746 | U51: =+IFERROR('información graf'!BB4,"") -> 0.8994929302 | V51: =+IFERROR('información graf'!BC4,"") -> 0.8736798042 | W51: =+IFERROR('información graf'!BD4,"") -> 0.8947459802 | X51: =+IFERROR('información graf'!BE4,"") -> 0.9466383162 | Y51: =+IFERROR('información graf'!BF4,"") -> 0.9071946347 | Z51: =+IFERROR('información graf'!BG4,"") -> 0.9565096378 | AA51: =+IFERROR('información graf'!BH4,"") -> 0.9344556856 | AB51: =+IFERROR('información graf'!BI4,"") -> 0.8881054546 | AC51: =+IFERROR('información graf'!BJ4,"") -> 0.9127954185 | AD51: =+IFERROR('información graf'!BK4,"") -> 0.9371449349 | AE51: =+IFERROR('información graf'!BL4,"") ->  | AI51: 2016 | AJ51: =+'información graf'!AM9 -> 0.9228336079 | AK51: =+'información graf'!AN9 -> 0.9021204981 | AL51: =+'información graf'!AO9 -> 0.860511883 | AM51: =+'información graf'!AP9 -> 0.8766985052 | AN51: =+'información graf'!AQ9 -> 0.9439473684 | AO51: =+'información graf'!AR9 -> 0.9095145509 | AP51: =+'información graf'!AS9 -> 0.9470518945 | AQ51: =+'información graf'!AT9 -> 0.9424808038 | AR51: =+'información graf'!AU9 -> 0.8763251916 | AS51: =+'información graf'!AV9 -> 0.9094287718 | AT51: =+'información graf'!AW9 -> 0.9314528646 | AU51: =+'información graf'!AX9 -> 
S52: Aplican | T52: =IF(T$48<=$E$6,tablero!BM39,"") -> 16 | U52: =IF(U$48<=$E$6,tablero!BN39,"") -> 27 | V52: =IF(V$48<=$E$6,tablero!BO39,"") -> 86 | W52: =IF(W$48<=$E$6,tablero!BP39,"") -> 57 | X52: =IF(X$48<=$E$6,tablero!BQ39,"") -> 42 | Y52: =IF(Y$48<=$E$6,tablero!BR39,"") -> 137 | Z52: =IF(Z$48<=$E$6,tablero!BS39,"") -> 46 | AA52: =IF(AA$48<=$E$6,tablero!BT39,"") -> 70 | AB52: =IF(AB$48<=$E$6,tablero!BU39,"") -> 126 | AC52: =IF(AC$48<=$E$6,tablero!BV39,"") -> 54 | AD52: =IF(AD$48<=$E$6,tablero!BW39,"") -> 46 | AE52: =IF(AE$48<=$E$6,tablero!BX39,"") ->  | AI52: ∆ | AJ52: =+IFERROR((AJ51/AJ50)-1,0) -> 0.1442819249 | AK52: 0.1260644509 | AL52: 0.1702776536 | AM52: 0.1054567816 | AN52: 0.1962551529 | AO52: 0.07779459212 | AP52: 0.09652366464 | AQ52: 0.08313998139 | AR52: -0.0126582976 | AS52: 0.02186500229 | AT52: 0.04770955419 | AU52: 0
S53: P. Acción | T53: =+IFERROR('información graf'!BA5,"") -> 0.9228336079 | U53: =+IFERROR('información graf'!BB5,"") -> 0.9021204981 | V53: =+IFERROR('información graf'!BC5,"") -> 0.860511883 | W53: =+IFERROR('información graf'!BD5,"") -> 0.8766985052 | X53: =+IFERROR('información graf'!BE5,"") -> 0.9439473684 | Y53: =+IFERROR('información graf'!BF5,"") -> 0.9095145509 | Z53: =+IFERROR('información graf'!BG5,"") -> 0.9470518945 | AA53: =+IFERROR('información graf'!BH5,"") -> 0.9424808038 | AB53: =+IFERROR('información graf'!BI5,"") -> 0.8763251916 | AC53: =+IFERROR('información graf'!BJ5,"") -> 0.9094287718 | AD53: =+IFERROR('información graf'!BK5,"") -> 0.9314528646 | AE53: =+IFERROR('información graf'!BL5,"") -> 
S54: Aplican | T54: =IF(T$48<=$E$6,tablero!BM37,"") -> 10 | U54: =IF(U$48<=$E$6,tablero!BN37,"") -> 15 | V54: =IF(V$48<=$E$6,tablero!BO37,"") -> 55 | W54: =IF(W$48<=$E$6,tablero!BP37,"") -> 35 | X54: =IF(X$48<=$E$6,tablero!BQ37,"") -> 23 | Y54: =IF(Y$48<=$E$6,tablero!BR37,"") -> 85 | Z54: =IF(Z$48<=$E$6,tablero!BS37,"") -> 25 | AA54: =IF(AA$48<=$E$6,tablero!BT37,"") -> 40 | AB54: =IF(AB$48<=$E$6,tablero!BU37,"") -> 76 | AC54: =IF(AC$48<=$E$6,tablero!BV37,"") -> 30 | AD54: =IF(AD$48<=$E$6,tablero!BW37,"") -> 24 | AE54: =IF(AE$48<=$E$6,tablero!BX37,"") ->  | AH54: Plan Indicativo | AJ54: Ene | AK54: Feb | AL54: Mar | AM54: Abr | AN54: May | AO54: Jun | AP54: Jul | AQ54: Agt | AR54: Sep | AS54: Oct | AT54: Nov | AU54: Dic
S55: P. Indicativo | T55: =+IFERROR('información graf'!BA6,"") -> 0.9579930796 | U55: =+IFERROR('información graf'!BB6,"") -> 0.9117946448 | V55: =+IFERROR('información graf'!BC6,"") -> 0.8612113622 | W55: =+IFERROR('información graf'!BD6,"") -> 0.8482058414 | X55: =+IFERROR('información graf'!BE6,"") -> 0.9641091348 | Y55: =+IFERROR('información graf'!BF6,"") -> 0.9082977499 | Z55: =+IFERROR('información graf'!BG6,"") -> 0.9395658609 | AA55: =+IFERROR('información graf'!BH6,"") -> 0.935574059 | AB55: =+IFERROR('información graf'!BI6,"") -> 0.8636112873 | AC55: =+IFERROR('información graf'!BJ6,"") -> 0.9351494153 | AD55: =+IFERROR('información graf'!BK6,"") -> 0.9153106585 | AE55: =+IFERROR('información graf'!BL6,"") ->  | AI55: 2015 | AJ55: =+'información graf'!AM12 -> 0.8038626609 | AK55: =+'información graf'!AN12 -> 0.8427750411 | AL55: =+'información graf'!AO12 -> 0.7417871222 | AM55: =+'información graf'!AP12 -> 0.8091349884 | AN55: =+'información graf'!AQ12 -> 0.7857732733 | AO55: =+'información graf'!AR12 -> 0.8607732823 | AP55: =+'información graf'!AS12 -> 0.8864986499 | AQ55: =+'información graf'!AT12 -> 0.8933318947 | AR55: =+'información graf'!AU12 -> 0.914813759 | AS55: =+'información graf'!AV12 -> 0.91618362 | AT55: =+'información graf'!AW12 -> 0.9164640987 | AU55: =+'información graf'!AX12 -> 
S56: Aplican | T56: =IF(T$48<=$E$6,tablero!BM42,"") -> 5 | U56: =IF(U$48<=$E$6,tablero!BN42,"") -> 8 | V56: =IF(V$48<=$E$6,tablero!BO42,"") -> 39 | W56: =IF(W$48<=$E$6,tablero!BP42,"") -> 22 | X56: =IF(X$48<=$E$6,tablero!BQ42,"") -> 15 | Y56: =IF(Y$48<=$E$6,tablero!BR42,"") -> 60 | Z56: =IF(Z$48<=$E$6,tablero!BS42,"") -> 17 | AA56: =IF(AA$48<=$E$6,tablero!BT42,"") -> 25 | AB56: =IF(AB$48<=$E$6,tablero!BU42,"") -> 55 | AC56: =IF(AC$48<=$E$6,tablero!BV42,"") -> 18 | AD56: =IF(AD$48<=$E$6,tablero!BW42,"") -> 16 | AE56: =IF(AE$48<=$E$6,tablero!BX42,"") ->  | AI56: 2016 | AJ56: =+'información graf'!AM13 -> 0.9579930796 | AK56: =+'información graf'!AN13 -> 0.9117946448 | AL56: =+'información graf'!AO13 -> 0.8612113622 | AM56: =+'información graf'!AP13 -> 0.8482058414 | AN56: =+'información graf'!AQ13 -> 0.9641091348 | AO56: =+'información graf'!AR13 -> 0.9082977499 | AP56: =+'información graf'!AS13 -> 0.9395658609 | AQ56: =+'información graf'!AT13 -> 0.935574059 | AR56: =+'información graf'!AU13 -> 0.8636112873 | AS56: =+'información graf'!AV13 -> 0.9351494153 | AT56: =+'información graf'!AW13 -> 0.9153106585 | AU56: =+'información graf'!AX13 -> 
AI57: ∆ | AJ57: =+IFERROR((AJ56/AJ55)-1,0) -> 0.1917372533 | AK57: 0.08189564287 | AL57: 0.1609952996 | AM57: 0.04828718773 | AN57: 0.2269558759 | AO57: 0.05521136475 | AP57: 0.05986158131 | AQ57: 0.04728608101 | AR57: -0.05597037787 | AS57: 0.02070086702 | AT57: -0.001258576518 | AU57: 0
C65: Plan de Acción Institucional | U65: Resultados Plan de Acción frente a la vigencia
M78: Ranking Regional
C93: Macroregiones
I116: Pacífico | J116: =+'información graf'!CP63 -> 0.9592302292
I117: Centro Sur | J117: =+'información graf'!CP64 -> 0.972347554
I118: Llanos | J118: =+'información graf'!CP65 -> 0.8569401556
I119: Eje Cafetero | J119: =+'información graf'!CP66 -> 0.9281403941
I120: Caribe | J120: =+'información graf'!CP67 -> 0.9221479795
I121: Centro Oriente | J121: =+'información graf'!CP68 -> 0.9480405036
C127: Modelo Integrado de Planeación y Gestión - decreto 2482 de 2012, DAFP | AW127: Gestión misional y de Gobierno | BC127: Transparencia, participación y servicio al ciudadano
T129: optimo | U129: adecuado | V129: en riesgo | W129: critico | X129: NA
H130: Líneas de politica | J130: Componentes | S130: Comportamiento agregado de indicadores
Y131: Total
M132: LP1 | N132: Gestión misional y de gobierno | S132: LP1 | T132: =+T133 -> 10 | U132: 6 | V132: 2 | W132: 0 | X132: 48 | Y132: 66
N133: LP1-C1 | O133: Indicadores y metas de Gobierno | S133: LP1-C1 | T133: =+VLOOKUP($S133&T$129,'td1'!$EX$169:$FJ$263,'información graf'!$G$2,FALSE) -> 10 | U133: =+VLOOKUP($S133&U$129,'td1'!$EX$169:$FJ$263,'información graf'!$G$2,FALSE) -> 6 | V133: =+VLOOKUP($S133&V$129,'td1'!$EX$169:$FJ$263,'información graf'!$G$2,FALSE) -> 2 | W133: =+VLOOKUP($S133&W$129,'td1'!$EX$169:$FJ$263,'información graf'!$G$2,FALSE) -> 0 | X133: =+VLOOKUP($S133&X$129,'td1'!$EX$169:$FJ$263,'información graf'!$G$2,FALSE) -> 48 | Y133: =+SUM(T133:X133) -> 66
M134: LP2 | N134: Transparencia, participación y servicio al ciudadano | S134: LP2 | T134: =+T135+T136+T137+T138 -> 0 | U134: 1 | V134: 0 | W134: 0 | X134: 11 | Y134: 12
N135: LP2-C2 | O135: Participación Ciudadana en la Gestión | S135: LP2-C2 | T135: =+VLOOKUP($S135&T$129,'td1'!$EX$169:$FJ$263,'información graf'!$G$2,FALSE) -> 0 | U135: =+VLOOKUP($S135&U$129,'td1'!$EX$169:$FJ$263,'información graf'!$G$2,FALSE) -> 0 | V135: =+VLOOKUP($S135&V$129,'td1'!$EX$169:$FJ$263,'información graf'!$G$2,FALSE) -> 0 | W135: =+VLOOKUP($S135&W$129,'td1'!$EX$169:$FJ$263,'información graf'!$G$2,FALSE) -> 0 | X135: =+VLOOKUP($S135&X$129,'td1'!$EX$169:$FJ$263,'información graf'!$G$2,FALSE) -> 6 | Y135: =+SUM(T135:X135) -> 6
N136: LP2-C3 | O136: Rendición de Cuentas a la ciudadania | S136: LP2-C3 | T136: =+VLOOKUP($S136&T$129,'td1'!$EX$169:$FJ$263,'información graf'!$G$2,FALSE) -> 0 | U136: =+VLOOKUP($S136&U$129,'td1'!$EX$169:$FJ$263,'información graf'!$G$2,FALSE) -> 0 | V136: =+VLOOKUP($S136&V$129,'td1'!$EX$169:$FJ$263,'información graf'!$G$2,FALSE) -> 0 | W136: =+VLOOKUP($S136&W$129,'td1'!$EX$169:$FJ$263,'información graf'!$G$2,FALSE) -> 0 | X136: =+VLOOKUP($S136&X$129,'td1'!$EX$169:$FJ$263,'información graf'!$G$2,FALSE) -> 1 | Y136: =+SUM(T136:X136) -> 1
N137: LP2-C4 | O137: Servicio al Ciudadano | S137: LP2-C4 | T137: =+VLOOKUP($S137&T$129,'td1'!$EX$169:$FJ$263,'información graf'!$G$2,FALSE) -> 0 | U137: =+VLOOKUP($S137&U$129,'td1'!$EX$169:$FJ$263,'información graf'!$G$2,FALSE) -> 1 | V137: =+VLOOKUP($S137&V$129,'td1'!$EX$169:$FJ$263,'información graf'!$G$2,FALSE) -> 0 | W137: =+VLOOKUP($S137&W$129,'td1'!$EX$169:$FJ$263,'información graf'!$G$2,FALSE) -> 0 | X137: =+VLOOKUP($S137&X$129,'td1'!$EX$169:$FJ$263,'información graf'!$G$2,FALSE) -> 2 | Y137: =+SUM(T137:X137) -> 3
N138: LP2-C5 | O138: Plan Anticorrupción y de Atención al Ciudadano | S138: LP2-C5 | T138: =+VLOOKUP($S138&T$129,'td1'!$EX$169:$FJ$263,'información graf'!$G$2,FALSE) -> 0 | U138: =+VLOOKUP($S138&U$129,'td1'!$EX$169:$FJ$263,'información graf'!$G$2,FALSE) -> 0 | V138: =+VLOOKUP($S138&V$129,'td1'!$EX$169:$FJ$263,'información graf'!$G$2,FALSE) -> 0 | W138: =+VLOOKUP($S138&W$129,'td1'!$EX$169:$FJ$263,'información graf'!$G$2,FALSE) -> 0 | X138: =+VLOOKUP($S138&X$129,'td1'!$EX$169:$FJ$263,'información graf'!$G$2,FALSE) -> 2 | Y138: =+SUM(T138:X138) -> 2
M139: LP3 | N139: Gestión del talento humano | S139: LP3 | T139: =+T140+T141+T142+T143 -> 0 | U139: 0 | V139: 0 | W139: 0 | X139: 4 | Y139: 4
N140: LP3-C1 | O140: Plan Estratégico de Recursos Humanos | S140: LP3-C1 | T140: =+VLOOKUP($S140&T$129,'td1'!$EX$169:$FJ$263,'información graf'!$G$2,FALSE) -> 0 | U140: =+VLOOKUP($S140&U$129,'td1'!$EX$169:$FJ$263,'información graf'!$G$2,FALSE) -> 0 | V140: =+VLOOKUP($S140&V$129,'td1'!$EX$169:$FJ$263,'información graf'!$G$2,FALSE) -> 0 | W140: =+VLOOKUP($S140&W$129,'td1'!$EX$169:$FJ$263,'información graf'!$G$2,FALSE) -> 0 | X140: =+VLOOKUP($S140&X$129,'td1'!$EX$169:$FJ$263,'información graf'!$G$2,FALSE) -> 1 | Y140: =+SUM(T140:X140) -> 1
N141: LP3-C2 | O141: Plan Anual de Vacantes | S141: LP3-C2 | T141: =+VLOOKUP($S141&T$129,'td1'!$EX$169:$FJ$263,'información graf'!$G$2,FALSE) -> 0 | U141: =+VLOOKUP($S141&U$129,'td1'!$EX$169:$FJ$263,'información graf'!$G$2,FALSE) -> 0 | V141: =+VLOOKUP($S141&V$129,'td1'!$EX$169:$FJ$263,'información graf'!$G$2,FALSE) -> 0 | W141: =+VLOOKUP($S141&W$129,'td1'!$EX$169:$FJ$263,'información graf'!$G$2,FALSE) -> 0 | X141: =+VLOOKUP($S141&X$129,'td1'!$EX$169:$FJ$263,'información graf'!$G$2,FALSE) -> 1 | Y141: =+SUM(T141:X141) -> 1
N142: LP3-C3 | O142: Capacitación | S142: LP3-C3 | T142: =+VLOOKUP($S142&T$129,'td1'!$EX$169:$FJ$263,'información graf'!$G$2,FALSE) -> 0 | U142: =+VLOOKUP($S142&U$129,'td1'!$EX$169:$FJ$263,'información graf'!$G$2,FALSE) -> 0 | V142: =+VLOOKUP($S142&V$129,'td1'!$EX$169:$FJ$263,'información graf'!$G$2,FALSE) -> 0 | W142: =+VLOOKUP($S142&W$129,'td1'!$EX$169:$FJ$263,'información graf'!$G$2,FALSE) -> 0 | X142: =+VLOOKUP($S142&X$129,'td1'!$EX$169:$FJ$263,'información graf'!$G$2,FALSE) -> 1 | Y142: =+SUM(T142:X142) -> 1
N143: LP3-C4 | O143: Bienestar e Incentivos | S143: LP3-C4 | T143: =+VLOOKUP($S143&T$129,'td1'!$EX$169:$FJ$263,'información graf'!$G$2,FALSE) -> 0 | U143: =+VLOOKUP($S143&U$129,'td1'!$EX$169:$FJ$263,'información graf'!$G$2,FALSE) -> 0 | V143: =+VLOOKUP($S143&V$129,'td1'!$EX$169:$FJ$263,'información graf'!$G$2,FALSE) -> 0 | W143: =+VLOOKUP($S143&W$129,'td1'!$EX$169:$FJ$263,'información graf'!$G$2,FALSE) -> 0 | X143: =+VLOOKUP($S143&X$129,'td1'!$EX$169:$FJ$263,'información graf'!$G$2,FALSE) -> 1 | Y143: =+SUM(T143:X143) -> 1 | AW143: Gestión del talento humano | BC143: Gestión financiera
M144: LP4 | N144: Eficiencia administrativa | S144: LP4 | T144: =+T145+T146+T147+T148+T149+T150 -> 0 | U144: 0 | V144: 0 | W144: 0 | X144: 14 | Y144: 14
N145: LP4-C1 | O145: Gestión de la Calidad | S145: LP4-C1 | T145: =+VLOOKUP($S145&T$129,'td1'!$EX$169:$FJ$263,'información graf'!$G$2,FALSE) -> 0 | U145: =+VLOOKUP($S145&U$129,'td1'!$EX$169:$FJ$263,'información graf'!$G$2,FALSE) -> 0 | V145: =+VLOOKUP($S145&V$129,'td1'!$EX$169:$FJ$263,'información graf'!$G$2,FALSE) -> 0 | W145: =+VLOOKUP($S145&W$129,'td1'!$EX$169:$FJ$263,'información graf'!$G$2,FALSE) -> 0 | X145: =+VLOOKUP($S145&X$129,'td1'!$EX$169:$FJ$263,'información graf'!$G$2,FALSE) -> 8 | Y145: =+SUM(T145:X145) -> 8
N146: LP4-C2 | O146: Eficiencia Administrativa y Cero Papel | S146: LP4-C2 | T146: =+VLOOKUP($S146&T$129,'td1'!$EX$169:$FJ$263,'información graf'!$G$2,FALSE) -> 0 | U146: =+VLOOKUP($S146&U$129,'td1'!$EX$169:$FJ$263,'información graf'!$G$2,FALSE) -> 0 | V146: =+VLOOKUP($S146&V$129,'td1'!$EX$169:$FJ$263,'información graf'!$G$2,FALSE) -> 0 | W146: =+VLOOKUP($S146&W$129,'td1'!$EX$169:$FJ$263,'información graf'!$G$2,FALSE) -> 0 | X146: =+VLOOKUP($S146&X$129,'td1'!$EX$169:$FJ$263,'información graf'!$G$2,FALSE) -> 1 | Y146: 1
N147: LP4-C3 | O147: Racionalización de Trámites | S147: LP4-C3 | T147: =+VLOOKUP($S147&T$129,'td1'!$EX$169:$FJ$263,'información graf'!$G$2,FALSE) -> 0 | U147: =+VLOOKUP($S147&U$129,'td1'!$EX$169:$FJ$263,'información graf'!$G$2,FALSE) -> 0 | V147: =+VLOOKUP($S147&V$129,'td1'!$EX$169:$FJ$263,'información graf'!$G$2,FALSE) -> 0 | W147: =+VLOOKUP($S147&W$129,'td1'!$EX$169:$FJ$263,'información graf'!$G$2,FALSE) -> 0 | X147: =+VLOOKUP($S147&X$129,'td1'!$EX$169:$FJ$263,'información graf'!$G$2,FALSE) -> 1 | Y147: 1
N148: LP4-C4 | O148: Modernización Institucional | S148: LP4-C4 | T148: =+VLOOKUP($S148&T$129,'td1'!$EX$169:$FJ$263,'información graf'!$G$2,FALSE) -> 0 | U148: =+VLOOKUP($S148&U$129,'td1'!$EX$169:$FJ$263,'información graf'!$G$2,FALSE) -> 0 | V148: =+VLOOKUP($S148&V$129,'td1'!$EX$169:$FJ$263,'información graf'!$G$2,FALSE) -> 0 | W148: =+VLOOKUP($S148&W$129,'td1'!$EX$169:$FJ$263,'información graf'!$G$2,FALSE) -> 0 | X148: =+VLOOKUP($S148&X$129,'td1'!$EX$169:$FJ$263,'información graf'!$G$2,FALSE) -> 1 | Y148: 1
N149: LP4-C5 | O149: Gestión de Tecnologías de información | S149: LP4-C5 | T149: =+VLOOKUP($S149&T$129,'td1'!$EX$169:$FJ$263,'información graf'!$G$2,FALSE) -> 0 | U149: =+VLOOKUP($S149&U$129,'td1'!$EX$169:$FJ$263,'información graf'!$G$2,FALSE) -> 0 | V149: =+VLOOKUP($S149&V$129,'td1'!$EX$169:$FJ$263,'información graf'!$G$2,FALSE) -> 0 | W149: =+VLOOKUP($S149&W$129,'td1'!$EX$169:$FJ$263,'información graf'!$G$2,FALSE) -> 0 | X149: =+VLOOKUP($S149&X$129,'td1'!$EX$169:$FJ$263,'información graf'!$G$2,FALSE) -> 2 | Y149: 2
N150: LP4-C6 | O150: Gestión Documental | S150: LP4-C6 | T150: =+VLOOKUP($S150&T$129,'td1'!$EX$169:$FJ$263,'información graf'!$G$2,FALSE) -> 0 | U150: =+VLOOKUP($S150&U$129,'td1'!$EX$169:$FJ$263,'información graf'!$G$2,FALSE) -> 0 | V150: =+VLOOKUP($S150&V$129,'td1'!$EX$169:$FJ$263,'información graf'!$G$2,FALSE) -> 0 | W150: =+VLOOKUP($S150&W$129,'td1'!$EX$169:$FJ$263,'información graf'!$G$2,FALSE) -> 0 | X150: =+VLOOKUP($S150&X$129,'td1'!$EX$169:$FJ$263,'información graf'!$G$2,FALSE) -> 1 | Y150: 1
M151: LP5 | N151: Gestión financiera | S151: LP5 | T151: =+T152+T153+T154+T155 -> 2 | U151: 3 | V151: 0 | W151: 0 | X151: 1 | Y151: 6
N152: LP5-C1 | O152: Programación y Ejecución Presupuestal | S152: LP5-C1 | T152: =+VLOOKUP($S152&T$129,'td1'!$EX$169:$FJ$263,'información graf'!$G$2,FALSE) -> 2 | U152: =+VLOOKUP($S152&U$129,'td1'!$EX$169:$FJ$263,'información graf'!$G$2,FALSE) -> 0 | V152: =+VLOOKUP($S152&V$129,'td1'!$EX$169:$FJ$263,'información graf'!$G$2,FALSE) -> 0 | W152: =+VLOOKUP($S152&W$129,'td1'!$EX$169:$FJ$263,'información graf'!$G$2,FALSE) -> 0 | X152: =+VLOOKUP($S152&X$129,'td1'!$EX$169:$FJ$263,'información graf'!$G$2,FALSE) -> 0 | Y152: =+SUM(T152:X152) -> 2
N153: LP5-C2 | O153: Programa Anual Mensualizado de Caja – PAC | S153: LP5-C2 | T153: =+VLOOKUP($S153&T$129,'td1'!$EX$169:$FJ$263,'información graf'!$G$2,FALSE) -> 0 | U153: =+VLOOKUP($S153&U$129,'td1'!$EX$169:$FJ$263,'información graf'!$G$2,FALSE) -> 2 | V153: =+VLOOKUP($S153&V$129,'td1'!$EX$169:$FJ$263,'información graf'!$G$2,FALSE) -> 0 | W153: =+VLOOKUP($S153&W$129,'td1'!$EX$169:$FJ$263,'información graf'!$G$2,FALSE) -> 0 | X153: =+VLOOKUP($S153&X$129,'td1'!$EX$169:$FJ$263,'información graf'!$G$2,FALSE) -> 0 | Y153: =+SUM(T153:X153) -> 2
N154: LP5-C3 | O154: Formulación y seguimiento a proyectos de inversión | S154: LP5-C3 | T154: =+VLOOKUP($S154&T$129,'td1'!$EX$169:$FJ$263,'información graf'!$G$2,FALSE) -> 0 | U154: =+VLOOKUP($S154&U$129,'td1'!$EX$169:$FJ$263,'información graf'!$G$2,FALSE) -> 0 | V154: =+VLOOKUP($S154&V$129,'td1'!$EX$169:$FJ$263,'información graf'!$G$2,FALSE) -> 0 | W154: =+VLOOKUP($S154&W$129,'td1'!$EX$169:$FJ$263,'información graf'!$G$2,FALSE) -> 0 | X154: =+VLOOKUP($S154&X$129,'td1'!$EX$169:$FJ$263,'información graf'!$G$2,FALSE) -> 1 | Y154: =+SUM(T154:X154) -> 1
N155: LP5-C4 | O155: Plan Anual de Adquisiciones (PAA) | S155: LP5-C4 | T155: =+VLOOKUP($S155&T$129,'td1'!$EX$169:$FJ$263,'información graf'!$G$2,FALSE) -> 0 | U155: =+VLOOKUP($S155&U$129,'td1'!$EX$169:$FJ$263,'información graf'!$G$2,FALSE) -> 1 | V155: =+VLOOKUP($S155&V$129,'td1'!$EX$169:$FJ$263,'información graf'!$G$2,FALSE) -> 0 | W155: =+VLOOKUP($S155&W$129,'td1'!$EX$169:$FJ$263,'información graf'!$G$2,FALSE) -> 0 | X155: =+VLOOKUP($S155&X$129,'td1'!$EX$169:$FJ$263,'información graf'!$G$2,FALSE) -> 0 | Y155: =+SUM(T155:X155) -> 1
S156: Total | T156: =+T132+T134+T139+T144+T151 -> 12 | U156: 10 | V156: 2 | W156: 0 | X156: 78 | Y156: 102
T157: =+T156/$Y$156 -> 0.1176470588 | U157: =+U156/$Y$156 -> 0.09803921569 | V157: =+V156/$Y$156 -> 0.01960784314 | W157: =+W156/$Y$156 -> 0 | X157: =+X156/$Y$156 -> 0.7647058824
C163: Mapa Estratégico 2015 -2018
U164: Categoria | Y164: Perspectivas
C166: =+"Corte "&$D$5 -> Corte Noviembre
AI173: Comportamiento agregado de indicadores
AI174: 7 | AJ174: optimo | AK174: adecuado | AL174: en riesgo | AM174: critico | AN174: NA
AO175: Total
AH176: Servicios | AJ176: =+SUM(AJ177:AJ181) -> 12 | AK176: =+SUM(AK177:AK181) -> 13 | AL176: =+SUM(AL177:AL181) -> 2 | AM176: =+SUM(AM177:AM181) -> 0 | AN176: =+SUM(AN177:AN181) -> 45 | AO176: =+SUM(AJ176:AN176) -> 72
AI177: PS1 | AJ177: =+VLOOKUP($AI177&AJ$174,'td1'!$EH$169:$ET$228,'información graf'!$G$2,FALSE) -> 5 | AK177: =+VLOOKUP($AI177&AK$174,'td1'!$EH$169:$ET$228,'información graf'!$G$2,FALSE) -> 2 | AL177: =+VLOOKUP($AI177&AL$174,'td1'!$EH$169:$ET$228,'información graf'!$G$2,FALSE) -> 1 | AM177: =+VLOOKUP($AI177&AM$174,'td1'!$EH$169:$ET$228,'información graf'!$G$2,FALSE) -> 0 | AN177: =+VLOOKUP($AI177&AN$174,'td1'!$EH$169:$ET$228,'información graf'!$G$2,FALSE) -> 10 | AO177: =+SUM(AJ177:AN177) -> 18
AI178: PS2 | AJ178: =+VLOOKUP($AI178&AJ$174,'td1'!$EH$169:$ET$228,'información graf'!$G$2,FALSE) -> 0 | AK178: =+VLOOKUP($AI178&AK$174,'td1'!$EH$169:$ET$228,'información graf'!$G$2,FALSE) -> 3 | AL178: =+VLOOKUP($AI178&AL$174,'td1'!$EH$169:$ET$228,'información graf'!$G$2,FALSE) -> 0 | AM178: =+VLOOKUP($AI178&AM$174,'td1'!$EH$169:$ET$228,'información graf'!$G$2,FALSE) -> 0 | AN178: =+VLOOKUP($AI178&AN$174,'td1'!$EH$169:$ET$228,'información graf'!$G$2,FALSE) -> 8 | AO178: 11
AI179: PS3 | AJ179: =+VLOOKUP($AI179&AJ$174,'td1'!$EH$169:$ET$228,'información graf'!$G$2,FALSE) -> 1 | AK179: =+VLOOKUP($AI179&AK$174,'td1'!$EH$169:$ET$228,'información graf'!$G$2,FALSE) -> 3 | AL179: =+VLOOKUP($AI179&AL$174,'td1'!$EH$169:$ET$228,'información graf'!$G$2,FALSE) -> 0 | AM179: =+VLOOKUP($AI179&AM$174,'td1'!$EH$169:$ET$228,'información graf'!$G$2,FALSE) -> 0 | AN179: =+VLOOKUP($AI179&AN$174,'td1'!$EH$169:$ET$228,'información graf'!$G$2,FALSE) -> 2 | AO179: 6
AI180: PS4 | AJ180: =+VLOOKUP($AI180&AJ$174,'td1'!$EH$169:$ET$228,'información graf'!$G$2,FALSE) -> 1 | AK180: =+VLOOKUP($AI180&AK$174,'td1'!$EH$169:$ET$228,'información graf'!$G$2,FALSE) -> 0 | AL180: =+VLOOKUP($AI180&AL$174,'td1'!$EH$169:$ET$228,'información graf'!$G$2,FALSE) -> 1 | AM180: =+VLOOKUP($AI180&AM$174,'td1'!$EH$169:$ET$228,'información graf'!$G$2,FALSE) -> 0 | AN180: =+VLOOKUP($AI180&AN$174,'td1'!$EH$169:$ET$228,'información graf'!$G$2,FALSE) -> 11 | AO180: 13
AI181: PS5 | AJ181: =+VLOOKUP($AI181&AJ$174,'td1'!$EH$169:$ET$228,'información graf'!$G$2,FALSE) -> 5 | AK181: =+VLOOKUP($AI181&AK$174,'td1'!$EH$169:$ET$228,'información graf'!$G$2,FALSE) -> 5 | AL181: =+VLOOKUP($AI181&AL$174,'td1'!$EH$169:$ET$228,'información graf'!$G$2,FALSE) -> 0 | AM181: =+VLOOKUP($AI181&AM$174,'td1'!$EH$169:$ET$228,'información graf'!$G$2,FALSE) -> 0 | AN181: =+VLOOKUP($AI181&AN$174,'td1'!$EH$169:$ET$228,'información graf'!$G$2,FALSE) -> 14 | AO181: 24
AH182: Procesos | AJ182: =+SUM(AJ183:AJ186) -> 4 | AK182: =+SUM(AK183:AK186) -> 0 | AL182: =+SUM(AL183:AL186) -> 0 | AM182: =+SUM(AM183:AM186) -> 0 | AN182: =+SUM(AN183:AN186) -> 38 | AO182: 42
T183: =+"Corte "&$D$5 -> Corte Noviembre | AI183: PP1 | AJ183: =+VLOOKUP($AI183&AJ$174,'td1'!$EH$169:$ET$228,'información graf'!$G$2,FALSE) -> 2 | AK183: =+VLOOKUP($AI183&AK$174,'td1'!$EH$169:$ET$228,'información graf'!$G$2,FALSE) -> 0 | AL183: =+VLOOKUP($AI183&AL$174,'td1'!$EH$169:$ET$228,'información graf'!$G$2,FALSE) -> 0 | AM183: =+VLOOKUP($AI183&AM$174,'td1'!$EH$169:$ET$228,'información graf'!$G$2,FALSE) -> 0 | AN183: =+VLOOKUP($AI183&AN$174,'td1'!$EH$169:$ET$228,'información graf'!$G$2,FALSE) -> 21 | AO183: 23
AI184: PP2 | AJ184: =+VLOOKUP($AI184&AJ$174,'td1'!$EH$169:$ET$228,'información graf'!$G$2,FALSE) -> 1 | AK184: =+VLOOKUP($AI184&AK$174,'td1'!$EH$169:$ET$228,'información graf'!$G$2,FALSE) -> 0 | AL184: =+VLOOKUP($AI184&AL$174,'td1'!$EH$169:$ET$228,'información graf'!$G$2,FALSE) -> 0 | AM184: =+VLOOKUP($AI184&AM$174,'td1'!$EH$169:$ET$228,'información graf'!$G$2,FALSE) -> 0 | AN184: =+VLOOKUP($AI184&AN$174,'td1'!$EH$169:$ET$228,'información graf'!$G$2,FALSE) -> 9 | AO184: 10
P185: PS | R185: Perspectiva de Servicios | AI185: PP3 | AJ185: =+VLOOKUP($AI185&AJ$174,'td1'!$EH$169:$ET$228,'información graf'!$G$2,FALSE) -> 1 | AK185: =+VLOOKUP($AI185&AK$174,'td1'!$EH$169:$ET$228,'información graf'!$G$2,FALSE) -> 0 | AL185: =+VLOOKUP($AI185&AL$174,'td1'!$EH$169:$ET$228,'información graf'!$G$2,FALSE) -> 0 | AM185: =+VLOOKUP($AI185&AM$174,'td1'!$EH$169:$ET$228,'información graf'!$G$2,FALSE) -> 0 | AN185: =+VLOOKUP($AI185&AN$174,'td1'!$EH$169:$ET$228,'información graf'!$G$2,FALSE) -> 2 | AO185: 3
R186: PS1 | S186: Ampliar cobertura y mejorar calidad en la atención integral de la Primera Infancia | AI186: PP4 | AJ186: =+VLOOKUP($AI186&AJ$174,'td1'!$EH$169:$ET$228,'información graf'!$G$2,FALSE) -> 0 | AK186: =+VLOOKUP($AI186&AK$174,'td1'!$EH$169:$ET$228,'información graf'!$G$2,FALSE) -> 0 | AL186: =+VLOOKUP($AI186&AL$174,'td1'!$EH$169:$ET$228,'información graf'!$G$2,FALSE) -> 0 | AM186: =+VLOOKUP($AI186&AM$174,'td1'!$EH$169:$ET$228,'información graf'!$G$2,FALSE) -> 0 | AN186: =+VLOOKUP($AI186&AN$174,'td1'!$EH$169:$ET$228,'información graf'!$G$2,FALSE) -> 6 | AO186: 6
R187: PS2 | S187: Promover los derechos de los niños, niñas y adolescentes y prevenir los riesgos o amenazas de su vulneración | AH187: Aliados y Sociedad | AJ187: =+SUM(AJ188:AJ189) -> 3 | AK187: =+SUM(AK188:AK189) -> 3 | AL187: =+SUM(AL188:AL189) -> 0 | AM187: =+SUM(AM188:AM189) -> 0 | AN187: =+SUM(AN188:AN189) -> 23 | AO187: 29
R188: PS3 | S188: Promover el desarrollo, fortalecer los vinculos de cuidado mutuo y prevenir violencia intrafamiliar y de género en las familias y las comunidades | AI188: PAS1 | AJ188: =+VLOOKUP($AI188&AJ$174,'td1'!$EH$169:$ET$228,'información graf'!$G$2,FALSE) -> 1 | AK188: =+VLOOKUP($AI188&AK$174,'td1'!$EH$169:$ET$228,'información graf'!$G$2,FALSE) -> 0 | AL188: =+VLOOKUP($AI188&AL$174,'td1'!$EH$169:$ET$228,'información graf'!$G$2,FALSE) -> 0 | AM188: =+VLOOKUP($AI188&AM$174,'td1'!$EH$169:$ET$228,'información graf'!$G$2,FALSE) -> 0 | AN188: =+VLOOKUP($AI188&AN$174,'td1'!$EH$169:$ET$228,'información graf'!$G$2,FALSE) -> 14 | AO188: 15
R189: PS4 | S189: Promover la seguridad alimentaria y Nutricional | AI189: PAS2 | AJ189: =+VLOOKUP($AI189&AJ$174,'td1'!$EH$169:$ET$228,'información graf'!$G$2,FALSE) -> 2 | AK189: =+VLOOKUP($AI189&AK$174,'td1'!$EH$169:$ET$228,'información graf'!$G$2,FALSE) -> 3 | AL189: =+VLOOKUP($AI189&AL$174,'td1'!$EH$169:$ET$228,'información graf'!$G$2,FALSE) -> 0 | AM189: =+VLOOKUP($AI189&AM$174,'td1'!$EH$169:$ET$228,'información graf'!$G$2,FALSE) -> 0 | AN189: =+VLOOKUP($AI189&AN$174,'td1'!$EH$169:$ET$228,'información graf'!$G$2,FALSE) -> 9 | AO189: 14
R190: PS5 | S190: Garantizar la Protección integral de los niños, niñas y adolescentes | AH190: Financiera | AJ190: =+AJ191 -> 6 | AK190: =+AK191 -> 4 | AL190: =+AL191 -> 0 | AM190: =+AM191 -> 0 | AN190: =+AN191 -> 10 | AO190: 20
P191: PP | R191: Perspectiva de Procesos | AI191: PF | AJ191: =+VLOOKUP($AI191&AJ$174,'td1'!$EH$169:$ET$228,'información graf'!$G$2,FALSE) -> 6 | AK191: =+VLOOKUP($AI191&AK$174,'td1'!$EH$169:$ET$228,'información graf'!$G$2,FALSE) -> 4 | AL191: =+VLOOKUP($AI191&AL$174,'td1'!$EH$169:$ET$228,'información graf'!$G$2,FALSE) -> 0 | AM191: =+VLOOKUP($AI191&AM$174,'td1'!$EH$169:$ET$228,'información graf'!$G$2,FALSE) -> 0 | AN191: =+VLOOKUP($AI191&AN$174,'td1'!$EH$169:$ET$228,'información graf'!$G$2,FALSE) -> 10 | AO191: 20
R192: PP1 | S192: Impulsar una cultura de la evaluación y gestión de la calidad para el mejoramiento continuo | AH192: Total | AJ192: =+AJ176+AJ182+AJ187+AJ190 -> 25 | AK192: 20 | AL192: 2 | AM192: 0 | AN192: 116 | AO192: 163
R193: PP2 | S193: Promover condiciones laborales que hagan del ICBF el mejor lugar para trabajar | AJ193: =+AJ192/$AO$192 -> 0.1533742331 | AK193: =+AK192/$AO$192 -> 0.1226993865 | AL193: =+AL192/$AO$192 -> 0.01226993865 | AM193: =+AM192/$AO$192 -> 0 | AN193: =+AN192/$AO$192 -> 0.7116564417
R194: PP3 | S194: Reducir los impactos ambientales generados por nuestra actividad | AI194: =+"Corte "&$D$5 -> Corte Noviembre
R195: PP4 | S195: Gestionar el conocimiento institucional, con sistemas de información integrados y seguros
P196: PAS | R196: Perspectiva de Aliados y sociedad
R197: PAS1 | S197: Articular las instancias del Instituto Colombiano de Bienestar Familiar y del Sistema Nacional de Bienestar Familiar
R198: PAS2 | S198: Trabajar con transparencia y buen Gobierno para promover el control social y la participación ciudadana
P199: PF | R199: Perspectiva Financiera
R200: PF | S200: Hacer un uso eficiente de los recursos de los niños, niñas y adolescentes, porque son sagrados
C206: Mapa de Procesos ICBF
C208: =+"Corte "&$D$5 -> Corte Noviembre
T211: Procesos | AA211: Comportamiento agregado de indicadores
AA212: 7 | AB212: optimo | AC212: adecuado | AD212: en riesgo | AE212: critico | AF212: NA
AG213: Total
M214: Misionales | Z214: Misionales | AB214: =+AB215+AB216 -> 9 | AC214: =+AC215+AC216 -> 11 | AD214: =+AD215+AD216 -> 0 | AE214: =+AE215+AE216 -> 0 | AF214: =+AF215+AF216 -> 35 | AG214: =+SUM(AB214:AF214) -> 55
M215: PM1 | N215: Promoción y prevención | AA215: PM1 | AB215: =+VLOOKUP($AA215&AB$212,'td1'!$DR$169:$ED$243,'información graf'!$G$2,FALSE) -> 6 | AC215: =+VLOOKUP($AA215&AC$212,'td1'!$DR$169:$ED$243,'información graf'!$G$2,FALSE) -> 6 | AD215: =+VLOOKUP($AA215&AD$212,'td1'!$DR$169:$ED$243,'información graf'!$G$2,FALSE) -> 0 | AE215: =+VLOOKUP($AA215&AE$212,'td1'!$DR$169:$ED$243,'información graf'!$G$2,FALSE) -> 0 | AF215: =+VLOOKUP($AA215&AF$212,'td1'!$DR$169:$ED$243,'información graf'!$G$2,FALSE) -> 26 | AG215: 38
M216: PM2 | N216: Protección | AA216: PM2 | AB216: =+VLOOKUP($AA216&AB$212,'td1'!$DR$169:$ED$243,'información graf'!$G$2,FALSE) -> 3 | AC216: =+VLOOKUP($AA216&AC$212,'td1'!$DR$169:$ED$243,'información graf'!$G$2,FALSE) -> 5 | AD216: =+VLOOKUP($AA216&AD$212,'td1'!$DR$169:$ED$243,'información graf'!$G$2,FALSE) -> 0 | AE216: =+VLOOKUP($AA216&AE$212,'td1'!$DR$169:$ED$243,'información graf'!$G$2,FALSE) -> 0 | AF216: =+VLOOKUP($AA216&AF$212,'td1'!$DR$169:$ED$243,'información graf'!$G$2,FALSE) -> 9 | AG216: 17
M217: Apoyo | Z217: Apoyo | AB217: =+AB218+AB219+AB220+AB221+AB222 -> 8 | AC217: =+AC218+AC219+AC220+AC221+AC222 -> 4 | AD217: =+AD218+AD219+AD220+AD221+AD222 -> 1 | AE217: =+AE218+AE219+AE220+AE221+AE222 -> 0 | AF217: =+AF218+AF219+AF220+AF221+AF222 -> 26 | AG217: 39
M218: PA1 | N218: Gestión financiera | AA218: PA1 | AB218: =+VLOOKUP($AA218&AB$212,'td1'!$DR$169:$ED$243,'información graf'!$G$2,FALSE) -> 4 | AC218: =+VLOOKUP($AA218&AC$212,'td1'!$DR$169:$ED$243,'información graf'!$G$2,FALSE) -> 3 | AD218: =+VLOOKUP($AA218&AD$212,'td1'!$DR$169:$ED$243,'información graf'!$G$2,FALSE) -> 0 | AE218: =+VLOOKUP($AA218&AE$212,'td1'!$DR$169:$ED$243,'información graf'!$G$2,FALSE) -> 0 | AF218: =+VLOOKUP($AA218&AF$212,'td1'!$DR$169:$ED$243,'información graf'!$G$2,FALSE) -> 0 | AG218: 7
M219: PA2 | N219: Adquisición de bienes y servicios | AA219: PA2 | AB219: =+VLOOKUP($AA219&AB$212,'td1'!$DR$169:$ED$243,'información graf'!$G$2,FALSE) -> 2 | AC219: =+VLOOKUP($AA219&AC$212,'td1'!$DR$169:$ED$243,'información graf'!$G$2,FALSE) -> 1 | AD219: =+VLOOKUP($AA219&AD$212,'td1'!$DR$169:$ED$243,'información graf'!$G$2,FALSE) -> 1 | AE219: =+VLOOKUP($AA219&AE$212,'td1'!$DR$169:$ED$243,'información graf'!$G$2,FALSE) -> 0 | AF219: =+VLOOKUP($AA219&AF$212,'td1'!$DR$169:$ED$243,'información graf'!$G$2,FALSE) -> 4 | AG219: 8
M220: PA3 | N220: Servicios administrativos | AA220: PA3 | AB220: =+VLOOKUP($AA220&AB$212,'td1'!$DR$169:$ED$243,'información graf'!$G$2,FALSE) -> 2 | AC220: =+VLOOKUP($AA220&AC$212,'td1'!$DR$169:$ED$243,'información graf'!$G$2,FALSE) -> 0 | AD220: =+VLOOKUP($AA220&AD$212,'td1'!$DR$169:$ED$243,'información graf'!$G$2,FALSE) -> 0 | AE220: =+VLOOKUP($AA220&AE$212,'td1'!$DR$169:$ED$243,'información graf'!$G$2,FALSE) -> 0 | AF220: =+VLOOKUP($AA220&AF$212,'td1'!$DR$169:$ED$243,'información graf'!$G$2,FALSE) -> 8 | AG220: 10
M221: PA4 | N221: Gestión de talento humano | AA221: PA4 | AB221: =+VLOOKUP($AA221&AB$212,'td1'!$DR$169:$ED$243,'información graf'!$G$2,FALSE) -> 0 | AC221: =+VLOOKUP($AA221&AC$212,'td1'!$DR$169:$ED$243,'información graf'!$G$2,FALSE) -> 0 | AD221: =+VLOOKUP($AA221&AD$212,'td1'!$DR$169:$ED$243,'información graf'!$G$2,FALSE) -> 0 | AE221: =+VLOOKUP($AA221&AE$212,'td1'!$DR$169:$ED$243,'información graf'!$G$2,FALSE) -> 0 | AF221: =+VLOOKUP($AA221&AF$212,'td1'!$DR$169:$ED$243,'información graf'!$G$2,FALSE) -> 10 | AG221: 10
M222: PA5 | N222: Gestión jurídica | AA222: PA5 | AB222: =+VLOOKUP($AA222&AB$212,'td1'!$DR$169:$ED$243,'información graf'!$G$2,FALSE) -> 0 | AC222: =+VLOOKUP($AA222&AC$212,'td1'!$DR$169:$ED$243,'información graf'!$G$2,FALSE) -> 0 | AD222: =+VLOOKUP($AA222&AD$212,'td1'!$DR$169:$ED$243,'información graf'!$G$2,FALSE) -> 0 | AE222: =+VLOOKUP($AA222&AE$212,'td1'!$DR$169:$ED$243,'información graf'!$G$2,FALSE) -> 0 | AF222: =+VLOOKUP($AA222&AF$212,'td1'!$DR$169:$ED$243,'información graf'!$G$2,FALSE) -> 4 | AG222: 4
M223: Estratégicos | Z223: Estratégicos | AB223: =+AB224+AB225+AB226 -> 2 | AC223: =+AC224+AC225+AC226 -> 0 | AD223: =+AD224+AD225+AD226 -> 0 | AE223: =+AE224+AE225+AE226 -> 0 | AF223: =+AF224+AF225+AF226 -> 19 | AG223: 21
M224: PE1 | N224: Coordinación y articulación del SNBF y agentes | AA224: PE1 | AB224: =+VLOOKUP($AA224&AB$212,'td1'!$DR$169:$ED$243,'información graf'!$G$2,FALSE) -> 0 | AC224: =+VLOOKUP($AA224&AC$212,'td1'!$DR$169:$ED$243,'información graf'!$G$2,FALSE) -> 0 | AD224: =+VLOOKUP($AA224&AD$212,'td1'!$DR$169:$ED$243,'información graf'!$G$2,FALSE) -> 0 | AE224: =+VLOOKUP($AA224&AE$212,'td1'!$DR$169:$ED$243,'información graf'!$G$2,FALSE) -> 0 | AF224: =+VLOOKUP($AA224&AF$212,'td1'!$DR$169:$ED$243,'información graf'!$G$2,FALSE) -> 5 | AG224: 5
M225: PE2 | N225: Direccionamiento Estratégico | AA225: PE2 | AB225: =+VLOOKUP($AA225&AB$212,'td1'!$DR$169:$ED$243,'información graf'!$G$2,FALSE) -> 2 | AC225: =+VLOOKUP($AA225&AC$212,'td1'!$DR$169:$ED$243,'información graf'!$G$2,FALSE) -> 0 | AD225: =+VLOOKUP($AA225&AD$212,'td1'!$DR$169:$ED$243,'información graf'!$G$2,FALSE) -> 0 | AE225: =+VLOOKUP($AA225&AE$212,'td1'!$DR$169:$ED$243,'información graf'!$G$2,FALSE) -> 0 | AF225: =+VLOOKUP($AA225&AF$212,'td1'!$DR$169:$ED$243,'información graf'!$G$2,FALSE) -> 11 | AG225: 13
M226: PE3 | N226: Comunicación estratégica | AA226: PE3 | AB226: =+VLOOKUP($AA226&AB$212,'td1'!$DR$169:$ED$243,'información graf'!$G$2,FALSE) -> 0 | AC226: =+VLOOKUP($AA226&AC$212,'td1'!$DR$169:$ED$243,'información graf'!$G$2,FALSE) -> 0 | AD226: =+VLOOKUP($AA226&AD$212,'td1'!$DR$169:$ED$243,'información graf'!$G$2,FALSE) -> 0 | AE226: =+VLOOKUP($AA226&AE$212,'td1'!$DR$169:$ED$243,'información graf'!$G$2,FALSE) -> 0 | AF226: =+VLOOKUP($AA226&AF$212,'td1'!$DR$169:$ED$243,'información graf'!$G$2,FALSE) -> 3 | AG226: 3
M227: Evaluación | Z227: Evaluación | AB227: =+AB228+AB229 -> 2 | AC227: =+AC228+AC229 -> 1 | AD227: =+AD228+AD229 -> 0 | AE227: =+AE228+AE229 -> 0 | AF227: =+AF228+AF229 -> 9 | AG227: 12
M228: PEV1 | N228: Inspección vigilancia y control a operadores | AA228: PEV1 | AB228: =+VLOOKUP($AA228&AB$212,'td1'!$DR$169:$ED$243,'información graf'!$G$2,FALSE) -> 1 | AC228: =+VLOOKUP($AA228&AC$212,'td1'!$DR$169:$ED$243,'información graf'!$G$2,FALSE) -> 1 | AD228: =+VLOOKUP($AA228&AD$212,'td1'!$DR$169:$ED$243,'información graf'!$G$2,FALSE) -> 0 | AE228: =+VLOOKUP($AA228&AE$212,'td1'!$DR$169:$ED$243,'información graf'!$G$2,FALSE) -> 0 | AF228: =+VLOOKUP($AA228&AF$212,'td1'!$DR$169:$ED$243,'información graf'!$G$2,FALSE) -> 3 | AG228: 5
M229: PEV2 | N229: Evaluación y monitoreo de la gestión | AA229: PEV2 | AB229: =+VLOOKUP($AA229&AB$212,'td1'!$DR$169:$ED$243,'información graf'!$G$2,FALSE) -> 1 | AC229: =+VLOOKUP($AA229&AC$212,'td1'!$DR$169:$ED$243,'información graf'!$G$2,FALSE) -> 0 | AD229: =+VLOOKUP($AA229&AD$212,'td1'!$DR$169:$ED$243,'información graf'!$G$2,FALSE) -> 0 | AE229: =+VLOOKUP($AA229&AE$212,'td1'!$DR$169:$ED$243,'información graf'!$G$2,FALSE) -> 0 | AF229: =+VLOOKUP($AA229&AF$212,'td1'!$DR$169:$ED$243,'información graf'!$G$2,FALSE) -> 6 | AG229: 7
M230: Transversales | Z230: Transversales | AB230: =+AB231+AB232+AB233 -> 4 | AC230: =+AC231+AC232+AC233 -> 4 | AD230: =+AD231+AD232+AD233 -> 1 | AE230: =+AE231+AE232+AE233 -> 0 | AF230: =+AF231+AF232+AF233 -> 27 | AG230: 36
M231: PT1 | N231: Relación con el ciudadano | AA231: PT1 | AB231: =+VLOOKUP($AA231&AB$212,'td1'!$DR$169:$ED$243,'información graf'!$G$2,FALSE) -> 2 | AC231: =+VLOOKUP($AA231&AC$212,'td1'!$DR$169:$ED$243,'información graf'!$G$2,FALSE) -> 3 | AD231: =+VLOOKUP($AA231&AD$212,'td1'!$DR$169:$ED$243,'información graf'!$G$2,FALSE) -> 0 | AE231: =+VLOOKUP($AA231&AE$212,'td1'!$DR$169:$ED$243,'información graf'!$G$2,FALSE) -> 0 | AF231: =+VLOOKUP($AA231&AF$212,'td1'!$DR$169:$ED$243,'información graf'!$G$2,FALSE) -> 4 | AG231: 9
M232: PT2 | N232: Mejora e Innovación | AA232: PT2 | AB232: =+VLOOKUP($AA232&AB$212,'td1'!$DR$169:$ED$243,'información graf'!$G$2,FALSE) -> 1 | AC232: =+VLOOKUP($AA232&AC$212,'td1'!$DR$169:$ED$243,'información graf'!$G$2,FALSE) -> 1 | AD232: =+VLOOKUP($AA232&AD$212,'td1'!$DR$169:$ED$243,'información graf'!$G$2,FALSE) -> 1 | AE232: =+VLOOKUP($AA232&AE$212,'td1'!$DR$169:$ED$243,'información graf'!$G$2,FALSE) -> 0 | AF232: =+VLOOKUP($AA232&AF$212,'td1'!$DR$169:$ED$243,'información graf'!$G$2,FALSE) -> 16 | AG232: 19
M233: PT3 | N233: Gestión de la tecnología e información | AA233: PT3 | AB233: =+VLOOKUP($AA233&AB$212,'td1'!$DR$169:$ED$243,'información graf'!$G$2,FALSE) -> 1 | AC233: =+VLOOKUP($AA233&AC$212,'td1'!$DR$169:$ED$243,'información graf'!$G$2,FALSE) -> 0 | AD233: =+VLOOKUP($AA233&AD$212,'td1'!$DR$169:$ED$243,'información graf'!$G$2,FALSE) -> 0 | AE233: =+VLOOKUP($AA233&AE$212,'td1'!$DR$169:$ED$243,'información graf'!$G$2,FALSE) -> 0 | AF233: =+VLOOKUP($AA233&AF$212,'td1'!$DR$169:$ED$243,'información graf'!$G$2,FALSE) -> 7 | AG233: 8
Z234: Total | AB234: =+AB214+AB217+AB223+AB227+AB230 -> 25 | AC234: =+AC214+AC217+AC223+AC227+AC230 -> 20 | AD234: =+AD214+AD217+AD223+AD227+AD230 -> 2 | AE234: =+AE214+AE217+AE223+AE227+AE230 -> 0 | AF234: =+AF214+AF217+AF223+AF227+AF230 -> 116 | AG234: 163
AB235: =+AB234/$AG$234 -> 0.1533742331 | AC235: =+AC234/$AG$234 -> 0.1226993865 | AD235: =+AD234/$AG$234 -> 0.01226993865 | AE235: =+AE234/$AG$234 -> 0 | AF235: =+AF234/$AG$234 -> 0.7116564417
Z236: =+"Corte "&$D$5 -> Corte Noviembre
C244: Áreas del ICBF
AD247: Comportamiento indicadores directos | AO247: Comportamiento indicadores transversales | AW247: Total Indicadores por área
S248: 32 | AE248: 7 | AF248: optimo | AG248: adecuado | AH248: en riesgo | AI248: critico | AJ248: NA | AO248: 7 | AP248: optimo | AQ248: adecuado | AR248: en riesgo | AS248: critico | AT248: NA | AY248: optimo | AZ248: adecuado | BA248: en riesgo | BB248: critico | BC248: NA
AL249: Total | AU249: Total | BD249: Total
AF250: Misionales | AG250: =+AG251+AG252+AG253+AG254+AG255 -> 12 | AH250: =+AH251+AH252+AH253+AH254+AH255 -> 13 | AI250: =+AI251+AI252+AI253+AI254+AI255 -> 2 | AJ250: =+AJ251+AJ252+AJ253+AJ254+AJ255 -> 0 | AK250: =+AK251+AK252+AK253+AK254+AK255 -> 45 | AL250: =+SUM(AG250:AK250) -> 72 | AO250: Misionales | AX250: Misionales
AC251: M1 | AF251: M1. Primera Infancia | AG251: =+VLOOKUP($AC251&AF$248,'td1'!$GD$169:$GP$278,'información graf'!$G$2,FALSE) -> 5 | AH251: =+VLOOKUP($AC251&AG$248,'td1'!$GD$169:$GP$278,'información graf'!$G$2,FALSE) -> 2 | AI251: =+VLOOKUP($AC251&AH$248,'td1'!$GD$169:$GP$278,'información graf'!$G$2,FALSE) -> 1 | AJ251: =+VLOOKUP($AC251&AI$248,'td1'!$GD$169:$GP$278,'información graf'!$G$2,FALSE) -> 0 | AK251: =+VLOOKUP($AC251&AJ$248,'td1'!$GD$169:$GP$278,'información graf'!$G$2,FALSE) -> 10 | AL251: 18 | AO251: M1 | AP251: =+VLOOKUP($AC251&AP$248,'td1'!$GD$282:$GP$391,'información graf'!$G$2,FALSE) -> 4 | AQ251: =+VLOOKUP($AC251&AQ$248,'td1'!$GD$282:$GP$391,'información graf'!$G$2,FALSE) -> 0 | AR251: =+VLOOKUP($AC251&AR$248,'td1'!$GD$282:$GP$391,'información graf'!$G$2,FALSE) -> 2 | AS251: =+VLOOKUP($AC251&AS$248,'td1'!$GD$282:$GP$391,'información graf'!$G$2,FALSE) -> 0 | AT251: =+VLOOKUP($AC251&AT$248,'td1'!$GD$282:$GP$391,'información graf'!$G$2,FALSE) -> 6 | AU251: =+SUM(AP251:AT251) -> 12 | AX251: M1 | AY251: =+AG251+AP251 -> 9 | AZ251: 2 | BA251: 3 | BB251: 0 | BC251: 16 | BD251: =+SUM(AY251:BC251) -> 30
AC252: M2 | AF252: M2. Niñez | AG252: =+VLOOKUP($AC252&AF$248,'td1'!$GD$169:$GP$278,'información graf'!$G$2,FALSE) -> 2 | AH252: =+VLOOKUP($AC252&AG$248,'td1'!$GD$169:$GP$278,'información graf'!$G$2,FALSE) -> 3 | AI252: =+VLOOKUP($AC252&AH$248,'td1'!$GD$169:$GP$278,'información graf'!$G$2,FALSE) -> 0 | AJ252: =+VLOOKUP($AC252&AI$248,'td1'!$GD$169:$GP$278,'información graf'!$G$2,FALSE) -> 0 | AK252: =+VLOOKUP($AC252&AJ$248,'td1'!$GD$169:$GP$278,'información graf'!$G$2,FALSE) -> 9 | AL252: 14 | AO252: M2 | AP252: =+VLOOKUP($AC252&AP$248,'td1'!$GD$282:$GP$391,'información graf'!$G$2,FALSE) -> 4 | AQ252: =+VLOOKUP($AC252&AQ$248,'td1'!$GD$282:$GP$391,'información graf'!$G$2,FALSE) -> 1 | AR252: =+VLOOKUP($AC252&AR$248,'td1'!$GD$282:$GP$391,'información graf'!$G$2,FALSE) -> 0 | AS252: =+VLOOKUP($AC252&AS$248,'td1'!$GD$282:$GP$391,'información graf'!$G$2,FALSE) -> 0 | AT252: =+VLOOKUP($AC252&AT$248,'td1'!$GD$282:$GP$391,'información graf'!$G$2,FALSE) -> 7 | AU252: 12 | AX252: M2 | AY252: 6 | AZ252: 4 | BA252: 0 | BB252: 0 | BC252: 16 | BD252: =+SUM(AY252:BC252) -> 26
AC253: M3 | AF253: M3. Familias | AG253: =+VLOOKUP($AC253&AF$248,'td1'!$GD$169:$GP$278,'información graf'!$G$2,FALSE) -> 1 | AH253: =+VLOOKUP($AC253&AG$248,'td1'!$GD$169:$GP$278,'información graf'!$G$2,FALSE) -> 3 | AI253: =+VLOOKUP($AC253&AH$248,'td1'!$GD$169:$GP$278,'información graf'!$G$2,FALSE) -> 0 | AJ253: =+VLOOKUP($AC253&AI$248,'td1'!$GD$169:$GP$278,'información graf'!$G$2,FALSE) -> 0 | AK253: =+VLOOKUP($AC253&AJ$248,'td1'!$GD$169:$GP$278,'información graf'!$G$2,FALSE) -> 2 | AL253: 6 | AO253: M3 | AP253: =+VLOOKUP($AC253&AP$248,'td1'!$GD$282:$GP$391,'información graf'!$G$2,FALSE) -> 4 | AQ253: =+VLOOKUP($AC253&AQ$248,'td1'!$GD$282:$GP$391,'información graf'!$G$2,FALSE) -> 1 | AR253: =+VLOOKUP($AC253&AR$248,'td1'!$GD$282:$GP$391,'información graf'!$G$2,FALSE) -> 0 | AS253: =+VLOOKUP($AC253&AS$248,'td1'!$GD$282:$GP$391,'información graf'!$G$2,FALSE) -> 0 | AT253: =+VLOOKUP($AC253&AT$248,'td1'!$GD$282:$GP$391,'información graf'!$G$2,FALSE) -> 7 | AU253: 12 | AX253: M3 | AY253: 5 | AZ253: 4 | BA253: 0 | BB253: 0 | BC253: 9 | BD253: =+SUM(AY253:BC253) -> 18
AC254: M4 | AF254: M4. Nutrición | AG254: =+VLOOKUP($AC254&AF$248,'td1'!$GD$169:$GP$278,'información graf'!$G$2,FALSE) -> 1 | AH254: =+VLOOKUP($AC254&AG$248,'td1'!$GD$169:$GP$278,'información graf'!$G$2,FALSE) -> 0 | AI254: =+VLOOKUP($AC254&AH$248,'td1'!$GD$169:$GP$278,'información graf'!$G$2,FALSE) -> 1 | AJ254: =+VLOOKUP($AC254&AI$248,'td1'!$GD$169:$GP$278,'información graf'!$G$2,FALSE) -> 0 | AK254: =+VLOOKUP($AC254&AJ$248,'td1'!$GD$169:$GP$278,'información graf'!$G$2,FALSE) -> 11 | AL254: 13 | AO254: M4 | AP254: =+VLOOKUP($AC254&AP$248,'td1'!$GD$282:$GP$391,'información graf'!$G$2,FALSE) -> 4 | AQ254: =+VLOOKUP($AC254&AQ$248,'td1'!$GD$282:$GP$391,'información graf'!$G$2,FALSE) -> 0 | AR254: =+VLOOKUP($AC254&AR$248,'td1'!$GD$282:$GP$391,'información graf'!$G$2,FALSE) -> 1 | AS254: =+VLOOKUP($AC254&AS$248,'td1'!$GD$282:$GP$391,'información graf'!$G$2,FALSE) -> 0 | AT254: =+VLOOKUP($AC254&AT$248,'td1'!$GD$282:$GP$391,'información graf'!$G$2,FALSE) -> 7 | AU254: 12 | AX254: M4 | AY254: 5 | AZ254: 0 | BA254: 2 | BB254: 0 | BC254: 18 | BD254: =+SUM(AY254:BC254) -> 25
AC255: M5 | AF255: M5. Protección | AG255: =+VLOOKUP($AC255&AF$248,'td1'!$GD$169:$GP$278,'información graf'!$G$2,FALSE) -> 3 | AH255: =+VLOOKUP($AC255&AG$248,'td1'!$GD$169:$GP$278,'información graf'!$G$2,FALSE) -> 5 | AI255: =+VLOOKUP($AC255&AH$248,'td1'!$GD$169:$GP$278,'información graf'!$G$2,FALSE) -> 0 | AJ255: =+VLOOKUP($AC255&AI$248,'td1'!$GD$169:$GP$278,'información graf'!$G$2,FALSE) -> 0 | AK255: =+VLOOKUP($AC255&AJ$248,'td1'!$GD$169:$GP$278,'información graf'!$G$2,FALSE) -> 13 | AL255: 21 | AO255: M5 | AP255: =+VLOOKUP($AC255&AP$248,'td1'!$GD$282:$GP$391,'información graf'!$G$2,FALSE) -> 4 | AQ255: =+VLOOKUP($AC255&AQ$248,'td1'!$GD$282:$GP$391,'información graf'!$G$2,FALSE) -> 1 | AR255: =+VLOOKUP($AC255&AR$248,'td1'!$GD$282:$GP$391,'información graf'!$G$2,FALSE) -> 0 | AS255: =+VLOOKUP($AC255&AS$248,'td1'!$GD$282:$GP$391,'información graf'!$G$2,FALSE) -> 0 | AT255: =+VLOOKUP($AC255&AT$248,'td1'!$GD$282:$GP$391,'información graf'!$G$2,FALSE) -> 7 | AU255: 12 | AX255: M5 | AY255: 7 | AZ255: 6 | BA255: 0 | BB255: 0 | BC255: 20 | BD255: =+SUM(AY255:BC255) -> 33
AF256: Apoyo | AG256: =+SUM(AG257:AG273) -> 13 | AH256: =+SUM(AH257:AH273) -> 7 | AI256: =+SUM(AI257:AI273) -> 0 | AJ256: =+SUM(AJ257:AJ273) -> 0 | AK256: =+SUM(AK257:AK273) -> 71 | AL256: 91 | AO256: Apoyo | AX256: Apoyo
AC257: A1 | AF257: A1. Gestión Humana | AG257: =+VLOOKUP($AC257&AF$248,'td1'!$GD$169:$GP$278,'información graf'!$G$2,FALSE) -> 0 | AH257: =+VLOOKUP($AC257&AG$248,'td1'!$GD$169:$GP$278,'información graf'!$G$2,FALSE) -> 0 | AI257: =+VLOOKUP($AC257&AH$248,'td1'!$GD$169:$GP$278,'información graf'!$G$2,FALSE) -> 0 | AJ257: =+VLOOKUP($AC257&AI$248,'td1'!$GD$169:$GP$278,'información graf'!$G$2,FALSE) -> 0 | AK257: =+VLOOKUP($AC257&AJ$248,'td1'!$GD$169:$GP$278,'información graf'!$G$2,FALSE) -> 7 | AL257: 7 | AO257: A1 | AP257: =+VLOOKUP($AC257&AP$248,'td1'!$GD$282:$GP$391,'información graf'!$G$2,FALSE) -> 2 | AQ257: =+VLOOKUP($AC257&AQ$248,'td1'!$GD$282:$GP$391,'información graf'!$G$2,FALSE) -> 0 | AR257: =+VLOOKUP($AC257&AR$248,'td1'!$GD$282:$GP$391,'información graf'!$G$2,FALSE) -> 2 | AS257: =+VLOOKUP($AC257&AS$248,'td1'!$GD$282:$GP$391,'información graf'!$G$2,FALSE) -> 2 | AT257: =+VLOOKUP($AC257&AT$248,'td1'!$GD$282:$GP$391,'información graf'!$G$2,FALSE) -> 6 | AU257: 12 | AX257: A1 | AY257: =+AG257+AP257 -> 2 | AZ257: =+AH257+AQ257 -> 0 | BA257: =+AI257+AR257 -> 2 | BB257: =+AJ257+AS257 -> 2 | BC257: =+AK257+AT257 -> 13 | BD257: =+SUM(AY257:BC257) -> 19
AC258: A2 | AF258: A2. Financiera | AG258: =+VLOOKUP($AC258&AF$248,'td1'!$GD$169:$GP$278,'información graf'!$G$2,FALSE) -> 3 | AH258: =+VLOOKUP($AC258&AG$248,'td1'!$GD$169:$GP$278,'información graf'!$G$2,FALSE) -> 3 | AI258: =+VLOOKUP($AC258&AH$248,'td1'!$GD$169:$GP$278,'información graf'!$G$2,FALSE) -> 0 | AJ258: =+VLOOKUP($AC258&AI$248,'td1'!$GD$169:$GP$278,'información graf'!$G$2,FALSE) -> 0 | AK258: =+VLOOKUP($AC258&AJ$248,'td1'!$GD$169:$GP$278,'información graf'!$G$2,FALSE) -> 0 | AL258: 6 | AO258: A2 | AP258: =+VLOOKUP($AC258&AP$248,'td1'!$GD$282:$GP$391,'información graf'!$G$2,FALSE) -> 3 | AQ258: =+VLOOKUP($AC258&AQ$248,'td1'!$GD$282:$GP$391,'información graf'!$G$2,FALSE) -> 0 | AR258: =+VLOOKUP($AC258&AR$248,'td1'!$GD$282:$GP$391,'información graf'!$G$2,FALSE) -> 1 | AS258: =+VLOOKUP($AC258&AS$248,'td1'!$GD$282:$GP$391,'información graf'!$G$2,FALSE) -> 0 | AT258: =+VLOOKUP($AC258&AT$248,'td1'!$GD$282:$GP$391,'información graf'!$G$2,FALSE) -> 8 | AU258: 12 | AX258: A2 | AY258: 6 | AZ258: 3 | BA258: 1 | BB258: 0 | BC258: 8 | BD258: 18
AC259: A3 | AF259: A3. Control Interno Disc | AG259: =+VLOOKUP($AC259&AF$248,'td1'!$GD$169:$GP$278,'información graf'!$G$2,FALSE) -> 0 | AH259: =+VLOOKUP($AC259&AG$248,'td1'!$GD$169:$GP$278,'información graf'!$G$2,FALSE) -> 0 | AI259: =+VLOOKUP($AC259&AH$248,'td1'!$GD$169:$GP$278,'información graf'!$G$2,FALSE) -> 0 | AJ259: =+VLOOKUP($AC259&AI$248,'td1'!$GD$169:$GP$278,'información graf'!$G$2,FALSE) -> 0 | AK259: =+VLOOKUP($AC259&AJ$248,'td1'!$GD$169:$GP$278,'información graf'!$G$2,FALSE) -> 3 | AL259: 3 | AO259: A3 | AP259: =+VLOOKUP($AC259&AP$248,'td1'!$GD$282:$GP$391,'información graf'!$G$2,FALSE) -> 0 | AQ259: =+VLOOKUP($AC259&AQ$248,'td1'!$GD$282:$GP$391,'información graf'!$G$2,FALSE) -> 0 | AR259: =+VLOOKUP($AC259&AR$248,'td1'!$GD$282:$GP$391,'información graf'!$G$2,FALSE) -> 0 | AS259: =+VLOOKUP($AC259&AS$248,'td1'!$GD$282:$GP$391,'información graf'!$G$2,FALSE) -> 1 | AT259: =+VLOOKUP($AC259&AT$248,'td1'!$GD$282:$GP$391,'información graf'!$G$2,FALSE) -> 11 | AU259: 12 | AX259: A3 | AY259: 0 | AZ259: 0 | BA259: 0 | BB259: 1 | BC259: 14 | BD259: 15
AC260: A4 | AF260: A4. Abastecimiento | AG260: =+VLOOKUP($AC260&AF$248,'td1'!$GD$169:$GP$278,'información graf'!$G$2,FALSE) -> 1 | AH260: =+VLOOKUP($AC260&AG$248,'td1'!$GD$169:$GP$278,'información graf'!$G$2,FALSE) -> 1 | AI260: =+VLOOKUP($AC260&AH$248,'td1'!$GD$169:$GP$278,'información graf'!$G$2,FALSE) -> 0 | AJ260: =+VLOOKUP($AC260&AI$248,'td1'!$GD$169:$GP$278,'información graf'!$G$2,FALSE) -> 0 | AK260: =+VLOOKUP($AC260&AJ$248,'td1'!$GD$169:$GP$278,'información graf'!$G$2,FALSE) -> 2 | AL260: 4 | AO260: A4 | AP260: =+VLOOKUP($AC260&AP$248,'td1'!$GD$282:$GP$391,'información graf'!$G$2,FALSE) -> 3 | AQ260: =+VLOOKUP($AC260&AQ$248,'td1'!$GD$282:$GP$391,'información graf'!$G$2,FALSE) -> 0 | AR260: =+VLOOKUP($AC260&AR$248,'td1'!$GD$282:$GP$391,'información graf'!$G$2,FALSE) -> 0 | AS260: =+VLOOKUP($AC260&AS$248,'td1'!$GD$282:$GP$391,'información graf'!$G$2,FALSE) -> 0 | AT260: =+VLOOKUP($AC260&AT$248,'td1'!$GD$282:$GP$391,'información graf'!$G$2,FALSE) -> 9 | AU260: 12 | AX260: A4 | AY260: 4 | AZ260: 1 | BA260: 0 | BB260: 0 | BC260: 11 | BD260: 16
AC261: A5 | AF261: A5. Administrativa | AG261: =+VLOOKUP($AC261&AF$248,'td1'!$GD$169:$GP$278,'información graf'!$G$2,FALSE) -> 2 | AH261: =+VLOOKUP($AC261&AG$248,'td1'!$GD$169:$GP$278,'información graf'!$G$2,FALSE) -> 0 | AI261: =+VLOOKUP($AC261&AH$248,'td1'!$GD$169:$GP$278,'información graf'!$G$2,FALSE) -> 0 | AJ261: =+VLOOKUP($AC261&AI$248,'td1'!$GD$169:$GP$278,'información graf'!$G$2,FALSE) -> 0 | AK261: =+VLOOKUP($AC261&AJ$248,'td1'!$GD$169:$GP$278,'información graf'!$G$2,FALSE) -> 8 | AL261: 10 | AO261: A5 | AP261: =+VLOOKUP($AC261&AP$248,'td1'!$GD$282:$GP$391,'información graf'!$G$2,FALSE) -> 2 | AQ261: =+VLOOKUP($AC261&AQ$248,'td1'!$GD$282:$GP$391,'información graf'!$G$2,FALSE) -> 1 | AR261: =+VLOOKUP($AC261&AR$248,'td1'!$GD$282:$GP$391,'información graf'!$G$2,FALSE) -> 3 | AS261: =+VLOOKUP($AC261&AS$248,'td1'!$GD$282:$GP$391,'información graf'!$G$2,FALSE) -> 0 | AT261: =+VLOOKUP($AC261&AT$248,'td1'!$GD$282:$GP$391,'información graf'!$G$2,FALSE) -> 6 | AU261: 12 | AX261: A5 | AY261: 4 | AZ261: 1 | BA261: 3 | BB261: 0 | BC261: 14 | BD261: 22
AC262: A6 | AF262: A6. Contratación | AG262: =+VLOOKUP($AC262&AF$248,'td1'!$GD$169:$GP$278,'información graf'!$G$2,FALSE) -> 0 | AH262: =+VLOOKUP($AC262&AG$248,'td1'!$GD$169:$GP$278,'información graf'!$G$2,FALSE) -> 0 | AI262: =+VLOOKUP($AC262&AH$248,'td1'!$GD$169:$GP$278,'información graf'!$G$2,FALSE) -> 0 | AJ262: =+VLOOKUP($AC262&AI$248,'td1'!$GD$169:$GP$278,'información graf'!$G$2,FALSE) -> 0 | AK262: =+VLOOKUP($AC262&AJ$248,'td1'!$GD$169:$GP$278,'información graf'!$G$2,FALSE) -> 2 | AL262: 2 | AO262: A6 | AP262: =+VLOOKUP($AC262&AP$248,'td1'!$GD$282:$GP$391,'información graf'!$G$2,FALSE) -> 1 | AQ262: =+VLOOKUP($AC262&AQ$248,'td1'!$GD$282:$GP$391,'información graf'!$G$2,FALSE) -> 0 | AR262: =+VLOOKUP($AC262&AR$248,'td1'!$GD$282:$GP$391,'información graf'!$G$2,FALSE) -> 0 | AS262: =+VLOOKUP($AC262&AS$248,'td1'!$GD$282:$GP$391,'información graf'!$G$2,FALSE) -> 0 | AT262: =+VLOOKUP($AC262&AT$248,'td1'!$GD$282:$GP$391,'información graf'!$G$2,FALSE) -> 11 | AU262: 12 | AX262: A6 | AY262: 1 | AZ262: 0 | BA262: 0 | BB262: 0 | BC262: 13 | BD262: 14
AC263: A7 | AF263: A7. Jurídica | AG263: =+VLOOKUP($AC263&AF$248,'td1'!$GD$169:$GP$278,'información graf'!$G$2,FALSE) -> 0 | AH263: =+VLOOKUP($AC263&AG$248,'td1'!$GD$169:$GP$278,'información graf'!$G$2,FALSE) -> 0 | AI263: =+VLOOKUP($AC263&AH$248,'td1'!$GD$169:$GP$278,'información graf'!$G$2,FALSE) -> 0 | AJ263: =+VLOOKUP($AC263&AI$248,'td1'!$GD$169:$GP$278,'información graf'!$G$2,FALSE) -> 0 | AK263: =+VLOOKUP($AC263&AJ$248,'td1'!$GD$169:$GP$278,'información graf'!$G$2,FALSE) -> 4 | AL263: 4 | AO263: A7 | AP263: =+VLOOKUP($AC263&AP$248,'td1'!$GD$282:$GP$391,'información graf'!$G$2,FALSE) -> 2 | AQ263: =+VLOOKUP($AC263&AQ$248,'td1'!$GD$282:$GP$391,'información graf'!$G$2,FALSE) -> 1 | AR263: =+VLOOKUP($AC263&AR$248,'td1'!$GD$282:$GP$391,'información graf'!$G$2,FALSE) -> 0 | AS263: =+VLOOKUP($AC263&AS$248,'td1'!$GD$282:$GP$391,'información graf'!$G$2,FALSE) -> 1 | AT263: =+VLOOKUP($AC263&AT$248,'td1'!$GD$282:$GP$391,'información graf'!$G$2,FALSE) -> 8 | AU263: 12 | AX263: A7 | AY263: 2 | AZ263: 1 | BA263: 0 | BB263: 1 | BC263: 12 | BD263: 16
AC264: A8 | AF264: A8. Gestión Regional | AG264: =+VLOOKUP($AC264&AF$248,'td1'!$GD$169:$GP$278,'información graf'!$G$2,FALSE) -> 0 | AH264: =+VLOOKUP($AC264&AG$248,'td1'!$GD$169:$GP$278,'información graf'!$G$2,FALSE) -> 0 | AI264: =+VLOOKUP($AC264&AH$248,'td1'!$GD$169:$GP$278,'información graf'!$G$2,FALSE) -> 0 | AJ264: =+VLOOKUP($AC264&AI$248,'td1'!$GD$169:$GP$278,'información graf'!$G$2,FALSE) -> 0 | AK264: =+VLOOKUP($AC264&AJ$248,'td1'!$GD$169:$GP$278,'información graf'!$G$2,FALSE) -> 2 | AL264: 2 | AO264: A8 | AP264: =+VLOOKUP($AC264&AP$248,'td1'!$GD$282:$GP$391,'información graf'!$G$2,FALSE) -> 0 | AQ264: =+VLOOKUP($AC264&AQ$248,'td1'!$GD$282:$GP$391,'información graf'!$G$2,FALSE) -> 0 | AR264: =+VLOOKUP($AC264&AR$248,'td1'!$GD$282:$GP$391,'información graf'!$G$2,FALSE) -> 0 | AS264: =+VLOOKUP($AC264&AS$248,'td1'!$GD$282:$GP$391,'información graf'!$G$2,FALSE) -> 0 | AT264: =+VLOOKUP($AC264&AT$248,'td1'!$GD$282:$GP$391,'información graf'!$G$2,FALSE) -> 12 | AU264: 12 | AX264: A8 | AY264: 0 | AZ264: 0 | BA264: 0 | BB264: 0 | BC264: 14 | BD264: 14
AC265: A9 | AF265: A9. Cooperación | AG265: =+VLOOKUP($AC265&AF$248,'td1'!$GD$169:$GP$278,'información graf'!$G$2,FALSE) -> 1 | AH265: =+VLOOKUP($AC265&AG$248,'td1'!$GD$169:$GP$278,'información graf'!$G$2,FALSE) -> 0 | AI265: =+VLOOKUP($AC265&AH$248,'td1'!$GD$169:$GP$278,'información graf'!$G$2,FALSE) -> 0 | AJ265: =+VLOOKUP($AC265&AI$248,'td1'!$GD$169:$GP$278,'información graf'!$G$2,FALSE) -> 0 | AK265: =+VLOOKUP($AC265&AJ$248,'td1'!$GD$169:$GP$278,'información graf'!$G$2,FALSE) -> 3 | AL265: 4 | AO265: A9 | AP265: =+VLOOKUP($AC265&AP$248,'td1'!$GD$282:$GP$391,'información graf'!$G$2,FALSE) -> 1 | AQ265: =+VLOOKUP($AC265&AQ$248,'td1'!$GD$282:$GP$391,'información graf'!$G$2,FALSE) -> 0 | AR265: =+VLOOKUP($AC265&AR$248,'td1'!$GD$282:$GP$391,'información graf'!$G$2,FALSE) -> 0 | AS265: =+VLOOKUP($AC265&AS$248,'td1'!$GD$282:$GP$391,'información graf'!$G$2,FALSE) -> 0 | AT265: =+VLOOKUP($AC265&AT$248,'td1'!$GD$282:$GP$391,'información graf'!$G$2,FALSE) -> 11 | AU265: 12 | AX265: A9 | AY265: 2 | AZ265: 0 | BA265: 0 | BB265: 0 | BC265: 14 | BD265: 16
AC266: A10 | AF266: A10. Servicios y Atención | AG266: =+VLOOKUP($AC266&AF$248,'td1'!$GD$169:$GP$278,'información graf'!$G$2,FALSE) -> 2 | AH266: =+VLOOKUP($AC266&AG$248,'td1'!$GD$169:$GP$278,'información graf'!$G$2,FALSE) -> 3 | AI266: =+VLOOKUP($AC266&AH$248,'td1'!$GD$169:$GP$278,'información graf'!$G$2,FALSE) -> 0 | AJ266: =+VLOOKUP($AC266&AI$248,'td1'!$GD$169:$GP$278,'información graf'!$G$2,FALSE) -> 0 | AK266: =+VLOOKUP($AC266&AJ$248,'td1'!$GD$169:$GP$278,'información graf'!$G$2,FALSE) -> 3 | AL266: 8 | AO266: A10 | AP266: =+VLOOKUP($AC266&AP$248,'td1'!$GD$282:$GP$391,'información graf'!$G$2,FALSE) -> 3 | AQ266: =+VLOOKUP($AC266&AQ$248,'td1'!$GD$282:$GP$391,'información graf'!$G$2,FALSE) -> 0 | AR266: =+VLOOKUP($AC266&AR$248,'td1'!$GD$282:$GP$391,'información graf'!$G$2,FALSE) -> 1 | AS266: =+VLOOKUP($AC266&AS$248,'td1'!$GD$282:$GP$391,'información graf'!$G$2,FALSE) -> 0 | AT266: =+VLOOKUP($AC266&AT$248,'td1'!$GD$282:$GP$391,'información graf'!$G$2,FALSE) -> 8 | AU266: 12 | AX266: A10 | AY266: 5 | AZ266: 3 | BA266: 1 | BB266: 0 | BC266: 11 | BD266: 20
AC267: A11 | AF267: A11. Tecnología | AG267: =+VLOOKUP($AC267&AF$248,'td1'!$GD$169:$GP$278,'información graf'!$G$2,FALSE) -> 1 | AH267: =+VLOOKUP($AC267&AG$248,'td1'!$GD$169:$GP$278,'información graf'!$G$2,FALSE) -> 0 | AI267: =+VLOOKUP($AC267&AH$248,'td1'!$GD$169:$GP$278,'información graf'!$G$2,FALSE) -> 0 | AJ267: =+VLOOKUP($AC267&AI$248,'td1'!$GD$169:$GP$278,'información graf'!$G$2,FALSE) -> 0 | AK267: =+VLOOKUP($AC267&AJ$248,'td1'!$GD$169:$GP$278,'información graf'!$G$2,FALSE) -> 5 | AL267: 6 | AO267: A11 | AP267: =+VLOOKUP($AC267&AP$248,'td1'!$GD$282:$GP$391,'información graf'!$G$2,FALSE) -> 4 | AQ267: =+VLOOKUP($AC267&AQ$248,'td1'!$GD$282:$GP$391,'información graf'!$G$2,FALSE) -> 0 | AR267: =+VLOOKUP($AC267&AR$248,'td1'!$GD$282:$GP$391,'información graf'!$G$2,FALSE) -> 1 | AS267: =+VLOOKUP($AC267&AS$248,'td1'!$GD$282:$GP$391,'información graf'!$G$2,FALSE) -> 0 | AT267: =+VLOOKUP($AC267&AT$248,'td1'!$GD$282:$GP$391,'información graf'!$G$2,FALSE) -> 7 | AU267: 12 | AX267: A11 | AY267: 5 | AZ267: 0 | BA267: 1 | BB267: 0 | BC267: 12 | BD267: 18
AC268: A12 | AF268: A12. Comunicaciones | AG268: =+VLOOKUP($AC268&AF$248,'td1'!$GD$169:$GP$278,'información graf'!$G$2,FALSE) -> 0 | AH268: =+VLOOKUP($AC268&AG$248,'td1'!$GD$169:$GP$278,'información graf'!$G$2,FALSE) -> 0 | AI268: =+VLOOKUP($AC268&AH$248,'td1'!$GD$169:$GP$278,'información graf'!$G$2,FALSE) -> 0 | AJ268: =+VLOOKUP($AC268&AI$248,'td1'!$GD$169:$GP$278,'información graf'!$G$2,FALSE) -> 0 | AK268: =+VLOOKUP($AC268&AJ$248,'td1'!$GD$169:$GP$278,'información graf'!$G$2,FALSE) -> 3 | AL268: 3 | AO268: A12 | AP268: =+VLOOKUP($AC268&AP$248,'td1'!$GD$282:$GP$391,'información graf'!$G$2,FALSE) -> 4 | AQ268: =+VLOOKUP($AC268&AQ$248,'td1'!$GD$282:$GP$391,'información graf'!$G$2,FALSE) -> 0 | AR268: =+VLOOKUP($AC268&AR$248,'td1'!$GD$282:$GP$391,'información graf'!$G$2,FALSE) -> 1 | AS268: =+VLOOKUP($AC268&AS$248,'td1'!$GD$282:$GP$391,'información graf'!$G$2,FALSE) -> 0 | AT268: =+VLOOKUP($AC268&AT$248,'td1'!$GD$282:$GP$391,'información graf'!$G$2,FALSE) -> 7 | AU268: 12 | AX268: A12 | AY268: 4 | AZ268: 0 | BA268: 1 | BB268: 0 | BC268: 10 | BD268: 15
AC269: A13 | AF269: A13. Planeación | AG269: =+VLOOKUP($AC269&AF$248,'td1'!$GD$169:$GP$278,'información graf'!$G$2,FALSE) -> 3 | AH269: =+VLOOKUP($AC269&AG$248,'td1'!$GD$169:$GP$278,'información graf'!$G$2,FALSE) -> 0 | AI269: =+VLOOKUP($AC269&AH$248,'td1'!$GD$169:$GP$278,'información graf'!$G$2,FALSE) -> 0 | AJ269: =+VLOOKUP($AC269&AI$248,'td1'!$GD$169:$GP$278,'información graf'!$G$2,FALSE) -> 0 | AK269: =+VLOOKUP($AC269&AJ$248,'td1'!$GD$169:$GP$278,'información graf'!$G$2,FALSE) -> 15 | AL269: 18 | AO269: A13 | AP269: =+VLOOKUP($AC269&AP$248,'td1'!$GD$282:$GP$391,'información graf'!$G$2,FALSE) -> 5 | AQ269: =+VLOOKUP($AC269&AQ$248,'td1'!$GD$282:$GP$391,'información graf'!$G$2,FALSE) -> 0 | AR269: =+VLOOKUP($AC269&AR$248,'td1'!$GD$282:$GP$391,'información graf'!$G$2,FALSE) -> 0 | AS269: =+VLOOKUP($AC269&AS$248,'td1'!$GD$282:$GP$391,'información graf'!$G$2,FALSE) -> 0 | AT269: =+VLOOKUP($AC269&AT$248,'td1'!$GD$282:$GP$391,'información graf'!$G$2,FALSE) -> 7 | AU269: 12 | AX269: A13 | AY269: 8 | AZ269: 0 | BA269: 0 | BB269: 0 | BC269: 22 | BD269: 30
AC270: A14 | AF270: A14. SNBF | AG270: =+VLOOKUP($AC270&AF$248,'td1'!$GD$169:$GP$278,'información graf'!$G$2,FALSE) -> 0 | AH270: =+VLOOKUP($AC270&AG$248,'td1'!$GD$169:$GP$278,'información graf'!$G$2,FALSE) -> 0 | AI270: =+VLOOKUP($AC270&AH$248,'td1'!$GD$169:$GP$278,'información graf'!$G$2,FALSE) -> 0 | AJ270: =+VLOOKUP($AC270&AI$248,'td1'!$GD$169:$GP$278,'información graf'!$G$2,FALSE) -> 0 | AK270: =+VLOOKUP($AC270&AJ$248,'td1'!$GD$169:$GP$278,'información graf'!$G$2,FALSE) -> 6 | AL270: 6 | AO270: A14 | AP270: =+VLOOKUP($AC270&AP$248,'td1'!$GD$282:$GP$391,'información graf'!$G$2,FALSE) -> 4 | AQ270: =+VLOOKUP($AC270&AQ$248,'td1'!$GD$282:$GP$391,'información graf'!$G$2,FALSE) -> 0 | AR270: =+VLOOKUP($AC270&AR$248,'td1'!$GD$282:$GP$391,'información graf'!$G$2,FALSE) -> 0 | AS270: =+VLOOKUP($AC270&AS$248,'td1'!$GD$282:$GP$391,'información graf'!$G$2,FALSE) -> 0 | AT270: =+VLOOKUP($AC270&AT$248,'td1'!$GD$282:$GP$391,'información graf'!$G$2,FALSE) -> 8 | AU270: 12 | AX270: A14 | AY270: 4 | AZ270: 0 | BA270: 0 | BB270: 0 | BC270: 14 | BD270: 18
AC271: A15 | AF271: A15. Control Interno | AG271: =+VLOOKUP($AC271&AF$248,'td1'!$GD$169:$GP$278,'información graf'!$G$2,FALSE) -> 0 | AH271: =+VLOOKUP($AC271&AG$248,'td1'!$GD$169:$GP$278,'información graf'!$G$2,FALSE) -> 0 | AI271: =+VLOOKUP($AC271&AH$248,'td1'!$GD$169:$GP$278,'información graf'!$G$2,FALSE) -> 0 | AJ271: =+VLOOKUP($AC271&AI$248,'td1'!$GD$169:$GP$278,'información graf'!$G$2,FALSE) -> 0 | AK271: =+VLOOKUP($AC271&AJ$248,'td1'!$GD$169:$GP$278,'información graf'!$G$2,FALSE) -> 4 | AL271: 4 | AO271: A15 | AP271: =+VLOOKUP($AC271&AP$248,'td1'!$GD$282:$GP$391,'información graf'!$G$2,FALSE) -> 1 | AQ271: =+VLOOKUP($AC271&AQ$248,'td1'!$GD$282:$GP$391,'información graf'!$G$2,FALSE) -> 0 | AR271: =+VLOOKUP($AC271&AR$248,'td1'!$GD$282:$GP$391,'información graf'!$G$2,FALSE) -> 0 | AS271: =+VLOOKUP($AC271&AS$248,'td1'!$GD$282:$GP$391,'información graf'!$G$2,FALSE) -> 0 | AT271: =+VLOOKUP($AC271&AT$248,'td1'!$GD$282:$GP$391,'información graf'!$G$2,FALSE) -> 11 | AU271: 12 | AX271: A15 | AY271: 1 | AZ271: 0 | BA271: 0 | BB271: 0 | BC271: 15 | BD271: 16
AC272: A16 | AF272: A16. Aseguramiento | AG272: =+VLOOKUP($AC272&AF$248,'td1'!$GD$169:$GP$278,'información graf'!$G$2,FALSE) -> 0 | AH272: =+VLOOKUP($AC272&AG$248,'td1'!$GD$169:$GP$278,'información graf'!$G$2,FALSE) -> 0 | AI272: =+VLOOKUP($AC272&AH$248,'td1'!$GD$169:$GP$278,'información graf'!$G$2,FALSE) -> 0 | AJ272: =+VLOOKUP($AC272&AI$248,'td1'!$GD$169:$GP$278,'información graf'!$G$2,FALSE) -> 0 | AK272: =+VLOOKUP($AC272&AJ$248,'td1'!$GD$169:$GP$278,'información graf'!$G$2,FALSE) -> 3 | AL272: 3 | AO272: A16 | AP272: =+VLOOKUP($AC272&AP$248,'td1'!$GD$282:$GP$391,'información graf'!$G$2,FALSE) -> 1 | AQ272: =+VLOOKUP($AC272&AQ$248,'td1'!$GD$282:$GP$391,'información graf'!$G$2,FALSE) -> 0 | AR272: =+VLOOKUP($AC272&AR$248,'td1'!$GD$282:$GP$391,'información graf'!$G$2,FALSE) -> 0 | AS272: =+VLOOKUP($AC272&AS$248,'td1'!$GD$282:$GP$391,'información graf'!$G$2,FALSE) -> 0 | AT272: =+VLOOKUP($AC272&AT$248,'td1'!$GD$282:$GP$391,'información graf'!$G$2,FALSE) -> 11 | AU272: 12 | AX272: A16 | AY272: 1 | AZ272: 0 | BA272: 0 | BB272: 0 | BC272: 14 | BD272: 15
AC273: A17 | AF273: A17. Subd General | AG273: =+VLOOKUP($AC273&AF$248,'td1'!$GD$169:$GP$278,'información graf'!$G$2,FALSE) -> 0 | AH273: =+VLOOKUP($AC273&AG$248,'td1'!$GD$169:$GP$278,'información graf'!$G$2,FALSE) -> 0 | AI273: =+VLOOKUP($AC273&AH$248,'td1'!$GD$169:$GP$278,'información graf'!$G$2,FALSE) -> 0 | AJ273: =+VLOOKUP($AC273&AI$248,'td1'!$GD$169:$GP$278,'información graf'!$G$2,FALSE) -> 0 | AK273: =+VLOOKUP($AC273&AJ$248,'td1'!$GD$169:$GP$278,'información graf'!$G$2,FALSE) -> 1 | AL273: 1 | AO273: A17 | AP273: =+VLOOKUP($AC273&AP$248,'td1'!$GD$282:$GP$391,'información graf'!$G$2,FALSE) -> 0 | AQ273: =+VLOOKUP($AC273&AQ$248,'td1'!$GD$282:$GP$391,'información graf'!$G$2,FALSE) -> 0 | AR273: =+VLOOKUP($AC273&AR$248,'td1'!$GD$282:$GP$391,'información graf'!$G$2,FALSE) -> 0 | AS273: =+VLOOKUP($AC273&AS$248,'td1'!$GD$282:$GP$391,'información graf'!$G$2,FALSE) -> 1 | AT273: =+VLOOKUP($AC273&AT$248,'td1'!$GD$282:$GP$391,'información graf'!$G$2,FALSE) -> 11 | AU273: 12 | AX273: A17 | AY273: 0 | AZ273: 0 | BA273: 0 | BB273: 1 | BC273: 12 | BD273: 13
AD274: Total | AG274: =+AG250+AG256 -> 25 | AH274: =+AH250+AH256 -> 20 | AI274: =+AI250+AI256 -> 2 | AJ274: =+AJ250+AJ256 -> 0 | AK274: =+AK250+AK256 -> 116 | AL274: 163
AG275: =+AG274/$AL$274 -> 0.1533742331 | AH275: =+AH274/$AL$274 -> 0.1226993865 | AI275: =+AI274/$AL$274 -> 0.01226993865 | AJ275: =+AJ274/$AL$274 -> 0 | AK275: =+AK274/$AL$274 -> 0.7116564417
AD276: =+"Corte "&$D$5 -> Corte Noviembre
C282: Sistema Integrado de Gestión - Objetivos SIGE
P283: SIGE1 | R283: Ampliar cobertura y mejorar calidad en la atención integral a la Primera Infancia.
P284: SIGE2 | R284: Promover los derechos de los NNA y prevenir los riesgos o amenazas de vulneración de los mismos
P285: SIGE3 | R285: Fortalecer en las familias y comunidades, capacidades que promuevan su desarrollo, fortalezcan sus vínculos de cuidado mutuo y prevengan la violencia intrafamiliar y de género.
P287: SIGE4 | R287: Promover la seguridad alimentaria y nutricional en el desarrollo de la primera infancia, los NNA y la familia.
P288: SIGE5 | R288: Garantizar la protección integral de los NNA en coordinación con las instancias del SNBF.
P289: SIGE6 | R289: Lograr una adecuada y eficiente gestión institucional a través de la articulación entre servidores, áreas y niveles territoriales; el apoyo administrativo a los procesos misionales, la apropiación de una cultura de la evaluación y la optimización del uso de los recursos
P291: SIGE7 | R291: Promover condiciones laborales que hagan del ICBF el mejor lugar para trabajar.
P292: SIGE8 | R292: Reducir los impactos ambientales generados por nuestra actividad.
P293: SIGE9 | R293: Impulsar una cultura de gestión de la calidad y el mejoramiento continuo.
P294: SIGE10 | R294: Gestionar el conocimiento institucional, con sistemas de información confiables, integrados y disponibles.
R296: Objetivos SIGE
X298: optimo | Y298: adecuado | Z298: en riesgo | AA298: critico | AB298: NA
W299: Comportamiento agregado de indicadores
AC300: Total
W301: SIGE1 | X301: =+VLOOKUP($W301&X$298,'td1'!$FN$169:$FZ$218,'información graf'!$G$2,FALSE) -> 5 | Y301: =+VLOOKUP($W301&Y$298,'td1'!$FN$169:$FZ$218,'información graf'!$G$2,FALSE) -> 2 | Z301: =+VLOOKUP($W301&Z$298,'td1'!$FN$169:$FZ$218,'información graf'!$G$2,FALSE) -> 1 | AA301: =+VLOOKUP($W301&AA$298,'td1'!$FN$169:$FZ$218,'información graf'!$G$2,FALSE) -> 0 | AB301: =+VLOOKUP($W301&AB$298,'td1'!$FN$169:$FZ$218,'información graf'!$G$2,FALSE) -> 10 | AC301: =+SUM(X301:AB301) -> 18
W302: SIGE2 | X302: =+VLOOKUP($W302&X$298,'td1'!$FN$169:$FZ$218,'información graf'!$G$2,FALSE) -> 2 | Y302: =+VLOOKUP($W302&Y$298,'td1'!$FN$169:$FZ$218,'información graf'!$G$2,FALSE) -> 3 | Z302: =+VLOOKUP($W302&Z$298,'td1'!$FN$169:$FZ$218,'información graf'!$G$2,FALSE) -> 0 | AA302: =+VLOOKUP($W302&AA$298,'td1'!$FN$169:$FZ$218,'información graf'!$G$2,FALSE) -> 0 | AB302: =+VLOOKUP($W302&AB$298,'td1'!$FN$169:$FZ$218,'información graf'!$G$2,FALSE) -> 9 | AC302: 14
W303: SIGE3 | X303: =+VLOOKUP($W303&X$298,'td1'!$FN$169:$FZ$218,'información graf'!$G$2,FALSE) -> 1 | Y303: =+VLOOKUP($W303&Y$298,'td1'!$FN$169:$FZ$218,'información graf'!$G$2,FALSE) -> 3 | Z303: =+VLOOKUP($W303&Z$298,'td1'!$FN$169:$FZ$218,'información graf'!$G$2,FALSE) -> 0 | AA303: =+VLOOKUP($W303&AA$298,'td1'!$FN$169:$FZ$218,'información graf'!$G$2,FALSE) -> 0 | AB303: =+VLOOKUP($W303&AB$298,'td1'!$FN$169:$FZ$218,'información graf'!$G$2,FALSE) -> 2 | AC303: 6
W304: SIGE4 | X304: =+VLOOKUP($W304&X$298,'td1'!$FN$169:$FZ$218,'información graf'!$G$2,FALSE) -> 1 | Y304: =+VLOOKUP($W304&Y$298,'td1'!$FN$169:$FZ$218,'información graf'!$G$2,FALSE) -> 0 | Z304: =+VLOOKUP($W304&Z$298,'td1'!$FN$169:$FZ$218,'información graf'!$G$2,FALSE) -> 1 | AA304: =+VLOOKUP($W304&AA$298,'td1'!$FN$169:$FZ$218,'información graf'!$G$2,FALSE) -> 0 | AB304: =+VLOOKUP($W304&AB$298,'td1'!$FN$169:$FZ$218,'información graf'!$G$2,FALSE) -> 13 | AC304: 15
W305: SIGE5 | X305: =+VLOOKUP($W305&X$298,'td1'!$FN$169:$FZ$218,'información graf'!$G$2,FALSE) -> 3 | Y305: =+VLOOKUP($W305&Y$298,'td1'!$FN$169:$FZ$218,'información graf'!$G$2,FALSE) -> 5 | Z305: =+VLOOKUP($W305&Z$298,'td1'!$FN$169:$FZ$218,'información graf'!$G$2,FALSE) -> 0 | AA305: =+VLOOKUP($W305&AA$298,'td1'!$FN$169:$FZ$218,'información graf'!$G$2,FALSE) -> 0 | AB305: =+VLOOKUP($W305&AB$298,'td1'!$FN$169:$FZ$218,'información graf'!$G$2,FALSE) -> 13 | AC305: 21
W306: SIGE6 | X306: =+VLOOKUP($W306&X$298,'td1'!$FN$169:$FZ$218,'información graf'!$G$2,FALSE) -> 12 | Y306: =+VLOOKUP($W306&Y$298,'td1'!$FN$169:$FZ$218,'información graf'!$G$2,FALSE) -> 7 | Z306: =+VLOOKUP($W306&Z$298,'td1'!$FN$169:$FZ$218,'información graf'!$G$2,FALSE) -> 0 | AA306: =+VLOOKUP($W306&AA$298,'td1'!$FN$169:$FZ$218,'información graf'!$G$2,FALSE) -> 0 | AB306: =+VLOOKUP($W306&AB$298,'td1'!$FN$169:$FZ$218,'información graf'!$G$2,FALSE) -> 62 | AC306: 81
W307: SIGE7 | X307: =+VLOOKUP($W307&X$298,'td1'!$FN$169:$FZ$218,'información graf'!$G$2,FALSE) -> 0 | Y307: =+VLOOKUP($W307&Y$298,'td1'!$FN$169:$FZ$218,'información graf'!$G$2,FALSE) -> 0 | Z307: =+VLOOKUP($W307&Z$298,'td1'!$FN$169:$FZ$218,'información graf'!$G$2,FALSE) -> 0 | AA307: =+VLOOKUP($W307&AA$298,'td1'!$FN$169:$FZ$218,'información graf'!$G$2,FALSE) -> 0 | AB307: =+VLOOKUP($W307&AB$298,'td1'!$FN$169:$FZ$218,'información graf'!$G$2,FALSE) -> 3 | AC307: 3
W308: SIGE8 | X308: =+VLOOKUP($W308&X$298,'td1'!$FN$169:$FZ$218,'información graf'!$G$2,FALSE) -> 0 | Y308: =+VLOOKUP($W308&Y$298,'td1'!$FN$169:$FZ$218,'información graf'!$G$2,FALSE) -> 0 | Z308: =+VLOOKUP($W308&Z$298,'td1'!$FN$169:$FZ$218,'información graf'!$G$2,FALSE) -> 0 | AA308: =+VLOOKUP($W308&AA$298,'td1'!$FN$169:$FZ$218,'información graf'!$G$2,FALSE) -> 0 | AB308: =+VLOOKUP($W308&AB$298,'td1'!$FN$169:$FZ$218,'información graf'!$G$2,FALSE) -> 2 | AC308: 2
W309: SIGE9 | X309: =+VLOOKUP($W309&X$298,'td1'!$FN$169:$FZ$218,'información graf'!$G$2,FALSE) -> 1 | Y309: =+VLOOKUP($W309&Y$298,'td1'!$FN$169:$FZ$218,'información graf'!$G$2,FALSE) -> 0 | Z309: =+VLOOKUP($W309&Z$298,'td1'!$FN$169:$FZ$218,'información graf'!$G$2,FALSE) -> 0 | AA309: =+VLOOKUP($W309&AA$298,'td1'!$FN$169:$FZ$218,'información graf'!$G$2,FALSE) -> 0 | AB309: =+VLOOKUP($W309&AB$298,'td1'!$FN$169:$FZ$218,'información graf'!$G$2,FALSE) -> 0 | AC309: 1
W310: SIGE10 | X310: =+VLOOKUP($W310&X$298,'td1'!$FN$169:$FZ$218,'información graf'!$G$2,FALSE) -> 0 | Y310: =+VLOOKUP($W310&Y$298,'td1'!$FN$169:$FZ$218,'información graf'!$G$2,FALSE) -> 0 | Z310: =+VLOOKUP($W310&Z$298,'td1'!$FN$169:$FZ$218,'información graf'!$G$2,FALSE) -> 0 | AA310: =+VLOOKUP($W310&AA$298,'td1'!$FN$169:$FZ$218,'información graf'!$G$2,FALSE) -> 0 | AB310: =+VLOOKUP($W310&AB$298,'td1'!$FN$169:$FZ$218,'información graf'!$G$2,FALSE) -> 2 | AC310: 2
W311: Total | X311: =SUM(X301:X310) -> 25 | Y311: 20 | Z311: 2 | AA311: 0 | AB311: 116 | AC311: 163
X312: =+X311/$AC$311 -> 0.1533742331 | Y312: =+Y311/$AC$311 -> 0.1226993865 | Z312: =+Z311/$AC$311 -> 0.01226993865 | AA312: =+AA311/$AC$311 -> 0 | AB312: =+AB311/$AC$311 -> 0.7116564417
C319: Analisis "Como vamos" ICBF

Sheet regional
C2: TABLERO DE CONTROL 2016 INSTITUTO COLOMBIANO DE BIENESTAR FAMILIAR ICBF SEGUIMIENTO TABLERO DE CONTROL - ANÁLISIS GENERAL
C3: =+"Regional "&VLOOKUP(Menu!C37,referencias!$R$2:$T$34,3,FALSE) -> 
C6: Mes analisis | E6: =+Menu!C7 -> Noviembre | S6: Volver al menú
D7: =+VLOOKUP(E6,referencias!A131:C142,3,FALSE) -> Nov
N11: Comportamiento general
N12: T. control | O12: P. Acción | P12: P. Indicativo
L13: 2 | M13: Optimo | N13: =+VLOOKUP($M13,'td1'!$JA$72:$JM$76,'información graf'!$G$2,FALSE) -> 0 | O13: =+VLOOKUP($M13,'td1'!$JO$72:$KA$76,'información graf'!$G$2,FALSE) -> 0 | P13: =+VLOOKUP($M13,'td1'!$KC$72:$KO$76,'información graf'!$G$2,FALSE) -> 0
L14: 3 | M14: Adecuado | N14: =+VLOOKUP($M14,'td1'!$JA$72:$JM$76,'información graf'!$G$2,FALSE) -> 0 | O14: =+VLOOKUP($M14,'td1'!$JO$72:$KA$76,'información graf'!$G$2,FALSE) -> 0 | P14: =+VLOOKUP($M14,'td1'!$KC$72:$KO$76,'información graf'!$G$2,FALSE) -> 0
L15: 4 | M15: En riesgo | N15: =+VLOOKUP($M15,'td1'!$JA$72:$JM$76,'información graf'!$G$2,FALSE) -> 0 | O15: =+VLOOKUP($M15,'td1'!$JO$72:$KA$76,'información graf'!$G$2,FALSE) -> 0 | P15: =+VLOOKUP($M15,'td1'!$KC$72:$KO$76,'información graf'!$G$2,FALSE) -> 0
L16: 5 | M16: Critico | N16: =+VLOOKUP($M16,'td1'!$JA$72:$JM$76,'información graf'!$G$2,FALSE) -> 0 | O16: =+VLOOKUP($M16,'td1'!$JO$72:$KA$76,'información graf'!$G$2,FALSE) -> 0 | P16: =+VLOOKUP($M16,'td1'!$KC$72:$KO$76,'información graf'!$G$2,FALSE) -> 0
L17: 6 | M17: NA | N17: =+VLOOKUP($M17,'td1'!$JA$72:$JM$76,'información graf'!$G$2,FALSE) -> 0 | O17: =+VLOOKUP($M17,'td1'!$JO$72:$KA$76,'información graf'!$G$2,FALSE) -> 0 | P17: =+VLOOKUP($M17,'td1'!$KC$72:$KO$76,'información graf'!$G$2,FALSE) -> 0
L18: 7 | M18: Total | N18: =SUM(N13:N17) -> 0 | O18: =SUM(O13:O17) -> 0 | P18: =SUM(P13:P17) -> 0
M19: Aplicaron en el mes de corte | N19: =+N13+N14+N15+N16 -> 0 | O19: =+O13+O14+O15+O16 -> 0 | P19: =+P13+P14+P15+P16 -> 0
M20: =+"Corte "&$E$6 -> Corte Noviembre
D21: =+"Corte "&$E$6 -> Corte Noviembre
AG22: Comparación vigencias 2015 - 2016
C24: Macroregiones | K24: =+"Ranking "&VLOOKUP(Menu!C37,referencias!$R$2:$T$34,3,FALSE) -> 
K26: Macroregion | L26: =+VLOOKUP(Menu!C37,'información graf'!$CC$62:$CE$99,3,FALSE) -> 
L28: # | M28: Regional | N28: %
K29: =+$L$26&1 ->  | L29: 1 | M29: =IFERROR(VLOOKUP($K29,'información graf'!$CI$62:$CK$99,2,FALSE),"") ->  | N29: =+IFERROR(VLOOKUP($K29,'información graf'!$CI$62:$CK$99,3,FALSE),"") -> 
K30: =+$L$26&2 ->  | L30: =+IF(M30="","",L29+1) ->  | M30: =IFERROR(VLOOKUP($K30,'información graf'!$CI$62:$CK$99,2,FALSE),"") ->  | N30: =+IFERROR(VLOOKUP($K30,'información graf'!$CI$62:$CK$99,3,FALSE),"") -> 
K31: =+$L$26&3 ->  | M31: =IFERROR(VLOOKUP($K31,'información graf'!$CI$62:$CK$99,2,FALSE),"") ->  | N31: =+IFERROR(VLOOKUP($K31,'información graf'!$CI$62:$CK$99,3,FALSE),"") -> 
K32: =+$L$26&4 ->  | M32: =IFERROR(VLOOKUP($K32,'información graf'!$CI$62:$CK$99,2,FALSE),"") ->  | N32: =+IFERROR(VLOOKUP($K32,'información graf'!$CI$62:$CK$99,3,FALSE),"") -> 
K33: =+$L$26&5 ->  | M33: =IFERROR(VLOOKUP($K33,'información graf'!$CI$62:$CK$99,2,FALSE),"") ->  | N33: =+IFERROR(VLOOKUP($K33,'información graf'!$CI$62:$CK$99,3,FALSE),"") -> 
K34: =+$L$26&6 ->  | M34: =IFERROR(VLOOKUP($K34,'información graf'!$CI$62:$CK$99,2,FALSE),"") ->  | N34: =+IFERROR(VLOOKUP($K34,'información graf'!$CI$62:$CK$99,3,FALSE),"") -> 
K35: =+$L$26&7 ->  | M35: =IFERROR(VLOOKUP($K35,'información graf'!$CI$62:$CK$99,2,FALSE),"") ->  | N35: =+IFERROR(VLOOKUP($K35,'información graf'!$CI$62:$CK$99,3,FALSE),"") -> 
K36: =+$L$26&8 ->  | M36: =IFERROR(VLOOKUP($K36,'información graf'!$CI$62:$CK$99,2,FALSE),"") ->  | N36: =+IFERROR(VLOOKUP($K36,'información graf'!$CI$62:$CK$99,3,FALSE),"") -> 
K38: Regional | L38: =+Menu!C37 -> 0 | N38: =+VLOOKUP(L38,referencias!$W$2:$X$34,2,FALSE) -> 
L40: # | M40: Centro zonal | O40: %
K41: =+$L$38&1 -> 01 | L41: 1 | M41: =+IFERROR(VLOOKUP($K41,'información graf'!$CY$60:$DB$300,3,FALSE),"") ->  | O41: =+IFERROR(VLOOKUP($K41,'información graf'!$CY$60:$DB$300,4,FALSE),"") ->  | P41: =+IFERROR(VLOOKUP($L$38&M41,'información graf'!$CR$60:$CU$300,4,FALSE),"") -> 
K42: =+$L$38&2 -> 02 | L42: =+IF(M42="","",L41+1) ->  | M42: =+IFERROR(VLOOKUP($K42,'información graf'!$CY$60:$DB$300,3,FALSE),"") ->  | O42: =+IFERROR(VLOOKUP($K42,'información graf'!$CY$60:$DB$300,4,FALSE),"") ->  | P42: =+IFERROR(VLOOKUP($L$38&M42,'información graf'!$CR$60:$CU$300,4,FALSE),"") -> 
K43: =+$L$38&3 -> 03 | M43: =+IFERROR(VLOOKUP($K43,'información graf'!$CY$60:$DB$300,3,FALSE),"") ->  | O43: =+IFERROR(VLOOKUP($K43,'información graf'!$CY$60:$DB$300,4,FALSE),"") ->  | P43: =+IFERROR(VLOOKUP($L$38&M43,'información graf'!$CR$60:$CU$300,4,FALSE),"") -> 
K44: =+$L$38&4 -> 04 | M44: =+IFERROR(VLOOKUP($K44,'información graf'!$CY$60:$DB$300,3,FALSE),"") ->  | O44: =+IFERROR(VLOOKUP($K44,'información graf'!$CY$60:$DB$300,4,FALSE),"") ->  | P44: =+IFERROR(VLOOKUP($L$38&M44,'información graf'!$CR$60:$CU$300,4,FALSE),"") -> 
K45: =+$L$38&5 -> 05 | M45: =+IFERROR(VLOOKUP($K45,'información graf'!$CY$60:$DB$300,3,FALSE),"") ->  | O45: =+IFERROR(VLOOKUP($K45,'información graf'!$CY$60:$DB$300,4,FALSE),"") ->  | P45: =+IFERROR(VLOOKUP($L$38&M45,'información graf'!$CR$60:$CU$300,4,FALSE),"") ->  | AH45: Tablero | AI45: Ene | AJ45: Feb | AK45: Mar | AL45: Abr | AM45: May | AN45: Jun | AO45: Jul | AP45: Agt | AQ45: Sep | AR45: Oct | AS45: Nov | AT45: Dic
K46: =+$L$38&6 -> 06 | M46: =+IFERROR(VLOOKUP($K46,'información graf'!$CY$60:$DB$300,3,FALSE),"") ->  | O46: =+IFERROR(VLOOKUP($K46,'información graf'!$CY$60:$DB$300,4,FALSE),"") ->  | P46: =+IFERROR(VLOOKUP($L$38&M46,'información graf'!$CR$60:$CU$300,4,FALSE),"") ->  | AH46: 2015 | AI46: =+'información graf'!AM62 ->  | AJ46: =+'información graf'!AN62 ->  | AK46: =+'información graf'!AO62 ->  | AL46: =+'información graf'!AP62 ->  | AM46: =+'información graf'!AQ62 ->  | AN46: =+'información graf'!AR62 ->  | AO46: =+'información graf'!AS62 ->  | AP46: =+'información graf'!AT62 ->  | AQ46: =+'información graf'!AU62 ->  | AR46: =+'información graf'!AV62 ->  | AS46: =+'información graf'!AW62 ->  | AT46: =+'información graf'!AX62 -> 
K47: =+$L$38&7 -> 07 | M47: =+IFERROR(VLOOKUP($K47,'información graf'!$CY$60:$DB$300,3,FALSE),"") ->  | O47: =+IFERROR(VLOOKUP($K47,'información graf'!$CY$60:$DB$300,4,FALSE),"") ->  | P47: =+IFERROR(VLOOKUP($L$38&M47,'información graf'!$CR$60:$CU$300,4,FALSE),"") ->  | AH47: 2016 | AI47: =+'información graf'!AM63 ->  | AJ47: =+'información graf'!AN63 ->  | AK47: =+'información graf'!AO63 ->  | AL47: =+'información graf'!AP63 ->  | AM47: =+'información graf'!AQ63 ->  | AN47: =+'información graf'!AR63 ->  | AO47: =+'información graf'!AS63 ->  | AP47: =+'información graf'!AT63 ->  | AQ47: =+'información graf'!AU63 ->  | AR47: =+'información graf'!AV63 ->  | AS47: =+'información graf'!AW63 ->  | AT47: =+'información graf'!AX63 -> 
K48: =+$L$38&8 -> 08 | M48: =+IFERROR(VLOOKUP($K48,'información graf'!$CY$60:$DB$300,3,FALSE),"") ->  | O48: =+IFERROR(VLOOKUP($K48,'información graf'!$CY$60:$DB$300,4,FALSE),"") ->  | P48: =+IFERROR(VLOOKUP($L$38&M48,'información graf'!$CR$60:$CU$300,4,FALSE),"") ->  | AH48: ∆ | AI48: =+IFERROR((AI47/AI46)-1,0) -> 0 | AJ48: 0 | AK48: 0 | AL48: 0 | AM48: 0 | AN48: 0 | AO48: 0 | AP48: 0 | AQ48: 0 | AR48: 0 | AS48: 0 | AT48: 0
K49: =+$L$38&9 -> 09 | M49: =+IFERROR(VLOOKUP($K49,'información graf'!$CY$60:$DB$300,3,FALSE),"") ->  | O49: =+IFERROR(VLOOKUP($K49,'información graf'!$CY$60:$DB$300,4,FALSE),"") ->  | P49: =+IFERROR(VLOOKUP($L$38&M49,'información graf'!$CR$60:$CU$300,4,FALSE),"") -> 
K50: =+$L$38&10 -> 010 | M50: =+IFERROR(VLOOKUP($K50,'información graf'!$CY$60:$DB$300,3,FALSE),"") ->  | O50: =+IFERROR(VLOOKUP($K50,'información graf'!$CY$60:$DB$300,4,FALSE),"") ->  | P50: =+IFERROR(VLOOKUP($L$38&M50,'información graf'!$CR$60:$CU$300,4,FALSE),"") ->  | AH50: Plan de Acción | AI50: Ene | AJ50: Feb | AK50: Mar | AL50: Abr | AM50: May | AN50: Jun | AO50: Jul | AP50: Agt | AQ50: Sep | AR50: Oct | AS50: Nov | AT50: Dic
K51: =+$L$38&11 -> 011 | M51: =+IFERROR(VLOOKUP($K51,'información graf'!$CY$60:$DB$300,3,FALSE),"") ->  | O51: =+IFERROR(VLOOKUP($K51,'información graf'!$CY$60:$DB$300,4,FALSE),"") ->  | P51: =+IFERROR(VLOOKUP($L$38&M51,'información graf'!$CR$60:$CU$300,4,FALSE),"") ->  | AH51: 2015 | AI51: =+'información graf'!AM66 ->  | AJ51: =+'información graf'!AN66 ->  | AK51: =+'información graf'!AO66 ->  | AL51: =+'información graf'!AP66 ->  | AM51: =+'información graf'!AQ66 ->  | AN51: =+'información graf'!AR66 ->  | AO51: =+'información graf'!AS66 ->  | AP51: =+'información graf'!AT66 ->  | AQ51: =+'información graf'!AU66 ->  | AR51: =+'información graf'!AV66 ->  | AS51: =+'información graf'!AW66 ->  | AT51: =+'información graf'!AX66 -> 
D52: =+'información graf'!CP63 -> 0.9592302292 | E52: Pacífico | K52: =+$L$38&12 -> 012 | M52: =+IFERROR(VLOOKUP($K52,'información graf'!$CY$60:$DB$300,3,FALSE),"") ->  | O52: =+IFERROR(VLOOKUP($K52,'información graf'!$CY$60:$DB$300,4,FALSE),"") ->  | P52: =+IFERROR(VLOOKUP($L$38&M52,'información graf'!$CR$60:$CU$300,4,FALSE),"") ->  | AH52: 2016 | AI52: =+'información graf'!AM67 ->  | AJ52: =+'información graf'!AN67 ->  | AK52: =+'información graf'!AO67 ->  | AL52: =+'información graf'!AP67 ->  | AM52: =+'información graf'!AQ67 ->  | AN52: =+'información graf'!AR67 ->  | AO52: =+'información graf'!AS67 ->  | AP52: =+'información graf'!AT67 ->  | AQ52: =+'información graf'!AU67 ->  | AR52: =+'información graf'!AV67 ->  | AS52: =+'información graf'!AW67 ->  | AT52: =+'información graf'!AX67 -> 
D53: =+'información graf'!CP64 -> 0.972347554 | E53: Centro Sur | K53: =+$L$38&13 -> 013 | M53: =+IFERROR(VLOOKUP($K53,'información graf'!$CY$60:$DB$300,3,FALSE),"") ->  | O53: =+IFERROR(VLOOKUP($K53,'información graf'!$CY$60:$DB$300,4,FALSE),"") ->  | P53: =+IFERROR(VLOOKUP($L$38&M53,'información graf'!$CR$60:$CU$300,4,FALSE),"") ->  | T53: Seguimiento mes a mes gestión regional | AH53: ∆ | AI53: =+IFERROR((AI52/AI51)-1,0) -> 0 | AJ53: 0 | AK53: 0 | AL53: 0 | AM53: 0 | AN53: 0 | AO53: 0 | AP53: 0 | AQ53: 0 | AR53: 0 | AS53: 0 | AT53: 0
D54: =+'información graf'!CP65 -> 0.8569401556 | E54: Llanos | K54: =+$L$38&14 -> 014 | M54: =+IFERROR(VLOOKUP($K54,'información graf'!$CY$60:$DB$300,3,FALSE),"") ->  | O54: =+IFERROR(VLOOKUP($K54,'información graf'!$CY$60:$DB$300,4,FALSE),"") ->  | P54: =+IFERROR(VLOOKUP($L$38&M54,'información graf'!$CR$60:$CU$300,4,FALSE),"") ->  | T54: Ene | U54: Feb | V54: Mar | W54: Abr | X54: May | Y54: Jun | Z54: Jul | AA54: Agt | AB54: Sep | AC54: Oct | AD54: Nov | AE54: Dic
D55: =+'información graf'!CP66 -> 0.9281403941 | E55: Eje Cafetero | K55: =+$L$38&15 -> 015 | M55: =+IFERROR(VLOOKUP($K55,'información graf'!$CY$60:$DB$300,3,FALSE),"") ->  | O55: =+IFERROR(VLOOKUP($K55,'información graf'!$CY$60:$DB$300,4,FALSE),"") ->  | P55: =+IFERROR(VLOOKUP($L$38&M55,'información graf'!$CR$60:$CU$300,4,FALSE),"") ->  | S55: T. control | T55: =IFERROR('información graf'!BA62,"") ->  | U55: =IFERROR('información graf'!BB62,"") ->  | V55: =IFERROR('información graf'!BC62,"") ->  | W55: =IFERROR('información graf'!BD62,"") ->  | X55: =IFERROR('información graf'!BE62,"") ->  | Y55: =IFERROR('información graf'!BF62,"") ->  | Z55: =IFERROR('información graf'!BG62,"") ->  | AA55: =IFERROR('información graf'!BH62,"") ->  | AB55: =IFERROR('información graf'!BI62,"") ->  | AC55: =IFERROR('información graf'!BJ62,"") ->  | AD55: =IFERROR('información graf'!BK62,"") ->  | AE55: =IFERROR('información graf'!BL62,"") ->  | AH55: Plan Indicativo | AI55: Ene | AJ55: Feb | AK55: Mar | AL55: Abr | AM55: May | AN55: Jun | AO55: Jul | AP55: Agt | AQ55: Sep | AR55: Oct | AS55: Nov | AT55: Dic
D56: =+'información graf'!CP67 -> 0.9221479795 | E56: Caribe | K56: =+$L$38&16 -> 016 | M56: =+IFERROR(VLOOKUP($K56,'información graf'!$CY$60:$DB$300,3,FALSE),"") ->  | O56: =+IFERROR(VLOOKUP($K56,'información graf'!$CY$60:$DB$300,4,FALSE),"") ->  | P56: =+IFERROR(VLOOKUP($L$38&M56,'información graf'!$CR$60:$CU$300,4,FALSE),"") ->  | S56: P. Acción | T56: =IFERROR('información graf'!BA63,"") ->  | U56: =IFERROR('información graf'!BB63,"") ->  | V56: =IFERROR('información graf'!BC63,"") ->  | W56: =IFERROR('información graf'!BD63,"") ->  | X56: =IFERROR('información graf'!BE63,"") ->  | Y56: =IFERROR('información graf'!BF63,"") ->  | Z56: =IFERROR('información graf'!BG63,"") ->  | AA56: =IFERROR('información graf'!BH63,"") ->  | AB56: =IFERROR('información graf'!BI63,"") ->  | AC56: =IFERROR('información graf'!BJ63,"") ->  | AD56: =IFERROR('información graf'!BK63,"") ->  | AE56: =IFERROR('información graf'!BL63,"") ->  | AH56: 2015 | AI56: =+'información graf'!AM70 ->  | AJ56: =+'información graf'!AN70 ->  | AK56: =+'información graf'!AO70 ->  | AL56: =+'información graf'!AP70 ->  | AM56: =+'información graf'!AQ70 ->  | AN56: =+'información graf'!AR70 ->  | AO56: =+'información graf'!AS70 ->  | AP56: =+'información graf'!AT70 ->  | AQ56: =+'información graf'!AU70 ->  | AR56: =+'información graf'!AV70 ->  | AS56: =+'información graf'!AW70 ->  | AT56: =+'información graf'!AX70 -> 
D57: =+'información graf'!CP68 -> 0.9480405036 | E57: Centro Oriente | K57: =+$L$38&17 -> 017 | M57: =+IFERROR(VLOOKUP($K57,'información graf'!$CY$60:$DB$300,3,FALSE),"") ->  | O57: =+IFERROR(VLOOKUP($K57,'información graf'!$CY$60:$DB$300,4,FALSE),"") ->  | P57: =+IFERROR(VLOOKUP($L$38&M57,'información graf'!$CR$60:$CU$300,4,FALSE),"") ->  | S57: P. Indicativo | T57: =IFERROR('información graf'!BA64,"") ->  | U57: =IFERROR('información graf'!BB64,"") ->  | V57: =IFERROR('información graf'!BC64,"") ->  | W57: =IFERROR('información graf'!BD64,"") ->  | X57: =IFERROR('información graf'!BE64,"") ->  | Y57: =IFERROR('información graf'!BF64,"") ->  | Z57: =IFERROR('información graf'!BG64,"") ->  | AA57: =IFERROR('información graf'!BH64,"") ->  | AB57: =IFERROR('información graf'!BI64,"") ->  | AC57: =IFERROR('información graf'!BJ64,"") ->  | AD57: =IFERROR('información graf'!BK64,"") ->  | AE57: =IFERROR('información graf'!BL64,"") ->  | AH57: 2016 | AI57: =+'información graf'!AM71 ->  | AJ57: =+'información graf'!AN71 ->  | AK57: =+'información graf'!AO71 ->  | AL57: =+'información graf'!AP71 ->  | AM57: =+'información graf'!AQ71 ->  | AN57: =+'información graf'!AR71 ->  | AO57: =+'información graf'!AS71 ->  | AP57: =+'información graf'!AT71 ->  | AQ57: =+'información graf'!AU71 ->  | AR57: =+'información graf'!AV71 ->  | AS57: =+'información graf'!AW71 ->  | AT57: =+'información graf'!AX71 -> 
K58: =+$L$38&18 -> 018 | M58: =+IFERROR(VLOOKUP($K58,'información graf'!$CY$60:$DB$300,3,FALSE),"") ->  | O58: =+IFERROR(VLOOKUP($K58,'información graf'!$CY$60:$DB$300,4,FALSE),"") ->  | P58: =+IFERROR(VLOOKUP($L$38&M58,'información graf'!$CR$60:$CU$300,4,FALSE),"") ->  | AH58: ∆ | AI58: =+IFERROR((AI57/AI56)-1,0) -> 0 | AJ58: 0 | AK58: 0 | AL58: 0 | AM58: 0 | AN58: 0 | AO58: 0 | AP58: 0 | AQ58: 0 | AR58: 0 | AS58: 0 | AT58: 0
S60: P. Acción
C64: Modelo Integrado de Planeación y Gestión - decreto 2482 de 2012, DAFP
H67: Líneas de politica | J67: Componentes
T68: optimo | U68: adecuado | V68: en riesgo | W68: critico | X68: NA
S69: Comportamiento agregado de indicadores
Y70: Total
M71: LP1 | N71: Gestión misional y de gobierno | S71: LP1 | T71: =+T72 -> 0 | U71: 0 | V71: 0 | W71: 0 | X71: 0 | Y71: 0
N72: LP1-C1 | O72: Indicadores y metas de Gobierno | S72: LP1-C1 | T72: =+VLOOKUP($S72&T$68,'td1'!$LY$72:$MK$166,'información graf'!$G$2,FALSE) -> 0 | U72: =+VLOOKUP($S72&U$68,'td1'!$LY$72:$MK$166,'información graf'!$G$2,FALSE) -> 0 | V72: =+VLOOKUP($S72&V$68,'td1'!$LY$72:$MK$166,'información graf'!$G$2,FALSE) -> 0 | W72: =+VLOOKUP($S72&W$68,'td1'!$LY$72:$MK$166,'información graf'!$G$2,FALSE) -> 0 | X72: =+VLOOKUP($S72&X$68,'td1'!$LY$72:$MK$166,'información graf'!$G$2,FALSE) -> 0 | Y72: =+SUM(T72:X72) -> 0
M73: LP2 | N73: Transparencia, participación y servicio al ciudadano | S73: LP2 | T73: =+T74+T75+T76 -> 0 | U73: 0 | V73: 0 | W73: 0 | X73: 0 | Y73: 0
N74: LP2-C2 | O74: Participación Ciudadana en la Gestión | S74: LP2-C2 | T74: =+VLOOKUP($S74&T$68,'td1'!$LY$72:$MK$166,'información graf'!$G$2,FALSE) -> 0 | U74: =+VLOOKUP($S74&U$68,'td1'!$LY$72:$MK$166,'información graf'!$G$2,FALSE) -> 0 | V74: =+VLOOKUP($S74&V$68,'td1'!$LY$72:$MK$166,'información graf'!$G$2,FALSE) -> 0 | W74: =+VLOOKUP($S74&W$68,'td1'!$LY$72:$MK$166,'información graf'!$G$2,FALSE) -> 0 | X74: =+VLOOKUP($S74&X$68,'td1'!$LY$72:$MK$166,'información graf'!$G$2,FALSE) -> 0 | Y74: =+SUM(T74:X74) -> 0
N75: LP2-C3 | O75: Rendición de Cuentas a la ciudadania | S75: LP2-C3 | T75: =+VLOOKUP($S75&T$68,'td1'!$LY$72:$MK$166,'información graf'!$G$2,FALSE) -> 0 | U75: =+VLOOKUP($S75&U$68,'td1'!$LY$72:$MK$166,'información graf'!$G$2,FALSE) -> 0 | V75: =+VLOOKUP($S75&V$68,'td1'!$LY$72:$MK$166,'información graf'!$G$2,FALSE) -> 0 | W75: =+VLOOKUP($S75&W$68,'td1'!$LY$72:$MK$166,'información graf'!$G$2,FALSE) -> 0 | X75: =+VLOOKUP($S75&X$68,'td1'!$LY$72:$MK$166,'información graf'!$G$2,FALSE) -> 0 | Y75: =+SUM(T75:X75) -> 0
N76: LP2-C4 | O76: Servicio al Ciudadano | S76: LP2-C4 | T76: =+VLOOKUP($S76&T$68,'td1'!$LY$72:$MK$166,'información graf'!$G$2,FALSE) -> 0 | U76: =+VLOOKUP($S76&U$68,'td1'!$LY$72:$MK$166,'información graf'!$G$2,FALSE) -> 0 | V76: =+VLOOKUP($S76&V$68,'td1'!$LY$72:$MK$166,'información graf'!$G$2,FALSE) -> 0 | W76: =+VLOOKUP($S76&W$68,'td1'!$LY$72:$MK$166,'información graf'!$G$2,FALSE) -> 0 | X76: =+VLOOKUP($S76&X$68,'td1'!$LY$72:$MK$166,'información graf'!$G$2,FALSE) -> 0 | Y76: =+SUM(T76:X76) -> 0
M77: LP3 | N77: Gestión del talento humano | S77: LP3 | T77: =T78+T79 -> 0 | U77: 0 | V77: 0 | W77: 0 | X77: 0 | Y77: 0
N78: LP3-C3 | O78: Capacitación | S78: LP3-C3 | T78: =+VLOOKUP($S78&T$68,'td1'!$LY$72:$MK$166,'información graf'!$G$2,FALSE) -> 0 | U78: =+VLOOKUP($S78&U$68,'td1'!$LY$72:$MK$166,'información graf'!$G$2,FALSE) -> 0 | V78: =+VLOOKUP($S78&V$68,'td1'!$LY$72:$MK$166,'información graf'!$G$2,FALSE) -> 0 | W78: =+VLOOKUP($S78&W$68,'td1'!$LY$72:$MK$166,'información graf'!$G$2,FALSE) -> 0 | X78: =+VLOOKUP($S78&X$68,'td1'!$LY$72:$MK$166,'información graf'!$G$2,FALSE) -> 0 | Y78: =+SUM(T78:X78) -> 0
N79: LP3-C4 | O79: Bienestar e Incentivos | S79: LP3-C4 | T79: =+VLOOKUP($S79&T$68,'td1'!$LY$72:$MK$166,'información graf'!$G$2,FALSE) -> 0 | U79: =+VLOOKUP($S79&U$68,'td1'!$LY$72:$MK$166,'información graf'!$G$2,FALSE) -> 0 | V79: =+VLOOKUP($S79&V$68,'td1'!$LY$72:$MK$166,'información graf'!$G$2,FALSE) -> 0 | W79: =+VLOOKUP($S79&W$68,'td1'!$LY$72:$MK$166,'información graf'!$G$2,FALSE) -> 0 | X79: =+VLOOKUP($S79&X$68,'td1'!$LY$72:$MK$166,'información graf'!$G$2,FALSE) -> 0 | Y79: =+SUM(T79:X79) -> 0
M80: LP5 | N80: Gestión financiera | S80: LP5 | T80: =T81+T82 -> 0 | U80: 0 | V80: 0 | W80: 0 | X80: 0 | Y80: 0
N81: LP5-C2 | O81: Programa Anual Mensualizado de Caja – PAC | S81: LP5-C2 | T81: =+VLOOKUP($S81&T$68,'td1'!$LY$72:$MK$166,'información graf'!$G$2,FALSE) -> 0 | U81: =+VLOOKUP($S81&U$68,'td1'!$LY$72:$MK$166,'información graf'!$G$2,FALSE) -> 0 | V81: =+VLOOKUP($S81&V$68,'td1'!$LY$72:$MK$166,'información graf'!$G$2,FALSE) -> 0 | W81: =+VLOOKUP($S81&W$68,'td1'!$LY$72:$MK$166,'información graf'!$G$2,FALSE) -> 0 | X81: =+VLOOKUP($S81&X$68,'td1'!$LY$72:$MK$166,'información graf'!$G$2,FALSE) -> 0 | Y81: =+SUM(T81:X81) -> 0
N82: LP5-C4 | O82: Plan Anual de Adquisiciones (PAA) | S82: LP5-C4 | T82: =+VLOOKUP($S82&T$68,'td1'!$LY$72:$MK$166,'información graf'!$G$2,FALSE) -> 0 | U82: =+VLOOKUP($S82&U$68,'td1'!$LY$72:$MK$166,'información graf'!$G$2,FALSE) -> 0 | V82: =+VLOOKUP($S82&V$68,'td1'!$LY$72:$MK$166,'información graf'!$G$2,FALSE) -> 0 | W82: =+VLOOKUP($S82&W$68,'td1'!$LY$72:$MK$166,'información graf'!$G$2,FALSE) -> 0 | X82: =+VLOOKUP($S82&X$68,'td1'!$LY$72:$MK$166,'información graf'!$G$2,FALSE) -> 0 | Y82: =+SUM(T82:X82) -> 0
S83: Total | T83: =+T71+T73+T77+T80 -> 0 | U83: 0 | V83: 0 | W83: 0 | X83: 0 | Y83: 0
T84: =+T83/$Y$83 ->  | U84: =+U83/$Y$83 ->  | V84: =+V83/$Y$83 ->  | W84: =+W83/$Y$83 ->  | X84: =+X83/$Y$83 -> 
C95: Mapa Estratégico 2015 -2018
U96: Categoria | Y96: Perspectivas
C98: =+"Corte "&$E$6 -> Corte Noviembre
AH105: Comportamiento agregado de indicadores
AH106: 7 | AI106: optimo | AJ106: adecuado | AK106: en riesgo | AL106: critico | AM106: NA
AN107: Total
AH108: Servicios | AI108: =+SUM(AI109:AI113) -> 0 | AJ108: =+SUM(AJ109:AJ113) -> 0 | AK108: =+SUM(AK109:AK113) -> 0 | AL108: =+SUM(AL109:AL113) -> 0 | AM108: =+SUM(AM109:AM113) -> 0 | AN108: =+SUM(AI108:AM108) -> 0
AH109: PS1 | AI109: =+VLOOKUP($AH109&AI$106,'td1'!$LI$72:$LU$131,'información graf'!$G$2,FALSE) -> 0 | AJ109: =+VLOOKUP($AH109&AJ$106,'td1'!$LI$72:$LU$131,'información graf'!$G$2,FALSE) -> 0 | AK109: =+VLOOKUP($AH109&AK$106,'td1'!$LI$72:$LU$131,'información graf'!$G$2,FALSE) -> 0 | AL109: =+VLOOKUP($AH109&AL$106,'td1'!$LI$72:$LU$131,'información graf'!$G$2,FALSE) -> 0 | AM109: =+VLOOKUP($AH109&AM$106,'td1'!$LI$72:$LU$131,'información graf'!$G$2,FALSE) -> 0 | AN109: 0
AH110: PS2 | AI110: =+VLOOKUP($AH110&AI$106,'td1'!$LI$72:$LU$131,'información graf'!$G$2,FALSE) -> 0 | AJ110: =+VLOOKUP($AH110&AJ$106,'td1'!$LI$72:$LU$131,'información graf'!$G$2,FALSE) -> 0 | AK110: =+VLOOKUP($AH110&AK$106,'td1'!$LI$72:$LU$131,'información graf'!$G$2,FALSE) -> 0 | AL110: =+VLOOKUP($AH110&AL$106,'td1'!$LI$72:$LU$131,'información graf'!$G$2,FALSE) -> 0 | AM110: =+VLOOKUP($AH110&AM$106,'td1'!$LI$72:$LU$131,'información graf'!$G$2,FALSE) -> 0 | AN110: 0
AH111: PS3 | AI111: =+VLOOKUP($AH111&AI$106,'td1'!$LI$72:$LU$131,'información graf'!$G$2,FALSE) -> 0 | AJ111: =+VLOOKUP($AH111&AJ$106,'td1'!$LI$72:$LU$131,'información graf'!$G$2,FALSE) -> 0 | AK111: =+VLOOKUP($AH111&AK$106,'td1'!$LI$72:$LU$131,'información graf'!$G$2,FALSE) -> 0 | AL111: =+VLOOKUP($AH111&AL$106,'td1'!$LI$72:$LU$131,'información graf'!$G$2,FALSE) -> 0 | AM111: =+VLOOKUP($AH111&AM$106,'td1'!$LI$72:$LU$131,'información graf'!$G$2,FALSE) -> 0 | AN111: 0
AH112: PS4 | AI112: =+VLOOKUP($AH112&AI$106,'td1'!$LI$72:$LU$131,'información graf'!$G$2,FALSE) -> 0 | AJ112: =+VLOOKUP($AH112&AJ$106,'td1'!$LI$72:$LU$131,'información graf'!$G$2,FALSE) -> 0 | AK112: =+VLOOKUP($AH112&AK$106,'td1'!$LI$72:$LU$131,'información graf'!$G$2,FALSE) -> 0 | AL112: =+VLOOKUP($AH112&AL$106,'td1'!$LI$72:$LU$131,'información graf'!$G$2,FALSE) -> 0 | AM112: =+VLOOKUP($AH112&AM$106,'td1'!$LI$72:$LU$131,'información graf'!$G$2,FALSE) -> 0 | AN112: 0
AH113: PS5 | AI113: =+VLOOKUP($AH113&AI$106,'td1'!$LI$72:$LU$131,'información graf'!$G$2,FALSE) -> 0 | AJ113: =+VLOOKUP($AH113&AJ$106,'td1'!$LI$72:$LU$131,'información graf'!$G$2,FALSE) -> 0 | AK113: =+VLOOKUP($AH113&AK$106,'td1'!$LI$72:$LU$131,'información graf'!$G$2,FALSE) -> 0 | AL113: =+VLOOKUP($AH113&AL$106,'td1'!$LI$72:$LU$131,'información graf'!$G$2,FALSE) -> 0 | AM113: =+VLOOKUP($AH113&AM$106,'td1'!$LI$72:$LU$131,'información graf'!$G$2,FALSE) -> 0 | AN113: 0
AH114: Procesos | AI114: =+SUM(AI115:AI118) -> 0 | AJ114: =+SUM(AJ115:AJ118) -> 0 | AK114: =+SUM(AK115:AK118) -> 0 | AL114: =+SUM(AL115:AL118) -> 0 | AM114: =+SUM(AM115:AM118) -> 0 | AN114: 0
T115: =+"Corte "&$E$6 -> Corte Noviembre | AH115: PP1 | AI115: =+VLOOKUP($AH115&AI$106,'td1'!$LI$72:$LU$131,'información graf'!$G$2,FALSE) -> 0 | AJ115: =+VLOOKUP($AH115&AJ$106,'td1'!$LI$72:$LU$131,'información graf'!$G$2,FALSE) -> 0 | AK115: =+VLOOKUP($AH115&AK$106,'td1'!$LI$72:$LU$131,'información graf'!$G$2,FALSE) -> 0 | AL115: =+VLOOKUP($AH115&AL$106,'td1'!$LI$72:$LU$131,'información graf'!$G$2,FALSE) -> 0 | AM115: =+VLOOKUP($AH115&AM$106,'td1'!$LI$72:$LU$131,'información graf'!$G$2,FALSE) -> 0 | AN115: 0
AH116: PP2 | AI116: =+VLOOKUP($AH116&AI$106,'td1'!$LI$72:$LU$131,'información graf'!$G$2,FALSE) -> 0 | AJ116: =+VLOOKUP($AH116&AJ$106,'td1'!$LI$72:$LU$131,'información graf'!$G$2,FALSE) -> 0 | AK116: =+VLOOKUP($AH116&AK$106,'td1'!$LI$72:$LU$131,'información graf'!$G$2,FALSE) -> 0 | AL116: =+VLOOKUP($AH116&AL$106,'td1'!$LI$72:$LU$131,'información graf'!$G$2,FALSE) -> 0 | AM116: =+VLOOKUP($AH116&AM$106,'td1'!$LI$72:$LU$131,'información graf'!$G$2,FALSE) -> 0 | AN116: 0
Q117: PS | R117: Perspectiva de Servicios | AH117: PP3 | AI117: =+VLOOKUP($AH117&AI$106,'td1'!$LI$72:$LU$131,'información graf'!$G$2,FALSE) -> 0 | AJ117: =+VLOOKUP($AH117&AJ$106,'td1'!$LI$72:$LU$131,'información graf'!$G$2,FALSE) -> 0 | AK117: =+VLOOKUP($AH117&AK$106,'td1'!$LI$72:$LU$131,'información graf'!$G$2,FALSE) -> 0 | AL117: =+VLOOKUP($AH117&AL$106,'td1'!$LI$72:$LU$131,'información graf'!$G$2,FALSE) -> 0 | AM117: =+VLOOKUP($AH117&AM$106,'td1'!$LI$72:$LU$131,'información graf'!$G$2,FALSE) -> 0 | AN117: 0
R118: PS1 | S118: Ampliar cobertura y mejorar calidad en la atención integral de la Primera Infancia | AH118: PP4 | AI118: =+VLOOKUP($AH118&AI$106,'td1'!$LI$72:$LU$131,'información graf'!$G$2,FALSE) -> 0 | AJ118: =+VLOOKUP($AH118&AJ$106,'td1'!$LI$72:$LU$131,'información graf'!$G$2,FALSE) -> 0 | AK118: =+VLOOKUP($AH118&AK$106,'td1'!$LI$72:$LU$131,'información graf'!$G$2,FALSE) -> 0 | AL118: =+VLOOKUP($AH118&AL$106,'td1'!$LI$72:$LU$131,'información graf'!$G$2,FALSE) -> 0 | AM118: =+VLOOKUP($AH118&AM$106,'td1'!$LI$72:$LU$131,'información graf'!$G$2,FALSE) -> 0 | AN118: 0
R119: PS2 | S119: Promover los derechos de los niños, niñas y adolescentes y prevenir los riesgos o amenazas de su vulneración | AH119: Aliados y Sociedad | AI119: =+SUM(AI120:AI121) -> 0 | AJ119: =+SUM(AJ120:AJ121) -> 0 | AK119: =+SUM(AK120:AK121) -> 0 | AL119: =+SUM(AL120:AL121) -> 0 | AM119: =+SUM(AM120:AM121) -> 0 | AN119: 0
R120: PS3 | S120: Promover el desarrollo, fortalecer los vinculos de cuidado mutuo y prevenir violencia intrafamiliar y de género en las familias y las comunidades | AH120: PAS1 | AI120: =+VLOOKUP($AH120&AI$106,'td1'!$LI$72:$LU$131,'información graf'!$G$2,FALSE) -> 0 | AJ120: =+VLOOKUP($AH120&AJ$106,'td1'!$LI$72:$LU$131,'información graf'!$G$2,FALSE) -> 0 | AK120: =+VLOOKUP($AH120&AK$106,'td1'!$LI$72:$LU$131,'información graf'!$G$2,FALSE) -> 0 | AL120: =+VLOOKUP($AH120&AL$106,'td1'!$LI$72:$LU$131,'información graf'!$G$2,FALSE) -> 0 | AM120: =+VLOOKUP($AH120&AM$106,'td1'!$LI$72:$LU$131,'información graf'!$G$2,FALSE) -> 0 | AN120: 0
R121: PS4 | S121: Promover la seguridad alimentaria y Nutricional | AH121: PAS2 | AI121: =+VLOOKUP($AH121&AI$106,'td1'!$LI$72:$LU$131,'información graf'!$G$2,FALSE) -> 0 | AJ121: =+VLOOKUP($AH121&AJ$106,'td1'!$LI$72:$LU$131,'información graf'!$G$2,FALSE) -> 0 | AK121: =+VLOOKUP($AH121&AK$106,'td1'!$LI$72:$LU$131,'información graf'!$G$2,FALSE) -> 0 | AL121: =+VLOOKUP($AH121&AL$106,'td1'!$LI$72:$LU$131,'información graf'!$G$2,FALSE) -> 0 | AM121: =+VLOOKUP($AH121&AM$106,'td1'!$LI$72:$LU$131,'información graf'!$G$2,FALSE) -> 0 | AN121: 0
R122: PS5 | S122: Garantizar la Protección integral de los niños, niñas y adolescentes | AH122: Financiera | AI122: =+AI123 -> 0 | AJ122: =+AJ123 -> 0 | AK122: =+AK123 -> 0 | AL122: =+AL123 -> 0 | AM122: =+AM123 -> 0 | AN122: 0
Q123: PP | R123: Perspectiva de Procesos | AH123: PF | AI123: =+VLOOKUP($AH123&AI$106,'td1'!$LI$72:$LU$131,'información graf'!$G$2,FALSE) -> 0 | AJ123: =+VLOOKUP($AH123&AJ$106,'td1'!$LI$72:$LU$131,'información graf'!$G$2,FALSE) -> 0 | AK123: =+VLOOKUP($AH123&AK$106,'td1'!$LI$72:$LU$131,'información graf'!$G$2,FALSE) -> 0 | AL123: =+VLOOKUP($AH123&AL$106,'td1'!$LI$72:$LU$131,'información graf'!$G$2,FALSE) -> 0 | AM123: =+VLOOKUP($AH123&AM$106,'td1'!$LI$72:$LU$131,'información graf'!$G$2,FALSE) -> 0 | AN123: 0
R124: PP1 | S124: Impulsar una cultura de la evaluación y gestión de la calidad para el mejoramiento continuo | AH124: Total | AI124: =+AI108+AI114+AI119+AI122 -> 0 | AJ124: 0 | AK124: 0 | AL124: 0 | AM124: 0 | AN124: 0
R125: PP2 | S125: Promover condiciones laborales que hagan del ICBF el mejor lugar para trabajar | AI125: =+AI124/$AN$124 ->  | AJ125: =+AJ124/$AN$124 ->  | AK125: =+AK124/$AN$124 ->  | AL125: =+AL124/$AN$124 ->  | AM125: =+AM124/$AN$124 -> 
R126: PP3 | S126: Reducir los impactos ambientales generados por nuestra actividad | AH126: =+"Corte "&$E$6 -> Corte Noviembre
R127: PP4 | S127: Gestionar el conocimiento institucional, con sistemas de información integrados y seguros
Q128: PAS | R128: Perspectiva de Aliados y sociedad
R129: PAS1 | S129: Articular las instancias del Instituto Colombiano de Bienestar Familiar y del Sistema Nacional de Bienestar Familiar
R130: PAS2 | S130: Trabajar con transparencia y buen Gobierno para promover el control social y la participación ciudadana
Q131: PF | R131: Perspectiva Financiera
R132: PF | S132: Hacer un uso eficiente de los recursos de los niños, niñas y adolescentes, porque son sagrados
C138: Mapa de Procesos ICBF
C140: =+"Corte "&$E$6 -> Corte Noviembre
T143: Procesos | AA143: Comportamiento agregado de indicadores
AA144: 7 | AB144: optimo | AC144: adecuado | AD144: en riesgo | AE144: critico | AF144: NA
AG145: Total
M146: Misionales | Z146: Misionales | AB146: =+AB147+AB148 -> 0 | AC146: =+AC147+AC148 -> 0 | AD146: =+AD147+AD148 -> 0 | AE146: =+AE147+AE148 -> 0 | AF146: =+AF147+AF148 -> 0 | AG146: =+SUM(AB146:AF146) -> 0
M147: PM1 | N147: Promoción y prevención | AA147: PM1 | AB147: =+VLOOKUP($AA147&AB$144,'td1'!$KS$72:$LE$146,'información graf'!$G$2,FALSE) -> 0 | AC147: =+VLOOKUP($AA147&AC$144,'td1'!$KS$72:$LE$146,'información graf'!$G$2,FALSE) -> 0 | AD147: =+VLOOKUP($AA147&AD$144,'td1'!$KS$72:$LE$146,'información graf'!$G$2,FALSE) -> 0 | AE147: =+VLOOKUP($AA147&AE$144,'td1'!$KS$72:$LE$146,'información graf'!$G$2,FALSE) -> 0 | AF147: =+VLOOKUP($AA147&AF$144,'td1'!$KS$72:$LE$146,'información graf'!$G$2,FALSE) -> 0 | AG147: 0
M148: PM2 | N148: Protección | AA148: PM2 | AB148: =+VLOOKUP($AA148&AB$144,'td1'!$KS$72:$LE$146,'información graf'!$G$2,FALSE) -> 0 | AC148: =+VLOOKUP($AA148&AC$144,'td1'!$KS$72:$LE$146,'información graf'!$G$2,FALSE) -> 0 | AD148: =+VLOOKUP($AA148&AD$144,'td1'!$KS$72:$LE$146,'información graf'!$G$2,FALSE) -> 0 | AE148: =+VLOOKUP($AA148&AE$144,'td1'!$KS$72:$LE$146,'información graf'!$G$2,FALSE) -> 0 | AF148: =+VLOOKUP($AA148&AF$144,'td1'!$KS$72:$LE$146,'información graf'!$G$2,FALSE) -> 0 | AG148: 0
M149: Apoyo | Z149: Apoyo | AB149: =+AB150+AB151+AB152+AB153+AB154 -> 0 | AC149: =+AC150+AC151+AC152+AC153+AC154 -> 0 | AD149: =+AD150+AD151+AD152+AD153+AD154 -> 0 | AE149: =+AE150+AE151+AE152+AE153+AE154 -> 0 | AF149: =+AF150+AF151+AF152+AF153+AF154 -> 0 | AG149: 0
M150: PA1 | N150: Gestión financiera | AA150: PA1 | AB150: =+VLOOKUP($AA150&AB$144,'td1'!$KS$72:$LE$146,'información graf'!$G$2,FALSE) -> 0 | AC150: =+VLOOKUP($AA150&AC$144,'td1'!$KS$72:$LE$146,'información graf'!$G$2,FALSE) -> 0 | AD150: =+VLOOKUP($AA150&AD$144,'td1'!$KS$72:$LE$146,'información graf'!$G$2,FALSE) -> 0 | AE150: =+VLOOKUP($AA150&AE$144,'td1'!$KS$72:$LE$146,'información graf'!$G$2,FALSE) -> 0 | AF150: =+VLOOKUP($AA150&AF$144,'td1'!$KS$72:$LE$146,'información graf'!$G$2,FALSE) -> 0 | AG150: 0
M151: PA2 | N151: Adquisición de bienes y servicios | AA151: PA2 | AB151: =+VLOOKUP($AA151&AB$144,'td1'!$KS$72:$LE$146,'información graf'!$G$2,FALSE) -> 0 | AC151: =+VLOOKUP($AA151&AC$144,'td1'!$KS$72:$LE$146,'información graf'!$G$2,FALSE) -> 0 | AD151: =+VLOOKUP($AA151&AD$144,'td1'!$KS$72:$LE$146,'información graf'!$G$2,FALSE) -> 0 | AE151: =+VLOOKUP($AA151&AE$144,'td1'!$KS$72:$LE$146,'información graf'!$G$2,FALSE) -> 0 | AF151: =+VLOOKUP($AA151&AF$144,'td1'!$KS$72:$LE$146,'información graf'!$G$2,FALSE) -> 0 | AG151: 0
M152: PA3 | N152: Servicios administrativos | AA152: PA3 | AB152: =+VLOOKUP($AA152&AB$144,'td1'!$KS$72:$LE$146,'información graf'!$G$2,FALSE) -> 0 | AC152: =+VLOOKUP($AA152&AC$144,'td1'!$KS$72:$LE$146,'información graf'!$G$2,FALSE) -> 0 | AD152: =+VLOOKUP($AA152&AD$144,'td1'!$KS$72:$LE$146,'información graf'!$G$2,FALSE) -> 0 | AE152: =+VLOOKUP($AA152&AE$144,'td1'!$KS$72:$LE$146,'información graf'!$G$2,FALSE) -> 0 | AF152: =+VLOOKUP($AA152&AF$144,'td1'!$KS$72:$LE$146,'información graf'!$G$2,FALSE) -> 0 | AG152: 0
M153: PA4 | N153: Gestión de talento humano | AA153: PA4 | AB153: =+VLOOKUP($AA153&AB$144,'td1'!$KS$72:$LE$146,'información graf'!$G$2,FALSE) -> 0 | AC153: =+VLOOKUP($AA153&AC$144,'td1'!$KS$72:$LE$146,'información graf'!$G$2,FALSE) -> 0 | AD153: =+VLOOKUP($AA153&AD$144,'td1'!$KS$72:$LE$146,'información graf'!$G$2,FALSE) -> 0 | AE153: =+VLOOKUP($AA153&AE$144,'td1'!$KS$72:$LE$146,'información graf'!$G$2,FALSE) -> 0 | AF153: =+VLOOKUP($AA153&AF$144,'td1'!$KS$72:$LE$146,'información graf'!$G$2,FALSE) -> 0 | AG153: 0
M154: PA5 | N154: Gestión jurídica | AA154: PA5 | AB154: =+VLOOKUP($AA154&AB$144,'td1'!$KS$72:$LE$146,'información graf'!$G$2,FALSE) -> 0 | AC154: =+VLOOKUP($AA154&AC$144,'td1'!$KS$72:$LE$146,'información graf'!$G$2,FALSE) -> 0 | AD154: =+VLOOKUP($AA154&AD$144,'td1'!$KS$72:$LE$146,'información graf'!$G$2,FALSE) -> 0 | AE154: =+VLOOKUP($AA154&AE$144,'td1'!$KS$72:$LE$146,'información graf'!$G$2,FALSE) -> 0 | AF154: =+VLOOKUP($AA154&AF$144,'td1'!$KS$72:$LE$146,'información graf'!$G$2,FALSE) -> 0 | AG154: 0
M155: Estratégicos | Z155: Estratégicos | AB155: =+AB156 -> 0 | AC155: 0 | AD155: 0 | AE155: 0 | AF155: 0 | AG155: 0
M156: PE1 | N156: Coordinación y articulación del SNBF y agentes | AA156: PE1 | AB156: =+VLOOKUP($AA156&AB$144,'td1'!$KS$72:$LE$146,'información graf'!$G$2,FALSE) -> 0 | AC156: =+VLOOKUP($AA156&AC$144,'td1'!$KS$72:$LE$146,'información graf'!$G$2,FALSE) -> 0 | AD156: =+VLOOKUP($AA156&AD$144,'td1'!$KS$72:$LE$146,'información graf'!$G$2,FALSE) -> 0 | AE156: =+VLOOKUP($AA156&AE$144,'td1'!$KS$72:$LE$146,'información graf'!$G$2,FALSE) -> 0 | AF156: =+VLOOKUP($AA156&AF$144,'td1'!$KS$72:$LE$146,'información graf'!$G$2,FALSE) -> 0 | AG156: =+SUM(AB156:AF156) -> 0
M157: PE2 | N157: Direccionamiento Estratégico | Z157: Evaluación | AB157: =+AB158+AB159 -> 0 | AC157: =+AC158+AC159 -> 0 | AD157: =+AD158+AD159 -> 0 | AE157: =+AE158+AE159 -> 0 | AF157: =+AF158+AF159 -> 0 | AG157: 0
M158: PE3 | N158: Comunicación estratégica | AA158: PEV1 | AB158: =+VLOOKUP($AA158&AB$144,'td1'!$KS$72:$LE$146,'información graf'!$G$2,FALSE) -> 0 | AC158: =+VLOOKUP($AA158&AC$144,'td1'!$KS$72:$LE$146,'información graf'!$G$2,FALSE) -> 0 | AD158: =+VLOOKUP($AA158&AD$144,'td1'!$KS$72:$LE$146,'información graf'!$G$2,FALSE) -> 0 | AE158: =+VLOOKUP($AA158&AE$144,'td1'!$KS$72:$LE$146,'información graf'!$G$2,FALSE) -> 0 | AF158: =+VLOOKUP($AA158&AF$144,'td1'!$KS$72:$LE$146,'información graf'!$G$2,FALSE) -> 0 | AG158: 0
M159: Evaluación | AA159: PEV2 | AB159: =+VLOOKUP($AA159&AB$144,'td1'!$KS$72:$LE$146,'información graf'!$G$2,FALSE) -> 0 | AC159: =+VLOOKUP($AA159&AC$144,'td1'!$KS$72:$LE$146,'información graf'!$G$2,FALSE) -> 0 | AD159: =+VLOOKUP($AA159&AD$144,'td1'!$KS$72:$LE$146,'información graf'!$G$2,FALSE) -> 0 | AE159: =+VLOOKUP($AA159&AE$144,'td1'!$KS$72:$LE$146,'información graf'!$G$2,FALSE) -> 0 | AF159: =+VLOOKUP($AA159&AF$144,'td1'!$KS$72:$LE$146,'información graf'!$G$2,FALSE) -> 0 | AG159: 0
M160: PEV1 | N160: Inspección vigilancia y control a operadores | Z160: Transversales | AB160: =+AB161+AB162+AB163 -> 0 | AC160: =+AC161+AC162+AC163 -> 0 | AD160: =+AD161+AD162+AD163 -> 0 | AE160: =+AE161+AE162+AE163 -> 0 | AF160: =+AF161+AF162+AF163 -> 0 | AG160: 0
M161: PEV2 | N161: Evaluación y monitoreo de la gestión | AA161: PT1 | AB161: =+VLOOKUP($AA161&AB$144,'td1'!$KS$72:$LE$146,'información graf'!$G$2,FALSE) -> 0 | AC161: =+VLOOKUP($AA161&AC$144,'td1'!$KS$72:$LE$146,'información graf'!$G$2,FALSE) -> 0 | AD161: =+VLOOKUP($AA161&AD$144,'td1'!$KS$72:$LE$146,'información graf'!$G$2,FALSE) -> 0 | AE161: =+VLOOKUP($AA161&AE$144,'td1'!$KS$72:$LE$146,'información graf'!$G$2,FALSE) -> 0 | AF161: =+VLOOKUP($AA161&AF$144,'td1'!$KS$72:$LE$146,'información graf'!$G$2,FALSE) -> 0 | AG161: 0
M162: Transversales | AA162: PT2 | AB162: =+VLOOKUP($AA162&AB$144,'td1'!$KS$72:$LE$146,'información graf'!$G$2,FALSE) -> 0 | AC162: =+VLOOKUP($AA162&AC$144,'td1'!$KS$72:$LE$146,'información graf'!$G$2,FALSE) -> 0 | AD162: =+VLOOKUP($AA162&AD$144,'td1'!$KS$72:$LE$146,'información graf'!$G$2,FALSE) -> 0 | AE162: =+VLOOKUP($AA162&AE$144,'td1'!$KS$72:$LE$146,'información graf'!$G$2,FALSE) -> 0 | AF162: =+VLOOKUP($AA162&AF$144,'td1'!$KS$72:$LE$146,'información graf'!$G$2,FALSE) -> 0 | AG162: 0
M163: PT1 | N163: Relación con el ciudadano | AA163: PT3 | AB163: =+VLOOKUP($AA163&AB$144,'td1'!$KS$72:$LE$146,'información graf'!$G$2,FALSE) -> 0 | AC163: =+VLOOKUP($AA163&AC$144,'td1'!$KS$72:$LE$146,'información graf'!$G$2,FALSE) -> 0 | AD163: =+VLOOKUP($AA163&AD$144,'td1'!$KS$72:$LE$146,'información graf'!$G$2,FALSE) -> 0 | AE163: =+VLOOKUP($AA163&AE$144,'td1'!$KS$72:$LE$146,'información graf'!$G$2,FALSE) -> 0 | AF163: =+VLOOKUP($AA163&AF$144,'td1'!$KS$72:$LE$146,'información graf'!$G$2,FALSE) -> 0 | AG163: 0
M164: PT2 | N164: Mejora e Innovación | Z164: Total | AB164: =+AB146+AB149+AB155+AB157+AB160 -> 0 | AC164: =+AC146+AC149+AC155+AC157+AC160 -> 0 | AD164: =+AD146+AD149+AD155+AD157+AD160 -> 0 | AE164: =+AE146+AE149+AE155+AE157+AE160 -> 0 | AF164: =+AF146+AF149+AF155+AF157+AF160 -> 0 | AG164: 0
M165: PT3 | N165: Gestión de la tecnología e información | AB165: =+AB164/$AG$164 ->  | AC165: =+AC164/$AG$164 ->  | AD165: =+AD164/$AG$164 ->  | AE165: =+AE164/$AG$164 ->  | AF165: =+AF164/$AG$164 -> 
Z166: =+"Corte "&$E$6 -> Corte Noviembre
C176: Áreas del CIBF
P179: Áreas | U179: Comportamiento agregado de indicadores
P180: 32 | V180: 7 | W180: optimo | X180: adecuado | Y180: en riesgo | Z180: critico | AA180: NA
AB181: Total
V182: Misionales | W182: =+W183+W184+W185+W186+W187 -> 0 | X182: =+X183+X184+X185+X186+X187 -> 0 | Y182: =+Y183+Y184+Y185+Y186+Y187 -> 0 | Z182: =+Z183+Z184+Z185+Z186+Z187 -> 0 | AA182: =+AA183+AA184+AA185+AA186+AA187 -> 0 | AB182: =+SUM(W182:AA182) -> 0
V183: M1 | W183: =+VLOOKUP($V183&W$180,'td1'!$NE$72:$NQ$181,'información graf'!$G$2,FALSE) -> 0 | X183: =+VLOOKUP($V183&X$180,'td1'!$NE$72:$NQ$181,'información graf'!$G$2,FALSE) -> 0 | Y183: =+VLOOKUP($V183&Y$180,'td1'!$NE$72:$NQ$181,'información graf'!$G$2,FALSE) -> 0 | Z183: =+VLOOKUP($V183&Z$180,'td1'!$NE$72:$NQ$181,'información graf'!$G$2,FALSE) -> 0 | AA183: =+VLOOKUP($V183&AA$180,'td1'!$NE$72:$NQ$181,'información graf'!$G$2,FALSE) -> 0 | AB183: 0
V184: M2 | W184: =+VLOOKUP($V184&W$180,'td1'!$NE$72:$NQ$181,'información graf'!$G$2,FALSE) -> 0 | X184: =+VLOOKUP($V184&X$180,'td1'!$NE$72:$NQ$181,'información graf'!$G$2,FALSE) -> 0 | Y184: =+VLOOKUP($V184&Y$180,'td1'!$NE$72:$NQ$181,'información graf'!$G$2,FALSE) -> 0 | Z184: =+VLOOKUP($V184&Z$180,'td1'!$NE$72:$NQ$181,'información graf'!$G$2,FALSE) -> 0 | AA184: =+VLOOKUP($V184&AA$180,'td1'!$NE$72:$NQ$181,'información graf'!$G$2,FALSE) -> 0 | AB184: 0
V185: M3 | W185: =+VLOOKUP($V185&W$180,'td1'!$NE$72:$NQ$181,'información graf'!$G$2,FALSE) -> 0 | X185: =+VLOOKUP($V185&X$180,'td1'!$NE$72:$NQ$181,'información graf'!$G$2,FALSE) -> 0 | Y185: =+VLOOKUP($V185&Y$180,'td1'!$NE$72:$NQ$181,'información graf'!$G$2,FALSE) -> 0 | Z185: =+VLOOKUP($V185&Z$180,'td1'!$NE$72:$NQ$181,'información graf'!$G$2,FALSE) -> 0 | AA185: =+VLOOKUP($V185&AA$180,'td1'!$NE$72:$NQ$181,'información graf'!$G$2,FALSE) -> 0 | AB185: 0
V186: M4 | W186: =+VLOOKUP($V186&W$180,'td1'!$NE$72:$NQ$181,'información graf'!$G$2,FALSE) -> 0 | X186: =+VLOOKUP($V186&X$180,'td1'!$NE$72:$NQ$181,'información graf'!$G$2,FALSE) -> 0 | Y186: =+VLOOKUP($V186&Y$180,'td1'!$NE$72:$NQ$181,'información graf'!$G$2,FALSE) -> 0 | Z186: =+VLOOKUP($V186&Z$180,'td1'!$NE$72:$NQ$181,'información graf'!$G$2,FALSE) -> 0 | AA186: =+VLOOKUP($V186&AA$180,'td1'!$NE$72:$NQ$181,'información graf'!$G$2,FALSE) -> 0 | AB186: 0
V187: M5 | W187: =+VLOOKUP($V187&W$180,'td1'!$NE$72:$NQ$181,'información graf'!$G$2,FALSE) -> 0 | X187: =+VLOOKUP($V187&X$180,'td1'!$NE$72:$NQ$181,'información graf'!$G$2,FALSE) -> 0 | Y187: =+VLOOKUP($V187&Y$180,'td1'!$NE$72:$NQ$181,'información graf'!$G$2,FALSE) -> 0 | Z187: =+VLOOKUP($V187&Z$180,'td1'!$NE$72:$NQ$181,'información graf'!$G$2,FALSE) -> 0 | AA187: =+VLOOKUP($V187&AA$180,'td1'!$NE$72:$NQ$181,'información graf'!$G$2,FALSE) -> 0 | AB187: 0
V188: Apoyo | W188: =+SUM(W189:W199) -> 0 | X188: 0 | Y188: 0 | Z188: 0 | AA188: 0 | AB188: 0
V189: A1 | W189: =+VLOOKUP($V189&W$180,'td1'!$NE$72:$NQ$181,'información graf'!$G$2,FALSE) -> 0 | X189: =+VLOOKUP($V189&X$180,'td1'!$NE$72:$NQ$181,'información graf'!$G$2,FALSE) -> 0 | Y189: =+VLOOKUP($V189&Y$180,'td1'!$NE$72:$NQ$181,'información graf'!$G$2,FALSE) -> 0 | Z189: =+VLOOKUP($V189&Z$180,'td1'!$NE$72:$NQ$181,'información graf'!$G$2,FALSE) -> 0 | AA189: =+VLOOKUP($V189&AA$180,'td1'!$NE$72:$NQ$181,'información graf'!$G$2,FALSE) -> 0 | AB189: =+SUM(W189:AA189) -> 0
V190: A2 | W190: =+VLOOKUP($V190&W$180,'td1'!$NE$72:$NQ$181,'información graf'!$G$2,FALSE) -> 0 | X190: =+VLOOKUP($V190&X$180,'td1'!$NE$72:$NQ$181,'información graf'!$G$2,FALSE) -> 0 | Y190: =+VLOOKUP($V190&Y$180,'td1'!$NE$72:$NQ$181,'información graf'!$G$2,FALSE) -> 0 | Z190: =+VLOOKUP($V190&Z$180,'td1'!$NE$72:$NQ$181,'información graf'!$G$2,FALSE) -> 0 | AA190: =+VLOOKUP($V190&AA$180,'td1'!$NE$72:$NQ$181,'información graf'!$G$2,FALSE) -> 0 | AB190: 0
V191: A4 | W191: =+VLOOKUP($V191&W$180,'td1'!$NE$72:$NQ$181,'información graf'!$G$2,FALSE) -> 0 | X191: =+VLOOKUP($V191&X$180,'td1'!$NE$72:$NQ$181,'información graf'!$G$2,FALSE) -> 0 | Y191: =+VLOOKUP($V191&Y$180,'td1'!$NE$72:$NQ$181,'información graf'!$G$2,FALSE) -> 0 | Z191: =+VLOOKUP($V191&Z$180,'td1'!$NE$72:$NQ$181,'información graf'!$G$2,FALSE) -> 0 | AA191: =+VLOOKUP($V191&AA$180,'td1'!$NE$72:$NQ$181,'información graf'!$G$2,FALSE) -> 0 | AB191: 0
V192: A5 | W192: =+VLOOKUP($V192&W$180,'td1'!$NE$72:$NQ$181,'información graf'!$G$2,FALSE) -> 0 | X192: =+VLOOKUP($V192&X$180,'td1'!$NE$72:$NQ$181,'información graf'!$G$2,FALSE) -> 0 | Y192: =+VLOOKUP($V192&Y$180,'td1'!$NE$72:$NQ$181,'información graf'!$G$2,FALSE) -> 0 | Z192: =+VLOOKUP($V192&Z$180,'td1'!$NE$72:$NQ$181,'información graf'!$G$2,FALSE) -> 0 | AA192: =+VLOOKUP($V192&AA$180,'td1'!$NE$72:$NQ$181,'información graf'!$G$2,FALSE) -> 0 | AB192: 0
V193: A6 | W193: =+VLOOKUP($V193&W$180,'td1'!$NE$72:$NQ$181,'información graf'!$G$2,FALSE) -> 0 | X193: =+VLOOKUP($V193&X$180,'td1'!$NE$72:$NQ$181,'información graf'!$G$2,FALSE) -> 0 | Y193: =+VLOOKUP($V193&Y$180,'td1'!$NE$72:$NQ$181,'información graf'!$G$2,FALSE) -> 0 | Z193: =+VLOOKUP($V193&Z$180,'td1'!$NE$72:$NQ$181,'información graf'!$G$2,FALSE) -> 0 | AA193: =+VLOOKUP($V193&AA$180,'td1'!$NE$72:$NQ$181,'información graf'!$G$2,FALSE) -> 0 | AB193: 0
V194: A7 | W194: =+VLOOKUP($V194&W$180,'td1'!$NE$72:$NQ$181,'información graf'!$G$2,FALSE) -> 0 | X194: =+VLOOKUP($V194&X$180,'td1'!$NE$72:$NQ$181,'información graf'!$G$2,FALSE) -> 0 | Y194: =+VLOOKUP($V194&Y$180,'td1'!$NE$72:$NQ$181,'información graf'!$G$2,FALSE) -> 0 | Z194: =+VLOOKUP($V194&Z$180,'td1'!$NE$72:$NQ$181,'información graf'!$G$2,FALSE) -> 0 | AA194: =+VLOOKUP($V194&AA$180,'td1'!$NE$72:$NQ$181,'información graf'!$G$2,FALSE) -> 0 | AB194: 0
V195: A10 | W195: =+VLOOKUP($V195&W$180,'td1'!$NE$72:$NQ$181,'información graf'!$G$2,FALSE) -> 0 | X195: =+VLOOKUP($V195&X$180,'td1'!$NE$72:$NQ$181,'información graf'!$G$2,FALSE) -> 0 | Y195: =+VLOOKUP($V195&Y$180,'td1'!$NE$72:$NQ$181,'información graf'!$G$2,FALSE) -> 0 | Z195: =+VLOOKUP($V195&Z$180,'td1'!$NE$72:$NQ$181,'información graf'!$G$2,FALSE) -> 0 | AA195: =+VLOOKUP($V195&AA$180,'td1'!$NE$72:$NQ$181,'información graf'!$G$2,FALSE) -> 0 | AB195: 0
V196: A11 | W196: =+VLOOKUP($V196&W$180,'td1'!$NE$72:$NQ$181,'información graf'!$G$2,FALSE) -> 0 | X196: =+VLOOKUP($V196&X$180,'td1'!$NE$72:$NQ$181,'información graf'!$G$2,FALSE) -> 0 | Y196: =+VLOOKUP($V196&Y$180,'td1'!$NE$72:$NQ$181,'información graf'!$G$2,FALSE) -> 0 | Z196: =+VLOOKUP($V196&Z$180,'td1'!$NE$72:$NQ$181,'información graf'!$G$2,FALSE) -> 0 | AA196: =+VLOOKUP($V196&AA$180,'td1'!$NE$72:$NQ$181,'información graf'!$G$2,FALSE) -> 0 | AB196: 0
V197: A13 | W197: =+VLOOKUP($V197&W$180,'td1'!$NE$72:$NQ$181,'información graf'!$G$2,FALSE) -> 0 | X197: =+VLOOKUP($V197&X$180,'td1'!$NE$72:$NQ$181,'información graf'!$G$2,FALSE) -> 0 | Y197: =+VLOOKUP($V197&Y$180,'td1'!$NE$72:$NQ$181,'información graf'!$G$2,FALSE) -> 0 | Z197: =+VLOOKUP($V197&Z$180,'td1'!$NE$72:$NQ$181,'información graf'!$G$2,FALSE) -> 0 | AA197: =+VLOOKUP($V197&AA$180,'td1'!$NE$72:$NQ$181,'información graf'!$G$2,FALSE) -> 0 | AB197: 0
V198: A14 | W198: =+VLOOKUP($V198&W$180,'td1'!$NE$72:$NQ$181,'información graf'!$G$2,FALSE) -> 0 | X198: =+VLOOKUP($V198&X$180,'td1'!$NE$72:$NQ$181,'información graf'!$G$2,FALSE) -> 0 | Y198: =+VLOOKUP($V198&Y$180,'td1'!$NE$72:$NQ$181,'información graf'!$G$2,FALSE) -> 0 | Z198: =+VLOOKUP($V198&Z$180,'td1'!$NE$72:$NQ$181,'información graf'!$G$2,FALSE) -> 0 | AA198: =+VLOOKUP($V198&AA$180,'td1'!$NE$72:$NQ$181,'información graf'!$G$2,FALSE) -> 0 | AB198: 0
V199: A15 | W199: =+VLOOKUP($V199&W$180,'td1'!$NE$72:$NQ$181,'información graf'!$G$2,FALSE) -> 0 | X199: =+VLOOKUP($V199&X$180,'td1'!$NE$72:$NQ$181,'información graf'!$G$2,FALSE) -> 0 | Y199: =+VLOOKUP($V199&Y$180,'td1'!$NE$72:$NQ$181,'información graf'!$G$2,FALSE) -> 0 | Z199: =+VLOOKUP($V199&Z$180,'td1'!$NE$72:$NQ$181,'información graf'!$G$2,FALSE) -> 0 | AA199: =+VLOOKUP($V199&AA$180,'td1'!$NE$72:$NQ$181,'información graf'!$G$2,FALSE) -> 0 | AB199: 0
U200: Total | V200: Total | W200: =+W182+W188 -> 0 | X200: 0 | Y200: 0 | Z200: 0 | AA200: 0 | AB200: 0
W201: =+W200/$AB$200 ->  | X201: =+X200/$AB$200 ->  | Y201: =+Y200/$AB$200 ->  | Z201: =+Z200/$AB$200 ->  | AA201: =+AA200/$AB$200 -> 
U202: =+"Corte "&$E$6 -> Corte Noviembre
C214: Sistema Integrado de Gestión - Objetivos SIGE
Q215: SIGE1 | R215: Ampliar cobertura y mejorar calidad en la atención integral a la Primera Infancia.
Q216: SIGE2 | R216: Promover los derechos de los NNA y prevenir los riesgos o amenazas de vulneración de los mismos
Q217: SIGE3 | R217: Fortalecer en las familias y comunidades, capacidades que promuevan su desarrollo, fortalezcan sus vínculos de cuidado mutuo y prevengan la violencia intrafamiliar y de género.
Q219: SIGE4 | R219: Promover la seguridad alimentaria y nutricional en el desarrollo de la primera infancia, los NNA y la familia.
Q220: SIGE5 | R220: Garantizar la protección integral de los NNA en coordinación con las instancias del SNBF.
Q221: SIGE6 | R221: Lograr una adecuada y eficiente gestión institucional a través de la articulación entre servidores, áreas y niveles territoriales; el apoyo administrativo a los procesos misionales, la apropiación de una cultura de la evaluación y la optimización del uso de los recursos
Q223: SIGE7 | R223: Promover condiciones laborales que hagan del ICBF el mejor lugar para trabajar.
Q224: SIGE8 | R224: Reducir los impactos ambientales generados por nuestra actividad.
Q225: SIGE9 | R225: Impulsar una cultura de gestión de la calidad y el mejoramiento continuo.
Q226: SIGE10 | R226: Gestionar el conocimiento institucional, con sistemas de información confiables, integrados y disponibles.
R228: Objetivos SIGE
X230: optimo | Y230: adecuado | Z230: en riesgo | AA230: critico | AB230: NA
W231: Comportamiento agregado de indicadores
AC232: Total
W233: SIGE1 | X233: =+VLOOKUP($W233&X$230,'td1'!$MO$72:$NA$121,'información graf'!$G$2,FALSE) -> 0 | Y233: =+VLOOKUP($W233&Y$230,'td1'!$MO$72:$NA$121,'información graf'!$G$2,FALSE) -> 0 | Z233: =+VLOOKUP($W233&Z$230,'td1'!$MO$72:$NA$121,'información graf'!$G$2,FALSE) -> 0 | AA233: =+VLOOKUP($W233&AA$230,'td1'!$MO$72:$NA$121,'información graf'!$G$2,FALSE) -> 0 | AB233: =+VLOOKUP($W233&AB$230,'td1'!$MO$72:$NA$121,'información graf'!$G$2,FALSE) -> 0 | AC233: =+SUM(X233:AB233) -> 0
W234: SIGE2 | X234: =+VLOOKUP($W234&X$230,'td1'!$MO$72:$NA$121,'información graf'!$G$2,FALSE) -> 0 | Y234: =+VLOOKUP($W234&Y$230,'td1'!$MO$72:$NA$121,'información graf'!$G$2,FALSE) -> 0 | Z234: =+VLOOKUP($W234&Z$230,'td1'!$MO$72:$NA$121,'información graf'!$G$2,FALSE) -> 0 | AA234: =+VLOOKUP($W234&AA$230,'td1'!$MO$72:$NA$121,'información graf'!$G$2,FALSE) -> 0 | AB234: =+VLOOKUP($W234&AB$230,'td1'!$MO$72:$NA$121,'información graf'!$G$2,FALSE) -> 0 | AC234: 0
W235: SIGE3 | X235: =+VLOOKUP($W235&X$230,'td1'!$MO$72:$NA$121,'información graf'!$G$2,FALSE) -> 0 | Y235: =+VLOOKUP($W235&Y$230,'td1'!$MO$72:$NA$121,'información graf'!$G$2,FALSE) -> 0 | Z235: =+VLOOKUP($W235&Z$230,'td1'!$MO$72:$NA$121,'información graf'!$G$2,FALSE) -> 0 | AA235: =+VLOOKUP($W235&AA$230,'td1'!$MO$72:$NA$121,'información graf'!$G$2,FALSE) -> 0 | AB235: =+VLOOKUP($W235&AB$230,'td1'!$MO$72:$NA$121,'información graf'!$G$2,FALSE) -> 0 | AC235: 0
W236: SIGE4 | X236: =+VLOOKUP($W236&X$230,'td1'!$MO$72:$NA$121,'información graf'!$G$2,FALSE) -> 0 | Y236: =+VLOOKUP($W236&Y$230,'td1'!$MO$72:$NA$121,'información graf'!$G$2,FALSE) -> 0 | Z236: =+VLOOKUP($W236&Z$230,'td1'!$MO$72:$NA$121,'información graf'!$G$2,FALSE) -> 0 | AA236: =+VLOOKUP($W236&AA$230,'td1'!$MO$72:$NA$121,'información graf'!$G$2,FALSE) -> 0 | AB236: =+VLOOKUP($W236&AB$230,'td1'!$MO$72:$NA$121,'información graf'!$G$2,FALSE) -> 0 | AC236: 0
W237: SIGE5 | X237: =+VLOOKUP($W237&X$230,'td1'!$MO$72:$NA$121,'información graf'!$G$2,FALSE) -> 0 | Y237: =+VLOOKUP($W237&Y$230,'td1'!$MO$72:$NA$121,'información graf'!$G$2,FALSE) -> 0 | Z237: =+VLOOKUP($W237&Z$230,'td1'!$MO$72:$NA$121,'información graf'!$G$2,FALSE) -> 0 | AA237: =+VLOOKUP($W237&AA$230,'td1'!$MO$72:$NA$121,'información graf'!$G$2,FALSE) -> 0 | AB237: =+VLOOKUP($W237&AB$230,'td1'!$MO$72:$NA$121,'información graf'!$G$2,FALSE) -> 0 | AC237: 0
W238: SIGE6 | X238: =+VLOOKUP($W238&X$230,'td1'!$MO$72:$NA$121,'información graf'!$G$2,FALSE) -> 0 | Y238: =+VLOOKUP($W238&Y$230,'td1'!$MO$72:$NA$121,'información graf'!$G$2,FALSE) -> 0 | Z238: =+VLOOKUP($W238&Z$230,'td1'!$MO$72:$NA$121,'información graf'!$G$2,FALSE) -> 0 | AA238: =+VLOOKUP($W238&AA$230,'td1'!$MO$72:$NA$121,'información graf'!$G$2,FALSE) -> 0 | AB238: =+VLOOKUP($W238&AB$230,'td1'!$MO$72:$NA$121,'información graf'!$G$2,FALSE) -> 0 | AC238: 0
W239: SIGE7 | X239: =+VLOOKUP($W239&X$230,'td1'!$MO$72:$NA$121,'información graf'!$G$2,FALSE) -> 0 | Y239: =+VLOOKUP($W239&Y$230,'td1'!$MO$72:$NA$121,'información graf'!$G$2,FALSE) -> 0 | Z239: =+VLOOKUP($W239&Z$230,'td1'!$MO$72:$NA$121,'información graf'!$G$2,FALSE) -> 0 | AA239: =+VLOOKUP($W239&AA$230,'td1'!$MO$72:$NA$121,'información graf'!$G$2,FALSE) -> 0 | AB239: =+VLOOKUP($W239&AB$230,'td1'!$MO$72:$NA$121,'información graf'!$G$2,FALSE) -> 0 | AC239: 0
W240: SIGE8 | X240: =+VLOOKUP($W240&X$230,'td1'!$MO$72:$NA$121,'información graf'!$G$2,FALSE) -> 0 | Y240: =+VLOOKUP($W240&Y$230,'td1'!$MO$72:$NA$121,'información graf'!$G$2,FALSE) -> 0 | Z240: =+VLOOKUP($W240&Z$230,'td1'!$MO$72:$NA$121,'información graf'!$G$2,FALSE) -> 0 | AA240: =+VLOOKUP($W240&AA$230,'td1'!$MO$72:$NA$121,'información graf'!$G$2,FALSE) -> 0 | AB240: =+VLOOKUP($W240&AB$230,'td1'!$MO$72:$NA$121,'información graf'!$G$2,FALSE) -> 0 | AC240: 0
W241: SIGE9 | X241: =+VLOOKUP($W241&X$230,'td1'!$MO$72:$NA$121,'información graf'!$G$2,FALSE) -> 0 | Y241: =+VLOOKUP($W241&Y$230,'td1'!$MO$72:$NA$121,'información graf'!$G$2,FALSE) -> 0 | Z241: =+VLOOKUP($W241&Z$230,'td1'!$MO$72:$NA$121,'información graf'!$G$2,FALSE) -> 0 | AA241: =+VLOOKUP($W241&AA$230,'td1'!$MO$72:$NA$121,'información graf'!$G$2,FALSE) -> 0 | AB241: =+VLOOKUP($W241&AB$230,'td1'!$MO$72:$NA$121,'información graf'!$G$2,FALSE) -> 0 | AC241: 0
W242: Total | X242: =SUM(X233:X241) -> 0 | Y242: 0 | Z242: 0 | AA242: 0 | AB242: 0 | AC242: 0
X243: =+X242/$AC$242 ->  | Y243: =+Y242/$AC$242 ->  | Z243: =+Z242/$AC$242 ->  | AA243: =+AA242/$AC$242 ->  | AB243: =+AB242/$AC$242 -> 

Sheet zonal
C2: TABLERO DE CONTROL 2016 INSTITUTO COLOMBIANO DE BIENESTAR FAMILIAR ICBF SEGUIMIENTO TABLERO DE CONTROL - ANÁLISIS GENERAL
C3: =+"Regional "&VLOOKUP(Menu!C37,referencias!$R$2:$T$34,3,FALSE)&" - "&Menu!G49 -> 
C6: Mes analisis | E6: =+Menu!C7 -> Noviembre | S6: Volver al menú
D7: =+VLOOKUP(E6,referencias!A131:C142,3,FALSE) -> Nov
S8: Revisar tablero de control del centro zonal
D12: Comportamiento centros zonales
I13: =+"Comportamiento mes a mes - "&Menu!G49 -> Comportamiento mes a mes -
D14: =Menu!C37 -> 0 | V14: =+"Seguimiento mes a mes centros zonales - "&regional!C3 -> 
V15: 2 | W15: 3 | X15: 4 | Y15: 5 | Z15: 6 | AA15: 7 | AB15: 8 | AC15: 9 | AD15: 10 | AE15: 11 | AF15: 12 | AG15: 13
D16: # | E16: Centro zonal | G16: % | V16: Ene | W16: Feb | X16: Mar | Y16: Abr | Z16: May | AA16: Jun | AB16: Jul | AC16: Agt | AD16: Sep | AE16: Oct | AF16: Nov | AG16: Dic
D17: =+regional!L41 -> 1 | E17: =+regional!M41 ->  | G17: =+regional!O41 ->  | U17: =+regional!M41 ->  | V17: =IFERROR(VLOOKUP("tc."&$AH17,'td1'!$AC$2573:$AO$2781,V$15,FALSE),"") ->  | W17: =IFERROR(VLOOKUP("tc."&$AH17,'td1'!$AC$2573:$AO$2781,W$15,FALSE),"") ->  | X17: =IFERROR(VLOOKUP("tc."&$AH17,'td1'!$AC$2573:$AO$2781,X$15,FALSE),"") ->  | Y17: =IFERROR(VLOOKUP("tc."&$AH17,'td1'!$AC$2573:$AO$2781,Y$15,FALSE),"") ->  | Z17: =IFERROR(VLOOKUP("tc."&$AH17,'td1'!$AC$2573:$AO$2781,Z$15,FALSE),"") ->  | AA17: =IFERROR(VLOOKUP("tc."&$AH17,'td1'!$AC$2573:$AO$2781,AA$15,FALSE),"") ->  | AB17: =IFERROR(VLOOKUP("tc."&$AH17,'td1'!$AC$2573:$AO$2781,AB$15,FALSE),"") ->  | AC17: =IFERROR(VLOOKUP("tc."&$AH17,'td1'!$AC$2573:$AO$2781,AC$15,FALSE),"") ->  | AD17: =IFERROR(VLOOKUP("tc."&$AH17,'td1'!$AC$2573:$AO$2781,AD$15,FALSE),"") ->  | AE17: =IFERROR(VLOOKUP("tc."&$AH17,'td1'!$AC$2573:$AO$2781,AE$15,FALSE),"") ->  | AF17: =IFERROR(VLOOKUP("tc."&$AH17,'td1'!$AC$2573:$AO$2781,AF$15,FALSE),"") ->  | AG17: =IFERROR(VLOOKUP("tc."&$AH17,'td1'!$AC$2573:$AO$2781,AG$15,FALSE),"") ->  | AH17: =+regional!P41 -> 
D18: =+regional!L42 ->  | E18: =+regional!M42 ->  | G18: =+regional!O42 ->  | U18: =+regional!M42 ->  | V18: =IFERROR(VLOOKUP("tc."&$AH18,'td1'!$AC$2573:$AO$2781,V$15,FALSE),"") ->  | W18: =IFERROR(VLOOKUP("tc."&$AH18,'td1'!$AC$2573:$AO$2781,W$15,FALSE),"") ->  | X18: =IFERROR(VLOOKUP("tc."&$AH18,'td1'!$AC$2573:$AO$2781,X$15,FALSE),"") ->  | Y18: =IFERROR(VLOOKUP("tc."&$AH18,'td1'!$AC$2573:$AO$2781,Y$15,FALSE),"") ->  | Z18: =IFERROR(VLOOKUP("tc."&$AH18,'td1'!$AC$2573:$AO$2781,Z$15,FALSE),"") ->  | AA18: =IFERROR(VLOOKUP("tc."&$AH18,'td1'!$AC$2573:$AO$2781,AA$15,FALSE),"") ->  | AB18: =IFERROR(VLOOKUP("tc."&$AH18,'td1'!$AC$2573:$AO$2781,AB$15,FALSE),"") ->  | AC18: =IFERROR(VLOOKUP("tc."&$AH18,'td1'!$AC$2573:$AO$2781,AC$15,FALSE),"") ->  | AD18: =IFERROR(VLOOKUP("tc."&$AH18,'td1'!$AC$2573:$AO$2781,AD$15,FALSE),"") ->  | AE18: =IFERROR(VLOOKUP("tc."&$AH18,'td1'!$AC$2573:$AO$2781,AE$15,FALSE),"") ->  | AF18: =IFERROR(VLOOKUP("tc."&$AH18,'td1'!$AC$2573:$AO$2781,AF$15,FALSE),"") ->  | AG18: =IFERROR(VLOOKUP("tc."&$AH18,'td1'!$AC$2573:$AO$2781,AG$15,FALSE),"") ->  | AH18: =+regional!P42 -> 
D19: =+regional!L43 ->  | E19: =+regional!M43 ->  | G19: =+regional!O43 ->  | U19: =+regional!M43 ->  | V19: =IFERROR(VLOOKUP("tc."&$AH19,'td1'!$AC$2573:$AO$2781,V$15,FALSE),"") ->  | W19: =IFERROR(VLOOKUP("tc."&$AH19,'td1'!$AC$2573:$AO$2781,W$15,FALSE),"") ->  | X19: =IFERROR(VLOOKUP("tc."&$AH19,'td1'!$AC$2573:$AO$2781,X$15,FALSE),"") ->  | Y19: =IFERROR(VLOOKUP("tc."&$AH19,'td1'!$AC$2573:$AO$2781,Y$15,FALSE),"") ->  | Z19: =IFERROR(VLOOKUP("tc."&$AH19,'td1'!$AC$2573:$AO$2781,Z$15,FALSE),"") ->  | AA19: =IFERROR(VLOOKUP("tc."&$AH19,'td1'!$AC$2573:$AO$2781,AA$15,FALSE),"") ->  | AB19: =IFERROR(VLOOKUP("tc."&$AH19,'td1'!$AC$2573:$AO$2781,AB$15,FALSE),"") ->  | AC19: =IFERROR(VLOOKUP("tc."&$AH19,'td1'!$AC$2573:$AO$2781,AC$15,FALSE),"") ->  | AD19: =IFERROR(VLOOKUP("tc."&$AH19,'td1'!$AC$2573:$AO$2781,AD$15,FALSE),"") ->  | AE19: =IFERROR(VLOOKUP("tc."&$AH19,'td1'!$AC$2573:$AO$2781,AE$15,FALSE),"") ->  | AF19: =IFERROR(VLOOKUP("tc."&$AH19,'td1'!$AC$2573:$AO$2781,AF$15,FALSE),"") ->  | AG19: =IFERROR(VLOOKUP("tc."&$AH19,'td1'!$AC$2573:$AO$2781,AG$15,FALSE),"") ->  | AH19: =+regional!P43 -> 
D20: =+regional!L44 ->  | E20: =+regional!M44 ->  | G20: =+regional!O44 ->  | U20: =+regional!M44 ->  | V20: =IFERROR(VLOOKUP("tc."&$AH20,'td1'!$AC$2573:$AO$2781,V$15,FALSE),"") ->  | W20: =IFERROR(VLOOKUP("tc."&$AH20,'td1'!$AC$2573:$AO$2781,W$15,FALSE),"") ->  | X20: =IFERROR(VLOOKUP("tc."&$AH20,'td1'!$AC$2573:$AO$2781,X$15,FALSE),"") ->  | Y20: =IFERROR(VLOOKUP("tc."&$AH20,'td1'!$AC$2573:$AO$2781,Y$15,FALSE),"") ->  | Z20: =IFERROR(VLOOKUP("tc."&$AH20,'td1'!$AC$2573:$AO$2781,Z$15,FALSE),"") ->  | AA20: =IFERROR(VLOOKUP("tc."&$AH20,'td1'!$AC$2573:$AO$2781,AA$15,FALSE),"") ->  | AB20: =IFERROR(VLOOKUP("tc."&$AH20,'td1'!$AC$2573:$AO$2781,AB$15,FALSE),"") ->  | AC20: =IFERROR(VLOOKUP("tc."&$AH20,'td1'!$AC$2573:$AO$2781,AC$15,FALSE),"") ->  | AD20: =IFERROR(VLOOKUP("tc."&$AH20,'td1'!$AC$2573:$AO$2781,AD$15,FALSE),"") ->  | AE20: =IFERROR(VLOOKUP("tc."&$AH20,'td1'!$AC$2573:$AO$2781,AE$15,FALSE),"") ->  | AF20: =IFERROR(VLOOKUP("tc."&$AH20,'td1'!$AC$2573:$AO$2781,AF$15,FALSE),"") ->  | AG20: =IFERROR(VLOOKUP("tc."&$AH20,'td1'!$AC$2573:$AO$2781,AG$15,FALSE),"") ->  | AH20: =+regional!P44 -> 
D21: =+regional!L45 ->  | E21: =+regional!M45 ->  | G21: =+regional!O45 ->  | U21: =+regional!M45 ->  | V21: =IFERROR(VLOOKUP("tc."&$AH21,'td1'!$AC$2573:$AO$2781,V$15,FALSE),"") ->  | W21: =IFERROR(VLOOKUP("tc."&$AH21,'td1'!$AC$2573:$AO$2781,W$15,FALSE),"") ->  | X21: =IFERROR(VLOOKUP("tc."&$AH21,'td1'!$AC$2573:$AO$2781,X$15,FALSE),"") ->  | Y21: =IFERROR(VLOOKUP("tc."&$AH21,'td1'!$AC$2573:$AO$2781,Y$15,FALSE),"") ->  | Z21: =IFERROR(VLOOKUP("tc."&$AH21,'td1'!$AC$2573:$AO$2781,Z$15,FALSE),"") ->  | AA21: =IFERROR(VLOOKUP("tc."&$AH21,'td1'!$AC$2573:$AO$2781,AA$15,FALSE),"") ->  | AB21: =IFERROR(VLOOKUP("tc."&$AH21,'td1'!$AC$2573:$AO$2781,AB$15,FALSE),"") ->  | AC21: =IFERROR(VLOOKUP("tc."&$AH21,'td1'!$AC$2573:$AO$2781,AC$15,FALSE),"") ->  | AD21: =IFERROR(VLOOKUP("tc."&$AH21,'td1'!$AC$2573:$AO$2781,AD$15,FALSE),"") ->  | AE21: =IFERROR(VLOOKUP("tc."&$AH21,'td1'!$AC$2573:$AO$2781,AE$15,FALSE),"") ->  | AF21: =IFERROR(VLOOKUP("tc."&$AH21,'td1'!$AC$2573:$AO$2781,AF$15,FALSE),"") ->  | AG21: =IFERROR(VLOOKUP("tc."&$AH21,'td1'!$AC$2573:$AO$2781,AG$15,FALSE),"") ->  | AH21: =+regional!P45 -> 
D22: =+regional!L46 ->  | E22: =+regional!M46 ->  | G22: =+regional!O46 ->  | U22: =+regional!M46 ->  | V22: =IFERROR(VLOOKUP("tc."&$AH22,'td1'!$AC$2573:$AO$2781,V$15,FALSE),"") ->  | W22: =IFERROR(VLOOKUP("tc."&$AH22,'td1'!$AC$2573:$AO$2781,W$15,FALSE),"") ->  | X22: =IFERROR(VLOOKUP("tc."&$AH22,'td1'!$AC$2573:$AO$2781,X$15,FALSE),"") ->  | Y22: =IFERROR(VLOOKUP("tc."&$AH22,'td1'!$AC$2573:$AO$2781,Y$15,FALSE),"") ->  | Z22: =IFERROR(VLOOKUP("tc."&$AH22,'td1'!$AC$2573:$AO$2781,Z$15,FALSE),"") ->  | AA22: =IFERROR(VLOOKUP("tc."&$AH22,'td1'!$AC$2573:$AO$2781,AA$15,FALSE),"") ->  | AB22: =IFERROR(VLOOKUP("tc."&$AH22,'td1'!$AC$2573:$AO$2781,AB$15,FALSE),"") ->  | AC22: =IFERROR(VLOOKUP("tc."&$AH22,'td1'!$AC$2573:$AO$2781,AC$15,FALSE),"") ->  | AD22: =IFERROR(VLOOKUP("tc."&$AH22,'td1'!$AC$2573:$AO$2781,AD$15,FALSE),"") ->  | AE22: =IFERROR(VLOOKUP("tc."&$AH22,'td1'!$AC$2573:$AO$2781,AE$15,FALSE),"") ->  | AF22: =IFERROR(VLOOKUP("tc."&$AH22,'td1'!$AC$2573:$AO$2781,AF$15,FALSE),"") ->  | AG22: =IFERROR(VLOOKUP("tc."&$AH22,'td1'!$AC$2573:$AO$2781,AG$15,FALSE),"") ->  | AH22: =+regional!P46 -> 
D23: =+regional!L47 ->  | E23: =+regional!M47 ->  | G23: =+regional!O47 ->  | U23: =+regional!M47 ->  | V23: =IFERROR(VLOOKUP("tc."&$AH23,'td1'!$AC$2573:$AO$2781,V$15,FALSE),"") ->  | W23: =IFERROR(VLOOKUP("tc."&$AH23,'td1'!$AC$2573:$AO$2781,W$15,FALSE),"") ->  | X23: =IFERROR(VLOOKUP("tc."&$AH23,'td1'!$AC$2573:$AO$2781,X$15,FALSE),"") ->  | Y23: =IFERROR(VLOOKUP("tc."&$AH23,'td1'!$AC$2573:$AO$2781,Y$15,FALSE),"") ->  | Z23: =IFERROR(VLOOKUP("tc."&$AH23,'td1'!$AC$2573:$AO$2781,Z$15,FALSE),"") ->  | AA23: =IFERROR(VLOOKUP("tc."&$AH23,'td1'!$AC$2573:$AO$2781,AA$15,FALSE),"") ->  | AB23: =IFERROR(VLOOKUP("tc."&$AH23,'td1'!$AC$2573:$AO$2781,AB$15,FALSE),"") ->  | AC23: =IFERROR(VLOOKUP("tc."&$AH23,'td1'!$AC$2573:$AO$2781,AC$15,FALSE),"") ->  | AD23: =IFERROR(VLOOKUP("tc."&$AH23,'td1'!$AC$2573:$AO$2781,AD$15,FALSE),"") ->  | AE23: =IFERROR(VLOOKUP("tc."&$AH23,'td1'!$AC$2573:$AO$2781,AE$15,FALSE),"") ->  | AF23: =IFERROR(VLOOKUP("tc."&$AH23,'td1'!$AC$2573:$AO$2781,AF$15,FALSE),"") ->  | AG23: =IFERROR(VLOOKUP("tc."&$AH23,'td1'!$AC$2573:$AO$2781,AG$15,FALSE),"") ->  | AH23: =+regional!P47 -> 
D24: =+regional!L48 ->  | E24: =+regional!M48 ->  | G24: =+regional!O48 ->  | U24: =+regional!M48 ->  | V24: =IFERROR(VLOOKUP("tc."&$AH24,'td1'!$AC$2573:$AO$2781,V$15,FALSE),"") ->  | W24: =IFERROR(VLOOKUP("tc."&$AH24,'td1'!$AC$2573:$AO$2781,W$15,FALSE),"") ->  | X24: =IFERROR(VLOOKUP("tc."&$AH24,'td1'!$AC$2573:$AO$2781,X$15,FALSE),"") ->  | Y24: =IFERROR(VLOOKUP("tc."&$AH24,'td1'!$AC$2573:$AO$2781,Y$15,FALSE),"") ->  | Z24: =IFERROR(VLOOKUP("tc."&$AH24,'td1'!$AC$2573:$AO$2781,Z$15,FALSE),"") ->  | AA24: =IFERROR(VLOOKUP("tc."&$AH24,'td1'!$AC$2573:$AO$2781,AA$15,FALSE),"") ->  | AB24: =IFERROR(VLOOKUP("tc."&$AH24,'td1'!$AC$2573:$AO$2781,AB$15,FALSE),"") ->  | AC24: =IFERROR(VLOOKUP("tc."&$AH24,'td1'!$AC$2573:$AO$2781,AC$15,FALSE),"") ->  | AD24: =IFERROR(VLOOKUP("tc."&$AH24,'td1'!$AC$2573:$AO$2781,AD$15,FALSE),"") ->  | AE24: =IFERROR(VLOOKUP("tc."&$AH24,'td1'!$AC$2573:$AO$2781,AE$15,FALSE),"") ->  | AF24: =IFERROR(VLOOKUP("tc."&$AH24,'td1'!$AC$2573:$AO$2781,AF$15,FALSE),"") ->  | AG24: =IFERROR(VLOOKUP("tc."&$AH24,'td1'!$AC$2573:$AO$2781,AG$15,FALSE),"") ->  | AH24: =+regional!P48 -> 
D25: =+regional!L49 ->  | E25: =+regional!M49 ->  | G25: =+regional!O49 ->  | U25: =+regional!M49 ->  | V25: =IFERROR(VLOOKUP("tc."&$AH25,'td1'!$AC$2573:$AO$2781,V$15,FALSE),"") ->  | W25: =IFERROR(VLOOKUP("tc."&$AH25,'td1'!$AC$2573:$AO$2781,W$15,FALSE),"") ->  | X25: =IFERROR(VLOOKUP("tc."&$AH25,'td1'!$AC$2573:$AO$2781,X$15,FALSE),"") ->  | Y25: =IFERROR(VLOOKUP("tc."&$AH25,'td1'!$AC$2573:$AO$2781,Y$15,FALSE),"") ->  | Z25: =IFERROR(VLOOKUP("tc."&$AH25,'td1'!$AC$2573:$AO$2781,Z$15,FALSE),"") ->  | AA25: =IFERROR(VLOOKUP("tc."&$AH25,'td1'!$AC$2573:$AO$2781,AA$15,FALSE),"") ->  | AB25: =IFERROR(VLOOKUP("tc."&$AH25,'td1'!$AC$2573:$AO$2781,AB$15,FALSE),"") ->  | AC25: =IFERROR(VLOOKUP("tc."&$AH25,'td1'!$AC$2573:$AO$2781,AC$15,FALSE),"") ->  | AD25: =IFERROR(VLOOKUP("tc."&$AH25,'td1'!$AC$2573:$AO$2781,AD$15,FALSE),"") ->  | AE25: =IFERROR(VLOOKUP("tc."&$AH25,'td1'!$AC$2573:$AO$2781,AE$15,FALSE),"") ->  | AF25: =IFERROR(VLOOKUP("tc."&$AH25,'td1'!$AC$2573:$AO$2781,AF$15,FALSE),"") ->  | AG25: =IFERROR(VLOOKUP("tc."&$AH25,'td1'!$AC$2573:$AO$2781,AG$15,FALSE),"") ->  | AH25: =+regional!P49 -> 
D26: =+regional!L50 ->  | E26: =+regional!M50 ->  | G26: =+regional!O50 ->  | U26: =+regional!M50 ->  | V26: =IFERROR(VLOOKUP("tc."&$AH26,'td1'!$AC$2573:$AO$2781,V$15,FALSE),"") ->  | W26: =IFERROR(VLOOKUP("tc."&$AH26,'td1'!$AC$2573:$AO$2781,W$15,FALSE),"") ->  | X26: =IFERROR(VLOOKUP("tc."&$AH26,'td1'!$AC$2573:$AO$2781,X$15,FALSE),"") ->  | Y26: =IFERROR(VLOOKUP("tc."&$AH26,'td1'!$AC$2573:$AO$2781,Y$15,FALSE),"") ->  | Z26: =IFERROR(VLOOKUP("tc."&$AH26,'td1'!$AC$2573:$AO$2781,Z$15,FALSE),"") ->  | AA26: =IFERROR(VLOOKUP("tc."&$AH26,'td1'!$AC$2573:$AO$2781,AA$15,FALSE),"") ->  | AB26: =IFERROR(VLOOKUP("tc."&$AH26,'td1'!$AC$2573:$AO$2781,AB$15,FALSE),"") ->  | AC26: =IFERROR(VLOOKUP("tc."&$AH26,'td1'!$AC$2573:$AO$2781,AC$15,FALSE),"") ->  | AD26: =IFERROR(VLOOKUP("tc."&$AH26,'td1'!$AC$2573:$AO$2781,AD$15,FALSE),"") ->  | AE26: =IFERROR(VLOOKUP("tc."&$AH26,'td1'!$AC$2573:$AO$2781,AE$15,FALSE),"") ->  | AF26: =IFERROR(VLOOKUP("tc."&$AH26,'td1'!$AC$2573:$AO$2781,AF$15,FALSE),"") ->  | AG26: =IFERROR(VLOOKUP("tc."&$AH26,'td1'!$AC$2573:$AO$2781,AG$15,FALSE),"") ->  | AH26: =+regional!P50 -> 
D27: =+regional!L51 ->  | E27: =+regional!M51 ->  | G27: =+regional!O51 ->  | U27: =+regional!M51 ->  | V27: =IFERROR(VLOOKUP("tc."&$AH27,'td1'!$AC$2573:$AO$2781,V$15,FALSE),"") ->  | W27: =IFERROR(VLOOKUP("tc."&$AH27,'td1'!$AC$2573:$AO$2781,W$15,FALSE),"") ->  | X27: =IFERROR(VLOOKUP("tc."&$AH27,'td1'!$AC$2573:$AO$2781,X$15,FALSE),"") ->  | Y27: =IFERROR(VLOOKUP("tc."&$AH27,'td1'!$AC$2573:$AO$2781,Y$15,FALSE),"") ->  | Z27: =IFERROR(VLOOKUP("tc."&$AH27,'td1'!$AC$2573:$AO$2781,Z$15,FALSE),"") ->  | AA27: =IFERROR(VLOOKUP("tc."&$AH27,'td1'!$AC$2573:$AO$2781,AA$15,FALSE),"") ->  | AB27: =IFERROR(VLOOKUP("tc."&$AH27,'td1'!$AC$2573:$AO$2781,AB$15,FALSE),"") ->  | AC27: =IFERROR(VLOOKUP("tc."&$AH27,'td1'!$AC$2573:$AO$2781,AC$15,FALSE),"") ->  | AD27: =IFERROR(VLOOKUP("tc."&$AH27,'td1'!$AC$2573:$AO$2781,AD$15,FALSE),"") ->  | AE27: =IFERROR(VLOOKUP("tc."&$AH27,'td1'!$AC$2573:$AO$2781,AE$15,FALSE),"") ->  | AF27: =IFERROR(VLOOKUP("tc."&$AH27,'td1'!$AC$2573:$AO$2781,AF$15,FALSE),"") ->  | AG27: =IFERROR(VLOOKUP("tc."&$AH27,'td1'!$AC$2573:$AO$2781,AG$15,FALSE),"") ->  | AH27: =+regional!P51 -> 
D28: =+regional!L52 ->  | E28: =+regional!M52 ->  | G28: =+regional!O52 ->  | U28: =+regional!M52 ->  | V28: =IFERROR(VLOOKUP("tc."&$AH28,'td1'!$AC$2573:$AO$2781,V$15,FALSE),"") ->  | W28: =IFERROR(VLOOKUP("tc."&$AH28,'td1'!$AC$2573:$AO$2781,W$15,FALSE),"") ->  | X28: =IFERROR(VLOOKUP("tc."&$AH28,'td1'!$AC$2573:$AO$2781,X$15,FALSE),"") ->  | Y28: =IFERROR(VLOOKUP("tc."&$AH28,'td1'!$AC$2573:$AO$2781,Y$15,FALSE),"") ->  | Z28: =IFERROR(VLOOKUP("tc."&$AH28,'td1'!$AC$2573:$AO$2781,Z$15,FALSE),"") ->  | AA28: =IFERROR(VLOOKUP("tc."&$AH28,'td1'!$AC$2573:$AO$2781,AA$15,FALSE),"") ->  | AB28: =IFERROR(VLOOKUP("tc."&$AH28,'td1'!$AC$2573:$AO$2781,AB$15,FALSE),"") ->  | AC28: =IFERROR(VLOOKUP("tc."&$AH28,'td1'!$AC$2573:$AO$2781,AC$15,FALSE),"") ->  | AD28: =IFERROR(VLOOKUP("tc."&$AH28,'td1'!$AC$2573:$AO$2781,AD$15,FALSE),"") ->  | AE28: =IFERROR(VLOOKUP("tc."&$AH28,'td1'!$AC$2573:$AO$2781,AE$15,FALSE),"") ->  | AF28: =IFERROR(VLOOKUP("tc."&$AH28,'td1'!$AC$2573:$AO$2781,AF$15,FALSE),"") ->  | AG28: =IFERROR(VLOOKUP("tc."&$AH28,'td1'!$AC$2573:$AO$2781,AG$15,FALSE),"") ->  | AH28: =+regional!P52 -> 
D29: =+regional!L53 ->  | E29: =+regional!M53 ->  | G29: =+regional!O53 ->  | U29: =+regional!M53 ->  | V29: =IFERROR(VLOOKUP("tc."&$AH29,'td1'!$AC$2573:$AO$2781,V$15,FALSE),"") ->  | W29: =IFERROR(VLOOKUP("tc."&$AH29,'td1'!$AC$2573:$AO$2781,W$15,FALSE),"") ->  | X29: =IFERROR(VLOOKUP("tc."&$AH29,'td1'!$AC$2573:$AO$2781,X$15,FALSE),"") ->  | Y29: =IFERROR(VLOOKUP("tc."&$AH29,'td1'!$AC$2573:$AO$2781,Y$15,FALSE),"") ->  | Z29: =IFERROR(VLOOKUP("tc."&$AH29,'td1'!$AC$2573:$AO$2781,Z$15,FALSE),"") ->  | AA29: =IFERROR(VLOOKUP("tc."&$AH29,'td1'!$AC$2573:$AO$2781,AA$15,FALSE),"") ->  | AB29: =IFERROR(VLOOKUP("tc."&$AH29,'td1'!$AC$2573:$AO$2781,AB$15,FALSE),"") ->  | AC29: =IFERROR(VLOOKUP("tc."&$AH29,'td1'!$AC$2573:$AO$2781,AC$15,FALSE),"") ->  | AD29: =IFERROR(VLOOKUP("tc."&$AH29,'td1'!$AC$2573:$AO$2781,AD$15,FALSE),"") ->  | AE29: =IFERROR(VLOOKUP("tc."&$AH29,'td1'!$AC$2573:$AO$2781,AE$15,FALSE),"") ->  | AF29: =IFERROR(VLOOKUP("tc."&$AH29,'td1'!$AC$2573:$AO$2781,AF$15,FALSE),"") ->  | AG29: =IFERROR(VLOOKUP("tc."&$AH29,'td1'!$AC$2573:$AO$2781,AG$15,FALSE),"") ->  | AH29: =+regional!P53 -> 
D30: =+regional!L54 ->  | E30: =+regional!M54 ->  | G30: =+regional!O54 ->  | U30: =+regional!M54 ->  | V30: =IFERROR(VLOOKUP("tc."&$AH30,'td1'!$AC$2573:$AO$2781,V$15,FALSE),"") ->  | W30: =IFERROR(VLOOKUP("tc."&$AH30,'td1'!$AC$2573:$AO$2781,W$15,FALSE),"") ->  | X30: =IFERROR(VLOOKUP("tc."&$AH30,'td1'!$AC$2573:$AO$2781,X$15,FALSE),"") ->  | Y30: =IFERROR(VLOOKUP("tc."&$AH30,'td1'!$AC$2573:$AO$2781,Y$15,FALSE),"") ->  | Z30: =IFERROR(VLOOKUP("tc."&$AH30,'td1'!$AC$2573:$AO$2781,Z$15,FALSE),"") ->  | AA30: =IFERROR(VLOOKUP("tc."&$AH30,'td1'!$AC$2573:$AO$2781,AA$15,FALSE),"") ->  | AB30: =IFERROR(VLOOKUP("tc."&$AH30,'td1'!$AC$2573:$AO$2781,AB$15,FALSE),"") ->  | AC30: =IFERROR(VLOOKUP("tc."&$AH30,'td1'!$AC$2573:$AO$2781,AC$15,FALSE),"") ->  | AD30: =IFERROR(VLOOKUP("tc."&$AH30,'td1'!$AC$2573:$AO$2781,AD$15,FALSE),"") ->  | AE30: =IFERROR(VLOOKUP("tc."&$AH30,'td1'!$AC$2573:$AO$2781,AE$15,FALSE),"") ->  | AF30: =IFERROR(VLOOKUP("tc."&$AH30,'td1'!$AC$2573:$AO$2781,AF$15,FALSE),"") ->  | AG30: =IFERROR(VLOOKUP("tc."&$AH30,'td1'!$AC$2573:$AO$2781,AG$15,FALSE),"") ->  | AH30: =+regional!P54 -> 
D31: =+regional!L55 ->  | E31: =+regional!M55 ->  | G31: =+regional!O55 ->  | U31: =+regional!M55 ->  | V31: =IFERROR(VLOOKUP("tc."&$AH31,'td1'!$AC$2573:$AO$2781,V$15,FALSE),"") ->  | W31: =IFERROR(VLOOKUP("tc."&$AH31,'td1'!$AC$2573:$AO$2781,W$15,FALSE),"") ->  | X31: =IFERROR(VLOOKUP("tc."&$AH31,'td1'!$AC$2573:$AO$2781,X$15,FALSE),"") ->  | Y31: =IFERROR(VLOOKUP("tc."&$AH31,'td1'!$AC$2573:$AO$2781,Y$15,FALSE),"") ->  | Z31: =IFERROR(VLOOKUP("tc."&$AH31,'td1'!$AC$2573:$AO$2781,Z$15,FALSE),"") ->  | AA31: =IFERROR(VLOOKUP("tc."&$AH31,'td1'!$AC$2573:$AO$2781,AA$15,FALSE),"") ->  | AB31: =IFERROR(VLOOKUP("tc."&$AH31,'td1'!$AC$2573:$AO$2781,AB$15,FALSE),"") ->  | AC31: =IFERROR(VLOOKUP("tc."&$AH31,'td1'!$AC$2573:$AO$2781,AC$15,FALSE),"") ->  | AD31: =IFERROR(VLOOKUP("tc."&$AH31,'td1'!$AC$2573:$AO$2781,AD$15,FALSE),"") ->  | AE31: =IFERROR(VLOOKUP("tc."&$AH31,'td1'!$AC$2573:$AO$2781,AE$15,FALSE),"") ->  | AF31: =IFERROR(VLOOKUP("tc."&$AH31,'td1'!$AC$2573:$AO$2781,AF$15,FALSE),"") ->  | AG31: =IFERROR(VLOOKUP("tc."&$AH31,'td1'!$AC$2573:$AO$2781,AG$15,FALSE),"") ->  | AH31: =+regional!P55 -> 
D32: =+regional!L56 ->  | E32: =+regional!M56 ->  | G32: =+regional!O56 ->  | U32: =+regional!M56 ->  | V32: =IFERROR(VLOOKUP("tc."&$AH32,'td1'!$AC$2573:$AO$2781,V$15,FALSE),"") ->  | W32: =IFERROR(VLOOKUP("tc."&$AH32,'td1'!$AC$2573:$AO$2781,W$15,FALSE),"") ->  | X32: =IFERROR(VLOOKUP("tc."&$AH32,'td1'!$AC$2573:$AO$2781,X$15,FALSE),"") ->  | Y32: =IFERROR(VLOOKUP("tc."&$AH32,'td1'!$AC$2573:$AO$2781,Y$15,FALSE),"") ->  | Z32: =IFERROR(VLOOKUP("tc."&$AH32,'td1'!$AC$2573:$AO$2781,Z$15,FALSE),"") ->  | AA32: =IFERROR(VLOOKUP("tc."&$AH32,'td1'!$AC$2573:$AO$2781,AA$15,FALSE),"") ->  | AB32: =IFERROR(VLOOKUP("tc."&$AH32,'td1'!$AC$2573:$AO$2781,AB$15,FALSE),"") ->  | AC32: =IFERROR(VLOOKUP("tc."&$AH32,'td1'!$AC$2573:$AO$2781,AC$15,FALSE),"") ->  | AD32: =IFERROR(VLOOKUP("tc."&$AH32,'td1'!$AC$2573:$AO$2781,AD$15,FALSE),"") ->  | AE32: =IFERROR(VLOOKUP("tc."&$AH32,'td1'!$AC$2573:$AO$2781,AE$15,FALSE),"") ->  | AF32: =IFERROR(VLOOKUP("tc."&$AH32,'td1'!$AC$2573:$AO$2781,AF$15,FALSE),"") ->  | AG32: =IFERROR(VLOOKUP("tc."&$AH32,'td1'!$AC$2573:$AO$2781,AG$15,FALSE),"") ->  | AH32: =+regional!P56 -> 
D33: =+regional!L57 ->  | E33: =+regional!M57 ->  | G33: =+regional!O57 ->  | U33: =+regional!M57 ->  | V33: =IFERROR(VLOOKUP("tc."&$AH33,'td1'!$AC$2573:$AO$2781,V$15,FALSE),"") ->  | W33: =IFERROR(VLOOKUP("tc."&$AH33,'td1'!$AC$2573:$AO$2781,W$15,FALSE),"") ->  | X33: =IFERROR(VLOOKUP("tc."&$AH33,'td1'!$AC$2573:$AO$2781,X$15,FALSE),"") ->  | Y33: =IFERROR(VLOOKUP("tc."&$AH33,'td1'!$AC$2573:$AO$2781,Y$15,FALSE),"") ->  | Z33: =IFERROR(VLOOKUP("tc."&$AH33,'td1'!$AC$2573:$AO$2781,Z$15,FALSE),"") ->  | AA33: =IFERROR(VLOOKUP("tc."&$AH33,'td1'!$AC$2573:$AO$2781,AA$15,FALSE),"") ->  | AB33: =IFERROR(VLOOKUP("tc."&$AH33,'td1'!$AC$2573:$AO$2781,AB$15,FALSE),"") ->  | AC33: =IFERROR(VLOOKUP("tc."&$AH33,'td1'!$AC$2573:$AO$2781,AC$15,FALSE),"") ->  | AD33: =IFERROR(VLOOKUP("tc."&$AH33,'td1'!$AC$2573:$AO$2781,AD$15,FALSE),"") ->  | AE33: =IFERROR(VLOOKUP("tc."&$AH33,'td1'!$AC$2573:$AO$2781,AE$15,FALSE),"") ->  | AF33: =IFERROR(VLOOKUP("tc."&$AH33,'td1'!$AC$2573:$AO$2781,AF$15,FALSE),"") ->  | AG33: =IFERROR(VLOOKUP("tc."&$AH33,'td1'!$AC$2573:$AO$2781,AG$15,FALSE),"") ->  | AH33: =+regional!P57 -> 
D34: =+regional!L58 ->  | E34: =+regional!M58 ->  | G34: =+regional!O58 ->  | U34: =+regional!M58 ->  | V34: =IFERROR(VLOOKUP("tc."&$AH34,'td1'!$AC$2573:$AO$2781,V$15,FALSE),"") ->  | W34: =IFERROR(VLOOKUP("tc."&$AH34,'td1'!$AC$2573:$AO$2781,W$15,FALSE),"") ->  | X34: =IFERROR(VLOOKUP("tc."&$AH34,'td1'!$AC$2573:$AO$2781,X$15,FALSE),"") ->  | Y34: =IFERROR(VLOOKUP("tc."&$AH34,'td1'!$AC$2573:$AO$2781,Y$15,FALSE),"") ->  | Z34: =IFERROR(VLOOKUP("tc."&$AH34,'td1'!$AC$2573:$AO$2781,Z$15,FALSE),"") ->  | AA34: =IFERROR(VLOOKUP("tc."&$AH34,'td1'!$AC$2573:$AO$2781,AA$15,FALSE),"") ->  | AB34: =IFERROR(VLOOKUP("tc."&$AH34,'td1'!$AC$2573:$AO$2781,AB$15,FALSE),"") ->  | AC34: =IFERROR(VLOOKUP("tc."&$AH34,'td1'!$AC$2573:$AO$2781,AC$15,FALSE),"") ->  | AD34: =IFERROR(VLOOKUP("tc."&$AH34,'td1'!$AC$2573:$AO$2781,AD$15,FALSE),"") ->  | AE34: =IFERROR(VLOOKUP("tc."&$AH34,'td1'!$AC$2573:$AO$2781,AE$15,FALSE),"") ->  | AF34: =IFERROR(VLOOKUP("tc."&$AH34,'td1'!$AC$2573:$AO$2781,AF$15,FALSE),"") ->  | AG34: =IFERROR(VLOOKUP("tc."&$AH34,'td1'!$AC$2573:$AO$2781,AG$15,FALSE),"") ->  | AH34: =+regional!P58 -> 
E36: =+"Comportamiento objetivos SIGE - "&Menu!G49 -> Comportamiento objetivos SIGE -
W38: Comparación Centros zonales 2015 vs 2016
Z40: =+Menu!C7 -> Noviembre
Z41: 2015 | AA41: 2016 | AB41: ∆
V42: 1 | Y42: =+U17 ->  | Z42: =+'información graf'!ET65 ->  | AA42: =+'información graf'!EU65 ->  | AB42: =+IFERROR((AA42/Z42)-1,0) -> 0 | AC42: =+IF(AB42>0,"mejoró",IF(AB42=0,"","desmejoró")) -> 
V43: =+IF(Y43="","",V42+1) ->  | Z43: =+'información graf'!ET66 ->  | AA43: =+'información graf'!EU66 ->  | AB43: 0
Z44: =+'información graf'!ET67 ->  | AA44: =+'información graf'!EU67 ->  | AB44: 0
Z45: =+'información graf'!ET68 ->  | AA45: =+'información graf'!EU68 ->  | AB45: 0
Z46: =+'información graf'!ET69 ->  | AA46: =+'información graf'!EU69 ->  | AB46: 0
Z47: =+'información graf'!ET70 ->  | AA47: =+'información graf'!EU70 ->  | AB47: 0
Z48: =+'información graf'!ET71 ->  | AA48: =+'información graf'!EU71 ->  | AB48: 0
Z49: =+'información graf'!ET72 ->  | AA49: =+'información graf'!EU72 ->  | AB49: 0
Z50: =+'información graf'!ET73 ->  | AA50: =+'información graf'!EU73 ->  | AB50: 0
A51: - | Z51: =+'información graf'!ET74 ->  | AA51: =+'información graf'!EU74 ->  | AB51: 0
Z52: =+'información graf'!ET75 ->  | AA52: =+'información graf'!EU75 ->  | AB52: 0
Z53: =+'información graf'!ET76 ->  | AA53: =+'información graf'!EU76 ->  | AB53: 0
Z54: =+'información graf'!ET77 ->  | AA54: =+'información graf'!EU77 ->  | AB54: 0
Z55: =+'información graf'!ET78 ->  | AA55: =+'información graf'!EU78 ->  | AB55: 0
Z56: =+'información graf'!ET79 ->  | AA56: =+'información graf'!EU79 ->  | AB56: 0
Z57: =+'información graf'!ET80 ->  | AA57: =+'información graf'!EU80 ->  | AB57: 0
Z58: =+'información graf'!ET81 ->  | AA58: =+'información graf'!EU81 ->  | AB58: 0
Z59: =+'información graf'!ET82 ->  | AA59: =+'información graf'!EU82 ->  | AB59: 0

Sheet Plan Indicativo Institucional
B2: TABLERO DE CONTROL 2016 INSTITUTO COLOMBIANO DE BIENESTAR FAMILIAR SINERGIA
B5: Mes analisis | F5: LB cuatrienio | N5: Volver al menú
B6: =+Menu!C7 -> Noviembre | F6: LB año | N6: =+VLOOKUP(B6,referencias!$A$131:$H$142,6,FALSE) -> 56
G7: Cuatrienio | J7: 2015 | M7: 2016
B8: Cod | C8: Indicador tablero | D8: tipo | E8: Meta gob | F8: Linea base | G8: Meta | H8: Avance | I8: % cuatrienio | J8: Meta | K8: Avance | L8: 20.15 | M8: Meta | N8: Avance | O8: 20.16
B9: PA-01 | C9: =+VLOOKUP(B9,'tablero nal'!$W$9:$X$171,2,FALSE) -> Número de niños y niñas atendidos en el marco de la Atención Integral. | D9: =+VLOOKUP($B9,'tablero nal'!$W$9:$BB$171,16,FALSE) -> Número | E9: X | F9: 1054857 | G9: =+VLOOKUP(B9,'tablero nal'!$W$9:$BB$171,4,FALSE) -> 1500000 | H9: =+K9 -> 1123376 | I9: =+IFERROR(H9/G9,"-") -> 0.7489173333 | J9: =+VLOOKUP(B9,'tablero nal'!$W$9:$AB$171,3,FALSE) -> 1100000 | K9: 1123376 | L9: =+K9/J9 -> 1.021250909 | M9: =+VLOOKUP(B9,'tablero nal'!$W$9:$AB$171,6,FALSE) -> 1150000 | N9: =+VLOOKUP(B9&"_1",base!$E$4:$BO$7756,$N$6,FALSE) -> 1160526 | O9: =IFERROR(N9/M9,"NA") -> 1.009153043
B10: PA-02 | C10: =+VLOOKUP(B10,'tablero nal'!$W$9:$X$171,2,FALSE) -> Porcentaje de niños y niñas atendidos en Hogares Comunitarios transitados a las Modalidades de Atención Integral | D10: =+VLOOKUP($B10,'tablero nal'!$W$9:$BB$171,16,FALSE) -> Porcentaje | F10: - | G10: =+VLOOKUP(B10,'tablero nal'!$W$9:$BB$171,4,FALSE) -> 0.8 | H10: 0.0994 | I10: =+IFERROR(H10/G10,"-") -> 0.12425 | J10: =+VLOOKUP(B10,'tablero nal'!$W$9:$AB$171,3,FALSE) -> 0.09 | K10: 0.0994 | L10: =+K10/J10 -> 1.104444444 | M10: =+VLOOKUP(B10,'tablero nal'!$W$9:$AB$171,6,FALSE) -> 0.13 | N10: =+VLOOKUP(B10&"_1",base!$E$4:$BO$7756,$N$6,FALSE) -> NA | O10: =IFERROR(N10/M10,"NA") -> NA
B11: PA-03 | C11: =+VLOOKUP(B11,'tablero nal'!$W$9:$X$171,2,FALSE) -> Porcentaje de niños y niñas de las modalidades de Primera Infancia, reportados al Ministerio de Educación para la matricula al sistema educativo. | D11: =+VLOOKUP($B11,'tablero nal'!$W$9:$BB$171,16,FALSE) -> Porcentaje | F11: - | G11: =+VLOOKUP(B11,'tablero nal'!$W$9:$BB$171,4,FALSE) -> 0.8 | H11: 0.9998 | I11: 1.24975 | J11: =+VLOOKUP(B11,'tablero nal'!$W$9:$AB$171,3,FALSE) -> 0.8 | K11: 0.9998 | L11: 1.24975 | M11: =+VLOOKUP(B11,'tablero nal'!$W$9:$AB$171,6,FALSE) -> 0.8 | N11: =+VLOOKUP(B11&"_1",base!$E$4:$BO$7756,$N$6,FALSE) -> NA | O11: NA
B12: PA-04 | C12: =+VLOOKUP(B12,'tablero nal'!$W$9:$X$171,2,FALSE) -> Porcentaje de Hogares Comunitarios que cumplen los estándares de la estrategia de Cero a Siempre. | D12: =+VLOOKUP($B12,'tablero nal'!$W$9:$BB$171,16,FALSE) -> Porcentaje | E12: X | F12: - | G12: =+VLOOKUP(B12,'tablero nal'!$W$9:$BB$171,4,FALSE) -> 0.5 | H12: =+K12+N12 -> 0.6139 | I12: 1.2278 | J12: =+VLOOKUP(B12,'tablero nal'!$W$9:$AB$171,3,FALSE) -> 0.2 | K12: 0.2889 | L12: 1.4445 | M12: =+VLOOKUP(B12,'tablero nal'!$W$9:$AB$171,6,FALSE) -> 0.3 | N12: =+VLOOKUP(B12&"_1",base!$E$4:$BO$7756,$N$6,FALSE) -> 0.325 | O12: 1.083333333
B13: PA-05 | C13: =+VLOOKUP(B13,'tablero nal'!$W$9:$X$171,2,FALSE) -> Número de agentes educativos en proceso de formación y/o cualificación en Atención Integral a la Primera Infancia. | D13: =+VLOOKUP($B13,'tablero nal'!$W$9:$BB$171,16,FALSE) -> Número | E13: X | F13: 49672 | G13: =+VLOOKUP(B13,'tablero nal'!$W$9:$BB$171,4,FALSE) -> 60000 | H13: =+K13+N13 -> 47253 | I13: 0.78755 | J13: =+VLOOKUP(B13,'tablero nal'!$W$9:$AB$171,3,FALSE) -> 20000 | K13: 20000 | L13: 1 | M13: =+VLOOKUP(B13,'tablero nal'!$W$9:$AB$171,6,FALSE) -> 30000 | N13: =+VLOOKUP(B13&"_1",base!$E$4:$BO$7756,$N$6,FALSE) -> 27253 | O13: 0.9084333333
B14: PA-06 | C14: =+VLOOKUP(B14,'tablero nal'!$W$9:$X$171,2,FALSE) -> Número de CDIs entregados para operación de la modalidades de Atención Integral a la Primera Infancia | D14: =+VLOOKUP($B14,'tablero nal'!$W$9:$BB$171,16,FALSE) -> Número | F14: - | G14: =+VLOOKUP(B14,'tablero nal'!$W$9:$BB$171,4,FALSE) -> 150 | H14: 77 | I14: 0.5133333333 | J14: =+VLOOKUP(B14,'tablero nal'!$W$9:$AB$171,3,FALSE) -> 50 | K14: 77 | L14: 1.54 | M14: =+VLOOKUP(B14,'tablero nal'!$W$9:$AB$171,6,FALSE) -> 80 | N14: =+VLOOKUP(B14&"_1",base!$E$4:$BO$7756,$N$6,FALSE) -> NA | O14: NA
B15: PA-07 | C15: =+VLOOKUP(B15,'tablero nal'!$W$9:$X$171,2,FALSE) -> Número de Unidades de servicio con planes de implementación para salas de lectura. | D15: =+VLOOKUP($B15,'tablero nal'!$W$9:$BB$171,16,FALSE) -> Número | E15: X | F15: 28 | G15: =+VLOOKUP(B15,'tablero nal'!$W$9:$BB$171,4,FALSE) -> 150 | H15: 70 | I15: 0.4666666667 | J15: =+VLOOKUP(B15,'tablero nal'!$W$9:$AB$171,3,FALSE) -> 70 | K15: 70 | L15: 1 | M15: =+VLOOKUP(B15,'tablero nal'!$W$9:$AB$171,6,FALSE) -> 110 | N15: =+VLOOKUP(B15&"_1",base!$E$4:$BO$7756,$N$6,FALSE) -> 120 | O15: 1.090909091
B16: PA-08 | C16: =+VLOOKUP(B16,'tablero nal'!$W$9:$X$171,2,FALSE) -> Porcentaje de EAS de atención a la primera infancia con esquemas de fortalecimiento que generen capacidades para gestionar procesos de calidad. | D16: =+VLOOKUP($B16,'tablero nal'!$W$9:$BB$171,16,FALSE) -> Porcentaje | E16: X | F16: - | G16: =+VLOOKUP(B16,'tablero nal'!$W$9:$BB$171,4,FALSE) -> 0.9 | H16: 0.5015 | I16: 0.5572222222 | J16: =+VLOOKUP(B16,'tablero nal'!$W$9:$AB$171,3,FALSE) -> 0.5 | K16: 0.5015 | L16: 1.003 | M16: =+VLOOKUP(B16,'tablero nal'!$W$9:$AB$171,6,FALSE) -> 0.9 | N16: =+VLOOKUP(B16&"_1",base!$E$4:$BO$7756,$N$6,FALSE) -> 0.689 | O16: 0.7655555556
B17: PA-10 | C17: =+VLOOKUP(B17,'tablero nal'!$W$9:$X$171,2,FALSE) -> Número de visitas de supervisión realizadas a las modalidades de Primera Infancia. | D17: =+VLOOKUP($B17,'tablero nal'!$W$9:$BB$171,16,FALSE) -> Número | F17: - | G17: =+VLOOKUP(B17,'tablero nal'!$W$9:$BB$171,4,FALSE) -> 240000 | H17: =+K17+N17 -> 124581 | I17: 0.5190875 | J17: =+VLOOKUP(B17,'tablero nal'!$W$9:$AB$171,3,FALSE) -> 54000 | K17: 62948 | L17: 1.165703704 | M17: =+VLOOKUP(B17,'tablero nal'!$W$9:$AB$171,6,FALSE) -> 50000 | N17: =+VLOOKUP(B17&"_1",base!$E$4:$BO$7756,$N$6,FALSE) -> 61633 | O17: 1.23266
B18: PA-11 | C18: =+VLOOKUP(B18,'tablero nal'!$W$9:$X$171,2,FALSE) -> Porcentaje del diseño e implementación de la ruta integral de atenciones para la infancia y la adolescencia. | D18: =+VLOOKUP($B18,'tablero nal'!$W$9:$BB$171,16,FALSE) -> Porcentaje | F18: - | G18: =+VLOOKUP(B18,'tablero nal'!$W$9:$BB$171,4,FALSE) -> 1 | H18: 0.3529 | I18: 0.3529 | J18: =+VLOOKUP(B18,'tablero nal'!$W$9:$AB$171,3,FALSE) -> 0.3 | K18: 0.3529 | L18: 1.176333333 | M18: =+VLOOKUP(B18,'tablero nal'!$W$9:$AB$171,6,FALSE) -> 0.5 | N18: =+VLOOKUP(B18&"_1",base!$E$4:$BO$7756,$N$6,FALSE) -> NA | O18: NA
B19: PA-12 | C19: =+VLOOKUP(B19,'tablero nal'!$W$9:$X$171,2,FALSE) -> Porcentaje del diseño e implementación de la política Nacional para la infancia y la adolescencia. | D19: =+VLOOKUP($B19,'tablero nal'!$W$9:$BB$171,16,FALSE) -> Porcentaje | F19: - | G19: =+VLOOKUP(B19,'tablero nal'!$W$9:$BB$171,4,FALSE) -> 1 | H19: 0.3529 | I19: 0.3529 | J19: =+VLOOKUP(B19,'tablero nal'!$W$9:$AB$171,3,FALSE) -> 0.3 | K19: 0.3529 | L19: 1.176333333 | M19: =+VLOOKUP(B19,'tablero nal'!$W$9:$AB$171,6,FALSE) -> 0.5 | N19: =+VLOOKUP(B19&"_1",base!$E$4:$BO$7756,$N$6,FALSE) -> NA | O19: NA
B20: PA-13 | C20: =+VLOOKUP(B20,'tablero nal'!$W$9:$X$171,2,FALSE) -> Número de departamentos con la estrategia de prevención de embarazo en la adolescencia implementada | D20: =+VLOOKUP($B20,'tablero nal'!$W$9:$BB$171,16,FALSE) -> Número | F20: - | G20: =+VLOOKUP(B20,'tablero nal'!$W$9:$BB$171,4,FALSE) -> 33 | H20: =+N20 -> NA | I20: - | J20: =+VLOOKUP(B20,'tablero nal'!$W$9:$AB$171,3,FALSE) -> 6 | K20: 6 | L20: 1 | M20: =+VLOOKUP(B20,'tablero nal'!$W$9:$AB$171,6,FALSE) -> 15 | N20: =+VLOOKUP(B20&"_1",base!$E$4:$BO$7756,$N$6,FALSE) -> NA | O20: NA
B21: PA-14 | C21: =+VLOOKUP(B21,'tablero nal'!$W$9:$X$171,2,FALSE) -> Número de Municipios priorizados con la implementación de la estrategia de prevención de embarazo en la adolescencia | D21: =+VLOOKUP($B21,'tablero nal'!$W$9:$BB$171,16,FALSE) -> Número | E21: X | F21: 192 | G21: =+VLOOKUP(B21,'tablero nal'!$W$9:$BB$171,4,FALSE) -> 353 | H21: =+N21 -> NA | I21: - | J21: =+VLOOKUP(B21,'tablero nal'!$W$9:$AB$171,3,FALSE) -> 75 | K21: 75 | L21: 1 | M21: =+VLOOKUP(B21,'tablero nal'!$W$9:$AB$171,6,FALSE) -> 190 | N21: =+VLOOKUP(B21&"_1",base!$E$4:$BO$7756,$N$6,FALSE) -> NA | O21: NA
B22: PA-15 | C22: =+VLOOKUP(B22,'tablero nal'!$W$9:$X$171,2,FALSE) -> Número de Agentes educativos, institucionales y comunitarios de Programas del ICBF formados en derechos sexuales y reproductivos y prevención del embarazo en la adolescencia | D22: =+VLOOKUP($B22,'tablero nal'!$W$9:$BB$171,16,FALSE) -> Número | F22: 3790 | G22: =+VLOOKUP(B22,'tablero nal'!$W$9:$BB$171,4,FALSE) -> 15042 | H22: 934 | I22: 0.06209280681 | J22: =+VLOOKUP(B22,'tablero nal'!$W$9:$AB$171,3,FALSE) -> 4000 | K22: 934 | L22: 0.2335 | M22: =+VLOOKUP(B22,'tablero nal'!$W$9:$AB$171,6,FALSE) -> 5800 | N22: =+VLOOKUP(B22&"_1",base!$E$4:$BO$7756,$N$6,FALSE) -> NA | O22: NA
B23: PA-16 | C23: =+VLOOKUP(B23,'tablero nal'!$W$9:$X$171,2,FALSE) -> Número de niños, niñas y adolescentes participantes en estrategias de prevención | D23: =+VLOOKUP($B23,'tablero nal'!$W$9:$BB$171,16,FALSE) -> Número | E23: X | F23: 712188 | G23: =+VLOOKUP(B23,'tablero nal'!$W$9:$BB$171,4,FALSE) -> 770000 | H23: =+K23+N23 -> 332700 | I23: 0.4320779221 | J23: =+VLOOKUP(B23,'tablero nal'!$W$9:$AB$171,3,FALSE) -> 195600 | K23: 206060 | L23: 1.053476483 | M23: =+VLOOKUP(B23,'tablero nal'!$W$9:$AB$171,6,FALSE) -> 348675 | N23: =+VLOOKUP(B23&"_1",base!$E$4:$BO$7756,$N$6,FALSE) -> 126640 | O23: 0.3632035563
B24: PA-17 | C24: =+VLOOKUP(B24,'tablero nal'!$W$9:$X$171,2,FALSE) -> Número de ejercicios de promoción de la participación significativa de niños, niñas y adolescentes en políticas, programas, proyectos y estrategias desarrollados en los territorios. | D24: =+VLOOKUP($B24,'tablero nal'!$W$9:$BB$171,16,FALSE) -> Número | F24: - | G24: =+VLOOKUP(B24,'tablero nal'!$W$9:$BB$171,4,FALSE) -> 1744 | H24: =+N24 -> NA | I24: - | J24: =+VLOOKUP(B24,'tablero nal'!$W$9:$AB$171,3,FALSE) -> 436 | K24: 1016 | L24: 2.330275229 | M24: =+VLOOKUP(B24,'tablero nal'!$W$9:$AB$171,6,FALSE) -> 1200 | N24: =+VLOOKUP(B24&"_1",base!$E$4:$BO$7756,$N$6,FALSE) -> NA | O24: NA
B25: PA-18 | C25: =+VLOOKUP(B25,'tablero nal'!$W$9:$X$171,2,FALSE) -> Familias en situación de vulnerabilidad afectadas en su estructura y dinámica relacional atendidas mediante "Familias para la Paz" | D25: =+VLOOKUP($B25,'tablero nal'!$W$9:$BB$171,16,FALSE) -> Número | E25: X | F25: 541854 | G25: =+VLOOKUP(B25,'tablero nal'!$W$9:$BB$171,4,FALSE) -> 560000 | H25: 264320 | I25: 0.472 | J25: =+VLOOKUP(B25,'tablero nal'!$W$9:$AB$171,3,FALSE) -> 105488 | K25: 105473 | L25: 0.9998578037 | M25: =+VLOOKUP(B25,'tablero nal'!$W$9:$AB$171,6,FALSE) -> 264916 | N25: =+VLOOKUP(B25&"_1",base!$E$4:$BO$7756,$N$6,FALSE) -> 264320 | O25: 0.9977502303
B26: PA-19 | C26: =+VLOOKUP(B26,'tablero nal'!$W$9:$X$171,2,FALSE) -> Número de Familias de grupos étnicos atendidas por la modalidad "Territorios Étnicos con Bienestar". | D26: =+VLOOKUP($B26,'tablero nal'!$W$9:$BB$171,16,FALSE) -> Número | F26: 21000 | G26: =+VLOOKUP(B26,'tablero nal'!$W$9:$BB$171,4,FALSE) -> 114000 | H26: 63186 | I26: 0.5542631579 | J26: =+VLOOKUP(B26,'tablero nal'!$W$9:$AB$171,3,FALSE) -> 22000 | K26: 37033 | L26: 1.683318182 | M26: =+VLOOKUP(B26,'tablero nal'!$W$9:$AB$171,6,FALSE) -> 49300 | N26: =+VLOOKUP(B26&"_1",base!$E$4:$BO$7756,$N$6,FALSE) -> 63186 | O26: 1.281663286
B27: PA-20 | C27: =+VLOOKUP(B27,'tablero nal'!$W$9:$X$171,2,FALSE) -> Porcentaje de avance en el diseño e implementación de un modelo de enfoque conceptual de inclusión y atención a las familias con las áreas misionales | D27: =+VLOOKUP($B27,'tablero nal'!$W$9:$BB$171,16,FALSE) -> Porcentaje | F27: - | G27: =+VLOOKUP(B27,'tablero nal'!$W$9:$BB$171,4,FALSE) -> 1 | H27: NA | I27: - | J27: =+VLOOKUP(B27,'tablero nal'!$W$9:$AB$171,3,FALSE) -> 0.2 | K27: 0.192 | L27: 0.96 | M27: =+VLOOKUP(B27,'tablero nal'!$W$9:$AB$171,6,FALSE) -> 0.5 | N27: =+VLOOKUP(B27&"_1",base!$E$4:$BO$7756,$N$6,FALSE) -> NA | O27: NA
B28: PA-21 | C28: =+VLOOKUP(B28,'tablero nal'!$W$9:$X$171,2,FALSE) -> Número de Familias atendidas mediante formas innovadoras de intervención | D28: =+VLOOKUP($B28,'tablero nal'!$W$9:$BB$171,16,FALSE) -> Número | F28: - | G28: =+VLOOKUP(B28,'tablero nal'!$W$9:$BB$171,4,FALSE) -> 3500 | H28: NA | I28: - | J28: =+VLOOKUP(B28,'tablero nal'!$W$9:$AB$171,3,FALSE) -> 1028 | K28: 1028 | L28: 1 | M28: =+VLOOKUP(B28,'tablero nal'!$W$9:$AB$171,6,FALSE) -> 1852 | N28: =+VLOOKUP(B28&"_1",base!$E$4:$BO$7756,$N$6,FALSE) -> NA | O28: NA
B29: PA-24 | C29: =+VLOOKUP(B29,'tablero nal'!$W$9:$X$171,2,FALSE) -> Numero de Toneladas distribuidas de Alimentos de Alto Valor Nutricional | D29: =+VLOOKUP($B29,'tablero nal'!$W$9:$BB$171,16,FALSE) -> Número | F29: 21427.6608 | G29: =+VLOOKUP(B29,'tablero nal'!$W$9:$BB$171,4,FALSE) -> 88000 | H29: 47244 | I29: 0.5368636364 | J29: =+VLOOKUP(B29,'tablero nal'!$W$9:$AB$171,3,FALSE) -> 22000 | K29: 26893 | L29: 1.222409091 | M29: =+VLOOKUP(B29,'tablero nal'!$W$9:$AB$171,6,FALSE) -> 44000 | N29: =+VLOOKUP(B29&"_1",base!$E$4:$BO$7756,$N$6,FALSE) -> 47244 | O29: 1.073727273
B30: PA-25 | C30: =+VLOOKUP(B30,'tablero nal'!$W$9:$X$171,2,FALSE) -> Numero de Toneladas producidas de Alimentos de Alto Valor Nutricional | D30: =+VLOOKUP($B30,'tablero nal'!$W$9:$BB$171,16,FALSE) -> Número | F30: 22074.198 | G30: =+VLOOKUP(B30,'tablero nal'!$W$9:$BB$171,4,FALSE) -> 88000 | H30: 4319951957 | I30: 49090.36315 | J30: =+VLOOKUP(B30,'tablero nal'!$W$9:$AB$171,3,FALSE) -> 22000 | K30: 26741 | L30: 1.2155 | M30: =+VLOOKUP(B30,'tablero nal'!$W$9:$AB$171,6,FALSE) -> 44000 | N30: =+VLOOKUP(B30&"_1",base!$E$4:$BO$7756,$N$6,FALSE) -> 4319951957 | O30: 98180.7263
B31: PA-26 | C31: =+VLOOKUP(B31,'tablero nal'!$W$9:$X$171,2,FALSE) -> Porcentaje de Mujeres en periodo de Gestación y Madres en periodo de Lactancia atendidas en la modalidad de Recuperación Nutricional con Énfasis en los Primeros 1.000 días que mejoran su estado nutricional. | D31: =+VLOOKUP($B31,'tablero nal'!$W$9:$BB$171,16,FALSE) -> Porcentaje | F31: - | G31: =+VLOOKUP(B31,'tablero nal'!$W$9:$BB$171,4,FALSE) -> 0.8 | H31: 0.5703 | I31: 0.712875 | J31: =+VLOOKUP(B31,'tablero nal'!$W$9:$AB$171,3,FALSE) -> 0.7 | K31: 0.5703 | L31: 0.8147142857 | M31: =+VLOOKUP(B31,'tablero nal'!$W$9:$AB$171,6,FALSE) -> 0.7 | N31: =+VLOOKUP(B31&"_1",base!$E$4:$BO$7756,$N$6,FALSE) -> NA | O31: NA
B32: PA-27 | C32: =+VLOOKUP(B32,'tablero nal'!$W$9:$X$171,2,FALSE) -> Porcentaje de niños y niñas de las modalidades de la Estrategia de Recuperación Nutricional que mejoraron su estado nutricional | D32: =+VLOOKUP($B32,'tablero nal'!$W$9:$BB$171,16,FALSE) -> Porcentaje | F32: 0.7 | G32: =+VLOOKUP(B32,'tablero nal'!$W$9:$BB$171,4,FALSE) -> 0.8 | H32: 0.7089 | I32: 0.886125 | J32: =+VLOOKUP(B32,'tablero nal'!$W$9:$AB$171,3,FALSE) -> 0.8 | K32: 0.7089 | L32: 0.886125 | M32: =+VLOOKUP(B32,'tablero nal'!$W$9:$AB$171,6,FALSE) -> 0.8 | N32: =+VLOOKUP(B32&"_1",base!$E$4:$BO$7756,$N$6,FALSE) -> NA | O32: NA
B33: PA-28 | C33: =+VLOOKUP(B33,'tablero nal'!$W$9:$X$171,2,FALSE) -> Numero de Entes Territoriales asesorados en las acciones propias de la Política de Seguridad Alimentaria y Nutricional | D33: =+VLOOKUP($B33,'tablero nal'!$W$9:$BB$171,16,FALSE) -> Número | F33: - | G33: =+VLOOKUP(B33,'tablero nal'!$W$9:$BB$171,4,FALSE) -> 33 | H33: =+N33 -> NA | I33: - | J33: =+VLOOKUP(B33,'tablero nal'!$W$9:$AB$171,3,FALSE) -> 16 | K33: 19 | L33: 1.1875 | M33: =+VLOOKUP(B33,'tablero nal'!$W$9:$AB$171,6,FALSE) -> 33 | N33: =+VLOOKUP(B33&"_1",base!$E$4:$BO$7756,$N$6,FALSE) -> NA | O33: NA
B34: PA-29 | C34: =+VLOOKUP(B34,'tablero nal'!$W$9:$X$171,2,FALSE) -> Numero de capacitaciones a Servidores Públicos, contratistas y Agentes del Sistema Nacional de Bienestar Familiar en las acciones propias de la Política de Seguridad Alimentaria y Nutricional | D34: =+VLOOKUP($B34,'tablero nal'!$W$9:$BB$171,16,FALSE) -> Número | F34: - | G34: =+VLOOKUP(B34,'tablero nal'!$W$9:$BB$171,4,FALSE) -> 4758 | H34: =+N34 -> NA | I34: - | J34: =+VLOOKUP(B34,'tablero nal'!$W$9:$AB$171,3,FALSE) -> 1050 | K34: 1050 | L34: 1 | M34: =+VLOOKUP(B34,'tablero nal'!$W$9:$AB$171,6,FALSE) -> 2240 | N34: =+VLOOKUP(B34&"_1",base!$E$4:$BO$7756,$N$6,FALSE) -> NA | O34: NA
B35: PA-30 | C35: =+VLOOKUP(B35,'tablero nal'!$W$9:$X$171,2,FALSE) -> Niñas y niños menores de 5 años y mujeres gestantes microfocalizados en el marco de la prestación del servicio del ICBF. | D35: =+VLOOKUP($B35,'tablero nal'!$W$9:$BB$171,16,FALSE) -> Número | E35: X | F35: 44049 | G35: =+VLOOKUP(B35,'tablero nal'!$W$9:$BB$171,4,FALSE) -> 376528 | H35: =+N35 -> NA | I35: - | J35: =+VLOOKUP(B35,'tablero nal'!$W$9:$AB$171,3,FALSE) -> 40000 | K35: 38689 | L35: 0.967225 | M35: =+VLOOKUP(B35,'tablero nal'!$W$9:$AB$171,6,FALSE) -> 130000 | N35: =+VLOOKUP(B35&"_1",base!$E$4:$BO$7756,$N$6,FALSE) -> NA | O35: NA
B36: PA-36 | C36: =+VLOOKUP(B36,'tablero nal'!$W$9:$X$171,2,FALSE) -> Porcentaje de Autoridades Administrativas y Equipos Técnicos Interdisciplinarios, capacitados en el proceso Administrativo de Restablecimiento de Derechos y temáticas afines. | D36: =+VLOOKUP($B36,'tablero nal'!$W$9:$BB$171,16,FALSE) -> Porcentaje | F36: 0.22 | G36: =+VLOOKUP(B36,'tablero nal'!$W$9:$BB$171,4,FALSE) -> 1 | H36: 0.5735 | I36: 0.5735 | J36: =+VLOOKUP(B36,'tablero nal'!$W$9:$AB$171,3,FALSE) -> 0.44 | K36: 0.5735 | L36: 1.303409091 | M36: =+VLOOKUP(B36,'tablero nal'!$W$9:$AB$171,6,FALSE) -> 0.62 | N36: =+VLOOKUP(B36&"_1",base!$E$4:$BO$7756,$N$6,FALSE) -> NA | O36: NA
B37: PA-37 | C37: =+VLOOKUP(B37,'tablero nal'!$W$9:$X$171,2,FALSE) -> Porcentaje de Autoridades Administrativas, Equipos Técnicos, capacitados en la Ruta de Restablecimiento de Derechos con Enfoque Diferencial Étnico. | D37: =+VLOOKUP($B37,'tablero nal'!$W$9:$BB$171,16,FALSE) -> Porcentaje | F37: 0.12 | G37: =+VLOOKUP(B37,'tablero nal'!$W$9:$BB$171,4,FALSE) -> 1 | H37: 0.3286 | I37: 0.3286 | J37: =+VLOOKUP(B37,'tablero nal'!$W$9:$AB$171,3,FALSE) -> 0.34 | K37: 0.3286 | L37: 0.9664705882 | M37: =+VLOOKUP(B37,'tablero nal'!$W$9:$AB$171,6,FALSE) -> 0.56 | N37: =+VLOOKUP(B37&"_1",base!$E$4:$BO$7756,$N$6,FALSE) -> NA | O37: NA
B38: PA-38 | C38: =+VLOOKUP(B38,'tablero nal'!$W$9:$X$171,2,FALSE) -> Número de municipios con asistencia técnica para la implementación de las rutas de atención integral para el Restablecimiento de Derechos de la menor de 14 años embarazada. | D38: =+VLOOKUP($B38,'tablero nal'!$W$9:$BB$171,16,FALSE) -> Número | E38: X | F38: 20 | G38: =+VLOOKUP(B38,'tablero nal'!$W$9:$BB$171,4,FALSE) -> 700 | H38: 120 | I38: 0.1714285714 | J38: =+VLOOKUP(B38,'tablero nal'!$W$9:$AB$171,3,FALSE) -> 100 | K38: 120 | L38: 1.2 | M38: =+VLOOKUP(B38,'tablero nal'!$W$9:$AB$171,6,FALSE) -> 350 | N38: =+VLOOKUP(B38&"_1",base!$E$4:$BO$7756,$N$6,FALSE) -> NA | O38: NA
B39: PA-40 | C39: =+VLOOKUP(B39,'tablero nal'!$W$9:$X$171,2,FALSE) -> Porcentaje de Niños, niñas y adolescentes CON características y necesidades especiales, con familia asignada. | D39: =+VLOOKUP($B39,'tablero nal'!$W$9:$BB$171,16,FALSE) -> Porcentaje | E39: X | F39: 0.65 | G39: =+VLOOKUP(B39,'tablero nal'!$W$9:$BB$171,4,FALSE) -> 0.7 | H39: =+N39 -> 0.758 | I39: 1.082857143 | J39: =+VLOOKUP(B39,'tablero nal'!$W$9:$AB$171,3,FALSE) -> 0.65 | K39: 0.7444 | L39: 1.145230769 | M39: =+VLOOKUP(B39,'tablero nal'!$W$9:$AB$171,6,FALSE) -> 0.65 | N39: =+VLOOKUP(B39&"_1",base!$E$4:$BO$7756,$N$6,FALSE) -> 0.758 | O39: 1.166153846
B40: PA-41 | C40: =+VLOOKUP(B40,'tablero nal'!$W$9:$X$171,2,FALSE) -> Porcentaje de niños, niñas y adolescentes que cumple con el número de informes de seguimientos post adopción | D40: =+VLOOKUP($B40,'tablero nal'!$W$9:$BB$171,16,FALSE) -> Porcentaje | F40: 0.95 | G40: =+VLOOKUP(B40,'tablero nal'!$W$9:$BB$171,4,FALSE) -> 1 | H40: =+N40 -> 0.96 | I40: 0.96 | J40: =+VLOOKUP(B40,'tablero nal'!$W$9:$AB$171,3,FALSE) -> 1 | K40: 0.957 | L40: 0.957 | M40: =+VLOOKUP(B40,'tablero nal'!$W$9:$AB$171,6,FALSE) -> 1 | N40: =+VLOOKUP(B40&"_1",base!$E$4:$BO$7756,$N$6,FALSE) -> 0.96 | O40: 0.96
B41: PA-42 | C41: =+VLOOKUP(B41,'tablero nal'!$W$9:$X$171,2,FALSE) -> Porcentaje de adolescentes y jóvenes del SRPA, con más de seis meses de permanencia en el Programa de Atención con la garantía de ejercicio de sus derechos (Identidad, Salud y Educación) | D41: =+VLOOKUP($B41,'tablero nal'!$W$9:$BB$171,16,FALSE) -> Porcentaje | E41: X | F41: - | G41: =+VLOOKUP(B41,'tablero nal'!$W$9:$BB$171,4,FALSE) -> 1 | H41: =+N41 -> NA | I41: - | J41: =+VLOOKUP(B41,'tablero nal'!$W$9:$AB$171,3,FALSE) -> 0.25 | K41: 0.3592 | L41: 1.4368 | M41: =+VLOOKUP(B41,'tablero nal'!$W$9:$AB$171,6,FALSE) -> 1 | N41: =+VLOOKUP(B41&"_1",base!$E$4:$BO$7756,$N$6,FALSE) -> NA | O41: NA
B42: PA-43 | C42: =+VLOOKUP(B42,'tablero nal'!$W$9:$X$171,2,FALSE) -> Porcentaje de adolescentes y jóvenes que egresan el ultimo año del SRPA por cumplimiento de sanción privativa de la libertad, atendidos con estrategias post egreso o inclusión social. | D42: =+VLOOKUP($B42,'tablero nal'!$W$9:$BB$171,16,FALSE) -> Porcentaje | E42: X | F42: - | G42: =+VLOOKUP(B42,'tablero nal'!$W$9:$BB$171,4,FALSE) -> 0.65 | H42: NA | I42: - | J42: =+VLOOKUP(B42,'tablero nal'!$W$9:$AB$171,3,FALSE) -> 0.12 | K42: 0.1705 | L42: 1.420833333 | M42: =+VLOOKUP(B42,'tablero nal'!$W$9:$AB$171,6,FALSE) -> 0.55 | N42: =+VLOOKUP(B42&"_1",base!$E$4:$BO$7756,$N$6,FALSE) -> NA | O42: NA
B43: PA-44 | C43: =+VLOOKUP(B43,'tablero nal'!$W$9:$X$171,2,FALSE) -> Porcentaje de Regionales con la implementación de servicios para el cumplimiento de sanciones no privativas de libertad. | D43: =+VLOOKUP($B43,'tablero nal'!$W$9:$BB$171,16,FALSE) -> Porcentaje | F43: 0.25 | G43: =+VLOOKUP(B43,'tablero nal'!$W$9:$BB$171,4,FALSE) -> 1 | H43: NA | I43: - | J43: =+VLOOKUP(B43,'tablero nal'!$W$9:$AB$171,3,FALSE) -> 0.25 | K43: 0.2581 | L43: 1.0324 | M43: =+VLOOKUP(B43,'tablero nal'!$W$9:$AB$171,6,FALSE) -> 0.5 | N43: =+VLOOKUP(B43&"_1",base!$E$4:$BO$7756,$N$6,FALSE) -> NA | O43: NA
B44: PA-45 | C44: =+VLOOKUP(B44,'tablero nal'!$W$9:$X$171,2,FALSE) -> Porcentaje de Unidades de Servicio de Atención a adolescentes y jóvenes del Sistema de Responsbilidad Penal - SRPA, con implementación de procesos de formación en prácticas restaurativas | D44: =+VLOOKUP($B44,'tablero nal'!$W$9:$BB$171,16,FALSE) -> Porcentaje | E44: X | F44: 0.3 | G44: =+VLOOKUP(B44,'tablero nal'!$W$9:$BB$171,4,FALSE) -> 1 | H44: NA | I44: - | J44: =+VLOOKUP(B44,'tablero nal'!$W$9:$AB$171,3,FALSE) -> 0.5 | K44: 0.5 | L44: 1 | M44: =+VLOOKUP(B44,'tablero nal'!$W$9:$AB$171,6,FALSE) -> 0.67 | N44: =+VLOOKUP(B44&"_1",base!$E$4:$BO$7756,$N$6,FALSE) -> NA | O44: NA
B45: PA-49 | C45: =+VLOOKUP(B45,'tablero nal'!$W$9:$X$171,2,FALSE) -> Porcentaje de avance en la implementación del Plan Estratégico de Gestión Humana. | D45: =+VLOOKUP($B45,'tablero nal'!$W$9:$BB$171,16,FALSE) -> Porcentaje | F45: - | G45: =+VLOOKUP(B45,'tablero nal'!$W$9:$BB$171,4,FALSE) -> 1 | H45: =+N45 -> NA | I45: - | J45: =+VLOOKUP(B45,'tablero nal'!$W$9:$AB$171,3,FALSE) -> 0.35 | K45: 0.3159 | L45: 0.9025714286 | M45: =+VLOOKUP(B45,'tablero nal'!$W$9:$AB$171,6,FALSE) -> 1 | N45: =+VLOOKUP(B45&"_1",base!$E$4:$BO$7756,$N$6,FALSE) -> NA | O45: NA
B46: PA-50 | C46: =+VLOOKUP(B46,'tablero nal'!$W$9:$X$171,2,FALSE) -> Porcentaje de ejecución de PAC Recursos Nación | D46: =+VLOOKUP($B46,'tablero nal'!$W$9:$BB$171,16,FALSE) -> Porcentaje | F46: - | G46: =+VLOOKUP(B46,'tablero nal'!$W$9:$BB$171,4,FALSE) -> 1 | H46: 0.984 | I46: 0.984 | J46: =+VLOOKUP(B46,'tablero nal'!$W$9:$AB$171,3,FALSE) -> 1 | K46: 0.9813 | L46: 0.9813 | M46: =+VLOOKUP(B46,'tablero nal'!$W$9:$AB$171,6,FALSE) -> 1 | N46: =+VLOOKUP(B46&"_1",base!$E$4:$BO$7756,$N$6,FALSE) -> 0.984 | O46: 0.984
B47: PA-51 | C47: =+VLOOKUP(B47,'tablero nal'!$W$9:$X$171,2,FALSE) -> Porcentaje de ejecución de PAC Recursos Propios | D47: =+VLOOKUP($B47,'tablero nal'!$W$9:$BB$171,16,FALSE) -> Porcentaje | F47: - | G47: =+VLOOKUP(B47,'tablero nal'!$W$9:$BB$171,4,FALSE) -> 1 | H47: 0.956 | I47: 0.956 | J47: =+VLOOKUP(B47,'tablero nal'!$W$9:$AB$171,3,FALSE) -> 1 | K47: 0.8897 | L47: 0.8897 | M47: =+VLOOKUP(B47,'tablero nal'!$W$9:$AB$171,6,FALSE) -> 1 | N47: =+VLOOKUP(B47&"_1",base!$E$4:$BO$7756,$N$6,FALSE) -> 0.956 | O47: 0.956
B48: PA-52 | C48: =+VLOOKUP(B48,'tablero nal'!$W$9:$X$171,2,FALSE) -> Porcentaje de quejas disciplinarias de vigencias anteriores tramitadas | D48: =+VLOOKUP($B48,'tablero nal'!$W$9:$BB$171,16,FALSE) -> Porcentaje | F48: 0.7 | G48: =+VLOOKUP(B48,'tablero nal'!$W$9:$BB$171,4,FALSE) -> 0.8 | H48: 0.8287 | I48: 1.035875 | J48: =+VLOOKUP(B48,'tablero nal'!$W$9:$AB$171,3,FALSE) -> 0.8 | K48: 0.8287 | L48: 1.035875 | M48: =+VLOOKUP(B48,'tablero nal'!$W$9:$AB$171,6,FALSE) -> 0.85 | N48: =+VLOOKUP(B48&"_1",base!$E$4:$BO$7756,$N$6,FALSE) -> NA | O48: NA
B49: PA-53 | C49: =+VLOOKUP(B49,'tablero nal'!$W$9:$X$171,2,FALSE) -> Número de Regionales que implementan la Estrategia de Compras Locales y Compras Eficientes | D49: =+VLOOKUP($B49,'tablero nal'!$W$9:$BB$171,16,FALSE) -> Número | F49: 3 | G49: =+VLOOKUP(B49,'tablero nal'!$W$9:$BB$171,4,FALSE) -> 26 | H49: =+N49 -> NA | I49: - | J49: =+VLOOKUP(B49,'tablero nal'!$W$9:$AB$171,3,FALSE) -> 8 | K49: 8 | L49: 1 | M49: =+VLOOKUP(B49,'tablero nal'!$W$9:$AB$171,6,FALSE) -> 14 | N49: =+VLOOKUP(B49&"_1",base!$E$4:$BO$7756,$N$6,FALSE) -> NA | O49: NA
B50: PA-54 | C50: =+VLOOKUP(B50,'tablero nal'!$W$9:$X$171,2,FALSE) -> Número de modalidades de atención del ICBF que cuentan con modelos de costos. | D50: =+VLOOKUP($B50,'tablero nal'!$W$9:$BB$171,16,FALSE) -> Número | F50: 65 | G50: =+VLOOKUP(B50,'tablero nal'!$W$9:$BB$171,4,FALSE) -> 109 | H50: =+N50 -> NA | I50: - | J50: =+VLOOKUP(B50,'tablero nal'!$W$9:$AB$171,3,FALSE) -> 70 | K50: 71 | L50: 1.014285714 | M50: =+VLOOKUP(B50,'tablero nal'!$W$9:$AB$171,6,FALSE) -> 79 | N50: =+VLOOKUP(B50&"_1",base!$E$4:$BO$7756,$N$6,FALSE) -> NA | O50: NA
B51: PA-56 | C51: =+VLOOKUP(B51,'tablero nal'!$W$9:$X$171,2,FALSE) -> Porcentaje de cumplimiento en el diseño e implementación del PLAN MAESTRO DE INFRAESTRUCTURA | D51: =+VLOOKUP($B51,'tablero nal'!$W$9:$BB$171,16,FALSE) -> Porcentaje | F51: - | G51: =+VLOOKUP(B51,'tablero nal'!$W$9:$BB$171,4,FALSE) -> 1 | H51: 0.1667 | I51: 0.1667 | J51: =+VLOOKUP(B51,'tablero nal'!$W$9:$AB$171,3,FALSE) -> 0.25 | K51: 0.1667 | L51: 0.6668 | M51: =+VLOOKUP(B51,'tablero nal'!$W$9:$AB$171,6,FALSE) -> 0.5 | N51: =+VLOOKUP(B51&"_1",base!$E$4:$BO$7756,$N$6,FALSE) -> NA | O51: NA
B52: PA-57 | C52: =+VLOOKUP(B52,'tablero nal'!$W$9:$X$171,2,FALSE) -> Porcentaje de cumplimiento en el diseño e implementación de un modelo de gestión administrativa | D52: =+VLOOKUP($B52,'tablero nal'!$W$9:$BB$171,16,FALSE) -> Porcentaje | F52: - | G52: =+VLOOKUP(B52,'tablero nal'!$W$9:$BB$171,4,FALSE) -> 1 | H52: 0.25 | I52: 0.25 | J52: =+VLOOKUP(B52,'tablero nal'!$W$9:$AB$171,3,FALSE) -> 0.25 | K52: 0.25 | L52: 1 | M52: =+VLOOKUP(B52,'tablero nal'!$W$9:$AB$171,6,FALSE) -> 0.5 | N52: =+VLOOKUP(B52&"_1",base!$E$4:$BO$7756,$N$6,FALSE) -> NA | O52: NA
B53: PA-63 | C53: =+VLOOKUP(B53,'tablero nal'!$W$9:$X$171,2,FALSE) -> Porcentaje de avance de la actualización y aplicación del Proceso de Adquisición de Bienes y Servicios | D53: =+VLOOKUP($B53,'tablero nal'!$W$9:$BB$171,16,FALSE) -> Porcentaje | F53: - | G53: =+VLOOKUP(B53,'tablero nal'!$W$9:$BB$171,4,FALSE) -> 1 | H53: 0.9 | I53: 0.9 | J53: =+VLOOKUP(B53,'tablero nal'!$W$9:$AB$171,3,FALSE) -> 1 | K53: 0.9 | L53: 0.9 | M53: =+VLOOKUP(B53,'tablero nal'!$W$9:$AB$171,6,FALSE) -> 1 | N53: =+VLOOKUP(B53&"_1",base!$E$4:$BO$7756,$N$6,FALSE) -> NA | O53: NA
B54: PA-65 | C54: =+VLOOKUP(B54,'tablero nal'!$W$9:$X$171,2,FALSE) -> Porcentaje de avance en el diseño e implementacion de un modelo eficiente de prevencion del daño antijuridico. | D54: =+VLOOKUP($B54,'tablero nal'!$W$9:$BB$171,16,FALSE) -> Porcentaje | F54: - | G54: =+VLOOKUP(B54,'tablero nal'!$W$9:$BB$171,4,FALSE) -> 1 | H54: 0.5 | I54: 0.5 | J54: =+VLOOKUP(B54,'tablero nal'!$W$9:$AB$171,3,FALSE) -> 0.5 | K54: 0.5 | L54: 1 | M54: =+VLOOKUP(B54,'tablero nal'!$W$9:$AB$171,6,FALSE) -> 0.75 | N54: =+VLOOKUP(B54&"_1",base!$E$4:$BO$7756,$N$6,FALSE) -> NA | O54: NA
B55: PA-66 | C55: =+VLOOKUP(B55,'tablero nal'!$W$9:$X$171,2,FALSE) -> Porcentaje de cumplimiento de diseño e implementación del modelo de acompañamiento. | D55: =+VLOOKUP($B55,'tablero nal'!$W$9:$BB$171,16,FALSE) -> Porcentaje Avance | F55: - | G55: =+VLOOKUP(B55,'tablero nal'!$W$9:$BB$171,4,FALSE) -> 1 | H55: 0.166675 | I55: 0.166675 | J55: =+VLOOKUP(B55,'tablero nal'!$W$9:$AB$171,3,FALSE) -> 0.25 | K55: 0.166675 | L55: 0.6667 | M55: =+VLOOKUP(B55,'tablero nal'!$W$9:$AB$171,6,FALSE) -> 0.5 | N55: =+VLOOKUP(B55&"_1",base!$E$4:$BO$7756,$N$6,FALSE) -> NA | O55: NA
B56: PA-68 | C56: =+VLOOKUP(B56,'tablero nal'!$W$9:$X$171,2,FALSE) -> Número de departamentos con la " estrategia de articulación" con la cooperación implementada | D56: =+VLOOKUP($B56,'tablero nal'!$W$9:$BB$171,16,FALSE) -> Número | F56: - | G56: =+VLOOKUP(B56,'tablero nal'!$W$9:$BB$171,4,FALSE) -> 32 | H56: =+N56 -> NA | I56: - | J56: =+VLOOKUP(B56,'tablero nal'!$W$9:$AB$171,3,FALSE) -> 10 | K56: 10 | L56: 1 | M56: =+VLOOKUP(B56,'tablero nal'!$W$9:$AB$171,6,FALSE) -> 18 | N56: =+VLOOKUP(B56&"_1",base!$E$4:$BO$7756,$N$6,FALSE) -> NA | O56: NA
B57: PA-69 | C57: =+VLOOKUP(B57,'tablero nal'!$W$9:$X$171,2,FALSE) -> Número de alianzas gestionadas con el sector privado y ayuda oficial al desarrollo | D57: =+VLOOKUP($B57,'tablero nal'!$W$9:$BB$171,16,FALSE) -> Número | F57: 210 | G57: =+VLOOKUP(B57,'tablero nal'!$W$9:$BB$171,4,FALSE) -> 210 | H57: NA | I57: - | J57: =+VLOOKUP(B57,'tablero nal'!$W$9:$AB$171,3,FALSE) -> 50 | K57: 64 | L57: 1.28 | M57: =+VLOOKUP(B57,'tablero nal'!$W$9:$AB$171,6,FALSE) -> 100 | N57: =+VLOOKUP(B57&"_1",base!$E$4:$BO$7756,$N$6,FALSE) -> NA | O57: NA
B58: PA-70 | C58: =+VLOOKUP(B58,'tablero nal'!$W$9:$X$171,2,FALSE) -> Número de beneficios gestionados para los niños, niñas y adolescentes beneficiaros de los programas del ICBF. | D58: =+VLOOKUP($B58,'tablero nal'!$W$9:$BB$171,16,FALSE) -> Número | F58: 383680 | G58: =+VLOOKUP(B58,'tablero nal'!$W$9:$BB$171,4,FALSE) -> 400000 | H58: NA | I58: - | J58: =+VLOOKUP(B58,'tablero nal'!$W$9:$AB$171,3,FALSE) -> 100000 | K58: 131567 | L58: 1.31567 | M58: =+VLOOKUP(B58,'tablero nal'!$W$9:$AB$171,6,FALSE) -> 200000 | N58: =+VLOOKUP(B58&"_1",base!$E$4:$BO$7756,$N$6,FALSE) -> NA | O58: NA
B59: PA-71 | C59: =+VLOOKUP(B59,'tablero nal'!$W$9:$X$171,2,FALSE) -> Recursos obtenidos por cooperación (cifras en millones) | D59: =+VLOOKUP($B59,'tablero nal'!$W$9:$BB$171,16,FALSE) -> Número | F59: 135557 | G59: =+VLOOKUP(B59,'tablero nal'!$W$9:$BB$171,4,FALSE) -> 200000 | H59: 157036 | I59: 0.78518 | J59: =+VLOOKUP(B59,'tablero nal'!$W$9:$AB$171,3,FALSE) -> 40000 | K59: 65804 | L59: 1.6451 | M59: =+VLOOKUP(B59,'tablero nal'!$W$9:$AB$171,6,FALSE) -> 90000 | N59: =+VLOOKUP(B59&"_1",base!$E$4:$BO$7756,$N$6,FALSE) -> 157036 | O59: 1.744844444
B60: PA-73 | C60: =+VLOOKUP(B60,'tablero nal'!$W$9:$X$171,2,FALSE) -> Porcentaje de Implementación del Modelo de servicio puntos de atención ICBF a nivel nacional. | D60: =+VLOOKUP($B60,'tablero nal'!$W$9:$BB$171,16,FALSE) -> Porcentaje | F60: - | G60: =+VLOOKUP(B60,'tablero nal'!$W$9:$BB$171,4,FALSE) -> 1 | H60: NA | I60: - | J60: =+VLOOKUP(B60,'tablero nal'!$W$9:$AB$171,3,FALSE) -> 0.3 | K60: 0.3 | L60: 1 | M60: =+VLOOKUP(B60,'tablero nal'!$W$9:$AB$171,6,FALSE) -> 0.6 | N60: =+VLOOKUP(B60&"_1",base!$E$4:$BO$7756,$N$6,FALSE) -> NA | O60: NA
B61: PA-75 | C61: =+VLOOKUP(B61,'tablero nal'!$W$9:$X$171,2,FALSE) -> Porcentaje de avance en la definción e implementación de integración e interoperabilidad de los sistemas de información | D61: =+VLOOKUP($B61,'tablero nal'!$W$9:$BB$171,16,FALSE) -> Porcentaje | F61: - | G61: =+VLOOKUP(B61,'tablero nal'!$W$9:$BB$171,4,FALSE) -> 1 | H61: NA | I61: - | J61: =+VLOOKUP(B61,'tablero nal'!$W$9:$AB$171,3,FALSE) -> 0.2 | K61: 0.2 | L61: 1 | M61: =+VLOOKUP(B61,'tablero nal'!$W$9:$AB$171,6,FALSE) -> 0.4 | N61: =+VLOOKUP(B61&"_1",base!$E$4:$BO$7756,$N$6,FALSE) -> NA | O61: NA
B62: PA-77 | C62: =+VLOOKUP(B62,'tablero nal'!$W$9:$X$171,2,FALSE) -> Número de campañas desarrolladas que alcanzan cobertura nacional y cumplen con el plan de medios programado | D62: =+VLOOKUP($B62,'tablero nal'!$W$9:$BB$171,16,FALSE) -> Número | F62: - | G62: =+VLOOKUP(B62,'tablero nal'!$W$9:$BB$171,4,FALSE) -> 16 | H62: 4 | I62: 0.25 | J62: =+VLOOKUP(B62,'tablero nal'!$W$9:$AB$171,3,FALSE) -> 4 | K62: 4 | L62: 1 | M62: =+VLOOKUP(B62,'tablero nal'!$W$9:$AB$171,6,FALSE) -> 8 | N62: =+VLOOKUP(B62&"_1",base!$E$4:$BO$7756,$N$6,FALSE) -> NA | O62: NA
B63: PA-78 | C63: =+VLOOKUP(B63,'tablero nal'!$W$9:$X$171,2,FALSE) -> Número de visitas a la información publicada por la Oficina Asesora de Comunicaciones en la pagina web. | D63: =+VLOOKUP($B63,'tablero nal'!$W$9:$BB$171,16,FALSE) -> Número | F63: 3590432 | G63: =+VLOOKUP(B63,'tablero nal'!$W$9:$BB$171,4,FALSE) -> 4021284 | H63: 3439838 | I63: 0.8554078747 | J63: =+VLOOKUP(B63,'tablero nal'!$W$9:$AB$171,3,FALSE) -> 3698145 | K63: 3439838 | L63: 0.930152279 | M63: =+VLOOKUP(B63,'tablero nal'!$W$9:$AB$171,6,FALSE) -> 3809089 | N63: =+VLOOKUP(B63&"_1",base!$E$4:$BO$7756,$N$6,FALSE) -> NA | O63: NA
B64: PA-82 | C64: =+VLOOKUP(B64,'tablero nal'!$W$9:$X$171,2,FALSE) -> Porcentaje de Integración del modelo de costos del ICBF dentro de las Metas Sociales y Financieras | D64: =+VLOOKUP($B64,'tablero nal'!$W$9:$BB$171,16,FALSE) -> Porcentaje | F64: - | G64: =+VLOOKUP(B64,'tablero nal'!$W$9:$BB$171,4,FALSE) -> 1 | H64: 0.6854 | I64: 0.6854 | J64: =+VLOOKUP(B64,'tablero nal'!$W$9:$AB$171,3,FALSE) -> 0.6 | K64: 0.6854 | L64: 1.142333333 | M64: =+VLOOKUP(B64,'tablero nal'!$W$9:$AB$171,6,FALSE) -> 0.8 | N64: =+VLOOKUP(B64&"_1",base!$E$4:$BO$7756,$N$6,FALSE) -> NA | O64: NA
B65: PA-85 | C65: =+VLOOKUP(B65,'tablero nal'!$W$9:$X$171,2,FALSE) -> Porcentaje de Avance en el Desarrollo del modelo de Distribución de Recursos | D65: =+VLOOKUP($B65,'tablero nal'!$W$9:$BB$171,16,FALSE) -> Porcentaje | F65: - | G65: =+VLOOKUP(B65,'tablero nal'!$W$9:$BB$171,4,FALSE) -> 1 | H65: 0.5833 | I65: 0.5833 | J65: =+VLOOKUP(B65,'tablero nal'!$W$9:$AB$171,3,FALSE) -> 0.6 | K65: 0.5833 | L65: 0.9721666667 | M65: =+VLOOKUP(B65,'tablero nal'!$W$9:$AB$171,6,FALSE) -> 0.8 | N65: =+VLOOKUP(B65&"_1",base!$E$4:$BO$7756,$N$6,FALSE) -> NA | O65: NA
B66: PA-86 | C66: =+VLOOKUP(B66,'tablero nal'!$W$9:$X$171,2,FALSE) -> Número de certificados en estándares nacionales e internacionales de calidad, ambiental, seguridad de la información, seguridad y salud en el trabajo. | D66: =+VLOOKUP($B66,'tablero nal'!$W$9:$BB$171,16,FALSE) -> Número | F66: 66 | G66: =+VLOOKUP(B66,'tablero nal'!$W$9:$BB$171,4,FALSE) -> 136 | H66: 67 | I66: 0.4926470588 | J66: =+VLOOKUP(B66,'tablero nal'!$W$9:$AB$171,3,FALSE) -> 66 | K66: 67 | L66: 1.015151515 | M66: =+VLOOKUP(B66,'tablero nal'!$W$9:$AB$171,6,FALSE) -> 134 | N66: =+VLOOKUP(B66&"_1",base!$E$4:$BO$7756,$N$6,FALSE) -> NA | O66: NA
B67: PA-88 | C67: =+VLOOKUP(B67,'tablero nal'!$W$9:$X$171,2,FALSE) -> Porcentaje de avance en la implementación del Plan para postulación al Premio Colombiano a la Calidad de la Gestión | D67: =+VLOOKUP($B67,'tablero nal'!$W$9:$BB$171,16,FALSE) -> Porcentaje | F67: - | G67: =+VLOOKUP(B67,'tablero nal'!$W$9:$BB$171,4,FALSE) -> 1 | H67: 1 | I67: 1 | J67: =+VLOOKUP(B67,'tablero nal'!$W$9:$AB$171,3,FALSE) -> 1 | K67: 1 | L67: 1 | M67: =+VLOOKUP(B67,'tablero nal'!$W$9:$AB$171,6,FALSE) -> 1 | N67: =+VLOOKUP(B67&"_1",base!$E$4:$BO$7756,$N$6,FALSE) -> NA | O67: NA
B68: PA-89 | C68: =+VLOOKUP(B68,'tablero nal'!$W$9:$X$171,2,FALSE) -> Numero de trámites y/o procedimientos administrativos racionalizados y actualizados en el portal SUIT | D68: =+VLOOKUP($B68,'tablero nal'!$W$9:$BB$171,16,FALSE) -> Número | F68: 13 | G68: =+VLOOKUP(B68,'tablero nal'!$W$9:$BB$171,4,FALSE) -> 13 | H68: 3 | I68: 0.2307692308 | J68: =+VLOOKUP(B68,'tablero nal'!$W$9:$AB$171,3,FALSE) -> 3 | K68: 3 | L68: 1 | M68: =+VLOOKUP(B68,'tablero nal'!$W$9:$AB$171,6,FALSE) -> 7 | N68: =+VLOOKUP(B68&"_1",base!$E$4:$BO$7756,$N$6,FALSE) -> NA | O68: NA
B69: PA-96 | C69: =+VLOOKUP(B69,'tablero nal'!$W$9:$X$171,2,FALSE) -> Número de Evaluaciones e investigaciones realizadas | D69: =+VLOOKUP($B69,'tablero nal'!$W$9:$BB$171,16,FALSE) -> Número | F69: 12 | G69: =+VLOOKUP(B69,'tablero nal'!$W$9:$BB$171,4,FALSE) -> 36 | H69: 1 | I69: 0.02777777778 | J69: =+VLOOKUP(B69,'tablero nal'!$W$9:$AB$171,3,FALSE) -> 9 | K69: 1 | L69: 0.1111111111 | M69: =+VLOOKUP(B69,'tablero nal'!$W$9:$AB$171,6,FALSE) -> 19 | N69: =+VLOOKUP(B69&"_1",base!$E$4:$BO$7756,$N$6,FALSE) -> NA | O69: NA
B70: PA-97 | C70: =+VLOOKUP(B70,'tablero nal'!$W$9:$X$171,2,FALSE) -> Porcentaje de avance del diseño e implementación de la sistematización del tablero de control | D70: =+VLOOKUP($B70,'tablero nal'!$W$9:$BB$171,16,FALSE) -> Porcentaje | F70: - | G70: =+VLOOKUP(B70,'tablero nal'!$W$9:$BB$171,4,FALSE) -> 1 | H70: 0.5 | I70: 0.5 | J70: =+VLOOKUP(B70,'tablero nal'!$W$9:$AB$171,3,FALSE) -> 0.5 | K70: 0.5 | L70: 1 | M70: =+VLOOKUP(B70,'tablero nal'!$W$9:$AB$171,6,FALSE) -> 0.75 | N70: =+VLOOKUP(B70&"_1",base!$E$4:$BO$7756,$N$6,FALSE) -> NA | O70: NA
B71: PA-90 | C71: =+VLOOKUP(B71,'tablero nal'!$W$9:$X$171,2,FALSE) -> Número de Municipios y departamentos asistidos técnicamente en el ciclo de gestión de la Política Pública de primera Infancia, Infancia Adolescencia y fortalecimiento a la Familia | D71: =+VLOOKUP($B71,'tablero nal'!$W$9:$BB$171,16,FALSE) -> Número | F71: - | G71: =+VLOOKUP(B71,'tablero nal'!$W$9:$BB$171,4,FALSE) -> 1133 | H71: 1133 | I71: 1 | J71: =+VLOOKUP(B71,'tablero nal'!$W$9:$AB$171,3,FALSE) -> 1134 | K71: 1133 | L71: 0.9991181658 | M71: =+VLOOKUP(B71,'tablero nal'!$W$9:$AB$171,6,FALSE) -> 1133 | N71: =+VLOOKUP(B71&"_1",base!$E$4:$BO$7756,$N$6,FALSE) -> NA | O71: NA
B72: PA-91 | C72: =+VLOOKUP(B72,'tablero nal'!$W$9:$X$171,2,FALSE) -> Número de entidades territoriales con acompañamiento para la implementación de la Ruta Integral de Atenciones | D72: =+VLOOKUP($B72,'tablero nal'!$W$9:$BB$171,16,FALSE) -> Número | E72: X | F72: 150 | G72: =+VLOOKUP(B72,'tablero nal'!$W$9:$BB$171,4,FALSE) -> 350 | H72: 150 | I72: 0.4285714286 | J72: =+VLOOKUP(B72,'tablero nal'!$W$9:$AB$171,3,FALSE) -> 150 | K72: 150 | L72: 1 | M72: =+VLOOKUP(B72,'tablero nal'!$W$9:$AB$171,6,FALSE) -> 220 | N72: =+VLOOKUP(B72&"_1",base!$E$4:$BO$7756,$N$6,FALSE) -> NA | O72: NA
B73: PA-92 | C73: =+VLOOKUP(B73,'tablero nal'!$W$9:$X$171,2,FALSE) -> Número de Municipios y departamentos monitoreados en la operación de los Consejos de Política Social | D73: =+VLOOKUP($B73,'tablero nal'!$W$9:$BB$171,16,FALSE) -> Número | F73: 1133 | G73: =+VLOOKUP(B73,'tablero nal'!$W$9:$BB$171,4,FALSE) -> 1133 | H73: =+K73 -> 1133 | I73: 1 | J73: =+VLOOKUP(B73,'tablero nal'!$W$9:$AB$171,3,FALSE) -> 1134 | K73: 1133 | L73: 0.9991181658 | M73: =+VLOOKUP(B73,'tablero nal'!$W$9:$AB$171,6,FALSE) -> 1113 | N73: =+VLOOKUP(B73&"_1",base!$E$4:$BO$7756,$N$6,FALSE) -> NA | O73: NA
B74: PA-93 | C74: =+VLOOKUP(B74,'tablero nal'!$W$9:$X$171,2,FALSE) -> Porcentaje del Plan de acción del SNBF 2015 -2018 construido, validado (2015), implementado, monitoreado (2016-2017) y evaluado (2018) | D74: =+VLOOKUP($B74,'tablero nal'!$W$9:$BB$171,16,FALSE) -> Porcentaje Avance | F74: - | G74: =+VLOOKUP(B74,'tablero nal'!$W$9:$BB$171,4,FALSE) -> 1 | H74: =+N74 -> NA | I74: =+IFERROR(H74/G74,"-") -> - | J74: =+VLOOKUP(B74,'tablero nal'!$W$9:$AB$171,3,FALSE) -> 0.4 | K74: 0.4 | L74: =+K74/J74 -> 1 | M74: =+VLOOKUP(B74,'tablero nal'!$W$9:$AB$171,6,FALSE) -> 0.6 | N74: =+VLOOKUP(B74&"_1",base!$E$4:$BO$7756,$N$6,FALSE) -> NA | O74: =IFERROR(N74/M74,"NA") -> NA
B75: PA-94 | C75: =+VLOOKUP(B75,'tablero nal'!$W$9:$X$171,2,FALSE) -> Porcentaje de indicadores del SUIN con información disponible según su hoja de vida. | D75: =+VLOOKUP($B75,'tablero nal'!$W$9:$BB$171,16,FALSE) -> Porcentaje | F75: - | G75: =+VLOOKUP(B75,'tablero nal'!$W$9:$BB$171,4,FALSE) -> 1 | H75: 1 | I75: 1 | J75: =+VLOOKUP(B75,'tablero nal'!$W$9:$AB$171,3,FALSE) -> 1 | K75: 1 | L75: 1 | M75: =+VLOOKUP(B75,'tablero nal'!$W$9:$AB$171,6,FALSE) -> 1 | N75: =+VLOOKUP(B75&"_1",base!$E$4:$BO$7756,$N$6,FALSE) -> NA | O75: NA
B76: PA-95 | C76: =+VLOOKUP(B76,'tablero nal'!$W$9:$X$171,2,FALSE) -> Número de proyectos tipo de inversión formulados y socializados con las entidades territoriales con el fin de acceder a recursos del Sistema de Regalias. | D76: =+VLOOKUP($B76,'tablero nal'!$W$9:$BB$171,16,FALSE) -> Número | F76: - | G76: =+VLOOKUP(B76,'tablero nal'!$W$9:$BB$171,4,FALSE) -> 6 | H76: =+K76+N76 ->  | I76: - | J76: =+VLOOKUP(B76,'tablero nal'!$W$9:$AB$171,3,FALSE) -> 2 | K76: 2 | L76: 1 | M76: =+VLOOKUP(B76,'tablero nal'!$W$9:$AB$171,6,FALSE) -> 2 | N76: =+VLOOKUP(B76&"_1",base!$E$4:$BO$7756,$N$6,FALSE) -> NA | O76: NA
B77: PA-99 | C77: =+VLOOKUP(B77,'tablero nal'!$W$9:$X$171,2,FALSE) -> Porcentaje de Ejecución de Auditoria del Sistema de Gestión de Calidad a Regionales | D77: =+VLOOKUP($B77,'tablero nal'!$W$9:$BB$171,16,FALSE) -> Porcentaje Avance | F77: 0.47 | G77: =+VLOOKUP(B77,'tablero nal'!$W$9:$BB$171,4,FALSE) -> 1 | H77: 0.8889 | I77: 0.8889 | J77: =+VLOOKUP(B77,'tablero nal'!$W$9:$AB$171,3,FALSE) -> 1 | K77: 0.8889 | L77: 0.8889 | M77: =+VLOOKUP(B77,'tablero nal'!$W$9:$AB$171,6,FALSE) -> 1 | N77: =+VLOOKUP(B77&"_1",base!$E$4:$BO$7756,$N$6,FALSE) -> NA | O77: NA
B78: PA-100 | C78: =+VLOOKUP(B78,'tablero nal'!$W$9:$X$171,2,FALSE) -> Porcentaje de Ejecución de Auditoria del Sistema de Gestión de Calidad a los Macro procesos/procesos de la Sede de la Dirección General. | D78: =+VLOOKUP($B78,'tablero nal'!$W$9:$BB$171,16,FALSE) -> Porcentaje | F78: 0.37 | G78: =+VLOOKUP(B78,'tablero nal'!$W$9:$BB$171,4,FALSE) -> 1 | H78: 1 | I78: 1 | J78: =+VLOOKUP(B78,'tablero nal'!$W$9:$AB$171,3,FALSE) -> 1 | K78: 1 | L78: 1 | M78: =+VLOOKUP(B78,'tablero nal'!$W$9:$AB$171,6,FALSE) -> 1 | N78: =+VLOOKUP(B78&"_1",base!$E$4:$BO$7756,$N$6,FALSE) -> NA | O78: NA
B79: PA-101 | C79: =+VLOOKUP(B79,'tablero nal'!$W$9:$X$171,2,FALSE) -> Porcentaje de Informes generados en cumplimiento de funciones asignadas por normas internas y externas | D79: =+VLOOKUP($B79,'tablero nal'!$W$9:$BB$171,16,FALSE) -> Porcentaje | F79: 1 | G79: =+VLOOKUP(B79,'tablero nal'!$W$9:$BB$171,4,FALSE) -> 1 | H79: 1 | I79: 1 | J79: =+VLOOKUP(B79,'tablero nal'!$W$9:$AB$171,3,FALSE) -> 1 | K79: 1 | L79: 1 | M79: =+VLOOKUP(B79,'tablero nal'!$W$9:$AB$171,6,FALSE) -> 1 | N79: =+VLOOKUP(B79&"_1",base!$E$4:$BO$7756,$N$6,FALSE) -> NA | O79: NA
B80: PA-103 | C80: =+VLOOKUP(B80,'tablero nal'!$W$9:$X$171,2,FALSE) -> Número de visitas a entidades prestadoras del Servicio Público de Bienestar Familiar | D80: =+VLOOKUP($B80,'tablero nal'!$W$9:$BB$171,16,FALSE) -> Número | F80: - | G80: =+VLOOKUP(B80,'tablero nal'!$W$9:$BB$171,4,FALSE) -> 280 | H80: =+N80 -> NA | I80: - | J80: =+VLOOKUP(B80,'tablero nal'!$W$9:$AB$171,3,FALSE) -> 70 | K80: 180 | L80: 2.571428571 | M80: =+VLOOKUP(B80,'tablero nal'!$W$9:$AB$171,6,FALSE) -> 150 | N80: =+VLOOKUP(B80&"_1",base!$E$4:$BO$7756,$N$6,FALSE) -> NA | O80: NA
B81: PA-104 | C81: =+VLOOKUP(B81,'tablero nal'!$W$9:$X$171,2,FALSE) -> Número de auditorías a entidades prestadoras del Servicio Público de Bienestar Familiar | D81: =+VLOOKUP($B81,'tablero nal'!$W$9:$BB$171,16,FALSE) -> Número | F81: - | G81: =+VLOOKUP(B81,'tablero nal'!$W$9:$BB$171,4,FALSE) -> 320 | H81: =+N81 -> NA | I81: - | J81: =+VLOOKUP(B81,'tablero nal'!$W$9:$AB$171,3,FALSE) -> 80 | K81: 96 | L81: 1.2 | M81: =+VLOOKUP(B81,'tablero nal'!$W$9:$AB$171,6,FALSE) -> 150 | N81: =+VLOOKUP(B81&"_1",base!$E$4:$BO$7756,$N$6,FALSE) -> NA | O81: NA
B82: PA-106 | C82: =+VLOOKUP(B82,'tablero nal'!$W$9:$X$171,2,FALSE) -> Número de instituciones prestadoras del Servicio Público de Bienestar Familiar a los cuales se les socializó la Norma Técnica de Empresa - ICBF-NTE 001 | D82: =+VLOOKUP($B82,'tablero nal'!$W$9:$BB$171,16,FALSE) -> Número | F82: 20 | G82: =+VLOOKUP(B82,'tablero nal'!$W$9:$BB$171,4,FALSE) -> 100 | H82: 10 | I82: 0.1 | J82: =+VLOOKUP(B82,'tablero nal'!$W$9:$AB$171,3,FALSE) -> 10 | K82: 10 | L82: 1 | M82: =+VLOOKUP(B82,'tablero nal'!$W$9:$AB$171,6,FALSE) -> 50 | N82: =+VLOOKUP(B82&"_1",base!$E$4:$BO$7756,$N$6,FALSE) -> NA | O82: NA

Sheet sinergia
B2: TABLERO DE CONTROL 2016 INSTITUTO COLOMBIANO DE BIENESTAR FAMILIAR SINERGIA
B5: Mes analisis | K5: Volver al menú | AA5: 6 | AB5: =+AA5+5 -> 11 | AC5: =+AB5+5 -> 16 | AD5: 21 | AE5: 26 | AF5: 31 | AG5: 36 | AH5: 41 | AI5: 46 | AJ5: 51 | AK5: 56 | AL5: 61
B6: =+Menu!C7 -> Noviembre | L6: =+VLOOKUP(B6,referencias!$A$131:$H$142,6,FALSE) -> 56
E7: Cuatrienio | H7: 2015 | K7: 2016 | AA7: Resultados 2016
B8: Cod | C8: Indicador tablero | D8: Linea Base | E8: Meta | F8: Avance | G8: % cuatrienio | H8: Meta | I8: Avance | J8: 20.15 | K8: Meta | L8: Avance | M8: 20.16 | O8: % avance cuatrienio | Q8: % avance 2015 | S8: % avance 2016 | U8: Meta 2017 | W8: Meta 2018 | AA8: Enero | AB8: Febrero | AC8: Marzo | AD8: Abril | AE8: Mayo | AF8: Junio | AG8: Julio | AH8: Agosto | AI8: Septiembre | AJ8: Octubre | AK8: Noviembre | AL8: Diciembre
B9: PA-01 | C9: =+VLOOKUP(B9,'tablero nal'!$W$9:$X$171,2,FALSE) -> Número de niños y niñas atendidos en el marco de la Atención Integral. | D9: 1054857 | E9: 1500000 | F9: =+L9 -> 1160526 | G9: =IFERROR(F9/E9,"") -> 0.773684 | H9: =+VLOOKUP(B9,'tablero nal'!$W$9:$AB$171,3,FALSE) -> 1100000 | I9: 1112883 | J9: =+I9/H9 -> 1.011711818 | K9: =+VLOOKUP(B9,'tablero nal'!$W$9:$AB$171,6,FALSE) -> 1150000 | L9: =+IFERROR(LOOKUP(10000000,$AA9:$AL9),"NA") -> 1160526 | M9: =IFERROR(L9/K9,"NA") -> 1.009153043 | U9: 1350000 | W9: 1500000 | AA9: =+IF(VLOOKUP($B9&"_"&1,base!$E$4:$BO$7756,AA$5,FALSE)=0,"",(VLOOKUP($B9&"_"&1,base!$E$4:$BO$7756,AA$5,FALSE))) -> NA | AB9: =+IF(VLOOKUP($B9&"_"&1,base!$E$4:$BO$7756,AB$5,FALSE)=0,"",(VLOOKUP($B9&"_"&1,base!$E$4:$BO$7756,AB$5,FALSE))) -> 856138 | AC9: =+IF(VLOOKUP($B9&"_"&1,base!$E$4:$BO$7756,AC$5,FALSE)=0,"",(VLOOKUP($B9&"_"&1,base!$E$4:$BO$7756,AC$5,FALSE))) -> 925435 | AD9: =+IF(VLOOKUP($B9&"_"&1,base!$E$4:$BO$7756,AD$5,FALSE)=0,"",(VLOOKUP($B9&"_"&1,base!$E$4:$BO$7756,AD$5,FALSE))) -> 994703 | AE9: =+IF(VLOOKUP($B9&"_"&1,base!$E$4:$BO$7756,AE$5,FALSE)=0,"",(VLOOKUP($B9&"_"&1,base!$E$4:$BO$7756,AE$5,FALSE))) -> 1012396 | AF9: =+IF(VLOOKUP($B9&"_"&1,base!$E$4:$BO$7756,AF$5,FALSE)=0,"",(VLOOKUP($B9&"_"&1,base!$E$4:$BO$7756,AF$5,FALSE))) -> 1116847 | AG9: =+IF(VLOOKUP($B9&"_"&1,base!$E$4:$BO$7756,AG$5,FALSE)=0,"",(VLOOKUP($B9&"_"&1,base!$E$4:$BO$7756,AG$5,FALSE))) -> 1155931 | AH9: =+IF(VLOOKUP($B9&"_"&1,base!$E$4:$BO$7756,AH$5,FALSE)=0,"",(VLOOKUP($B9&"_"&1,base!$E$4:$BO$7756,AH$5,FALSE))) -> 1157527 | AI9: =+IF(VLOOKUP($B9&"_"&1,base!$E$4:$BO$7756,AI$5,FALSE)=0,"",(VLOOKUP($B9&"_"&1,base!$E$4:$BO$7756,AI$5,FALSE))) -> 1176242 | AJ9: =+IF(VLOOKUP($B9&"_"&1,base!$E$4:$BO$7756,AJ$5,FALSE)=0,"",(VLOOKUP($B9&"_"&1,base!$E$4:$BO$7756,AJ$5,FALSE))) -> 1175191 | AK9: =+IF(VLOOKUP($B9&"_"&1,base!$E$4:$BO$7756,AK$5,FALSE)=0,"",(VLOOKUP($B9&"_"&1,base!$E$4:$BO$7756,AK$5,FALSE))) -> 1160526 | AL9: =+IF(VLOOKUP($B9&"_"&1,base!$E$4:$BO$7756,AL$5,FALSE)=0,"",(VLOOKUP($B9&"_"&1,base!$E$4:$BO$7756,AL$5,FALSE))) -> 
B10: PA-04 | C10: =+VLOOKUP(B10,'tablero nal'!$W$9:$X$171,2,FALSE) -> Porcentaje de Hogares Comunitarios que cumplen los estándares de la estrategia de Cero a Siempre. | D10: - | E10: 0.5 | F10: =+L10 -> 0.325 | G10: =IFERROR(F10/E10,"") -> 0.65 | H10: =+VLOOKUP(B10,'tablero nal'!$W$9:$AB$171,3,FALSE) -> 0.2 | I10: 0.2889 | J10: =+I10/H10 -> 1.4445 | K10: =+VLOOKUP(B10,'tablero nal'!$W$9:$AB$171,6,FALSE) -> 0.3 | L10: =+IFERROR(LOOKUP(10000000,$AA10:$AL10),"NA") -> 0.325 | M10: =IFERROR(L10/K10,"NA") -> 1.083333333 | U10: 0.4 | W10: 0.5 | AA10: =+IF(VLOOKUP($B10&"_"&1,base!$E$4:$BO$7756,AA$5,FALSE)=0,"",(VLOOKUP($B10&"_"&1,base!$E$4:$BO$7756,AA$5,FALSE))) -> NA | AB10: =+IF(VLOOKUP($B10&"_"&1,base!$E$4:$BO$7756,AB$5,FALSE)=0,"",(VLOOKUP($B10&"_"&1,base!$E$4:$BO$7756,AB$5,FALSE))) -> NA | AC10: =+IF(VLOOKUP($B10&"_"&1,base!$E$4:$BO$7756,AC$5,FALSE)=0,"",(VLOOKUP($B10&"_"&1,base!$E$4:$BO$7756,AC$5,FALSE))) -> NA | AD10: =+IF(VLOOKUP($B10&"_"&1,base!$E$4:$BO$7756,AD$5,FALSE)=0,"",(VLOOKUP($B10&"_"&1,base!$E$4:$BO$7756,AD$5,FALSE))) -> NA | AE10: =+IF(VLOOKUP($B10&"_"&1,base!$E$4:$BO$7756,AE$5,FALSE)=0,"",(VLOOKUP($B10&"_"&1,base!$E$4:$BO$7756,AE$5,FALSE))) -> NA | AF10: =+IF(VLOOKUP($B10&"_"&1,base!$E$4:$BO$7756,AF$5,FALSE)=0,"",(VLOOKUP($B10&"_"&1,base!$E$4:$BO$7756,AF$5,FALSE))) -> 0.196 | AG10: =+IF(VLOOKUP($B10&"_"&1,base!$E$4:$BO$7756,AG$5,FALSE)=0,"",(VLOOKUP($B10&"_"&1,base!$E$4:$BO$7756,AG$5,FALSE))) -> 0.219 | AH10: =+IF(VLOOKUP($B10&"_"&1,base!$E$4:$BO$7756,AH$5,FALSE)=0,"",(VLOOKUP($B10&"_"&1,base!$E$4:$BO$7756,AH$5,FALSE))) -> 0.219 | AI10: =+IF(VLOOKUP($B10&"_"&1,base!$E$4:$BO$7756,AI$5,FALSE)=0,"",(VLOOKUP($B10&"_"&1,base!$E$4:$BO$7756,AI$5,FALSE))) -> 0.288 | AJ10: =+IF(VLOOKUP($B10&"_"&1,base!$E$4:$BO$7756,AJ$5,FALSE)=0,"",(VLOOKUP($B10&"_"&1,base!$E$4:$BO$7756,AJ$5,FALSE))) -> 0.288 | AK10: =+IF(VLOOKUP($B10&"_"&1,base!$E$4:$BO$7756,AK$5,FALSE)=0,"",(VLOOKUP($B10&"_"&1,base!$E$4:$BO$7756,AK$5,FALSE))) -> 0.325 | AL10: =+IF(VLOOKUP($B10&"_"&1,base!$E$4:$BO$7756,AL$5,FALSE)=0,"",(VLOOKUP($B10&"_"&1,base!$E$4:$BO$7756,AL$5,FALSE))) -> 
B11: PA-05 | C11: =+VLOOKUP(B11,'tablero nal'!$W$9:$X$171,2,FALSE) -> Número de agentes educativos en proceso de formación y/o cualificación en Atención Integral a la Primera Infancia. | D11: 49672 | E11: 60000 | F11: =L11 -> 27253 | G11: 0.4542166667 | H11: =+VLOOKUP(B11,'tablero nal'!$W$9:$AB$171,3,FALSE) -> 20000 | I11: 20000 | J11: 1 | K11: =+VLOOKUP(B11,'tablero nal'!$W$9:$AB$171,6,FALSE) -> 30000 | L11: 27253 | M11: 0.9084333333 | U11: 20000 | W11: 15000 | AA11: =+IF(VLOOKUP($B11&"_"&1,base!$E$4:$BO$7756,AA$5,FALSE)=0,"",(VLOOKUP($B11&"_"&1,base!$E$4:$BO$7756,AA$5,FALSE))) -> NA | AB11: =+IF(VLOOKUP($B11&"_"&1,base!$E$4:$BO$7756,AB$5,FALSE)=0,"",(VLOOKUP($B11&"_"&1,base!$E$4:$BO$7756,AB$5,FALSE))) -> NA | AC11: =+IF(VLOOKUP($B11&"_"&1,base!$E$4:$BO$7756,AC$5,FALSE)=0,"",(VLOOKUP($B11&"_"&1,base!$E$4:$BO$7756,AC$5,FALSE))) -> NA | AD11: =+IF(VLOOKUP($B11&"_"&1,base!$E$4:$BO$7756,AD$5,FALSE)=0,"",(VLOOKUP($B11&"_"&1,base!$E$4:$BO$7756,AD$5,FALSE))) -> NA | AE11: =+IF(VLOOKUP($B11&"_"&1,base!$E$4:$BO$7756,AE$5,FALSE)=0,"",(VLOOKUP($B11&"_"&1,base!$E$4:$BO$7756,AE$5,FALSE))) -> 21253 | AF11: =+IF(VLOOKUP($B11&"_"&1,base!$E$4:$BO$7756,AF$5,FALSE)=0,"",(VLOOKUP($B11&"_"&1,base!$E$4:$BO$7756,AF$5,FALSE))) -> 21253 | AG11: =+IF(VLOOKUP($B11&"_"&1,base!$E$4:$BO$7756,AG$5,FALSE)=0,"",(VLOOKUP($B11&"_"&1,base!$E$4:$BO$7756,AG$5,FALSE))) -> 21253 | AH11: =+IF(VLOOKUP($B11&"_"&1,base!$E$4:$BO$7756,AH$5,FALSE)=0,"",(VLOOKUP($B11&"_"&1,base!$E$4:$BO$7756,AH$5,FALSE))) -> 24253 | AI11: =+IF(VLOOKUP($B11&"_"&1,base!$E$4:$BO$7756,AI$5,FALSE)=0,"",(VLOOKUP($B11&"_"&1,base!$E$4:$BO$7756,AI$5,FALSE))) -> 27253 | AJ11: =+IF(VLOOKUP($B11&"_"&1,base!$E$4:$BO$7756,AJ$5,FALSE)=0,"",(VLOOKUP($B11&"_"&1,base!$E$4:$BO$7756,AJ$5,FALSE))) -> 27253 | AK11: =+IF(VLOOKUP($B11&"_"&1,base!$E$4:$BO$7756,AK$5,FALSE)=0,"",(VLOOKUP($B11&"_"&1,base!$E$4:$BO$7756,AK$5,FALSE))) -> 27253 | AL11: =+IF(VLOOKUP($B11&"_"&1,base!$E$4:$BO$7756,AL$5,FALSE)=0,"",(VLOOKUP($B11&"_"&1,base!$E$4:$BO$7756,AL$5,FALSE))) -> 
B12: PA-07 | C12: =+VLOOKUP(B12,'tablero nal'!$W$9:$X$171,2,FALSE) -> Número de Unidades de servicio con planes de implementación para salas de lectura. | D12: 28 | E12: 150 | F12: =+L12 -> 120 | G12: 0.8 | H12: =+VLOOKUP(B12,'tablero nal'!$W$9:$AB$171,3,FALSE) -> 70 | I12: 70 | J12: 1 | K12: =+VLOOKUP(B12,'tablero nal'!$W$9:$AB$171,6,FALSE) -> 110 | L12: 120 | M12: 1.090909091 | U12: 20 | W12: 20 | AA12: =+IF(VLOOKUP($B12&"_"&1,base!$E$4:$BO$7756,AA$5,FALSE)=0,"",(VLOOKUP($B12&"_"&1,base!$E$4:$BO$7756,AA$5,FALSE))) -> NA | AB12: =+IF(VLOOKUP($B12&"_"&1,base!$E$4:$BO$7756,AB$5,FALSE)=0,"",(VLOOKUP($B12&"_"&1,base!$E$4:$BO$7756,AB$5,FALSE))) -> NA | AC12: =+IF(VLOOKUP($B12&"_"&1,base!$E$4:$BO$7756,AC$5,FALSE)=0,"",(VLOOKUP($B12&"_"&1,base!$E$4:$BO$7756,AC$5,FALSE))) -> NA | AD12: =+IF(VLOOKUP($B12&"_"&1,base!$E$4:$BO$7756,AD$5,FALSE)=0,"",(VLOOKUP($B12&"_"&1,base!$E$4:$BO$7756,AD$5,FALSE))) -> NA | AE12: =+IF(VLOOKUP($B12&"_"&1,base!$E$4:$BO$7756,AE$5,FALSE)=0,"",(VLOOKUP($B12&"_"&1,base!$E$4:$BO$7756,AE$5,FALSE))) -> NA | AF12: =+IF(VLOOKUP($B12&"_"&1,base!$E$4:$BO$7756,AF$5,FALSE)=0,"",(VLOOKUP($B12&"_"&1,base!$E$4:$BO$7756,AF$5,FALSE))) -> NA | AG12: =+IF(VLOOKUP($B12&"_"&1,base!$E$4:$BO$7756,AG$5,FALSE)=0,"",(VLOOKUP($B12&"_"&1,base!$E$4:$BO$7756,AG$5,FALSE))) -> 80 | AH12: =+IF(VLOOKUP($B12&"_"&1,base!$E$4:$BO$7756,AH$5,FALSE)=0,"",(VLOOKUP($B12&"_"&1,base!$E$4:$BO$7756,AH$5,FALSE))) -> 91 | AI12: =+IF(VLOOKUP($B12&"_"&1,base!$E$4:$BO$7756,AI$5,FALSE)=0,"",(VLOOKUP($B12&"_"&1,base!$E$4:$BO$7756,AI$5,FALSE))) -> 101 | AJ12: =+IF(VLOOKUP($B12&"_"&1,base!$E$4:$BO$7756,AJ$5,FALSE)=0,"",(VLOOKUP($B12&"_"&1,base!$E$4:$BO$7756,AJ$5,FALSE))) -> 110 | AK12: =+IF(VLOOKUP($B12&"_"&1,base!$E$4:$BO$7756,AK$5,FALSE)=0,"",(VLOOKUP($B12&"_"&1,base!$E$4:$BO$7756,AK$5,FALSE))) -> 120 | AL12: =+IF(VLOOKUP($B12&"_"&1,base!$E$4:$BO$7756,AL$5,FALSE)=0,"",(VLOOKUP($B12&"_"&1,base!$E$4:$BO$7756,AL$5,FALSE))) -> 
B13: PA-08 | C13: =+VLOOKUP(B13,'tablero nal'!$W$9:$X$171,2,FALSE) -> Porcentaje de EAS de atención a la primera infancia con esquemas de fortalecimiento que generen capacidades para gestionar procesos de calidad. | D13: - | E13: 0.9 | F13: =+L13 -> 0.689 | G13: 0.7655555556 | H13: =+VLOOKUP(B13,'tablero nal'!$W$9:$AB$171,3,FALSE) -> 0.5 | I13: 0.45 | J13: 0.9 | K13: =+VLOOKUP(B13,'tablero nal'!$W$9:$AB$171,6,FALSE) -> 0.9 | L13: 0.689 | M13: 0.7655555556 | U13: 0.05 | W13: 0.05 | AA13: =+IF(VLOOKUP($B13&"_"&1,base!$E$4:$BO$7756,AA$5,FALSE)=0,"",(VLOOKUP($B13&"_"&1,base!$E$4:$BO$7756,AA$5,FALSE))) -> NA | AB13: =+IF(VLOOKUP($B13&"_"&1,base!$E$4:$BO$7756,AB$5,FALSE)=0,"",(VLOOKUP($B13&"_"&1,base!$E$4:$BO$7756,AB$5,FALSE))) -> NA | AC13: =+IF(VLOOKUP($B13&"_"&1,base!$E$4:$BO$7756,AC$5,FALSE)=0,"",(VLOOKUP($B13&"_"&1,base!$E$4:$BO$7756,AC$5,FALSE))) -> NA | AD13: =+IF(VLOOKUP($B13&"_"&1,base!$E$4:$BO$7756,AD$5,FALSE)=0,"",(VLOOKUP($B13&"_"&1,base!$E$4:$BO$7756,AD$5,FALSE))) -> NA | AE13: =+IF(VLOOKUP($B13&"_"&1,base!$E$4:$BO$7756,AE$5,FALSE)=0,"",(VLOOKUP($B13&"_"&1,base!$E$4:$BO$7756,AE$5,FALSE))) -> NA | AF13: =+IF(VLOOKUP($B13&"_"&1,base!$E$4:$BO$7756,AF$5,FALSE)=0,"",(VLOOKUP($B13&"_"&1,base!$E$4:$BO$7756,AF$5,FALSE))) -> 0.502 | AG13: =+IF(VLOOKUP($B13&"_"&1,base!$E$4:$BO$7756,AG$5,FALSE)=0,"",(VLOOKUP($B13&"_"&1,base!$E$4:$BO$7756,AG$5,FALSE))) -> 0.502 | AH13: =+IF(VLOOKUP($B13&"_"&1,base!$E$4:$BO$7756,AH$5,FALSE)=0,"",(VLOOKUP($B13&"_"&1,base!$E$4:$BO$7756,AH$5,FALSE))) -> NA | AI13: =+IF(VLOOKUP($B13&"_"&1,base!$E$4:$BO$7756,AI$5,FALSE)=0,"",(VLOOKUP($B13&"_"&1,base!$E$4:$BO$7756,AI$5,FALSE))) -> 0.689 | AJ13: =+IF(VLOOKUP($B13&"_"&1,base!$E$4:$BO$7756,AJ$5,FALSE)=0,"",(VLOOKUP($B13&"_"&1,base!$E$4:$BO$7756,AJ$5,FALSE))) -> 0.689 | AK13: =+IF(VLOOKUP($B13&"_"&1,base!$E$4:$BO$7756,AK$5,FALSE)=0,"",(VLOOKUP($B13&"_"&1,base!$E$4:$BO$7756,AK$5,FALSE))) -> 0.689 | AL13: =+IF(VLOOKUP($B13&"_"&1,base!$E$4:$BO$7756,AL$5,FALSE)=0,"",(VLOOKUP($B13&"_"&1,base!$E$4:$BO$7756,AL$5,FALSE))) -> 
B14: PA-91 | C14: =+VLOOKUP(B14,'tablero nal'!$W$9:$X$171,2,FALSE) -> Número de entidades territoriales con acompañamiento para la implementación de la Ruta Integral de Atenciones | D14: 150 | E14: 350 | F14: =+IF(L14="NA",I14,L14) -> 220 | G14: 0.6285714286 | H14: =+VLOOKUP(B14,'tablero nal'!$W$9:$AB$171,3,FALSE) -> 150 | I14: 150 | J14: 1 | K14: =+VLOOKUP(B14,'tablero nal'!$W$9:$AB$171,6,FALSE) -> 220 | L14: 220 | M14: 1 | U14: 300 | W14: 350 | AA14: =+IF(VLOOKUP($B14&"_"&1,base!$E$4:$BO$7756,AA$5,FALSE)=0,"",(VLOOKUP($B14&"_"&1,base!$E$4:$BO$7756,AA$5,FALSE))) -> NA | AB14: =+IF(VLOOKUP($B14&"_"&1,base!$E$4:$BO$7756,AB$5,FALSE)=0,"",(VLOOKUP($B14&"_"&1,base!$E$4:$BO$7756,AB$5,FALSE))) -> NA | AC14: =+IF(VLOOKUP($B14&"_"&1,base!$E$4:$BO$7756,AC$5,FALSE)=0,"",(VLOOKUP($B14&"_"&1,base!$E$4:$BO$7756,AC$5,FALSE))) -> NA | AD14: =+IF(VLOOKUP($B14&"_"&1,base!$E$4:$BO$7756,AD$5,FALSE)=0,"",(VLOOKUP($B14&"_"&1,base!$E$4:$BO$7756,AD$5,FALSE))) -> NA | AE14: =+IF(VLOOKUP($B14&"_"&1,base!$E$4:$BO$7756,AE$5,FALSE)=0,"",(VLOOKUP($B14&"_"&1,base!$E$4:$BO$7756,AE$5,FALSE))) -> NA | AF14: =+IF(VLOOKUP($B14&"_"&1,base!$E$4:$BO$7756,AF$5,FALSE)=0,"",(VLOOKUP($B14&"_"&1,base!$E$4:$BO$7756,AF$5,FALSE))) -> NA | AG14: =+IF(VLOOKUP($B14&"_"&1,base!$E$4:$BO$7756,AG$5,FALSE)=0,"",(VLOOKUP($B14&"_"&1,base!$E$4:$BO$7756,AG$5,FALSE))) -> NA | AH14: =+IF(VLOOKUP($B14&"_"&1,base!$E$4:$BO$7756,AH$5,FALSE)=0,"",(VLOOKUP($B14&"_"&1,base!$E$4:$BO$7756,AH$5,FALSE))) -> NA | AI14: =+IF(VLOOKUP($B14&"_"&1,base!$E$4:$BO$7756,AI$5,FALSE)=0,"",(VLOOKUP($B14&"_"&1,base!$E$4:$BO$7756,AI$5,FALSE))) -> 220 | AJ14: =+IF(VLOOKUP($B14&"_"&1,base!$E$4:$BO$7756,AJ$5,FALSE)=0,"",(VLOOKUP($B14&"_"&1,base!$E$4:$BO$7756,AJ$5,FALSE))) -> NA | AK14: =+IF(VLOOKUP($B14&"_"&1,base!$E$4:$BO$7756,AK$5,FALSE)=0,"",(VLOOKUP($B14&"_"&1,base!$E$4:$BO$7756,AK$5,FALSE))) -> NA | AL14: =+IF(VLOOKUP($B14&"_"&1,base!$E$4:$BO$7756,AL$5,FALSE)=0,"",(VLOOKUP($B14&"_"&1,base!$E$4:$BO$7756,AL$5,FALSE))) -> 
B15: PA-14 | C15: Municipios con la estrategia de prevención de embarazo en la adolescencia implementada | D15: 192 | E15: 353 | F15: =+IF(L15="NA",I15,L15) -> 190 | G15: 0.5382436261 | H15: =+VLOOKUP(B15,'tablero nal'!$W$9:$AB$171,3,FALSE) -> 75 | I15: 75 | J15: 1 | K15: =+VLOOKUP(B15,'tablero nal'!$W$9:$AB$171,6,FALSE) -> 190 | L15: 190 | M15: 1 | U15: 305 | W15: 353 | AA15: =+IF(VLOOKUP($B15&"_"&1,base!$E$4:$BO$7756,AA$5,FALSE)=0,"",(VLOOKUP($B15&"_"&1,base!$E$4:$BO$7756,AA$5,FALSE))) -> NA | AB15: =+IF(VLOOKUP($B15&"_"&1,base!$E$4:$BO$7756,AB$5,FALSE)=0,"",(VLOOKUP($B15&"_"&1,base!$E$4:$BO$7756,AB$5,FALSE))) -> NA | AC15: =+IF(VLOOKUP($B15&"_"&1,base!$E$4:$BO$7756,AC$5,FALSE)=0,"",(VLOOKUP($B15&"_"&1,base!$E$4:$BO$7756,AC$5,FALSE))) -> NA | AD15: =+IF(VLOOKUP($B15&"_"&1,base!$E$4:$BO$7756,AD$5,FALSE)=0,"",(VLOOKUP($B15&"_"&1,base!$E$4:$BO$7756,AD$5,FALSE))) -> NA | AE15: =+IF(VLOOKUP($B15&"_"&1,base!$E$4:$BO$7756,AE$5,FALSE)=0,"",(VLOOKUP($B15&"_"&1,base!$E$4:$BO$7756,AE$5,FALSE))) -> NA | AF15: =+IF(VLOOKUP($B15&"_"&1,base!$E$4:$BO$7756,AF$5,FALSE)=0,"",(VLOOKUP($B15&"_"&1,base!$E$4:$BO$7756,AF$5,FALSE))) -> 177 | AG15: =+IF(VLOOKUP($B15&"_"&1,base!$E$4:$BO$7756,AG$5,FALSE)=0,"",(VLOOKUP($B15&"_"&1,base!$E$4:$BO$7756,AG$5,FALSE))) -> NA | AH15: =+IF(VLOOKUP($B15&"_"&1,base!$E$4:$BO$7756,AH$5,FALSE)=0,"",(VLOOKUP($B15&"_"&1,base!$E$4:$BO$7756,AH$5,FALSE))) -> NA | AI15: =+IF(VLOOKUP($B15&"_"&1,base!$E$4:$BO$7756,AI$5,FALSE)=0,"",(VLOOKUP($B15&"_"&1,base!$E$4:$BO$7756,AI$5,FALSE))) -> 190 | AJ15: =+IF(VLOOKUP($B15&"_"&1,base!$E$4:$BO$7756,AJ$5,FALSE)=0,"",(VLOOKUP($B15&"_"&1,base!$E$4:$BO$7756,AJ$5,FALSE))) -> NA | AK15: =+IF(VLOOKUP($B15&"_"&1,base!$E$4:$BO$7756,AK$5,FALSE)=0,"",(VLOOKUP($B15&"_"&1,base!$E$4:$BO$7756,AK$5,FALSE))) -> NA | AL15: =+IF(VLOOKUP($B15&"_"&1,base!$E$4:$BO$7756,AL$5,FALSE)=0,"",(VLOOKUP($B15&"_"&1,base!$E$4:$BO$7756,AL$5,FALSE))) -> 
B16: PA-16 | C16: =+VLOOKUP(B16,'tablero nal'!$W$9:$X$171,2,FALSE) -> Número de niños, niñas y adolescentes participantes en estrategias de prevención | D16: 199979 | E16: 770000 | F16: =+I16+L16 -> 332700 | G16: 0.4320779221 | H16: =+VLOOKUP(B16,'tablero nal'!$W$9:$AB$171,3,FALSE) -> 195600 | I16: 206060 | J16: 1.053476483 | K16: =+VLOOKUP(B16,'tablero nal'!$W$9:$AB$171,6,FALSE)-H16 -> 153075 | L16: 126640 | M16: 0.8273068757 | U16: 200000 | W16: 221325 | X16: Meta y avance solo 2016 | AA16: =+IF(VLOOKUP($B16&"_"&1,base!$E$4:$BO$7756,AA$5,FALSE)=0,"",(VLOOKUP($B16&"_"&1,base!$E$4:$BO$7756,AA$5,FALSE))) -> NA | AB16: =+IF(VLOOKUP($B16&"_"&1,base!$E$4:$BO$7756,AB$5,FALSE)=0,"",(VLOOKUP($B16&"_"&1,base!$E$4:$BO$7756,AB$5,FALSE))) -> NA | AC16: =+IF(VLOOKUP($B16&"_"&1,base!$E$4:$BO$7756,AC$5,FALSE)=0,"",(VLOOKUP($B16&"_"&1,base!$E$4:$BO$7756,AC$5,FALSE))) -> NA | AD16: =+IF(VLOOKUP($B16&"_"&1,base!$E$4:$BO$7756,AD$5,FALSE)=0,"",(VLOOKUP($B16&"_"&1,base!$E$4:$BO$7756,AD$5,FALSE))) -> 82953 | AE16: =+IF(VLOOKUP($B16&"_"&1,base!$E$4:$BO$7756,AE$5,FALSE)=0,"",(VLOOKUP($B16&"_"&1,base!$E$4:$BO$7756,AE$5,FALSE))) -> 109150 | AF16: =+IF(VLOOKUP($B16&"_"&1,base!$E$4:$BO$7756,AF$5,FALSE)=0,"",(VLOOKUP($B16&"_"&1,base!$E$4:$BO$7756,AF$5,FALSE))) -> 111740 | AG16: =+IF(VLOOKUP($B16&"_"&1,base!$E$4:$BO$7756,AG$5,FALSE)=0,"",(VLOOKUP($B16&"_"&1,base!$E$4:$BO$7756,AG$5,FALSE))) -> 113474 | AH16: =+IF(VLOOKUP($B16&"_"&1,base!$E$4:$BO$7756,AH$5,FALSE)=0,"",(VLOOKUP($B16&"_"&1,base!$E$4:$BO$7756,AH$5,FALSE))) -> 113375 | AI16: =+IF(VLOOKUP($B16&"_"&1,base!$E$4:$BO$7756,AI$5,FALSE)=0,"",(VLOOKUP($B16&"_"&1,base!$E$4:$BO$7756,AI$5,FALSE))) -> 112938 | AK16: =+IF(VLOOKUP($B16&"_"&1,base!$E$4:$BO$7756,AK$5,FALSE)=0,"",(VLOOKUP($B16&"_"&1,base!$E$4:$BO$7756,AK$5,FALSE))) -> 126640 | AL16: =+IF(VLOOKUP($B16&"_"&1,base!$E$4:$BO$7756,AL$5,FALSE)=0,"",(VLOOKUP($B16&"_"&1,base!$E$4:$BO$7756,AL$5,FALSE))) -> 
B17: PA-18 | C17: =+VLOOKUP(B17,'tablero nal'!$W$9:$X$171,2,FALSE) -> Familias en situación de vulnerabilidad afectadas en su estructura y dinámica relacional atendidas mediante "Familias para la Paz" | D17: 541854 | E17: 560000 | F17: =L17+I17 -> 264320 | G17: 0.472 | H17: =+VLOOKUP(B17,'tablero nal'!$W$9:$AB$171,3,FALSE) -> 105488 | I17: 105473 | J17: 0.9998578037 | K17: =+VLOOKUP(B17,'tablero nal'!$W$9:$AB$171,6,FALSE)-H17 -> 159428 | L17: =+IFERROR(LOOKUP(10000000,$AA17:$AL17),"NA")-I17 -> 158847 | M17: 0.9963557217 | U17: 146475 | W17: 148609 | X17: Meta y avance solo 2016 | AA17: =+IF(VLOOKUP($B17&"_"&1,base!$E$4:$BO$7756,AA$5,FALSE)=0,"",(VLOOKUP($B17&"_"&1,base!$E$4:$BO$7756,AA$5,FALSE))) -> NA | AB17: =+IF(VLOOKUP($B17&"_"&1,base!$E$4:$BO$7756,AB$5,FALSE)=0,"",(VLOOKUP($B17&"_"&1,base!$E$4:$BO$7756,AB$5,FALSE))) -> NA | AC17: =+IF(VLOOKUP($B17&"_"&1,base!$E$4:$BO$7756,AC$5,FALSE)=0,"",(VLOOKUP($B17&"_"&1,base!$E$4:$BO$7756,AC$5,FALSE))) -> NA | AD17: =+IF(VLOOKUP($B17&"_"&1,base!$E$4:$BO$7756,AD$5,FALSE)=0,"",(VLOOKUP($B17&"_"&1,base!$E$4:$BO$7756,AD$5,FALSE))) -> NA | AE17: =+IF(VLOOKUP($B17&"_"&1,base!$E$4:$BO$7756,AE$5,FALSE)=0,"",(VLOOKUP($B17&"_"&1,base!$E$4:$BO$7756,AE$5,FALSE))) -> NA | AF17: =+IF(VLOOKUP($B17&"_"&1,base!$E$4:$BO$7756,AF$5,FALSE)=0,"",(VLOOKUP($B17&"_"&1,base!$E$4:$BO$7756,AF$5,FALSE))) -> 201144 | AG17: =+IF(VLOOKUP($B17&"_"&1,base!$E$4:$BO$7756,AG$5,FALSE)=0,"",(VLOOKUP($B17&"_"&1,base!$E$4:$BO$7756,AG$5,FALSE))) -> 209826 | AH17: =+IF(VLOOKUP($B17&"_"&1,base!$E$4:$BO$7756,AH$5,FALSE)=0,"",(VLOOKUP($B17&"_"&1,base!$E$4:$BO$7756,AH$5,FALSE))) -> 220673 | AI17: =+IF(VLOOKUP($B17&"_"&1,base!$E$4:$BO$7756,AI$5,FALSE)=0,"",(VLOOKUP($B17&"_"&1,base!$E$4:$BO$7756,AI$5,FALSE))) -> 243575 | AJ17: =+IF(VLOOKUP($B17&"_"&1,base!$E$4:$BO$7756,AJ$5,FALSE)=0,"",(VLOOKUP($B17&"_"&1,base!$E$4:$BO$7756,AJ$5,FALSE))) -> 264173 | AK17: =+IF(VLOOKUP($B17&"_"&1,base!$E$4:$BO$7756,AK$5,FALSE)=0,"",(VLOOKUP($B17&"_"&1,base!$E$4:$BO$7756,AK$5,FALSE))) -> 264320 | AL17: =+IF(VLOOKUP($B17&"_"&1,base!$E$4:$BO$7756,AL$5,FALSE)=0,"",(VLOOKUP($B17&"_"&1,base!$E$4:$BO$7756,AL$5,FALSE))) -> 
B18: PA-30 | C18: =+VLOOKUP(B18,'tablero nal'!$W$9:$X$171,2,FALSE) -> Niñas y niños menores de 5 años y mujeres gestantes microfocalizados en el marco de la prestación del servicio del ICBF. | D18: 44049 | E18: 376528 | F18: =+L18+I18 -> 107157 | G18: 0.2845923809 | H18: =+VLOOKUP(B18,'tablero nal'!$W$9:$AB$171,3,FALSE) -> 40000 | I18: 38689 | J18: 0.967225 | K18: =+VLOOKUP(B18,'tablero nal'!$W$9:$AB$171,6,FALSE)-H18 -> 90000 | L18: =+IFERROR(LOOKUP(10000000,$AA18:$AL18),"NA")-I18 -> 68468 | M18: 0.7607555556 | U18: 90000 | W18: 156528 | X18: Meta y avance solo vigencia 2016 | AA18: =+IF(VLOOKUP($B18&"_"&1,base!$E$4:$BO$7756,AA$5,FALSE)=0,"",(VLOOKUP($B18&"_"&1,base!$E$4:$BO$7756,AA$5,FALSE))) -> NA | AB18: =+IF(VLOOKUP($B18&"_"&1,base!$E$4:$BO$7756,AB$5,FALSE)=0,"",(VLOOKUP($B18&"_"&1,base!$E$4:$BO$7756,AB$5,FALSE))) -> NA | AC18: =+IF(VLOOKUP($B18&"_"&1,base!$E$4:$BO$7756,AC$5,FALSE)=0,"",(VLOOKUP($B18&"_"&1,base!$E$4:$BO$7756,AC$5,FALSE))) -> NA | AD18: =+IF(VLOOKUP($B18&"_"&1,base!$E$4:$BO$7756,AD$5,FALSE)=0,"",(VLOOKUP($B18&"_"&1,base!$E$4:$BO$7756,AD$5,FALSE))) -> NA | AE18: =+IF(VLOOKUP($B18&"_"&1,base!$E$4:$BO$7756,AE$5,FALSE)=0,"",(VLOOKUP($B18&"_"&1,base!$E$4:$BO$7756,AE$5,FALSE))) -> NA | AF18: =+IF(VLOOKUP($B18&"_"&1,base!$E$4:$BO$7756,AF$5,FALSE)=0,"",(VLOOKUP($B18&"_"&1,base!$E$4:$BO$7756,AF$5,FALSE))) -> 107157 | AG18: =+IF(VLOOKUP($B18&"_"&1,base!$E$4:$BO$7756,AG$5,FALSE)=0,"",(VLOOKUP($B18&"_"&1,base!$E$4:$BO$7756,AG$5,FALSE))) -> NA | AH18: =+IF(VLOOKUP($B18&"_"&1,base!$E$4:$BO$7756,AH$5,FALSE)=0,"",(VLOOKUP($B18&"_"&1,base!$E$4:$BO$7756,AH$5,FALSE))) -> NA | AI18: =+IF(VLOOKUP($B18&"_"&1,base!$E$4:$BO$7756,AI$5,FALSE)=0,"",(VLOOKUP($B18&"_"&1,base!$E$4:$BO$7756,AI$5,FALSE))) -> NA | AJ18: =+IF(VLOOKUP($B18&"_"&1,base!$E$4:$BO$7756,AJ$5,FALSE)=0,"",(VLOOKUP($B18&"_"&1,base!$E$4:$BO$7756,AJ$5,FALSE))) -> NA | AK18: =+IF(VLOOKUP($B18&"_"&1,base!$E$4:$BO$7756,AK$5,FALSE)=0,"",(VLOOKUP($B18&"_"&1,base!$E$4:$BO$7756,AK$5,FALSE))) -> NA | AL18: =+IF(VLOOKUP($B18&"_"&1,base!$E$4:$BO$7756,AL$5,FALSE)=0,"",(VLOOKUP($B18&"_"&1,base!$E$4:$BO$7756,AL$5,FALSE))) -> 
B19: PA-38 | C19: =+VLOOKUP(B19,'tablero nal'!$W$9:$X$171,2,FALSE) -> Número de municipios con asistencia técnica para la implementación de las rutas de atención integral para el Restablecimiento de Derechos de la menor de 14 años embarazada. | D19: 20 | E19: 700 | F19: =+IF(L19="NA",I19,L19) -> 248 | G19: 0.3542857143 | H19: =+VLOOKUP(B19,'tablero nal'!$W$9:$AB$171,3,FALSE) -> 100 | I19: 120 | J19: 1.2 | K19: =+VLOOKUP(B19,'tablero nal'!$W$9:$AB$171,6,FALSE) -> 350 | L19: 248 | M19: 0.7085714286 | U19: 250 | W19: 100 | X19: Meta y avance acumulado | AA19: =+IF(VLOOKUP($B19&"_"&1,base!$E$4:$BO$7756,AA$5,FALSE)=0,"",(VLOOKUP($B19&"_"&1,base!$E$4:$BO$7756,AA$5,FALSE))) -> NA | AB19: =+IF(VLOOKUP($B19&"_"&1,base!$E$4:$BO$7756,AB$5,FALSE)=0,"",(VLOOKUP($B19&"_"&1,base!$E$4:$BO$7756,AB$5,FALSE))) -> NA | AC19: =+IF(VLOOKUP($B19&"_"&1,base!$E$4:$BO$7756,AC$5,FALSE)=0,"",(VLOOKUP($B19&"_"&1,base!$E$4:$BO$7756,AC$5,FALSE))) -> NA | AD19: =+IF(VLOOKUP($B19&"_"&1,base!$E$4:$BO$7756,AD$5,FALSE)=0,"",(VLOOKUP($B19&"_"&1,base!$E$4:$BO$7756,AD$5,FALSE))) -> 120 | AE19: =+IF(VLOOKUP($B19&"_"&1,base!$E$4:$BO$7756,AE$5,FALSE)=0,"",(VLOOKUP($B19&"_"&1,base!$E$4:$BO$7756,AE$5,FALSE))) -> NA | AF19: =+IF(VLOOKUP($B19&"_"&1,base!$E$4:$BO$7756,AF$5,FALSE)=0,"",(VLOOKUP($B19&"_"&1,base!$E$4:$BO$7756,AF$5,FALSE))) -> NA | AG19: =+IF(VLOOKUP($B19&"_"&1,base!$E$4:$BO$7756,AG$5,FALSE)=0,"",(VLOOKUP($B19&"_"&1,base!$E$4:$BO$7756,AG$5,FALSE))) -> NA | AH19: =+IF(VLOOKUP($B19&"_"&1,base!$E$4:$BO$7756,AH$5,FALSE)=0,"",(VLOOKUP($B19&"_"&1,base!$E$4:$BO$7756,AH$5,FALSE))) -> 248 | AI19: =+IF(VLOOKUP($B19&"_"&1,base!$E$4:$BO$7756,AI$5,FALSE)=0,"",(VLOOKUP($B19&"_"&1,base!$E$4:$BO$7756,AI$5,FALSE))) -> NA | AJ19: =+IF(VLOOKUP($B19&"_"&1,base!$E$4:$BO$7756,AJ$5,FALSE)=0,"",(VLOOKUP($B19&"_"&1,base!$E$4:$BO$7756,AJ$5,FALSE))) -> NA | AK19: =+IF(VLOOKUP($B19&"_"&1,base!$E$4:$BO$7756,AK$5,FALSE)=0,"",(VLOOKUP($B19&"_"&1,base!$E$4:$BO$7756,AK$5,FALSE))) -> NA | AL19: =+IF(VLOOKUP($B19&"_"&1,base!$E$4:$BO$7756,AL$5,FALSE)=0,"",(VLOOKUP($B19&"_"&1,base!$E$4:$BO$7756,AL$5,FALSE))) -> 
B20: PA-40 | C20: =+VLOOKUP(B20,'tablero nal'!$W$9:$X$171,2,FALSE) -> Porcentaje de Niños, niñas y adolescentes CON características y necesidades especiales, con familia asignada. | D20: 0.65 | E20: 0.7 | F20: =+L20 -> 0.758 | G20: 1.082857143 | H20: =+VLOOKUP(B20,'tablero nal'!$W$9:$AB$171,3,FALSE) -> 0.65 | I20: 0.7444 | J20: 1.145230769 | K20: =+VLOOKUP(B20,'tablero nal'!$W$9:$AB$171,6,FALSE) -> 0.65 | L20: 0.758 | M20: 1.166153846 | U20: 0.67 | W20: 0.7 | AA20: =+IF(VLOOKUP($B20&"_"&1,base!$E$4:$BO$7756,AA$5,FALSE)=0,"",(VLOOKUP($B20&"_"&1,base!$E$4:$BO$7756,AA$5,FALSE))) -> 0.7347 | AB20: =+IF(VLOOKUP($B20&"_"&1,base!$E$4:$BO$7756,AB$5,FALSE)=0,"",(VLOOKUP($B20&"_"&1,base!$E$4:$BO$7756,AB$5,FALSE))) -> 0.7431 | AC20: =+IF(VLOOKUP($B20&"_"&1,base!$E$4:$BO$7756,AC$5,FALSE)=0,"",(VLOOKUP($B20&"_"&1,base!$E$4:$BO$7756,AC$5,FALSE))) -> 0.759 | AD20: =+IF(VLOOKUP($B20&"_"&1,base!$E$4:$BO$7756,AD$5,FALSE)=0,"",(VLOOKUP($B20&"_"&1,base!$E$4:$BO$7756,AD$5,FALSE))) -> 0.747 | AE20: =+IF(VLOOKUP($B20&"_"&1,base!$E$4:$BO$7756,AE$5,FALSE)=0,"",(VLOOKUP($B20&"_"&1,base!$E$4:$BO$7756,AE$5,FALSE))) -> 0.743 | AF20: =+IF(VLOOKUP($B20&"_"&1,base!$E$4:$BO$7756,AF$5,FALSE)=0,"",(VLOOKUP($B20&"_"&1,base!$E$4:$BO$7756,AF$5,FALSE))) -> 0.746 | AG20: =+IF(VLOOKUP($B20&"_"&1,base!$E$4:$BO$7756,AG$5,FALSE)=0,"",(VLOOKUP($B20&"_"&1,base!$E$4:$BO$7756,AG$5,FALSE))) -> 0.729 | AH20: =+IF(VLOOKUP($B20&"_"&1,base!$E$4:$BO$7756,AH$5,FALSE)=0,"",(VLOOKUP($B20&"_"&1,base!$E$4:$BO$7756,AH$5,FALSE))) -> 0.733 | AI20: =+IF(VLOOKUP($B20&"_"&1,base!$E$4:$BO$7756,AI$5,FALSE)=0,"",(VLOOKUP($B20&"_"&1,base!$E$4:$BO$7756,AI$5,FALSE))) -> 0.741 | AJ20: =+IF(VLOOKUP($B20&"_"&1,base!$E$4:$BO$7756,AJ$5,FALSE)=0,"",(VLOOKUP($B20&"_"&1,base!$E$4:$BO$7756,AJ$5,FALSE))) -> 0.746 | AK20: =+IF(VLOOKUP($B20&"_"&1,base!$E$4:$BO$7756,AK$5,FALSE)=0,"",(VLOOKUP($B20&"_"&1,base!$E$4:$BO$7756,AK$5,FALSE))) -> 0.758 | AL20: =+IF(VLOOKUP($B20&"_"&1,base!$E$4:$BO$7756,AL$5,FALSE)=0,"",(VLOOKUP($B20&"_"&1,base!$E$4:$BO$7756,AL$5,FALSE))) -> 
B21: PA-42 | C21: =+VLOOKUP(B21,'tablero nal'!$W$9:$X$171,2,FALSE) -> Porcentaje de adolescentes y jóvenes del SRPA, con más de seis meses de permanencia en el Programa de Atención con la garantía de ejercicio de sus derechos (Identidad, Salud y Educación) | D21: - | E21: 1 | F21: =+IF(L21="NA",I21,L21) -> 0.963 | G21: 0.963 | H21: =+VLOOKUP(B21,'tablero nal'!$W$9:$AB$171,3,FALSE) -> 0.25 | I21: 0.3592 | J21: 1.4368 | K21: =+VLOOKUP(B21,'tablero nal'!$W$9:$AB$171,6,FALSE) -> 1 | L21: 0.963 | M21: 0.963 | U21: 1 | W21: 1 | AA21: =+IF(VLOOKUP($B21&"_"&1,base!$E$4:$BO$7756,AA$5,FALSE)=0,"",(VLOOKUP($B21&"_"&1,base!$E$4:$BO$7756,AA$5,FALSE))) -> NA | AB21: =+IF(VLOOKUP($B21&"_"&1,base!$E$4:$BO$7756,AB$5,FALSE)=0,"",(VLOOKUP($B21&"_"&1,base!$E$4:$BO$7756,AB$5,FALSE))) -> NA | AC21: =+IF(VLOOKUP($B21&"_"&1,base!$E$4:$BO$7756,AC$5,FALSE)=0,"",(VLOOKUP($B21&"_"&1,base!$E$4:$BO$7756,AC$5,FALSE))) -> 0.967 | AD21: =+IF(VLOOKUP($B21&"_"&1,base!$E$4:$BO$7756,AD$5,FALSE)=0,"",(VLOOKUP($B21&"_"&1,base!$E$4:$BO$7756,AD$5,FALSE))) -> NA | AE21: =+IF(VLOOKUP($B21&"_"&1,base!$E$4:$BO$7756,AE$5,FALSE)=0,"",(VLOOKUP($B21&"_"&1,base!$E$4:$BO$7756,AE$5,FALSE))) -> NA | AF21: =+IF(VLOOKUP($B21&"_"&1,base!$E$4:$BO$7756,AF$5,FALSE)=0,"",(VLOOKUP($B21&"_"&1,base!$E$4:$BO$7756,AF$5,FALSE))) -> 0.96 | AG21: =+IF(VLOOKUP($B21&"_"&1,base!$E$4:$BO$7756,AG$5,FALSE)=0,"",(VLOOKUP($B21&"_"&1,base!$E$4:$BO$7756,AG$5,FALSE))) -> NA | AH21: =+IF(VLOOKUP($B21&"_"&1,base!$E$4:$BO$7756,AH$5,FALSE)=0,"",(VLOOKUP($B21&"_"&1,base!$E$4:$BO$7756,AH$5,FALSE))) -> NA | AI21: =+IF(VLOOKUP($B21&"_"&1,base!$E$4:$BO$7756,AI$5,FALSE)=0,"",(VLOOKUP($B21&"_"&1,base!$E$4:$BO$7756,AI$5,FALSE))) -> 0.963 | AJ21: =+IF(VLOOKUP($B21&"_"&1,base!$E$4:$BO$7756,AJ$5,FALSE)=0,"",(VLOOKUP($B21&"_"&1,base!$E$4:$BO$7756,AJ$5,FALSE))) -> NA | AK21: =+IF(VLOOKUP($B21&"_"&1,base!$E$4:$BO$7756,AK$5,FALSE)=0,"",(VLOOKUP($B21&"_"&1,base!$E$4:$BO$7756,AK$5,FALSE))) -> NA | AL21: =+IF(VLOOKUP($B21&"_"&1,base!$E$4:$BO$7756,AL$5,FALSE)=0,"",(VLOOKUP($B21&"_"&1,base!$E$4:$BO$7756,AL$5,FALSE))) -> 
B22: PA-43 | C22: =+VLOOKUP(B22,'tablero nal'!$W$9:$X$171,2,FALSE) -> Porcentaje de adolescentes y jóvenes que egresan el ultimo año del SRPA por cumplimiento de sanción privativa de la libertad, atendidos con estrategias post egreso o inclusión social. | D22: - | E22: 0.65 | F22: =+IF(L22="NA",I22,L22) -> 0.524 | G22: 0.8061538462 | H22: =+VLOOKUP(B22,'tablero nal'!$W$9:$AB$171,3,FALSE) -> 0.12 | I22: 0.1705 | J22: 1.420833333 | K22: =+VLOOKUP(B22,'tablero nal'!$W$9:$AB$171,6,FALSE) -> 0.55 | L22: 0.524 | M22: 0.9527272727 | U22: 0.6 | W22: 0.65 | AA22: =+IF(VLOOKUP($B22&"_"&1,base!$E$4:$BO$7756,AA$5,FALSE)=0,"",(VLOOKUP($B22&"_"&1,base!$E$4:$BO$7756,AA$5,FALSE))) -> NA | AB22: =+IF(VLOOKUP($B22&"_"&1,base!$E$4:$BO$7756,AB$5,FALSE)=0,"",(VLOOKUP($B22&"_"&1,base!$E$4:$BO$7756,AB$5,FALSE))) -> NA | AC22: =+IF(VLOOKUP($B22&"_"&1,base!$E$4:$BO$7756,AC$5,FALSE)=0,"",(VLOOKUP($B22&"_"&1,base!$E$4:$BO$7756,AC$5,FALSE))) -> 0.527 | AD22: =+IF(VLOOKUP($B22&"_"&1,base!$E$4:$BO$7756,AD$5,FALSE)=0,"",(VLOOKUP($B22&"_"&1,base!$E$4:$BO$7756,AD$5,FALSE))) -> NA | AE22: =+IF(VLOOKUP($B22&"_"&1,base!$E$4:$BO$7756,AE$5,FALSE)=0,"",(VLOOKUP($B22&"_"&1,base!$E$4:$BO$7756,AE$5,FALSE))) -> NA | AF22: =+IF(VLOOKUP($B22&"_"&1,base!$E$4:$BO$7756,AF$5,FALSE)=0,"",(VLOOKUP($B22&"_"&1,base!$E$4:$BO$7756,AF$5,FALSE))) -> 0.524 | AG22: =+IF(VLOOKUP($B22&"_"&1,base!$E$4:$BO$7756,AG$5,FALSE)=0,"",(VLOOKUP($B22&"_"&1,base!$E$4:$BO$7756,AG$5,FALSE))) -> NA | AH22: =+IF(VLOOKUP($B22&"_"&1,base!$E$4:$BO$7756,AH$5,FALSE)=0,"",(VLOOKUP($B22&"_"&1,base!$E$4:$BO$7756,AH$5,FALSE))) -> NA | AI22: =+IF(VLOOKUP($B22&"_"&1,base!$E$4:$BO$7756,AI$5,FALSE)=0,"",(VLOOKUP($B22&"_"&1,base!$E$4:$BO$7756,AI$5,FALSE))) -> 0.524 | AJ22: =+IF(VLOOKUP($B22&"_"&1,base!$E$4:$BO$7756,AJ$5,FALSE)=0,"",(VLOOKUP($B22&"_"&1,base!$E$4:$BO$7756,AJ$5,FALSE))) -> NA | AK22: =+IF(VLOOKUP($B22&"_"&1,base!$E$4:$BO$7756,AK$5,FALSE)=0,"",(VLOOKUP($B22&"_"&1,base!$E$4:$BO$7756,AK$5,FALSE))) -> NA | AL22: =+IF(VLOOKUP($B22&"_"&1,base!$E$4:$BO$7756,AL$5,FALSE)=0,"",(VLOOKUP($B22&"_"&1,base!$E$4:$BO$7756,AL$5,FALSE))) -> 
B23: PA-45 | C23: =+VLOOKUP(B23,'tablero nal'!$W$9:$X$171,2,FALSE) -> Porcentaje de Unidades de Servicio de Atención a adolescentes y jóvenes del Sistema de Responsbilidad Penal - SRPA, con implementación de procesos de formación en prácticas restaurativas | D23: 0.3 | E23: 1 | F23: =+IF(L23="NA",I23,L23) -> 0.63 | G23: 0.63 | H23: =+VLOOKUP(B23,'tablero nal'!$W$9:$AB$171,3,FALSE) -> 0.5 | I23: 0.5 | J23: 1 | K23: =+VLOOKUP(B23,'tablero nal'!$W$9:$AB$171,6,FALSE) -> 0.67 | L23: 0.63 | M23: 0.9402985075 | U23: 0.84 | W23: 1 | AA23: =+IF(VLOOKUP($B23&"_"&1,base!$E$4:$BO$7756,AA$5,FALSE)=0,"",(VLOOKUP($B23&"_"&1,base!$E$4:$BO$7756,AA$5,FALSE))) -> NA | AB23: =+IF(VLOOKUP($B23&"_"&1,base!$E$4:$BO$7756,AB$5,FALSE)=0,"",(VLOOKUP($B23&"_"&1,base!$E$4:$BO$7756,AB$5,FALSE))) -> NA | AC23: =+IF(VLOOKUP($B23&"_"&1,base!$E$4:$BO$7756,AC$5,FALSE)=0,"",(VLOOKUP($B23&"_"&1,base!$E$4:$BO$7756,AC$5,FALSE))) -> 0.522 | AD23: =+IF(VLOOKUP($B23&"_"&1,base!$E$4:$BO$7756,AD$5,FALSE)=0,"",(VLOOKUP($B23&"_"&1,base!$E$4:$BO$7756,AD$5,FALSE))) -> NA | AE23: =+IF(VLOOKUP($B23&"_"&1,base!$E$4:$BO$7756,AE$5,FALSE)=0,"",(VLOOKUP($B23&"_"&1,base!$E$4:$BO$7756,AE$5,FALSE))) -> NA | AF23: =+IF(VLOOKUP($B23&"_"&1,base!$E$4:$BO$7756,AF$5,FALSE)=0,"",(VLOOKUP($B23&"_"&1,base!$E$4:$BO$7756,AF$5,FALSE))) -> 0.587 | AG23: =+IF(VLOOKUP($B23&"_"&1,base!$E$4:$BO$7756,AG$5,FALSE)=0,"",(VLOOKUP($B23&"_"&1,base!$E$4:$BO$7756,AG$5,FALSE))) -> NA | AH23: =+IF(VLOOKUP($B23&"_"&1,base!$E$4:$BO$7756,AH$5,FALSE)=0,"",(VLOOKUP($B23&"_"&1,base!$E$4:$BO$7756,AH$5,FALSE))) -> NA | AI23: =+IF(VLOOKUP($B23&"_"&1,base!$E$4:$BO$7756,AI$5,FALSE)=0,"",(VLOOKUP($B23&"_"&1,base!$E$4:$BO$7756,AI$5,FALSE))) -> 0.63 | AJ23: =+IF(VLOOKUP($B23&"_"&1,base!$E$4:$BO$7756,AJ$5,FALSE)=0,"",(VLOOKUP($B23&"_"&1,base!$E$4:$BO$7756,AJ$5,FALSE))) -> NA | AK23: =+IF(VLOOKUP($B23&"_"&1,base!$E$4:$BO$7756,AK$5,FALSE)=0,"",(VLOOKUP($B23&"_"&1,base!$E$4:$BO$7756,AK$5,FALSE))) -> NA | AL23: =+IF(VLOOKUP($B23&"_"&1,base!$E$4:$BO$7756,AL$5,FALSE)=0,"",(VLOOKUP($B23&"_"&1,base!$E$4:$BO$7756,AL$5,FALSE))) -> 

Sheet macroregionales
B2: TABLERO DE CONTROL 2016 INSTITUTO COLOMBIANO DE BIENESTAR FAMILIAR ICBF SEGUIMIENTO TABLERO - ANÁLISIS MACROREGIONALES
B5: Mes de analisis | D5: =+Menu!C7 -> Noviembre | R5: Volver al menú
B7: Comportamiento macroregionales (Plan de Acción) | Q7: Seleccionar macroregión y dar click en el boton verde
O8: 2 | P8: 3 | Q8: 4 | R8: 5 | S8: 6 | T8: 7 | U8: 8 | V8: 9 | W8: 10 | X8: 11 | Y8: 12 | Z8: 13
C9: Pacífico | F9: Centro Sur | I9: Llanos | O9: Comportamiento regional Plan de Acción
O10: Enero | P10: Febrero | Q10: Marzo | R10: Abril | S10: Mayo | T10: Junio | U10: Julio | V10: Agosto | W10: Septiembre | X10: Octubre | Y10: Noviembre | Z10: Diciembre
M11: Pacífico | N11: =+'información graf'!CG62 -> Valle | O11: =+VLOOKUP($N11,'información graf'!$BN$62:$BZ$99,O$8,FALSE) -> 0.9465656087 | P11: =+VLOOKUP($N11,'información graf'!$BN$62:$BZ$99,P$8,FALSE) -> 0.914251098 | Q11: =+VLOOKUP($N11,'información graf'!$BN$62:$BZ$99,Q$8,FALSE) -> 0.951345366 | R11: =+VLOOKUP($N11,'información graf'!$BN$62:$BZ$99,R$8,FALSE) -> 0.8821576763 | S11: =+VLOOKUP($N11,'información graf'!$BN$62:$BZ$99,S$8,FALSE) -> 0.9256157635 | T11: =+VLOOKUP($N11,'información graf'!$BN$62:$BZ$99,T$8,FALSE) -> 0.9558374083 | U11: =+VLOOKUP($N11,'información graf'!$BN$62:$BZ$99,U$8,FALSE) -> 0.9594827586 | V11: =+VLOOKUP($N11,'información graf'!$BN$62:$BZ$99,V$8,FALSE) -> 0.9198179123 | W11: =+VLOOKUP($N11,'información graf'!$BN$62:$BZ$99,W$8,FALSE) -> 0.9369622476 | X11: =+VLOOKUP($N11,'información graf'!$BN$62:$BZ$99,X$8,FALSE) -> 0.9022661985 | Y11: =+VLOOKUP($N11,'información graf'!$BN$62:$BZ$99,Y$8,FALSE) -> 0.9730979748 | Z11: =+VLOOKUP($N11,'información graf'!$BN$62:$BZ$99,Z$8,FALSE) ->  | AB11: =+HLOOKUP($D$5,$O$10:$Z$48,AC11,FALSE) -> 0.9730979748 | AC11: 2
N12: =+'información graf'!CG63 -> Cauca | O12: =+VLOOKUP($N12,'información graf'!$BN$62:$BZ$99,O$8,FALSE) -> 0.9043743642 | P12: =+VLOOKUP($N12,'información graf'!$BN$62:$BZ$99,P$8,FALSE) -> 0.9326366803 | Q12: =+VLOOKUP($N12,'información graf'!$BN$62:$BZ$99,Q$8,FALSE) -> 0.9615767911 | R12: =+VLOOKUP($N12,'información graf'!$BN$62:$BZ$99,R$8,FALSE) -> 0.9118310459 | S12: =+VLOOKUP($N12,'información graf'!$BN$62:$BZ$99,S$8,FALSE) -> 0.9794198139 | T12: =+VLOOKUP($N12,'información graf'!$BN$62:$BZ$99,T$8,FALSE) -> 0.9359320809 | U12: =+VLOOKUP($N12,'información graf'!$BN$62:$BZ$99,U$8,FALSE) -> 0.9118910783 | V12: =+VLOOKUP($N12,'información graf'!$BN$62:$BZ$99,V$8,FALSE) -> 0.9503387677 | W12: =+VLOOKUP($N12,'información graf'!$BN$62:$BZ$99,W$8,FALSE) -> 0.9584503951 | X12: =+VLOOKUP($N12,'información graf'!$BN$62:$BZ$99,X$8,FALSE) -> 0.9151824662 | Y12: =+VLOOKUP($N12,'información graf'!$BN$62:$BZ$99,Y$8,FALSE) -> 0.9667761357 | Z12: =+VLOOKUP($N12,'información graf'!$BN$62:$BZ$99,Z$8,FALSE) ->  | AB12: =+HLOOKUP($D$5,$O$10:$Z$48,AC12,FALSE) -> 0.9667761357 | AC12: 3
N13: =+'información graf'!CG64 -> Nariño | O13: =+VLOOKUP($N13,'información graf'!$BN$62:$BZ$99,O$8,FALSE) -> 0.9821885362 | P13: =+VLOOKUP($N13,'información graf'!$BN$62:$BZ$99,P$8,FALSE) -> 0.9396334999 | Q13: =+VLOOKUP($N13,'información graf'!$BN$62:$BZ$99,Q$8,FALSE) -> 0.8841324327 | R13: =+VLOOKUP($N13,'información graf'!$BN$62:$BZ$99,R$8,FALSE) -> 0.8814129163 | S13: =+VLOOKUP($N13,'información graf'!$BN$62:$BZ$99,S$8,FALSE) -> 0.8933497537 | T13: =+VLOOKUP($N13,'información graf'!$BN$62:$BZ$99,T$8,FALSE) -> 0.8938951711 | U13: =+VLOOKUP($N13,'información graf'!$BN$62:$BZ$99,U$8,FALSE) -> 0.9634510126 | V13: =+VLOOKUP($N13,'información graf'!$BN$62:$BZ$99,V$8,FALSE) -> 0.960120686 | W13: =+VLOOKUP($N13,'información graf'!$BN$62:$BZ$99,W$8,FALSE) -> 0.9627671106 | X13: =+VLOOKUP($N13,'información graf'!$BN$62:$BZ$99,X$8,FALSE) -> 0.9666666667 | Y13: =+VLOOKUP($N13,'información graf'!$BN$62:$BZ$99,Y$8,FALSE) -> 0.9571291735 | Z13: =+VLOOKUP($N13,'información graf'!$BN$62:$BZ$99,Z$8,FALSE) ->  | AB13: 0.9571291735 | AC13: 4
N14: =+'información graf'!CG65 -> Choco | O14: =+VLOOKUP($N14,'información graf'!$BN$62:$BZ$99,O$8,FALSE) -> 1 | P14: =+VLOOKUP($N14,'información graf'!$BN$62:$BZ$99,P$8,FALSE) -> 0.8775252094 | Q14: =+VLOOKUP($N14,'información graf'!$BN$62:$BZ$99,Q$8,FALSE) -> 0.8505239852 | R14: =+VLOOKUP($N14,'información graf'!$BN$62:$BZ$99,R$8,FALSE) -> 0.7805366023 | S14: =+VLOOKUP($N14,'información graf'!$BN$62:$BZ$99,S$8,FALSE) -> 0.8844722392 | T14: =+VLOOKUP($N14,'información graf'!$BN$62:$BZ$99,T$8,FALSE) -> 0.7523394337 | U14: =+VLOOKUP($N14,'información graf'!$BN$62:$BZ$99,U$8,FALSE) -> 0.8683496034 | V14: =+VLOOKUP($N14,'información graf'!$BN$62:$BZ$99,V$8,FALSE) -> 0.8475845411 | W14: =+VLOOKUP($N14,'información graf'!$BN$62:$BZ$99,W$8,FALSE) -> 0.8529179811 | X14: =+VLOOKUP($N14,'información graf'!$BN$62:$BZ$99,X$8,FALSE) -> 0.8284723025 | Y14: =+VLOOKUP($N14,'información graf'!$BN$62:$BZ$99,Y$8,FALSE) -> 0.9399176327 | Z14: =+VLOOKUP($N14,'información graf'!$BN$62:$BZ$99,Z$8,FALSE) ->  | AB14: 0.9399176327 | AC14: 5
M16: Centro Sur | N16: =+'información graf'!CG67 -> Caquetá | O16: =+VLOOKUP($N16,'información graf'!$BN$62:$BZ$99,O$8,FALSE) -> 1 | P16: =+VLOOKUP($N16,'información graf'!$BN$62:$BZ$99,P$8,FALSE) -> 0.9930031804 | Q16: =+VLOOKUP($N16,'información graf'!$BN$62:$BZ$99,Q$8,FALSE) -> 0.9666925036 | R16: =+VLOOKUP($N16,'información graf'!$BN$62:$BZ$99,R$8,FALSE) -> 0.9699968082 | S16: =+VLOOKUP($N16,'información graf'!$BN$62:$BZ$99,S$8,FALSE) -> 1 | T16: =+VLOOKUP($N16,'información graf'!$BN$62:$BZ$99,T$8,FALSE) -> 1 | U16: =+VLOOKUP($N16,'información graf'!$BN$62:$BZ$99,U$8,FALSE) -> 0.9936781609 | V16: =+VLOOKUP($N16,'información graf'!$BN$62:$BZ$99,V$8,FALSE) -> 0.9925365234 | W16: =+VLOOKUP($N16,'información graf'!$BN$62:$BZ$99,W$8,FALSE) -> 0.9581065262 | X16: =+VLOOKUP($N16,'información graf'!$BN$62:$BZ$99,X$8,FALSE) -> 1 | Y16: =+VLOOKUP($N16,'información graf'!$BN$62:$BZ$99,Y$8,FALSE) -> 0.9936781609 | Z16: =+VLOOKUP($N16,'información graf'!$BN$62:$BZ$99,Z$8,FALSE) ->  | AB16: 0.9936781609 | AC16: 7
N17: =+'información graf'!CG68 -> Huila | O17: =+VLOOKUP($N17,'información graf'!$BN$62:$BZ$99,O$8,FALSE) -> 0.9783285303 | P17: =+VLOOKUP($N17,'información graf'!$BN$62:$BZ$99,P$8,FALSE) -> 0.9536271392 | Q17: =+VLOOKUP($N17,'información graf'!$BN$62:$BZ$99,Q$8,FALSE) -> 0.9161333186 | R17: =+VLOOKUP($N17,'información graf'!$BN$62:$BZ$99,R$8,FALSE) -> 0.9125758059 | S17: =+VLOOKUP($N17,'información graf'!$BN$62:$BZ$99,S$8,FALSE) -> 0.9113574165 | T17: =+VLOOKUP($N17,'información graf'!$BN$62:$BZ$99,T$8,FALSE) -> 0.9760620416 | U17: =+VLOOKUP($N17,'información graf'!$BN$62:$BZ$99,U$8,FALSE) -> 0.9873563218 | V17: =+VLOOKUP($N17,'información graf'!$BN$62:$BZ$99,V$8,FALSE) -> 0.9787439614 | W17: =+VLOOKUP($N17,'información graf'!$BN$62:$BZ$99,W$8,FALSE) -> 0.9724904887 | X17: =+VLOOKUP($N17,'información graf'!$BN$62:$BZ$99,X$8,FALSE) -> 0.9606766677 | Y17: =+VLOOKUP($N17,'información graf'!$BN$62:$BZ$99,Y$8,FALSE) -> 0.9936781609 | Z17: =+VLOOKUP($N17,'información graf'!$BN$62:$BZ$99,Z$8,FALSE) ->  | AB17: 0.9936781609 | AC17: 8
N18: =+'información graf'!CG69 -> Putumayo | O18: =+VLOOKUP($N18,'información graf'!$BN$62:$BZ$99,O$8,FALSE) -> 1 | P18: =+VLOOKUP($N18,'información graf'!$BN$62:$BZ$99,P$8,FALSE) -> 0.9930031804 | Q18: =+VLOOKUP($N18,'información graf'!$BN$62:$BZ$99,Q$8,FALSE) -> 0.9308370576 | R18: =+VLOOKUP($N18,'información graf'!$BN$62:$BZ$99,R$8,FALSE) -> 0.9079902117 | S18: =+VLOOKUP($N18,'información graf'!$BN$62:$BZ$99,S$8,FALSE) -> 0.9183223864 | T18: =+VLOOKUP($N18,'información graf'!$BN$62:$BZ$99,T$8,FALSE) -> 0.9771400778 | U18: =+VLOOKUP($N18,'información graf'!$BN$62:$BZ$99,U$8,FALSE) -> 0.9221811713 | V18: =+VLOOKUP($N18,'información graf'!$BN$62:$BZ$99,V$8,FALSE) -> 0.9363116663 | W18: =+VLOOKUP($N18,'información graf'!$BN$62:$BZ$99,W$8,FALSE) -> 0.9906008052 | X18: =+VLOOKUP($N18,'información graf'!$BN$62:$BZ$99,X$8,FALSE) -> 1 | Y18: =+VLOOKUP($N18,'información graf'!$BN$62:$BZ$99,Y$8,FALSE) -> 0.989709907 | Z18: =+VLOOKUP($N18,'información graf'!$BN$62:$BZ$99,Z$8,FALSE) ->  | AB18: 0.989709907 | AC18: 9
N19: =+'información graf'!CG70 -> Tolima | O19: =+VLOOKUP($N19,'información graf'!$BN$62:$BZ$99,O$8,FALSE) -> 0.885249237 | P19: =+VLOOKUP($N19,'información graf'!$BN$62:$BZ$99,P$8,FALSE) -> 0.9080720884 | Q19: =+VLOOKUP($N19,'información graf'!$BN$62:$BZ$99,Q$8,FALSE) -> 0.8457092238 | R19: =+VLOOKUP($N19,'información graf'!$BN$62:$BZ$99,R$8,FALSE) -> 0.893488669 | S19: =+VLOOKUP($N19,'información graf'!$BN$62:$BZ$99,S$8,FALSE) -> 0.9794198139 | T19: =+VLOOKUP($N19,'información graf'!$BN$62:$BZ$99,T$8,FALSE) -> 0.9814486553 | U19: =+VLOOKUP($N19,'información graf'!$BN$62:$BZ$99,U$8,FALSE) -> 0.9628078818 | V19: =+VLOOKUP($N19,'información graf'!$BN$62:$BZ$99,V$8,FALSE) -> 0.9761168749 | W19: =+VLOOKUP($N19,'información graf'!$BN$62:$BZ$99,W$8,FALSE) -> 0.9636084284 | X19: =+VLOOKUP($N19,'información graf'!$BN$62:$BZ$99,X$8,FALSE) -> 0.9790828812 | Y19: =+VLOOKUP($N19,'información graf'!$BN$62:$BZ$99,Y$8,FALSE) -> 0.9525177887 | Z19: =+VLOOKUP($N19,'información graf'!$BN$62:$BZ$99,Z$8,FALSE) ->  | AB19: 0.9525177887 | AC19: 10
N20: =+'información graf'!CG71 -> Amazonas | O20: =+VLOOKUP($N20,'información graf'!$BN$62:$BZ$99,O$8,FALSE) -> 0.6956585725 | P20: =+VLOOKUP($N20,'información graf'!$BN$62:$BZ$99,P$8,FALSE) -> 0.7954537686 | Q20: =+VLOOKUP($N20,'información graf'!$BN$62:$BZ$99,Q$8,FALSE) -> 0.8076433121 | R20: =+VLOOKUP($N20,'información graf'!$BN$62:$BZ$99,R$8,FALSE) -> 0.8364288192 | S20: =+VLOOKUP($N20,'información graf'!$BN$62:$BZ$99,S$8,FALSE) -> 0.9400244051 | T20: =+VLOOKUP($N20,'información graf'!$BN$62:$BZ$99,T$8,FALSE) -> 0.8722179364 | U20: =+VLOOKUP($N20,'información graf'!$BN$62:$BZ$99,U$8,FALSE) -> 0.7633160464 | V20: =+VLOOKUP($N20,'información graf'!$BN$62:$BZ$99,V$8,FALSE) -> 0.8776252833 | W20: =+VLOOKUP($N20,'información graf'!$BN$62:$BZ$99,W$8,FALSE) -> 0.8519905864 | X20: =+VLOOKUP($N20,'información graf'!$BN$62:$BZ$99,X$8,FALSE) -> 0.879727073 | Y20: =+VLOOKUP($N20,'información graf'!$BN$62:$BZ$99,Y$8,FALSE) -> 0.9321537523 | Z20: =+VLOOKUP($N20,'información graf'!$BN$62:$BZ$99,Z$8,FALSE) ->  | AB20: 0.9321537523 | AC20: 11
M22: Llanos | N22: =+'información graf'!CG73 -> Casanare | O22: =+VLOOKUP($N22,'información graf'!$BN$62:$BZ$99,O$8,FALSE) -> 0.9783285303 | P22: =+VLOOKUP($N22,'información graf'!$BN$62:$BZ$99,P$8,FALSE) -> 0.8340112801 | Q22: =+VLOOKUP($N22,'información graf'!$BN$62:$BZ$99,Q$8,FALSE) -> 0.8793941809 | R22: =+VLOOKUP($N22,'información graf'!$BN$62:$BZ$99,R$8,FALSE) -> 0.7691800624 | S22: =+VLOOKUP($N22,'información graf'!$BN$62:$BZ$99,S$8,FALSE) -> 0.9363178768 | T22: =+VLOOKUP($N22,'información graf'!$BN$62:$BZ$99,T$8,FALSE) -> 0.9496374309 | U22: =+VLOOKUP($N22,'información graf'!$BN$62:$BZ$99,U$8,FALSE) -> 0.9176792556 | V22: =+VLOOKUP($N22,'información graf'!$BN$62:$BZ$99,V$8,FALSE) -> 0.9860363469 | W22: =+VLOOKUP($N22,'información graf'!$BN$62:$BZ$99,W$8,FALSE) -> 0.9214151427 | X22: =+VLOOKUP($N22,'información graf'!$BN$62:$BZ$99,X$8,FALSE) -> 0.9439940419 | Y22: =+VLOOKUP($N22,'información graf'!$BN$62:$BZ$99,Y$8,FALSE) -> 0.9936781609 | Z22: =+VLOOKUP($N22,'información graf'!$BN$62:$BZ$99,Z$8,FALSE) ->  | AB22: 0.9936781609 | AC22: 13
N23: =+'información graf'!CG74 -> Meta | O23: =+VLOOKUP($N23,'información graf'!$BN$62:$BZ$99,O$8,FALSE) -> 1 | P23: =+VLOOKUP($N23,'información graf'!$BN$62:$BZ$99,P$8,FALSE) -> 0.9746175981 | Q23: =+VLOOKUP($N23,'información graf'!$BN$62:$BZ$99,Q$8,FALSE) -> 0.9365620259 | R23: =+VLOOKUP($N23,'información graf'!$BN$62:$BZ$99,R$8,FALSE) -> 0.8291520375 | S23: =+VLOOKUP($N23,'información graf'!$BN$62:$BZ$99,S$8,FALSE) -> 0.9461959496 | T23: =+VLOOKUP($N23,'información graf'!$BN$62:$BZ$99,T$8,FALSE) -> 0.9454063045 | U23: =+VLOOKUP($N23,'información graf'!$BN$62:$BZ$99,U$8,FALSE) -> 0.9050355774 | V23: =+VLOOKUP($N23,'información graf'!$BN$62:$BZ$99,V$8,FALSE) -> 0.926529748 | W23: =+VLOOKUP($N23,'información graf'!$BN$62:$BZ$99,W$8,FALSE) -> 0.8804179918 | X23: =+VLOOKUP($N23,'información graf'!$BN$62:$BZ$99,X$8,FALSE) -> 0.9106607086 | Y23: =+VLOOKUP($N23,'información graf'!$BN$62:$BZ$99,Y$8,FALSE) -> 0.9517788725 | Z23: =+VLOOKUP($N23,'información graf'!$BN$62:$BZ$99,Z$8,FALSE) ->  | AB23: 0.9517788725 | AC23: 14
N24: =+'información graf'!CG75 -> Guaviare | O24: =+VLOOKUP($N24,'información graf'!$BN$62:$BZ$99,O$8,FALSE) -> 0.8482997118 | P24: =+VLOOKUP($N24,'información graf'!$BN$62:$BZ$99,P$8,FALSE) -> 0.7253119125 | Q24: =+VLOOKUP($N24,'información graf'!$BN$62:$BZ$99,Q$8,FALSE) -> 0.7403746513 | R24: =+VLOOKUP($N24,'información graf'!$BN$62:$BZ$99,R$8,FALSE) -> 0.7495547589 | S24: =+VLOOKUP($N24,'información graf'!$BN$62:$BZ$99,S$8,FALSE) -> 0.7813910921 | T24: =+VLOOKUP($N24,'información graf'!$BN$62:$BZ$99,T$8,FALSE) -> 0.7897876381 | U24: =+VLOOKUP($N24,'información graf'!$BN$62:$BZ$99,U$8,FALSE) -> 0.8562843197 | V24: =+VLOOKUP($N24,'información graf'!$BN$62:$BZ$99,V$8,FALSE) -> 0.9154998741 | W24: =+VLOOKUP($N24,'información graf'!$BN$62:$BZ$99,W$8,FALSE) -> 0.967231174 | X24: =+VLOOKUP($N24,'información graf'!$BN$62:$BZ$99,X$8,FALSE) -> 0.891037354 | Y24: =+VLOOKUP($N24,'información graf'!$BN$62:$BZ$99,Y$8,FALSE) -> 0.9224832215 | Z24: =+VLOOKUP($N24,'información graf'!$BN$62:$BZ$99,Z$8,FALSE) ->  | AB24: 0.9224832215 | AC24: 15
C25: Avance | F25: Avance | I25: Avance | N25: =+'información graf'!CG76 -> Vaupés | O25: =+VLOOKUP($N25,'información graf'!$BN$62:$BZ$99,O$8,FALSE) -> 1 | P25: =+VLOOKUP($N25,'información graf'!$BN$62:$BZ$99,P$8,FALSE) -> 0.7599165508 | Q25: =+VLOOKUP($N25,'información graf'!$BN$62:$BZ$99,Q$8,FALSE) -> 0.9211155378 | R25: =+VLOOKUP($N25,'información graf'!$BN$62:$BZ$99,R$8,FALSE) -> 0.887012987 | S25: =+VLOOKUP($N25,'información graf'!$BN$62:$BZ$99,S$8,FALSE) -> 0.871773555 | T25: =+VLOOKUP($N25,'información graf'!$BN$62:$BZ$99,T$8,FALSE) -> 0.9163596082 | U25: =+VLOOKUP($N25,'información graf'!$BN$62:$BZ$99,U$8,FALSE) -> 0.9610232558 | V25: =+VLOOKUP($N25,'información graf'!$BN$62:$BZ$99,V$8,FALSE) -> 0.9380232149 | W25: =+VLOOKUP($N25,'información graf'!$BN$62:$BZ$99,W$8,FALSE) -> 0.946751448 | X25: =+VLOOKUP($N25,'información graf'!$BN$62:$BZ$99,X$8,FALSE) -> 0.9271874563 | Y25: =+VLOOKUP($N25,'información graf'!$BN$62:$BZ$99,Y$8,FALSE) -> 0.8207906977 | Z25: =+VLOOKUP($N25,'información graf'!$BN$62:$BZ$99,Z$8,FALSE) ->  | AB25: 0.8207906977 | AC25: 16
C26: =+nacional!J116 -> 0.9592302292 | F26: =+nacional!J117 -> 0.972347554 | I26: =+nacional!J118 -> 0.8569401556 | N26: =+'información graf'!CG77 -> Guainía | O26: =+VLOOKUP($N26,'información graf'!$BN$62:$BZ$99,O$8,FALSE) -> 0.7322482197 | P26: =+VLOOKUP($N26,'información graf'!$BN$62:$BZ$99,P$8,FALSE) -> 0.6975422917 | Q26: =+VLOOKUP($N26,'información graf'!$BN$62:$BZ$99,Q$8,FALSE) -> 0.7019754627 | R26: =+VLOOKUP($N26,'información graf'!$BN$62:$BZ$99,R$8,FALSE) -> 0.8431671905 | S26: =+VLOOKUP($N26,'información graf'!$BN$62:$BZ$99,S$8,FALSE) -> 0.8753760887 | T26: =+VLOOKUP($N26,'información graf'!$BN$62:$BZ$99,T$8,FALSE) -> 0.8064254523 | U26: =+VLOOKUP($N26,'información graf'!$BN$62:$BZ$99,U$8,FALSE) -> 0.9038796516 | V26: =+VLOOKUP($N26,'información graf'!$BN$62:$BZ$99,V$8,FALSE) -> 0.8905285118 | W26: =+VLOOKUP($N26,'información graf'!$BN$62:$BZ$99,W$8,FALSE) -> 0.916646849 | X26: =+VLOOKUP($N26,'información graf'!$BN$62:$BZ$99,X$8,FALSE) -> 0.8958682821 | Y26: =+VLOOKUP($N26,'información graf'!$BN$62:$BZ$99,Y$8,FALSE) -> 0.7996832937 | Z26: =+VLOOKUP($N26,'información graf'!$BN$62:$BZ$99,Z$8,FALSE) ->  | AB26: 0.7996832937 | AC26: 17
C27: =+"Corte "&$D$5 -> Corte Noviembre | F27: =+"Corte "&$D$5 -> Corte Noviembre | I27: =+"Corte "&$D$5 -> Corte Noviembre | N27: =+'información graf'!CG78 -> Vichada | O27: =+VLOOKUP($N27,'información graf'!$BN$62:$BZ$99,O$8,FALSE) -> 0.3 | P27: =+VLOOKUP($N27,'información graf'!$BN$62:$BZ$99,P$8,FALSE) -> 0.4262939959 | Q27: =+VLOOKUP($N27,'información graf'!$BN$62:$BZ$99,Q$8,FALSE) -> 0.4898939488 | R27: =+VLOOKUP($N27,'información graf'!$BN$62:$BZ$99,R$8,FALSE) -> 0.655900882 | S27: =+VLOOKUP($N27,'información graf'!$BN$62:$BZ$99,S$8,FALSE) -> 0.7502573238 | T27: =+VLOOKUP($N27,'información graf'!$BN$62:$BZ$99,T$8,FALSE) -> 0.8889080601 | U27: =+VLOOKUP($N27,'información graf'!$BN$62:$BZ$99,U$8,FALSE) -> 0.5911916073 | V27: =+VLOOKUP($N27,'información graf'!$BN$62:$BZ$99,V$8,FALSE) -> 0.7150823237 | W27: =+VLOOKUP($N27,'información graf'!$BN$62:$BZ$99,W$8,FALSE) -> 0.8028233658 | X27: =+VLOOKUP($N27,'información graf'!$BN$62:$BZ$99,X$8,FALSE) -> 0.6048299034 | Y27: =+VLOOKUP($N27,'información graf'!$BN$62:$BZ$99,Y$8,FALSE) -> 0.7572248614 | Z27: =+VLOOKUP($N27,'información graf'!$BN$62:$BZ$99,Z$8,FALSE) ->  | AB27: 0.7572248614 | AC27: 18
C28: Eje Cafetero | F28: Caribe | I28: Centro Oriente | N28: =+'información graf'!CG79 -> Arauca | O28: =+VLOOKUP($N28,'información graf'!$BN$62:$BZ$99,O$8,FALSE) -> 0.7896236012 | P28: =+VLOOKUP($N28,'información graf'!$BN$62:$BZ$99,P$8,FALSE) -> 0.9091095539 | Q28: =+VLOOKUP($N28,'información graf'!$BN$62:$BZ$99,Q$8,FALSE) -> 0.8320583344 | R28: =+VLOOKUP($N28,'información graf'!$BN$62:$BZ$99,R$8,FALSE) -> 0.8481540589 | S28: =+VLOOKUP($N28,'información graf'!$BN$62:$BZ$99,S$8,FALSE) -> 0.8868089765 | T28: =+VLOOKUP($N28,'información graf'!$BN$62:$BZ$99,T$8,FALSE) -> 0.9021848588 | U28: =+VLOOKUP($N28,'información graf'!$BN$62:$BZ$99,U$8,FALSE) -> 0.7584154351 | V28: =+VLOOKUP($N28,'información graf'!$BN$62:$BZ$99,V$8,FALSE) -> 0.8122498275 | W28: =+VLOOKUP($N28,'información graf'!$BN$62:$BZ$99,W$8,FALSE) -> 0.876850811 | X28: =+VLOOKUP($N28,'información graf'!$BN$62:$BZ$99,X$8,FALSE) -> 0.8473348229 | Y28: =+VLOOKUP($N28,'información graf'!$BN$62:$BZ$99,Y$8,FALSE) -> 0.7529419814 | Z28: =+VLOOKUP($N28,'información graf'!$BN$62:$BZ$99,Z$8,FALSE) ->  | AB28: 0.7529419814 | AC28: 19
M30: Eje Cafetero | N30: =+'información graf'!CG81 -> Risaralda | O30: =+VLOOKUP($N30,'información graf'!$BN$62:$BZ$99,O$8,FALSE) -> 0.9839453459 | P30: =+VLOOKUP($N30,'información graf'!$BN$62:$BZ$99,P$8,FALSE) -> 0.9536271392 | Q30: =+VLOOKUP($N30,'información graf'!$BN$62:$BZ$99,Q$8,FALSE) -> 0.8866349242 | R30: =+VLOOKUP($N30,'información graf'!$BN$62:$BZ$99,R$8,FALSE) -> 0.8581551229 | S30: =+VLOOKUP($N30,'información graf'!$BN$62:$BZ$99,S$8,FALSE) -> 0.9448002189 | T30: =+VLOOKUP($N30,'información graf'!$BN$62:$BZ$99,T$8,FALSE) -> 0.9333893643 | U30: =+VLOOKUP($N30,'información graf'!$BN$62:$BZ$99,U$8,FALSE) -> 0.9571291735 | V30: =+VLOOKUP($N30,'información graf'!$BN$62:$BZ$99,V$8,FALSE) -> 0.8713000212 | W30: =+VLOOKUP($N30,'información graf'!$BN$62:$BZ$99,W$8,FALSE) -> 0.9639522973 | X30: =+VLOOKUP($N30,'información graf'!$BN$62:$BZ$99,X$8,FALSE) -> 0.9586658155 | Y30: =+VLOOKUP($N30,'información graf'!$BN$62:$BZ$99,Y$8,FALSE) -> 0.9634510126 | Z30: =+VLOOKUP($N30,'información graf'!$BN$62:$BZ$99,Z$8,FALSE) ->  | AB30: 0.9634510126 | AC30: 21
N31: =+'información graf'!CG82 -> Caldas | O31: =+VLOOKUP($N31,'información graf'!$BN$62:$BZ$99,O$8,FALSE) -> 0.9808748728 | P31: =+VLOOKUP($N31,'información graf'!$BN$62:$BZ$99,P$8,FALSE) -> 0.9816144177 | Q31: =+VLOOKUP($N31,'información graf'!$BN$62:$BZ$99,Q$8,FALSE) -> 0.90436043 | R31: =+VLOOKUP($N31,'información graf'!$BN$62:$BZ$99,R$8,FALSE) -> 0.9345781466 | S31: =+VLOOKUP($N31,'información graf'!$BN$62:$BZ$99,S$8,FALSE) -> 0.940831965 | T31: =+VLOOKUP($N31,'información graf'!$BN$62:$BZ$99,T$8,FALSE) -> 0.9150137531 | U31: =+VLOOKUP($N31,'información graf'!$BN$62:$BZ$99,U$8,FALSE) -> 0.8802818829 | V31: =+VLOOKUP($N31,'información graf'!$BN$62:$BZ$99,V$8,FALSE) -> 0.8822464535 | W31: =+VLOOKUP($N31,'información graf'!$BN$62:$BZ$99,W$8,FALSE) -> 0.9288191396 | X31: =+VLOOKUP($N31,'información graf'!$BN$62:$BZ$99,X$8,FALSE) -> 0.9511650176 | Y31: =+VLOOKUP($N31,'información graf'!$BN$62:$BZ$99,Y$8,FALSE) -> 0.9468390805 | Z31: =+VLOOKUP($N31,'información graf'!$BN$62:$BZ$99,Z$8,FALSE) ->  | AB31: 0.9468390805 | AC31: 22
N32: =+'información graf'!CG83 -> Antioquia | O32: =+VLOOKUP($N32,'información graf'!$BN$62:$BZ$99,O$8,FALSE) -> 0.9839453459 | P32: =+VLOOKUP($N32,'información graf'!$BN$62:$BZ$99,P$8,FALSE) -> 0.9345146146 | Q32: =+VLOOKUP($N32,'información graf'!$BN$62:$BZ$99,Q$8,FALSE) -> 0.8650426309 | R32: =+VLOOKUP($N32,'información graf'!$BN$62:$BZ$99,R$8,FALSE) -> 0.8708266837 | S32: =+VLOOKUP($N32,'información graf'!$BN$62:$BZ$99,S$8,FALSE) -> 0.9073891626 | T32: =+VLOOKUP($N32,'información graf'!$BN$62:$BZ$99,T$8,FALSE) -> 0.9473334352 | U32: =+VLOOKUP($N32,'información graf'!$BN$62:$BZ$99,U$8,FALSE) -> 0.904939792 | V32: =+VLOOKUP($N32,'información graf'!$BN$62:$BZ$99,V$8,FALSE) -> 0.96873706 | W32: =+VLOOKUP($N32,'información graf'!$BN$62:$BZ$99,W$8,FALSE) -> 0.9319960539 | X32: =+VLOOKUP($N32,'información graf'!$BN$62:$BZ$99,X$8,FALSE) -> 0.9451750186 | Y32: =+VLOOKUP($N32,'información graf'!$BN$62:$BZ$99,Y$8,FALSE) -> 0.9288451013 | Z32: =+VLOOKUP($N32,'información graf'!$BN$62:$BZ$99,Z$8,FALSE) ->  | AB32: 0.9288451013 | AC32: 23
N33: =+'información graf'!CG84 -> Quindío | O33: =+VLOOKUP($N33,'información graf'!$BN$62:$BZ$99,O$8,FALSE) -> 0.9678906917 | P33: =+VLOOKUP($N33,'información graf'!$BN$62:$BZ$99,P$8,FALSE) -> 0.9492351961 | Q33: =+VLOOKUP($N33,'información graf'!$BN$62:$BZ$99,Q$8,FALSE) -> 0.8847686919 | R33: =+VLOOKUP($N33,'información graf'!$BN$62:$BZ$99,R$8,FALSE) -> 0.9201617193 | S33: =+VLOOKUP($N33,'información graf'!$BN$62:$BZ$99,S$8,FALSE) -> 0.8933497537 | T33: =+VLOOKUP($N33,'información graf'!$BN$62:$BZ$99,T$8,FALSE) -> 0.9559338521 | U33: =+VLOOKUP($N33,'información graf'!$BN$62:$BZ$99,U$8,FALSE) -> 0.9421319102 | V33: =+VLOOKUP($N33,'información graf'!$BN$62:$BZ$99,V$8,FALSE) -> 0.9754083276 | W33: =+VLOOKUP($N33,'información graf'!$BN$62:$BZ$99,W$8,FALSE) -> 0.9765948125 | X33: =+VLOOKUP($N33,'información graf'!$BN$62:$BZ$99,X$8,FALSE) -> 0.9723374827 | Y33: =+VLOOKUP($N33,'información graf'!$BN$62:$BZ$99,Y$8,FALSE) -> 0.873426382 | Z33: =+VLOOKUP($N33,'información graf'!$BN$62:$BZ$99,Z$8,FALSE) ->  | AB33: 0.873426382 | AC33: 24
M35: Caribe | N35: =+'información graf'!CG86 -> Cesar | O35: =+VLOOKUP($N35,'información graf'!$BN$62:$BZ$99,O$8,FALSE) -> 0.9566570605 | P35: =+VLOOKUP($N35,'información graf'!$BN$62:$BZ$99,P$8,FALSE) -> 0.9772224746 | Q35: =+VLOOKUP($N35,'información graf'!$BN$62:$BZ$99,Q$8,FALSE) -> 0.8978892158 | R35: =+VLOOKUP($N35,'información graf'!$BN$62:$BZ$99,R$8,FALSE) -> 0.9345781466 | S35: =+VLOOKUP($N35,'información graf'!$BN$62:$BZ$99,S$8,FALSE) -> 0.9176792556 | T35: =+VLOOKUP($N35,'información graf'!$BN$62:$BZ$99,T$8,FALSE) -> 0.9643909393 | U35: =+VLOOKUP($N35,'información graf'!$BN$62:$BZ$99,U$8,FALSE) -> 0.9840311987 | V35: =+VLOOKUP($N35,'información graf'!$BN$62:$BZ$99,V$8,FALSE) -> 0.9290281601 | W35: =+VLOOKUP($N35,'información graf'!$BN$62:$BZ$99,W$8,FALSE) -> 0.9215031315 | X35: =+VLOOKUP($N35,'información graf'!$BN$62:$BZ$99,X$8,FALSE) -> 0.9852537504 | Y35: =+VLOOKUP($N35,'información graf'!$BN$62:$BZ$99,Y$8,FALSE) -> 0.9810344828 | Z35: =+VLOOKUP($N35,'información graf'!$BN$62:$BZ$99,Z$8,FALSE) ->  | AB35: 0.9810344828 | AC35: 26
N36: =+'información graf'!CG87 -> Sucre | O36: =+VLOOKUP($N36,'información graf'!$BN$62:$BZ$99,O$8,FALSE) -> 1 | P36: =+VLOOKUP($N36,'información graf'!$BN$62:$BZ$99,P$8,FALSE) -> 0.9326366803 | Q36: =+VLOOKUP($N36,'información graf'!$BN$62:$BZ$99,Q$8,FALSE) -> 0.8809618706 | R36: =+VLOOKUP($N36,'información graf'!$BN$62:$BZ$99,R$8,FALSE) -> 0.8589105224 | S36: =+VLOOKUP($N36,'información graf'!$BN$62:$BZ$99,S$8,FALSE) -> 0.9082649152 | T36: =+VLOOKUP($N36,'información graf'!$BN$62:$BZ$99,T$8,FALSE) -> 0.9062845304 | U36: =+VLOOKUP($N36,'información graf'!$BN$62:$BZ$99,U$8,FALSE) -> 0.923166393 | V36: =+VLOOKUP($N36,'información graf'!$BN$62:$BZ$99,V$8,FALSE) -> 0.9946859903 | W36: =+VLOOKUP($N36,'información graf'!$BN$62:$BZ$99,W$8,FALSE) -> 0.9500986518 | X36: =+VLOOKUP($N36,'información graf'!$BN$62:$BZ$99,X$8,FALSE) -> 0.8816682626 | Y36: =+VLOOKUP($N36,'información graf'!$BN$62:$BZ$99,Y$8,FALSE) -> 0.9707443897 | Z36: =+VLOOKUP($N36,'información graf'!$BN$62:$BZ$99,Z$8,FALSE) ->  | AB36: 0.9707443897 | AC36: 27
N37: =+'información graf'!CG88 -> Magdalena | O37: =+VLOOKUP($N37,'información graf'!$BN$62:$BZ$99,O$8,FALSE) -> 0.9783285303 | P37: =+VLOOKUP($N37,'información graf'!$BN$62:$BZ$99,P$8,FALSE) -> 0.923978807 | Q37: =+VLOOKUP($N37,'información graf'!$BN$62:$BZ$99,Q$8,FALSE) -> 0.9454762854 | R37: =+VLOOKUP($N37,'información graf'!$BN$62:$BZ$99,R$8,FALSE) -> 0.8758182028 | S37: =+VLOOKUP($N37,'información graf'!$BN$62:$BZ$99,S$8,FALSE) -> 0.9178981938 | T37: =+VLOOKUP($N37,'información graf'!$BN$62:$BZ$99,T$8,FALSE) -> 0.9163890587 | U37: =+VLOOKUP($N37,'información graf'!$BN$62:$BZ$99,U$8,FALSE) -> 0.9737411056 | V37: =+VLOOKUP($N37,'información graf'!$BN$62:$BZ$99,V$8,FALSE) -> 0.926529748 | W37: =+VLOOKUP($N37,'información graf'!$BN$62:$BZ$99,W$8,FALSE) -> 0.9288014865 | X37: =+VLOOKUP($N37,'información graf'!$BN$62:$BZ$99,X$8,FALSE) -> 0.9661666135 | Y37: =+VLOOKUP($N37,'información graf'!$BN$62:$BZ$99,Y$8,FALSE) -> 0.9478106185 | Z37: =+VLOOKUP($N37,'información graf'!$BN$62:$BZ$99,Z$8,FALSE) ->  | AB37: 0.9478106185 | AC37: 28
N38: =+'información graf'!CG89 -> Atlántico | O38: =+VLOOKUP($N38,'información graf'!$BN$62:$BZ$99,O$8,FALSE) -> 0.8916426513 | P38: =+VLOOKUP($N38,'información graf'!$BN$62:$BZ$99,P$8,FALSE) -> 0.8052469663 | Q38: =+VLOOKUP($N38,'información graf'!$BN$62:$BZ$99,Q$8,FALSE) -> 0.8680275396 | R38: =+VLOOKUP($N38,'información graf'!$BN$62:$BZ$99,R$8,FALSE) -> 0.7904822482 | S38: =+VLOOKUP($N38,'información graf'!$BN$62:$BZ$99,S$8,FALSE) -> 0.9418242831 | T38: =+VLOOKUP($N38,'información graf'!$BN$62:$BZ$99,T$8,FALSE) -> 0.9093952659 | U38: =+VLOOKUP($N38,'información graf'!$BN$62:$BZ$99,U$8,FALSE) -> 0.8321384991 | V38: =+VLOOKUP($N38,'información graf'!$BN$62:$BZ$99,V$8,FALSE) -> 0.95887148 | W38: =+VLOOKUP($N38,'información graf'!$BN$62:$BZ$99,W$8,FALSE) -> 0.9335820896 | X38: =+VLOOKUP($N38,'información graf'!$BN$62:$BZ$99,X$8,FALSE) -> 0.9225023939 | Y38: =+VLOOKUP($N38,'información graf'!$BN$62:$BZ$99,Y$8,FALSE) -> 0.9375205255 | Z38: =+VLOOKUP($N38,'información graf'!$BN$62:$BZ$99,Z$8,FALSE) ->  | AB38: 0.9375205255 | AC38: 29
N39: =+'información graf'!CG90 -> Bolivar | O39: =+VLOOKUP($N39,'información graf'!$BN$62:$BZ$99,O$8,FALSE) -> 0.9678906917 | P39: =+VLOOKUP($N39,'información graf'!$BN$62:$BZ$99,P$8,FALSE) -> 0.7961229744 | Q39: =+VLOOKUP($N39,'información graf'!$BN$62:$BZ$99,Q$8,FALSE) -> 0.85855387 | R39: =+VLOOKUP($N39,'información graf'!$BN$62:$BZ$99,R$8,FALSE) -> 0.8477497606 | S39: =+VLOOKUP($N39,'información graf'!$BN$62:$BZ$99,S$8,FALSE) -> 0.8947454844 | T39: =+VLOOKUP($N39,'información graf'!$BN$62:$BZ$99,T$8,FALSE) -> 0.8762210983 | U39: =+VLOOKUP($N39,'información graf'!$BN$62:$BZ$99,U$8,FALSE) -> 0.8780377668 | V39: =+VLOOKUP($N39,'información graf'!$BN$62:$BZ$99,V$8,FALSE) -> 0.9712259157 | W39: =+VLOOKUP($N39,'información graf'!$BN$62:$BZ$99,W$8,FALSE) -> 0.9179397132 | X39: =+VLOOKUP($N39,'información graf'!$BN$62:$BZ$99,X$8,FALSE) -> 0.853750399 | Y39: =+VLOOKUP($N39,'información graf'!$BN$62:$BZ$99,Y$8,FALSE) -> 0.9328133552 | Z39: =+VLOOKUP($N39,'información graf'!$BN$62:$BZ$99,Z$8,FALSE) ->  | AB39: 0.9328133552 | AC39: 30
N40: =+'información graf'!CG91 -> Cordoba | O40: =+VLOOKUP($N40,'información graf'!$BN$62:$BZ$99,O$8,FALSE) -> 0.9808748728 | P40: =+VLOOKUP($N40,'información graf'!$BN$62:$BZ$99,P$8,FALSE) -> 0.8785865494 | Q40: =+VLOOKUP($N40,'información graf'!$BN$62:$BZ$99,Q$8,FALSE) -> 0.8736079237 | R40: =+VLOOKUP($N40,'información graf'!$BN$62:$BZ$99,R$8,FALSE) -> 0.8381636344 | S40: =+VLOOKUP($N40,'información graf'!$BN$62:$BZ$99,S$8,FALSE) -> 0.9055692392 | T40: =+VLOOKUP($N40,'información graf'!$BN$62:$BZ$99,T$8,FALSE) -> 0.9655256724 | U40: =+VLOOKUP($N40,'información graf'!$BN$62:$BZ$99,U$8,FALSE) -> 0.9794198139 | V40: =+VLOOKUP($N40,'información graf'!$BN$62:$BZ$99,V$8,FALSE) -> 0.9572940927 | W40: =+VLOOKUP($N40,'información graf'!$BN$62:$BZ$99,W$8,FALSE) -> 0.9828971818 | X40: =+VLOOKUP($N40,'información graf'!$BN$62:$BZ$99,X$8,FALSE) -> 0.8816682626 | Y40: =+VLOOKUP($N40,'información graf'!$BN$62:$BZ$99,Y$8,FALSE) -> 0.9185550082 | Z40: =+VLOOKUP($N40,'información graf'!$BN$62:$BZ$99,Z$8,FALSE) ->  | AB40: 0.9185550082 | AC40: 31
N41: =+'información graf'!CG92 -> San Andrés | O41: =+VLOOKUP($N41,'información graf'!$BN$62:$BZ$99,O$8,FALSE) -> 1 | P41: =+VLOOKUP($N41,'información graf'!$BN$62:$BZ$99,P$8,FALSE) -> 0.9787439614 | Q41: =+VLOOKUP($N41,'información graf'!$BN$62:$BZ$99,Q$8,FALSE) -> 0.8332764181 | R41: =+VLOOKUP($N41,'información graf'!$BN$62:$BZ$99,R$8,FALSE) -> 0.809547809 | S41: =+VLOOKUP($N41,'información graf'!$BN$62:$BZ$99,S$8,FALSE) -> 0.8710697674 | T41: =+VLOOKUP($N41,'información graf'!$BN$62:$BZ$99,T$8,FALSE) -> 0.9326026119 | U41: =+VLOOKUP($N41,'información graf'!$BN$62:$BZ$99,U$8,FALSE) -> 0.9355348837 | V41: =+VLOOKUP($N41,'información graf'!$BN$62:$BZ$99,V$8,FALSE) -> 0.7731445656 | W41: =+VLOOKUP($N41,'información graf'!$BN$62:$BZ$99,W$8,FALSE) -> 0.9847490852 | X41: =+VLOOKUP($N41,'información graf'!$BN$62:$BZ$99,X$8,FALSE) -> 0.9513229735 | Y41: =+VLOOKUP($N41,'información graf'!$BN$62:$BZ$99,Y$8,FALSE) -> 0.8902612827 | Z41: =+VLOOKUP($N41,'información graf'!$BN$62:$BZ$99,Z$8,FALSE) ->  | AB41: 0.8902612827 | AC41: 32
N42: =+'información graf'!CG93 -> Guajira | O42: =+VLOOKUP($N42,'información graf'!$BN$62:$BZ$99,O$8,FALSE) -> 0.8266282421 | P42: =+VLOOKUP($N42,'información graf'!$BN$62:$BZ$99,P$8,FALSE) -> 0.7787386771 | Q42: =+VLOOKUP($N42,'información graf'!$BN$62:$BZ$99,Q$8,FALSE) -> 0.7611808118 | R42: =+VLOOKUP($N42,'información graf'!$BN$62:$BZ$99,R$8,FALSE) -> 0.7588990401 | S42: =+VLOOKUP($N42,'información graf'!$BN$62:$BZ$99,S$8,FALSE) -> 0.7511439902 | T42: =+VLOOKUP($N42,'información graf'!$BN$62:$BZ$99,T$8,FALSE) -> 0.7472304284 | U42: =+VLOOKUP($N42,'información graf'!$BN$62:$BZ$99,U$8,FALSE) -> 0.8581757169 | V42: =+VLOOKUP($N42,'información graf'!$BN$62:$BZ$99,V$8,FALSE) -> 0.7455552757 | W42: =+VLOOKUP($N42,'información graf'!$BN$62:$BZ$99,W$8,FALSE) -> 0.8291683488 | X42: =+VLOOKUP($N42,'información graf'!$BN$62:$BZ$99,X$8,FALSE) -> 0.8256620793 | Y42: =+VLOOKUP($N42,'información graf'!$BN$62:$BZ$99,Y$8,FALSE) -> 0.7984441733 | Z42: =+VLOOKUP($N42,'información graf'!$BN$62:$BZ$99,Z$8,FALSE) ->  | AB42: 0.7984441733 | AC42: 33
C44: Avance | F44: Avance | I44: Avance | M44: Centro Oriente | N44: =+'información graf'!CG95 -> Santander | O44: =+VLOOKUP($N44,'información graf'!$BN$62:$BZ$99,O$8,FALSE) -> 0.9678906917 | P44: =+VLOOKUP($N44,'información graf'!$BN$62:$BZ$99,P$8,FALSE) -> 0.8870816296 | Q44: =+VLOOKUP($N44,'información graf'!$BN$62:$BZ$99,Q$8,FALSE) -> 0.8994795704 | R44: =+VLOOKUP($N44,'información graf'!$BN$62:$BZ$99,R$8,FALSE) -> 0.8544951591 | S44: =+VLOOKUP($N44,'información graf'!$BN$62:$BZ$99,S$8,FALSE) -> 0.9936781609 | T44: =+VLOOKUP($N44,'información graf'!$BN$62:$BZ$99,T$8,FALSE) -> 0.9664272616 | U44: =+VLOOKUP($N44,'información graf'!$BN$62:$BZ$99,U$8,FALSE) -> 0.989709907 | V44: =+VLOOKUP($N44,'información graf'!$BN$62:$BZ$99,V$8,FALSE) -> 0.9288244767 | W44: =+VLOOKUP($N44,'información graf'!$BN$62:$BZ$99,W$8,FALSE) -> 0.9291680368 | X44: =+VLOOKUP($N44,'información graf'!$BN$62:$BZ$99,X$8,FALSE) -> 0.9772528992 | Y44: =+VLOOKUP($N44,'información graf'!$BN$62:$BZ$99,Y$8,FALSE) -> 0.9936781609 | Z44: =+VLOOKUP($N44,'información graf'!$BN$62:$BZ$99,Z$8,FALSE) ->  | AB44: 0.9936781609 | AC44: 35
C45: =+nacional!J119 -> 0.9281403941 | F45: =+nacional!J120 -> 0.9221479795 | I45: =+nacional!J121 -> 0.9480405036 | N45: =+'información graf'!CG96 -> Cundinamarca | O45: =+VLOOKUP($N45,'información graf'!$BN$62:$BZ$99,O$8,FALSE) -> 0.9839453459 | P45: =+VLOOKUP($N45,'información graf'!$BN$62:$BZ$99,P$8,FALSE) -> 0.8870816296 | Q45: =+VLOOKUP($N45,'información graf'!$BN$62:$BZ$99,Q$8,FALSE) -> 0.8812658534 | R45: =+VLOOKUP($N45,'información graf'!$BN$62:$BZ$99,R$8,FALSE) -> 0.8642408767 | S45: =+VLOOKUP($N45,'información graf'!$BN$62:$BZ$99,S$8,FALSE) -> 0.9448002189 | T45: =+VLOOKUP($N45,'información graf'!$BN$62:$BZ$99,T$8,FALSE) -> 0.8977765892 | U45: =+VLOOKUP($N45,'información graf'!$BN$62:$BZ$99,U$8,FALSE) -> 0.8992474001 | V45: =+VLOOKUP($N45,'información graf'!$BN$62:$BZ$99,V$8,FALSE) -> 0.9066597654 | W45: =+VLOOKUP($N45,'información graf'!$BN$62:$BZ$99,W$8,FALSE) -> 0.9233431403 | X45: =+VLOOKUP($N45,'información graf'!$BN$62:$BZ$99,X$8,FALSE) -> 0.9193424832 | Y45: =+VLOOKUP($N45,'información graf'!$BN$62:$BZ$99,Y$8,FALSE) -> 0.9667761357 | Z45: =+VLOOKUP($N45,'información graf'!$BN$62:$BZ$99,Z$8,FALSE) ->  | AB45: 0.9667761357 | AC45: 36
C46: =+"Corte "&$D$5 -> Corte Noviembre | F46: =+"Corte "&$D$5 -> Corte Noviembre | I46: =+"Corte "&$D$5 -> Corte Noviembre | N46: =+'información graf'!CG97 -> Bogotá | O46: =+VLOOKUP($N46,'información graf'!$BN$62:$BZ$99,O$8,FALSE) -> 0.8715627669 | P46: =+VLOOKUP($N46,'información graf'!$BN$62:$BZ$99,P$8,FALSE) -> 0.9054672119 | Q46: =+VLOOKUP($N46,'información graf'!$BN$62:$BZ$99,Q$8,FALSE) -> 0.8527294873 | R46: =+VLOOKUP($N46,'información graf'!$BN$62:$BZ$99,R$8,FALSE) -> 0.8131503351 | S46: =+VLOOKUP($N46,'información graf'!$BN$62:$BZ$99,S$8,FALSE) -> 0.9010673235 | T46: =+VLOOKUP($N46,'información graf'!$BN$62:$BZ$99,T$8,FALSE) -> 0.9146011614 | U46: =+VLOOKUP($N46,'información graf'!$BN$62:$BZ$99,U$8,FALSE) -> 0.8541187739 | V46: =+VLOOKUP($N46,'información graf'!$BN$62:$BZ$99,V$8,FALSE) -> 0.8935242696 | W46: =+VLOOKUP($N46,'información graf'!$BN$62:$BZ$99,W$8,FALSE) -> 0.9229858599 | X46: =+VLOOKUP($N46,'información graf'!$BN$62:$BZ$99,X$8,FALSE) -> 0.8630067028 | Y46: =+VLOOKUP($N46,'información graf'!$BN$62:$BZ$99,Y$8,FALSE) -> 0.9628078818 | Z46: =+VLOOKUP($N46,'información graf'!$BN$62:$BZ$99,Z$8,FALSE) ->  | AB46: 0.9628078818 | AC46: 37
N47: =+'información graf'!CG98 -> N Santander | O47: =+VLOOKUP($N47,'información graf'!$BN$62:$BZ$99,O$8,FALSE) -> 0.9678906917 | P47: =+VLOOKUP($N47,'información graf'!$BN$62:$BZ$99,P$8,FALSE) -> 0.9150689081 | Q47: =+VLOOKUP($N47,'información graf'!$BN$62:$BZ$99,Q$8,FALSE) -> 0.8801586286 | R47: =+VLOOKUP($N47,'información graf'!$BN$62:$BZ$99,R$8,FALSE) -> 0.8454835621 | S47: =+VLOOKUP($N47,'información graf'!$BN$62:$BZ$99,S$8,FALSE) -> 0.9073891626 | T47: =+VLOOKUP($N47,'información graf'!$BN$62:$BZ$99,T$8,FALSE) -> 0.9674956439 | U47: =+VLOOKUP($N47,'información graf'!$BN$62:$BZ$99,U$8,FALSE) -> 0.9594827586 | V47: =+VLOOKUP($N47,'información graf'!$BN$62:$BZ$99,V$8,FALSE) -> 0.9827007131 | W47: =+VLOOKUP($N47,'información graf'!$BN$62:$BZ$99,W$8,FALSE) -> 0.9772224746 | X47: =+VLOOKUP($N47,'información graf'!$BN$62:$BZ$99,X$8,FALSE) -> 0.9008298755 | Y47: =+VLOOKUP($N47,'información graf'!$BN$62:$BZ$99,Y$8,FALSE) -> 0.9286124795 | Z47: =+VLOOKUP($N47,'información graf'!$BN$62:$BZ$99,Z$8,FALSE) ->  | AB47: 0.9286124795 | AC47: 38
N48: =+'información graf'!CG99 -> Boyacá | O48: =+VLOOKUP($N48,'información graf'!$BN$62:$BZ$99,O$8,FALSE) -> 0.8916426513 | P48: =+VLOOKUP($N48,'información graf'!$BN$62:$BZ$99,P$8,FALSE) -> 0.812339771 | Q48: =+VLOOKUP($N48,'información graf'!$BN$62:$BZ$99,Q$8,FALSE) -> 0.8694528325 | R48: =+VLOOKUP($N48,'información graf'!$BN$62:$BZ$99,R$8,FALSE) -> 0.8165722216 | S48: =+VLOOKUP($N48,'información graf'!$BN$62:$BZ$99,S$8,FALSE) -> 0.9241305674 | T48: =+VLOOKUP($N48,'información graf'!$BN$62:$BZ$99,T$8,FALSE) -> 0.9147859922 | U48: =+VLOOKUP($N48,'información graf'!$BN$62:$BZ$99,U$8,FALSE) -> 0.87469896 | V48: =+VLOOKUP($N48,'información graf'!$BN$62:$BZ$99,V$8,FALSE) -> 0.8338624339 | W48: =+VLOOKUP($N48,'información graf'!$BN$62:$BZ$99,W$8,FALSE) -> 0.8732160474 | X48: =+VLOOKUP($N48,'información graf'!$BN$62:$BZ$99,X$8,FALSE) -> 0.9002553463 | Y48: =+VLOOKUP($N48,'información graf'!$BN$62:$BZ$99,Y$8,FALSE) -> 0.8883278599 | Z48: =+VLOOKUP($N48,'información graf'!$BN$62:$BZ$99,Z$8,FALSE) ->  | AB48: 0.8883278599 | AC48: 39
S52: Frecuencia de centros zonales en niveles de calificacion
S54: Satisfactorio | U54: Requiere Mejora | W54: Atención prioritaria | Y54: Atención Inmediata
S55: # CZ | T55: % | U55: # CZ | V55: % | W55: # CZ | X55: % | Y55: # CZ | Z55: % | AA55: Total CZ
P56: Pacífico | Q56: =+N11 -> Valle | S56: =+'información graf'!GX62 -> 14 | T56: =+S56/AA56 -> 1 | U56: =+'información graf'!GY62 -> 0 | V56: =+U56/AA56 -> 0 | W56: =+'información graf'!GZ62 -> 0 | X56: =+W56/AA56 -> 0 | Y56: =+'información graf'!HA62 -> 0 | Z56: =+Y56/AA56 -> 0 | AA56: =+SUM(S56+U56+W56+Y56) -> 14
Q57: =+N12 -> Cauca | S57: =+'información graf'!GX63 -> 7 | T57: =+S57/AA57 -> 1 | U57: =+'información graf'!GY63 -> 0 | V57: =+U57/AA57 -> 0 | W57: =+'información graf'!GZ63 -> 0 | X57: =+W57/AA57 -> 0 | Y57: =+'información graf'!HA63 -> 0 | Z57: =+Y57/AA57 -> 0 | AA57: =+SUM(S57+U57+W57+Y57) -> 7
B58: =+"Corte "&$D$5 -> Corte Noviembre | Q58: =+N13 -> Nariño | S58: =+'información graf'!GX64 -> 7 | T58: 0.875 | U58: =+'información graf'!GY64 -> 1 | V58: 0.125 | W58: =+'información graf'!GZ64 -> 0 | X58: 0 | Y58: =+'información graf'!HA64 -> 0 | Z58: 0 | AA58: 8
Q59: =+N14 -> Choco | S59: =+'información graf'!GX65 -> 5 | T59: 1 | U59: =+'información graf'!GY65 -> 0 | V59: 0 | W59: =+'información graf'!GZ65 -> 0 | X59: 0 | Y59: =+'información graf'!HA65 -> 0 | Z59: 0 | AA59: 5
P61: Centro Sur | Q61: =+N16 -> Caquetá | S61: =+'información graf'!GX67 -> 4 | T61: 1 | U61: =+'información graf'!GY67 -> 0 | V61: 0 | W61: =+'información graf'!GZ67 -> 0 | X61: 0 | Y61: =+'información graf'!HA67 -> 0 | Z61: 0 | AA61: 4
Q62: =+N17 -> Huila | S62: =+'información graf'!GX68 -> 5 | T62: 1 | U62: =+'información graf'!GY68 -> 0 | V62: 0 | W62: =+'información graf'!GZ68 -> 0 | X62: 0 | Y62: =+'información graf'!HA68 -> 0 | Z62: 0 | AA62: 5
Q63: =+N18 -> Putumayo | S63: =+'información graf'!GX69 -> 4 | T63: 1 | U63: =+'información graf'!GY69 -> 0 | V63: 0 | W63: =+'información graf'!GZ69 -> 0 | X63: 0 | Y63: =+'información graf'!HA69 -> 0 | Z63: 0 | AA63: 4
Q64: =+N19 -> Tolima | S64: =+'información graf'!GX70 -> 7 | T64: 0.7 | U64: =+'información graf'!GY70 -> 3 | V64: 0.3 | W64: =+'información graf'!GZ70 -> 0 | X64: 0 | Y64: =+'información graf'!HA70 -> 0 | Z64: 0 | AA64: 10
Q65: =+N20 -> Amazonas | S65: =+'información graf'!GX71 -> 1 | T65: 1 | U65: =+'información graf'!GY71 -> 0 | V65: 0 | W65: =+'información graf'!GZ71 -> 0 | X65: 0 | Y65: =+'información graf'!HA71 -> 0 | Z65: 0 | AA65: 1
P67: Llanos | Q67: =+N22 -> Casanare | S67: =+'información graf'!GX73 -> 3 | T67: 1 | U67: =+'información graf'!GY73 -> 0 | V67: 0 | W67: =+'información graf'!GZ73 -> 0 | X67: 0 | Y67: =+'información graf'!HA73 -> 0 | Z67: 0 | AA67: 3
Q68: Meta | S68: =+'información graf'!GX74 -> 5 | T68: 1 | U68: =+'información graf'!GY74 -> 0 | V68: 0 | W68: =+'información graf'!GZ74 -> 0 | X68: 0 | Y68: =+'información graf'!HA74 -> 0 | Z68: 0 | AA68: 5
Q69: Guaviare | S69: =+'información graf'!GX75 -> 1 | T69: 1 | U69: =+'información graf'!GY75 -> 0 | V69: 0 | W69: =+'información graf'!GZ75 -> 0 | X69: 0 | Y69: =+'información graf'!HA75 -> 0 | Z69: 0 | AA69: 1
Q70: Vaupés | S70: =+'información graf'!GX76 -> 1 | T70: 1 | U70: =+'información graf'!GY76 -> 0 | V70: 0 | W70: =+'información graf'!GZ76 -> 0 | X70: 0 | Y70: =+'información graf'!HA76 -> 0 | Z70: 0 | AA70: 1
Q71: Guainía | S71: =+'información graf'!GX77 -> 1 | T71: 1 | U71: =+'información graf'!GY77 -> 0 | V71: 0 | W71: =+'información graf'!GZ77 -> 0 | X71: 0 | Y71: =+'información graf'!HA77 -> 0 | Z71: 0 | AA71: 1
Q72: Vichada | S72: =+'información graf'!GX78 -> 0 | T72: 0 | U72: =+'información graf'!GY78 -> 0 | V72: 0 | W72: =+'información graf'!GZ78 -> 1 | X72: 1 | Y72: =+'información graf'!HA78 -> 0 | Z72: 0 | AA72: 1
Q73: Arauca | S73: =+'información graf'!GX79 -> 0 | T73: 0 | U73: =+'información graf'!GY79 -> 1 | V73: 0.3333333333 | W73: =+'información graf'!GZ79 -> 1 | X73: 0.3333333333 | Y73: =+'información graf'!HA79 -> 1 | Z73: 0.3333333333 | AA73: 3
P75: Eje Cafetero | Q75: =+N30 -> Risaralda | S75: =+'información graf'!GX81 -> 5 | T75: 1 | U75: =+'información graf'!GY81 -> 0 | V75: 0 | W75: =+'información graf'!GZ81 -> 0 | X75: 0 | Y75: =+'información graf'!HA81 -> 0 | Z75: 0 | AA75: 5
Q76: =+N31 -> Caldas | S76: =+'información graf'!GX82 -> 6 | T76: 0.8571428571 | U76: =+'información graf'!GY82 -> 1 | V76: 0.1428571429 | W76: =+'información graf'!GZ82 -> 0 | X76: 0 | Y76: =+'información graf'!HA82 -> 0 | Z76: 0 | AA76: 7
Q77: =+N32 -> Antioquia | S77: =+'información graf'!GX83 -> 14 | T77: 0.875 | U77: =+'información graf'!GY83 -> 2 | V77: 0.125 | W77: =+'información graf'!GZ83 -> 0 | X77: 0 | Y77: =+'información graf'!HA83 -> 0 | Z77: 0 | AA77: 16
Q78: =+N33 -> Quindío | S78: =+'información graf'!GX84 -> 2 | T78: 0.6666666667 | U78: =+'información graf'!GY84 -> 1 | V78: 0.3333333333 | W78: =+'información graf'!GZ84 -> 0 | X78: 0 | Y78: =+'información graf'!HA84 -> 0 | Z78: 0 | AA78: 3
P80: Caribe | Q80: =+N35 -> Cesar | S80: =+'información graf'!GX86 -> 5 | T80: 1 | U80: =+'información graf'!GY86 -> 0 | V80: 0 | W80: =+'información graf'!GZ86 -> 0 | X80: 0 | Y80: =+'información graf'!HA86 -> 0 | Z80: 0 | AA80: 5
Q81: Sucre | S81: =+'información graf'!GX87 -> 4 | T81: 1 | U81: =+'información graf'!GY87 -> 0 | V81: 0 | W81: =+'información graf'!GZ87 -> 0 | X81: 0 | Y81: =+'información graf'!HA87 -> 0 | Z81: 0 | AA81: 4
Q82: Magdalena | S82: =+'información graf'!GX88 -> 6 | T82: 0.75 | U82: =+'información graf'!GY88 -> 2 | V82: 0.25 | W82: =+'información graf'!GZ88 -> 0 | X82: 0 | Y82: =+'información graf'!HA88 -> 0 | Z82: 0 | AA82: 8
Q83: Atlántico | S83: =+'información graf'!GX89 -> 7 | T83: 1 | U83: =+'información graf'!GY89 -> 0 | V83: 0 | W83: =+'información graf'!GZ89 -> 0 | X83: 0 | Y83: =+'información graf'!HA89 -> 0 | Z83: 0 | AA83: 7
Q84: Bolivar | S84: =+'información graf'!GX90 -> 8 | T84: 1 | U84: =+'información graf'!GY90 -> 0 | V84: 0 | W84: =+'información graf'!GZ90 -> 0 | X84: 0 | Y84: =+'información graf'!HA90 -> 0 | Z84: 0 | AA84: 8
Q85: Cordoba | S85: =+'información graf'!GX91 -> 7 | T85: 0.875 | U85: =+'información graf'!GY91 -> 1 | V85: 0.125 | W85: =+'información graf'!GZ91 -> 0 | X85: 0 | Y85: =+'información graf'!HA91 -> 0 | Z85: 0 | AA85: 8
Q86: San Andrés | S86: =+'información graf'!GX92 -> 1 | T86: 1 | U86: =+'información graf'!GY92 -> 0 | V86: 0 | W86: =+'información graf'!GZ92 -> 0 | X86: 0 | Y86: =+'información graf'!HA92 -> 0 | Z86: 0 | AA86: 1
Q87: Guajira | S87: =+'información graf'!GX93 -> 2 | T87: 0.3333333333 | U87: =+'información graf'!GY93 -> 1 | V87: 0.1666666667 | W87: =+'información graf'!GZ93 -> 2 | X87: 0.3333333333 | Y87: =+'información graf'!HA93 -> 1 | Z87: 0.1666666667 | AA87: 6
P89: Centro Oriente | Q89: =+N44 -> Santander | S89: =+'información graf'!GX95 -> 10 | T89: 1 | U89: =+'información graf'!GY95 -> 0 | V89: 0 | W89: =+'información graf'!GZ95 -> 0 | X89: 0 | Y89: =+'información graf'!HA95 -> 0 | Z89: 0 | AA89: 10
Q90: =+N45 -> Cundinamarca | S90: =+'información graf'!GX96 -> 12 | T90: 0.9230769231 | U90: =+'información graf'!GY96 -> 1 | V90: 0.07692307692 | W90: =+'información graf'!GZ96 -> 0 | X90: 0 | Y90: =+'información graf'!HA96 -> 0 | Z90: 0 | AA90: 13
Q91: =+N46 -> Bogotá | S91: =+'información graf'!GX97 -> 6 | T91: 0.3529411765 | U91: =+'información graf'!GY97 -> 9 | V91: 0.5294117647 | W91: =+'información graf'!GZ97 -> 2 | X91: 0.1176470588 | Y91: =+'información graf'!HA97 -> 0 | Z91: 0 | AA91: 17
C92: Pacifico | E92: Centro Sur | G92: Llanos | I92: Eje Cafétero | K92: Caribe | M92: Centro Oriente | Q92: =+N47 -> N Santander | S92: =+'información graf'!GX98 -> 4 | T92: 0.6666666667 | U92: =+'información graf'!GY98 -> 2 | V92: 0.3333333333 | W92: =+'información graf'!GZ98 -> 0 | X92: 0 | Y92: =+'información graf'!HA98 -> 0 | Z92: 0 | AA92: 6
Q93: =+N48 -> Boyacá | S93: =+'información graf'!GX99 -> 12 | T93: 1 | U93: =+'información graf'!GY99 -> 0 | V93: 0 | W93: =+'información graf'!GZ99 -> 0 | X93: 0 | Y93: =+'información graf'!HA99 -> 0 | Z93: 0 | AA93: 12
P95: Total | S95: =SUM(S56:S93) -> 176 | T95: =+S95/AA95 -> 0.8421052632 | U95: =SUM(U56:U93) -> 25 | V95: =+U95/AA95 -> 0.1196172249 | W95: =SUM(W56:W93) -> 6 | X95: =+W95/AA95 -> 0.02870813397 | Y95: =SUM(Y56:Y93) -> 2 | Z95: =+Y95/AA95 -> 0.00956937799 | AA95: =SUM(AA56:AA93) -> 209

Sheet macroregion
C2: TABLERO DE CONTROL 2016 INSTITUTO COLOMBIANO DE BIENESTAR FAMILIAR ICBF SEGUIMIENTO TABLERO - ANÁLISIS MACROREGIONALES
C3: =+macroregionales!R7 -> 0
C6: Mes analisis | D6: =Menu!C7 -> Noviembre | U6: Volver a revisión macroregionales
C8: Resultados Plan de Acción Institucional
N9: =+C3 -> 0 | R9: Ranking regional
N24: =+VLOOKUP(C3,'información graf'!$CO$63:$CP$68,2,FALSE) -> 
D33: Avance
C34: Plan de Acción | D34: =+'información graf'!M5 -> 0.9314528646
C35: Pacífico | D35: =+nacional!J116 -> 0.9592302292
C36: Centro Sur | D36: =+nacional!J117 -> 0.972347554
C37: Llanos | D37: =+nacional!J118 -> 0.8569401556
C38: Eje Cafetero | D38: =+nacional!J119 -> 0.9281403941
C39: Caribe | D39: =+nacional!J120 -> 0.9221479795
C40: Centro Oriente | D40: =+nacional!J121 -> 0.9480405036
P44: 3 | Q44: 4 | R44: 5 | S44: 6 | T44: 7 | U44: 8 | V44: 9 | W44: 10 | X44: 11
C45: Macroregión | D45: =+C3 -> 0 | G45: Comportamiento indicadores PA | P45: Frecuencia de centros zonales en niveles de calificacion | AC45: =+A47 ->  | AD45: =+A48 ->  | AE45: =+A49 ->  | AF45: =+A50 ->  | AG45: =+A51 ->  | AH45: =+A52 ->  | AI45: =+A53 ->  | AJ45: =+A54 -> 
C46: Regionales | D46: Avance | L46: Total | P46: Satisfactorio | R46: Requiere Mejora | T46: Atención prioritaria | V46: Atención Inmediata | X46: Total | AB46: Misionales | AC46: =+C47 ->  | AD46: =+C48 ->  | AE46: =+C49 ->  | AF46: =+C50 ->  | AG46: =+C51 ->  | AH46: =+C52 ->  | AI46: =+C53 ->  | AJ46: =+C54 -> 
A47: =IFERROR(VLOOKUP(C47,'información graf'!$CJ$62:$CM$99,4,FALSE),"") ->  | B47: 1 | C47: =+IFERROR(VLOOKUP($D$45&$B47,'información graf'!$CI$62:$CK$99,2,FALSE),"") ->  | D47: =+IFERROR(VLOOKUP($D$45&$B47,'información graf'!$CI$62:$CK$99,3,FALSE),"") ->  | E47: =+D47 ->  | G47: =+IFERROR(VLOOKUP($A47,base!$ES$6:$EY$39,2,FALSE),"") ->  | H47: =+IFERROR(VLOOKUP($A47,base!$ES$6:$EY$39,3,FALSE),"") ->  | I47: =+IFERROR(VLOOKUP($A47,base!$ES$6:$EY$39,4,FALSE),"") ->  | J47: =+IFERROR(VLOOKUP($A47,base!$ES$6:$EY$39,5,FALSE),"") ->  | K47: =+IFERROR(VLOOKUP($A47,base!$ES$6:$EY$39,6,FALSE),"") ->  | L47: =+IFERROR(SUM(G47:K47),"") -> 0 | O47: =+C47 ->  | P47: =+IFERROR(VLOOKUP($C47,macroregionales!$Q$56:$AA$93,P$44,FALSE),"") ->  | Q47: =+IFERROR(VLOOKUP($C47,macroregionales!$Q$56:$AA$93,Q$44,FALSE),"") ->  | R47: =+IFERROR(VLOOKUP($C47,macroregionales!$Q$56:$AA$93,R$44,FALSE),"") ->  | S47: =+IFERROR(VLOOKUP($C47,macroregionales!$Q$56:$AA$93,S$44,FALSE),"") ->  | T47: =+IFERROR(VLOOKUP($C47,macroregionales!$Q$56:$AA$93,T$44,FALSE),"") ->  | U47: =+IFERROR(VLOOKUP($C47,macroregionales!$Q$56:$AA$93,U$44,FALSE),"") ->  | V47: =+IFERROR(VLOOKUP($C47,macroregionales!$Q$56:$AA$93,V$44,FALSE),"") ->  | W47: =+IFERROR(VLOOKUP($C47,macroregionales!$Q$56:$AA$93,W$44,FALSE),"") ->  | X47: =+IFERROR(VLOOKUP($C47,macroregionales!$Q$56:$AA$93,X$44,FALSE),"") ->  | AA47: M1 | AB47: Primera Infancia | AC47: =+IFERROR(VLOOKUP($AA47&"."&AC$45,'td1'!$AC$2039:$AO$2566,'información graf'!$G$2,FALSE),"") ->  | AD47: =+IFERROR(VLOOKUP($AA47&"."&AD$45,'td1'!$AC$2039:$AO$2566,'información graf'!$G$2,FALSE),"") ->  | AE47: =+IFERROR(VLOOKUP($AA47&"."&AE$45,'td1'!$AC$2039:$AO$2566,'información graf'!$G$2,FALSE),"") ->  | AF47: =+IFERROR(VLOOKUP($AA47&"."&AF$45,'td1'!$AC$2039:$AO$2566,'información graf'!$G$2,FALSE),"") ->  | AG47: =+IFERROR(VLOOKUP($AA47&"."&AG$45,'td1'!$AC$2039:$AO$2566,'información graf'!$G$2,FALSE),"") ->  | AH47: =+IFERROR(VLOOKUP($AA47&"."&AH$45,'td1'!$AC$2039:$AO$2566,'información graf'!$G$2,FALSE),"") ->  | AI47: =+IFERROR(VLOOKUP($AA47&"."&AI$45,'td1'!$AC$2039:$AO$2566,'información graf'!$G$2,FALSE),"") ->  | AJ47: =+IFERROR(VLOOKUP($AA47&"."&AJ$45,'td1'!$AC$2039:$AO$2566,7,FALSE),"") -> 
A48: =IFERROR(VLOOKUP(C48,'información graf'!$CJ$62:$CM$99,4,FALSE),"") ->  | B48: 2 | C48: =+IFERROR(VLOOKUP($D$45&$B48,'información graf'!$CI$62:$CK$99,2,FALSE),"") ->  | D48: =+IFERROR(VLOOKUP($D$45&$B48,'información graf'!$CI$62:$CK$99,3,FALSE),"") ->  | E48: =+D48 ->  | G48: =+IFERROR(VLOOKUP($A48,base!$ES$6:$EY$39,2,FALSE),"") ->  | H48: =+IFERROR(VLOOKUP($A48,base!$ES$6:$EY$39,3,FALSE),"") ->  | I48: =+IFERROR(VLOOKUP($A48,base!$ES$6:$EY$39,4,FALSE),"") ->  | J48: =+IFERROR(VLOOKUP($A48,base!$ES$6:$EY$39,5,FALSE),"") ->  | K48: =+IFERROR(VLOOKUP($A48,base!$ES$6:$EY$39,6,FALSE),"") ->  | L48: =+IFERROR(SUM(G48:K48),"") -> 0 | O48: =+C48 ->  | P48: =+IFERROR(VLOOKUP($C48,macroregionales!$Q$56:$AA$93,P$44,FALSE),"") ->  | Q48: =+IFERROR(VLOOKUP($C48,macroregionales!$Q$56:$AA$93,Q$44,FALSE),"") ->  | R48: =+IFERROR(VLOOKUP($C48,macroregionales!$Q$56:$AA$93,R$44,FALSE),"") ->  | S48: =+IFERROR(VLOOKUP($C48,macroregionales!$Q$56:$AA$93,S$44,FALSE),"") ->  | T48: =+IFERROR(VLOOKUP($C48,macroregionales!$Q$56:$AA$93,T$44,FALSE),"") ->  | U48: =+IFERROR(VLOOKUP($C48,macroregionales!$Q$56:$AA$93,U$44,FALSE),"") ->  | V48: =+IFERROR(VLOOKUP($C48,macroregionales!$Q$56:$AA$93,V$44,FALSE),"") ->  | W48: =+IFERROR(VLOOKUP($C48,macroregionales!$Q$56:$AA$93,W$44,FALSE),"") ->  | X48: =+IFERROR(VLOOKUP($C48,macroregionales!$Q$56:$AA$93,X$44,FALSE),"") ->  | AA48: M2 | AB48: Niñez | AC48: =+IFERROR(VLOOKUP($AA48&"."&AC$45,'td1'!$AC$2039:$AO$2566,'información graf'!$G$2,FALSE),"") ->  | AD48: =+IFERROR(VLOOKUP($AA48&"."&AD$45,'td1'!$AC$2039:$AO$2566,'información graf'!$G$2,FALSE),"") ->  | AE48: =+IFERROR(VLOOKUP($AA48&"."&AE$45,'td1'!$AC$2039:$AO$2566,'información graf'!$G$2,FALSE),"") ->  | AF48: =+IFERROR(VLOOKUP($AA48&"."&AF$45,'td1'!$AC$2039:$AO$2566,'información graf'!$G$2,FALSE),"") ->  | AG48: =+IFERROR(VLOOKUP($AA48&"."&AG$45,'td1'!$AC$2039:$AO$2566,'información graf'!$G$2,FALSE),"") ->  | AH48: =+IFERROR(VLOOKUP($AA48&"."&AH$45,'td1'!$AC$2039:$AO$2566,'información graf'!$G$2,FALSE),"") ->  | AI48: =+IFERROR(VLOOKUP($AA48&"."&AI$45,'td1'!$AC$2039:$AO$2566,'información graf'!$G$2,FALSE),"") ->  | AJ48: =+IFERROR(VLOOKUP($AA48&"."&AJ$45,'td1'!$AC$2039:$AO$2566,7,FALSE),"") -> 
A49: =IFERROR(VLOOKUP(C49,'información graf'!$CJ$62:$CM$99,4,FALSE),"") ->  | B49: 3 | C49: =+IFERROR(VLOOKUP($D$45&$B49,'información graf'!$CI$62:$CK$99,2,FALSE),"") ->  | D49: =+IFERROR(VLOOKUP($D$45&$B49,'información graf'!$CI$62:$CK$99,3,FALSE),"") ->  | G49: =+IFERROR(VLOOKUP($A49,base!$ES$6:$EY$39,2,FALSE),"") ->  | H49: =+IFERROR(VLOOKUP($A49,base!$ES$6:$EY$39,3,FALSE),"") ->  | I49: =+IFERROR(VLOOKUP($A49,base!$ES$6:$EY$39,4,FALSE),"") ->  | J49: =+IFERROR(VLOOKUP($A49,base!$ES$6:$EY$39,5,FALSE),"") ->  | K49: =+IFERROR(VLOOKUP($A49,base!$ES$6:$EY$39,6,FALSE),"") ->  | L49: 0 | P49: =+IFERROR(VLOOKUP($C49,macroregionales!$Q$56:$AA$93,P$44,FALSE),"") ->  | Q49: =+IFERROR(VLOOKUP($C49,macroregionales!$Q$56:$AA$93,Q$44,FALSE),"") ->  | R49: =+IFERROR(VLOOKUP($C49,macroregionales!$Q$56:$AA$93,R$44,FALSE),"") ->  | S49: =+IFERROR(VLOOKUP($C49,macroregionales!$Q$56:$AA$93,S$44,FALSE),"") ->  | T49: =+IFERROR(VLOOKUP($C49,macroregionales!$Q$56:$AA$93,T$44,FALSE),"") ->  | U49: =+IFERROR(VLOOKUP($C49,macroregionales!$Q$56:$AA$93,U$44,FALSE),"") ->  | V49: =+IFERROR(VLOOKUP($C49,macroregionales!$Q$56:$AA$93,V$44,FALSE),"") ->  | W49: =+IFERROR(VLOOKUP($C49,macroregionales!$Q$56:$AA$93,W$44,FALSE),"") ->  | X49: =+IFERROR(VLOOKUP($C49,macroregionales!$Q$56:$AA$93,X$44,FALSE),"") ->  | AA49: M3 | AB49: Familias | AC49: =+IFERROR(VLOOKUP($AA49&"."&AC$45,'td1'!$AC$2039:$AO$2566,'información graf'!$G$2,FALSE),"") ->  | AD49: =+IFERROR(VLOOKUP($AA49&"."&AD$45,'td1'!$AC$2039:$AO$2566,'información graf'!$G$2,FALSE),"") ->  | AE49: =+IFERROR(VLOOKUP($AA49&"."&AE$45,'td1'!$AC$2039:$AO$2566,'información graf'!$G$2,FALSE),"") ->  | AF49: =+IFERROR(VLOOKUP($AA49&"."&AF$45,'td1'!$AC$2039:$AO$2566,'información graf'!$G$2,FALSE),"") ->  | AG49: =+IFERROR(VLOOKUP($AA49&"."&AG$45,'td1'!$AC$2039:$AO$2566,'información graf'!$G$2,FALSE),"") ->  | AH49: =+IFERROR(VLOOKUP($AA49&"."&AH$45,'td1'!$AC$2039:$AO$2566,'información graf'!$G$2,FALSE),"") ->  | AI49: =+IFERROR(VLOOKUP($AA49&"."&AI$45,'td1'!$AC$2039:$AO$2566,'información graf'!$G$2,FALSE),"") ->  | AJ49: =+IFERROR(VLOOKUP($AA49&"."&AJ$45,'td1'!$AC$2039:$AO$2566,7,FALSE),"") -> 
A50: =IFERROR(VLOOKUP(C50,'información graf'!$CJ$62:$CM$99,4,FALSE),"") ->  | B50: 4 | C50: =+IFERROR(VLOOKUP($D$45&$B50,'información graf'!$CI$62:$CK$99,2,FALSE),"") ->  | D50: =+IFERROR(VLOOKUP($D$45&$B50,'información graf'!$CI$62:$CK$99,3,FALSE),"") ->  | G50: =+IFERROR(VLOOKUP($A50,base!$ES$6:$EY$39,2,FALSE),"") ->  | H50: =+IFERROR(VLOOKUP($A50,base!$ES$6:$EY$39,3,FALSE),"") ->  | I50: =+IFERROR(VLOOKUP($A50,base!$ES$6:$EY$39,4,FALSE),"") ->  | J50: =+IFERROR(VLOOKUP($A50,base!$ES$6:$EY$39,5,FALSE),"") ->  | K50: =+IFERROR(VLOOKUP($A50,base!$ES$6:$EY$39,6,FALSE),"") ->  | L50: 0 | P50: =+IFERROR(VLOOKUP($C50,macroregionales!$Q$56:$AA$93,P$44,FALSE),"") ->  | Q50: =+IFERROR(VLOOKUP($C50,macroregionales!$Q$56:$AA$93,Q$44,FALSE),"") ->  | R50: =+IFERROR(VLOOKUP($C50,macroregionales!$Q$56:$AA$93,R$44,FALSE),"") ->  | S50: =+IFERROR(VLOOKUP($C50,macroregionales!$Q$56:$AA$93,S$44,FALSE),"") ->  | T50: =+IFERROR(VLOOKUP($C50,macroregionales!$Q$56:$AA$93,T$44,FALSE),"") ->  | U50: =+IFERROR(VLOOKUP($C50,macroregionales!$Q$56:$AA$93,U$44,FALSE),"") ->  | V50: =+IFERROR(VLOOKUP($C50,macroregionales!$Q$56:$AA$93,V$44,FALSE),"") ->  | W50: =+IFERROR(VLOOKUP($C50,macroregionales!$Q$56:$AA$93,W$44,FALSE),"") ->  | X50: =+IFERROR(VLOOKUP($C50,macroregionales!$Q$56:$AA$93,X$44,FALSE),"") ->  | AA50: M4 | AB50: Nutrición | AC50: =+IFERROR(VLOOKUP($AA50&"."&AC$45,'td1'!$AC$2039:$AO$2566,'información graf'!$G$2,FALSE),"") ->  | AD50: =+IFERROR(VLOOKUP($AA50&"."&AD$45,'td1'!$AC$2039:$AO$2566,'información graf'!$G$2,FALSE),"") ->  | AE50: =+IFERROR(VLOOKUP($AA50&"."&AE$45,'td1'!$AC$2039:$AO$2566,'información graf'!$G$2,FALSE),"") ->  | AF50: =+IFERROR(VLOOKUP($AA50&"."&AF$45,'td1'!$AC$2039:$AO$2566,'información graf'!$G$2,FALSE),"") ->  | AG50: =+IFERROR(VLOOKUP($AA50&"."&AG$45,'td1'!$AC$2039:$AO$2566,'información graf'!$G$2,FALSE),"") ->  | AH50: =+IFERROR(VLOOKUP($AA50&"."&AH$45,'td1'!$AC$2039:$AO$2566,'información graf'!$G$2,FALSE),"") ->  | AI50: =+IFERROR(VLOOKUP($AA50&"."&AI$45,'td1'!$AC$2039:$AO$2566,'información graf'!$G$2,FALSE),"") ->  | AJ50: =+IFERROR(VLOOKUP($AA50&"."&AJ$45,'td1'!$AC$2039:$AO$2566,7,FALSE),"") -> 
A51: =IFERROR(VLOOKUP(C51,'información graf'!$CJ$62:$CM$99,4,FALSE),"") ->  | B51: 5 | C51: =+IFERROR(VLOOKUP($D$45&$B51,'información graf'!$CI$62:$CK$99,2,FALSE),"") ->  | D51: =+IFERROR(VLOOKUP($D$45&$B51,'información graf'!$CI$62:$CK$99,3,FALSE),"") ->  | G51: =+IFERROR(VLOOKUP($A51,base!$ES$6:$EY$39,2,FALSE),"") ->  | H51: =+IFERROR(VLOOKUP($A51,base!$ES$6:$EY$39,3,FALSE),"") ->  | I51: =+IFERROR(VLOOKUP($A51,base!$ES$6:$EY$39,4,FALSE),"") ->  | J51: =+IFERROR(VLOOKUP($A51,base!$ES$6:$EY$39,5,FALSE),"") ->  | K51: =+IFERROR(VLOOKUP($A51,base!$ES$6:$EY$39,6,FALSE),"") ->  | L51: 0 | P51: =+IFERROR(VLOOKUP($C51,macroregionales!$Q$56:$AA$93,P$44,FALSE),"") ->  | Q51: =+IFERROR(VLOOKUP($C51,macroregionales!$Q$56:$AA$93,Q$44,FALSE),"") ->  | R51: =+IFERROR(VLOOKUP($C51,macroregionales!$Q$56:$AA$93,R$44,FALSE),"") ->  | S51: =+IFERROR(VLOOKUP($C51,macroregionales!$Q$56:$AA$93,S$44,FALSE),"") ->  | T51: =+IFERROR(VLOOKUP($C51,macroregionales!$Q$56:$AA$93,T$44,FALSE),"") ->  | U51: =+IFERROR(VLOOKUP($C51,macroregionales!$Q$56:$AA$93,U$44,FALSE),"") ->  | V51: =+IFERROR(VLOOKUP($C51,macroregionales!$Q$56:$AA$93,V$44,FALSE),"") ->  | W51: =+IFERROR(VLOOKUP($C51,macroregionales!$Q$56:$AA$93,W$44,FALSE),"") ->  | X51: =+IFERROR(VLOOKUP($C51,macroregionales!$Q$56:$AA$93,X$44,FALSE),"") ->  | AA51: M5 | AB51: Protección | AC51: =+IFERROR(VLOOKUP($AA51&"."&AC$45,'td1'!$AC$2039:$AO$2566,'información graf'!$G$2,FALSE),"") ->  | AD51: =+IFERROR(VLOOKUP($AA51&"."&AD$45,'td1'!$AC$2039:$AO$2566,'información graf'!$G$2,FALSE),"") ->  | AE51: =+IFERROR(VLOOKUP($AA51&"."&AE$45,'td1'!$AC$2039:$AO$2566,'información graf'!$G$2,FALSE),"") ->  | AF51: =+IFERROR(VLOOKUP($AA51&"."&AF$45,'td1'!$AC$2039:$AO$2566,'información graf'!$G$2,FALSE),"") ->  | AG51: =+IFERROR(VLOOKUP($AA51&"."&AG$45,'td1'!$AC$2039:$AO$2566,'información graf'!$G$2,FALSE),"") ->  | AH51: =+IFERROR(VLOOKUP($AA51&"."&AH$45,'td1'!$AC$2039:$AO$2566,'información graf'!$G$2,FALSE),"") ->  | AI51: =+IFERROR(VLOOKUP($AA51&"."&AI$45,'td1'!$AC$2039:$AO$2566,'información graf'!$G$2,FALSE),"") ->  | AJ51: =+IFERROR(VLOOKUP($AA51&"."&AJ$45,'td1'!$AC$2039:$AO$2566,7,FALSE),"") -> 
A52: =IFERROR(VLOOKUP(C52,'información graf'!$CJ$62:$CM$99,4,FALSE),"") ->  | B52: 6 | C52: =+IFERROR(VLOOKUP($D$45&$B52,'información graf'!$CI$62:$CK$99,2,FALSE),"") ->  | D52: =+IFERROR(VLOOKUP($D$45&$B52,'información graf'!$CI$62:$CK$99,3,FALSE),"") ->  | G52: =+IFERROR(VLOOKUP($A52,base!$ES$6:$EY$39,2,FALSE),"") ->  | H52: =+IFERROR(VLOOKUP($A52,base!$ES$6:$EY$39,3,FALSE),"") ->  | I52: =+IFERROR(VLOOKUP($A52,base!$ES$6:$EY$39,4,FALSE),"") ->  | J52: =+IFERROR(VLOOKUP($A52,base!$ES$6:$EY$39,5,FALSE),"") ->  | K52: =+IFERROR(VLOOKUP($A52,base!$ES$6:$EY$39,6,FALSE),"") ->  | L52: =+IFERROR(SUM(G52:K52),"") -> 0 | P52: =+IFERROR(VLOOKUP($C52,macroregionales!$Q$56:$AA$93,P$44,FALSE),"") ->  | Q52: =+IFERROR(VLOOKUP($C52,macroregionales!$Q$56:$AA$93,Q$44,FALSE),"") ->  | R52: =+IFERROR(VLOOKUP($C52,macroregionales!$Q$56:$AA$93,R$44,FALSE),"") ->  | S52: =+IFERROR(VLOOKUP($C52,macroregionales!$Q$56:$AA$93,S$44,FALSE),"") ->  | T52: =+IFERROR(VLOOKUP($C52,macroregionales!$Q$56:$AA$93,T$44,FALSE),"") ->  | U52: =+IFERROR(VLOOKUP($C52,macroregionales!$Q$56:$AA$93,U$44,FALSE),"") ->  | V52: =+IFERROR(VLOOKUP($C52,macroregionales!$Q$56:$AA$93,V$44,FALSE),"") ->  | W52: =+IFERROR(VLOOKUP($C52,macroregionales!$Q$56:$AA$93,W$44,FALSE),"") ->  | X52: =+IFERROR(VLOOKUP($C52,macroregionales!$Q$56:$AA$93,X$44,FALSE),"") -> 
A53: =IFERROR(VLOOKUP(C53,'información graf'!$CJ$62:$CM$99,4,FALSE),"") ->  | B53: 7 | C53: =+IFERROR(VLOOKUP($D$45&$B53,'información graf'!$CI$62:$CK$99,2,FALSE),"") ->  | D53: =+IFERROR(VLOOKUP($D$45&$B53,'información graf'!$CI$62:$CK$99,3,FALSE),"") ->  | G53: =+IFERROR(VLOOKUP($A53,base!$ES$6:$EY$39,2,FALSE),"") ->  | H53: =+IFERROR(VLOOKUP($A53,base!$ES$6:$EY$39,3,FALSE),"") ->  | I53: =+IFERROR(VLOOKUP($A53,base!$ES$6:$EY$39,4,FALSE),"") ->  | J53: =+IFERROR(VLOOKUP($A53,base!$ES$6:$EY$39,5,FALSE),"") ->  | K53: =+IFERROR(VLOOKUP($A53,base!$ES$6:$EY$39,6,FALSE),"") ->  | L53: 0 | O53: =+C53 ->  | P53: =+IFERROR(VLOOKUP($C53,macroregionales!$Q$56:$AA$93,P$44,FALSE),"") ->  | Q53: =+IFERROR(VLOOKUP($C53,macroregionales!$Q$56:$AA$93,Q$44,FALSE),"") ->  | R53: =+IFERROR(VLOOKUP($C53,macroregionales!$Q$56:$AA$93,R$44,FALSE),"") ->  | S53: =+IFERROR(VLOOKUP($C53,macroregionales!$Q$56:$AA$93,S$44,FALSE),"") ->  | T53: =+IFERROR(VLOOKUP($C53,macroregionales!$Q$56:$AA$93,T$44,FALSE),"") ->  | U53: =+IFERROR(VLOOKUP($C53,macroregionales!$Q$56:$AA$93,U$44,FALSE),"") ->  | V53: =+IFERROR(VLOOKUP($C53,macroregionales!$Q$56:$AA$93,V$44,FALSE),"") ->  | W53: =+IFERROR(VLOOKUP($C53,macroregionales!$Q$56:$AA$93,W$44,FALSE),"") ->  | X53: =+IFERROR(VLOOKUP($C53,macroregionales!$Q$56:$AA$93,X$44,FALSE),"") ->  | AB53: Apoyo | AC53: =+AC46 ->  | AD53: =+AD46 ->  | AH53: =+AH46 -> 
A54: =IFERROR(VLOOKUP(C54,'información graf'!$CJ$62:$CM$99,4,FALSE),"") ->  | B54: 8 | C54: =+IFERROR(VLOOKUP($D$45&$B54,'información graf'!$CI$62:$CK$99,2,FALSE),"") ->  | D54: =+IFERROR(VLOOKUP($D$45&$B54,'información graf'!$CI$62:$CK$99,3,FALSE),"") ->  | G54: =+IFERROR(VLOOKUP($A54,base!$ES$6:$EY$39,2,FALSE),"") ->  | H54: =+IFERROR(VLOOKUP($A54,base!$ES$6:$EY$39,3,FALSE),"") ->  | I54: =+IFERROR(VLOOKUP($A54,base!$ES$6:$EY$39,4,FALSE),"") ->  | J54: =+IFERROR(VLOOKUP($A54,base!$ES$6:$EY$39,5,FALSE),"") ->  | K54: =+IFERROR(VLOOKUP($A54,base!$ES$6:$EY$39,6,FALSE),"") ->  | L54: 0 | P54: =+IFERROR(VLOOKUP($C54,macroregionales!$Q$56:$AA$93,P$44,FALSE),"") ->  | Q54: =+IFERROR(VLOOKUP($C54,macroregionales!$Q$56:$AA$93,Q$44,FALSE),"") ->  | R54: =+IFERROR(VLOOKUP($C54,macroregionales!$Q$56:$AA$93,R$44,FALSE),"") ->  | S54: =+IFERROR(VLOOKUP($C54,macroregionales!$Q$56:$AA$93,S$44,FALSE),"") ->  | T54: =+IFERROR(VLOOKUP($C54,macroregionales!$Q$56:$AA$93,T$44,FALSE),"") ->  | U54: =+IFERROR(VLOOKUP($C54,macroregionales!$Q$56:$AA$93,U$44,FALSE),"") ->  | V54: =+IFERROR(VLOOKUP($C54,macroregionales!$Q$56:$AA$93,V$44,FALSE),"") ->  | W54: =+IFERROR(VLOOKUP($C54,macroregionales!$Q$56:$AA$93,W$44,FALSE),"") ->  | X54: =+IFERROR(VLOOKUP($C54,macroregionales!$Q$56:$AA$93,X$44,FALSE),"") ->  | AA54: A1 | AB54: Gestión Humana | AC54: =+IFERROR(VLOOKUP($AA54&"."&AC$45,'td1'!$AC$2039:$AO$2566,'información graf'!$G$2,FALSE),"") ->  | AD54: =+IFERROR(VLOOKUP($AA54&"."&AD$45,'td1'!$AC$2039:$AO$2566,'información graf'!$G$2,FALSE),"") ->  | AE54: =+IFERROR(VLOOKUP($AA54&"."&AE$45,'td1'!$AC$2039:$AO$2566,'información graf'!$G$2,FALSE),"") ->  | AF54: =+IFERROR(VLOOKUP($AA54&"."&AF$45,'td1'!$AC$2039:$AO$2566,'información graf'!$G$2,FALSE),"") ->  | AG54: =+IFERROR(VLOOKUP($AA54&"."&AG$45,'td1'!$AC$2039:$AO$2566,'información graf'!$G$2,FALSE),"") ->  | AH54: =+IFERROR(VLOOKUP($AA54&"."&AH$45,'td1'!$AC$2039:$AO$2566,'información graf'!$G$2,FALSE),"") ->  | AI54: =+IFERROR(VLOOKUP($AA54&"."&AI$45,'td1'!$AC$2039:$AO$2566,'información graf'!$G$2,FALSE),"") ->  | AJ54: =+IFERROR(VLOOKUP($AA54&"."&AJ$45,'td1'!$AC$2039:$AO$2566,7,FALSE),"") -> 
AA55: A2 | AB55: Financiera | AC55: =+IFERROR(VLOOKUP($AA55&"."&AC$45,'td1'!$AC$2039:$AO$2566,'información graf'!$G$2,FALSE),"") ->  | AD55: =+IFERROR(VLOOKUP($AA55&"."&AD$45,'td1'!$AC$2039:$AO$2566,'información graf'!$G$2,FALSE),"") ->  | AE55: =+IFERROR(VLOOKUP($AA55&"."&AE$45,'td1'!$AC$2039:$AO$2566,'información graf'!$G$2,FALSE),"") ->  | AF55: =+IFERROR(VLOOKUP($AA55&"."&AF$45,'td1'!$AC$2039:$AO$2566,'información graf'!$G$2,FALSE),"") ->  | AG55: =+IFERROR(VLOOKUP($AA55&"."&AG$45,'td1'!$AC$2039:$AO$2566,'información graf'!$G$2,FALSE),"") ->  | AH55: =+IFERROR(VLOOKUP($AA55&"."&AH$45,'td1'!$AC$2039:$AO$2566,'información graf'!$G$2,FALSE),"") ->  | AI55: =+IFERROR(VLOOKUP($AA55&"."&AI$45,'td1'!$AC$2039:$AO$2566,'información graf'!$G$2,FALSE),"") ->  | AJ55: =+IFERROR(VLOOKUP($AA55&"."&AJ$45,'td1'!$AC$2039:$AO$2566,7,FALSE),"") -> 
G56: Comportamiento indicadores tablero | AA56: A4 | AB56: Abastecimiento | AC56: =+IFERROR(VLOOKUP($AA56&"."&AC$45,'td1'!$AC$2039:$AO$2566,'información graf'!$G$2,FALSE),"") ->  | AD56: =+IFERROR(VLOOKUP($AA56&"."&AD$45,'td1'!$AC$2039:$AO$2566,'información graf'!$G$2,FALSE),"") ->  | AE56: =+IFERROR(VLOOKUP($AA56&"."&AE$45,'td1'!$AC$2039:$AO$2566,'información graf'!$G$2,FALSE),"") ->  | AF56: =+IFERROR(VLOOKUP($AA56&"."&AF$45,'td1'!$AC$2039:$AO$2566,'información graf'!$G$2,FALSE),"") ->  | AG56: =+IFERROR(VLOOKUP($AA56&"."&AG$45,'td1'!$AC$2039:$AO$2566,'información graf'!$G$2,FALSE),"") ->  | AH56: =+IFERROR(VLOOKUP($AA56&"."&AH$45,'td1'!$AC$2039:$AO$2566,'información graf'!$G$2,FALSE),"") ->  | AI56: =+IFERROR(VLOOKUP($AA56&"."&AI$45,'td1'!$AC$2039:$AO$2566,'información graf'!$G$2,FALSE),"") ->  | AJ56: =+IFERROR(VLOOKUP($AA56&"."&AJ$45,'td1'!$AC$2039:$AO$2566,7,FALSE),"") -> 
L57: Total | AA57: A5 | AB57: Administrativa | AC57: =+IFERROR(VLOOKUP($AA57&"."&AC$45,'td1'!$AC$2039:$AO$2566,'información graf'!$G$2,FALSE),"") ->  | AD57: =+IFERROR(VLOOKUP($AA57&"."&AD$45,'td1'!$AC$2039:$AO$2566,'información graf'!$G$2,FALSE),"") ->  | AE57: =+IFERROR(VLOOKUP($AA57&"."&AE$45,'td1'!$AC$2039:$AO$2566,'información graf'!$G$2,FALSE),"") ->  | AF57: =+IFERROR(VLOOKUP($AA57&"."&AF$45,'td1'!$AC$2039:$AO$2566,'información graf'!$G$2,FALSE),"") ->  | AG57: =+IFERROR(VLOOKUP($AA57&"."&AG$45,'td1'!$AC$2039:$AO$2566,'información graf'!$G$2,FALSE),"") ->  | AH57: =+IFERROR(VLOOKUP($AA57&"."&AH$45,'td1'!$AC$2039:$AO$2566,'información graf'!$G$2,FALSE),"") ->  | AI57: =+IFERROR(VLOOKUP($AA57&"."&AI$45,'td1'!$AC$2039:$AO$2566,'información graf'!$G$2,FALSE),"") ->  | AJ57: =+IFERROR(VLOOKUP($AA57&"."&AJ$45,'td1'!$AC$2039:$AO$2566,7,FALSE),"") -> 
F58: =+C47 ->  | G58: =+IFERROR(VLOOKUP($A47,base!$ES$45:$EY$78,2,FALSE),"") ->  | H58: =+IFERROR(VLOOKUP($A47,base!$ES$45:$EY$78,3,FALSE),"") ->  | I58: =+IFERROR(VLOOKUP($A47,base!$ES$45:$EY$78,4,FALSE),"") ->  | J58: =+IFERROR(VLOOKUP($A47,base!$ES$45:$EY$78,5,FALSE),"") ->  | K58: =+IFERROR(VLOOKUP($A47,base!$ES$45:$EY$78,6,FALSE),"") ->  | L58: =+IFERROR(SUM(G58:K58),"") -> 0 | AA58: A6 | AB58: Contratación | AC58: =+IFERROR(VLOOKUP($AA58&"."&AC$45,'td1'!$AC$2039:$AO$2566,'información graf'!$G$2,FALSE),"") ->  | AD58: =+IFERROR(VLOOKUP($AA58&"."&AD$45,'td1'!$AC$2039:$AO$2566,'información graf'!$G$2,FALSE),"") ->  | AE58: =+IFERROR(VLOOKUP($AA58&"."&AE$45,'td1'!$AC$2039:$AO$2566,'información graf'!$G$2,FALSE),"") ->  | AF58: =+IFERROR(VLOOKUP($AA58&"."&AF$45,'td1'!$AC$2039:$AO$2566,'información graf'!$G$2,FALSE),"") ->  | AG58: =+IFERROR(VLOOKUP($AA58&"."&AG$45,'td1'!$AC$2039:$AO$2566,'información graf'!$G$2,FALSE),"") ->  | AH58: =+IFERROR(VLOOKUP($AA58&"."&AH$45,'td1'!$AC$2039:$AO$2566,'información graf'!$G$2,FALSE),"") ->  | AI58: =+IFERROR(VLOOKUP($AA58&"."&AI$45,'td1'!$AC$2039:$AO$2566,'información graf'!$G$2,FALSE),"") ->  | AJ58: =+IFERROR(VLOOKUP($AA58&"."&AJ$45,'td1'!$AC$2039:$AO$2566,7,FALSE),"") -> 
F59: =+C48 ->  | G59: =+IFERROR(VLOOKUP($A48,base!$ES$45:$EY$78,2,FALSE),"") ->  | H59: =+IFERROR(VLOOKUP($A48,base!$ES$45:$EY$78,3,FALSE),"") ->  | I59: =+IFERROR(VLOOKUP($A48,base!$ES$45:$EY$78,4,FALSE),"") ->  | J59: =+IFERROR(VLOOKUP($A48,base!$ES$45:$EY$78,5,FALSE),"") ->  | K59: =+IFERROR(VLOOKUP($A48,base!$ES$45:$EY$78,6,FALSE),"") ->  | L59: =+IFERROR(SUM(G59:K59),"") -> 0 | AA59: A7 | AB59: Jurídica | AC59: =+IFERROR(VLOOKUP($AA59&"."&AC$45,'td1'!$AC$2039:$AO$2566,'información graf'!$G$2,FALSE),"") ->  | AD59: =+IFERROR(VLOOKUP($AA59&"."&AD$45,'td1'!$AC$2039:$AO$2566,'información graf'!$G$2,FALSE),"") ->  | AE59: =+IFERROR(VLOOKUP($AA59&"."&AE$45,'td1'!$AC$2039:$AO$2566,'información graf'!$G$2,FALSE),"") ->  | AF59: =+IFERROR(VLOOKUP($AA59&"."&AF$45,'td1'!$AC$2039:$AO$2566,'información graf'!$G$2,FALSE),"") ->  | AG59: =+IFERROR(VLOOKUP($AA59&"."&AG$45,'td1'!$AC$2039:$AO$2566,'información graf'!$G$2,FALSE),"") ->  | AH59: =+IFERROR(VLOOKUP($AA59&"."&AH$45,'td1'!$AC$2039:$AO$2566,'información graf'!$G$2,FALSE),"") ->  | AI59: =+IFERROR(VLOOKUP($AA59&"."&AI$45,'td1'!$AC$2039:$AO$2566,'información graf'!$G$2,FALSE),"") ->  | AJ59: =+IFERROR(VLOOKUP($AA59&"."&AJ$45,'td1'!$AC$2039:$AO$2566,7,FALSE),"") -> 
G60: =+IFERROR(VLOOKUP($A49,base!$ES$45:$EY$78,2,FALSE),"") ->  | H60: =+IFERROR(VLOOKUP($A49,base!$ES$45:$EY$78,3,FALSE),"") ->  | I60: =+IFERROR(VLOOKUP($A49,base!$ES$45:$EY$78,4,FALSE),"") ->  | J60: =+IFERROR(VLOOKUP($A49,base!$ES$45:$EY$78,5,FALSE),"") ->  | K60: =+IFERROR(VLOOKUP($A49,base!$ES$45:$EY$78,6,FALSE),"") ->  | L60: 0 | AA60: A10 | AB60: Servicios y Atención | AC60: =+IFERROR(VLOOKUP($AA60&"."&AC$45,'td1'!$AC$2039:$AO$2566,'información graf'!$G$2,FALSE),"") ->  | AD60: =+IFERROR(VLOOKUP($AA60&"."&AD$45,'td1'!$AC$2039:$AO$2566,'información graf'!$G$2,FALSE),"") ->  | AE60: =+IFERROR(VLOOKUP($AA60&"."&AE$45,'td1'!$AC$2039:$AO$2566,'información graf'!$G$2,FALSE),"") ->  | AF60: =+IFERROR(VLOOKUP($AA60&"."&AF$45,'td1'!$AC$2039:$AO$2566,'información graf'!$G$2,FALSE),"") ->  | AG60: =+IFERROR(VLOOKUP($AA60&"."&AG$45,'td1'!$AC$2039:$AO$2566,'información graf'!$G$2,FALSE),"") ->  | AH60: =+IFERROR(VLOOKUP($AA60&"."&AH$45,'td1'!$AC$2039:$AO$2566,'información graf'!$G$2,FALSE),"") ->  | AI60: =+IFERROR(VLOOKUP($AA60&"."&AI$45,'td1'!$AC$2039:$AO$2566,'información graf'!$G$2,FALSE),"") ->  | AJ60: =+IFERROR(VLOOKUP($AA60&"."&AJ$45,'td1'!$AC$2039:$AO$2566,7,FALSE),"") -> 
G61: =+IFERROR(VLOOKUP($A50,base!$ES$45:$EY$78,2,FALSE),"") ->  | H61: =+IFERROR(VLOOKUP($A50,base!$ES$45:$EY$78,3,FALSE),"") ->  | I61: =+IFERROR(VLOOKUP($A50,base!$ES$45:$EY$78,4,FALSE),"") ->  | J61: =+IFERROR(VLOOKUP($A50,base!$ES$45:$EY$78,5,FALSE),"") ->  | K61: =+IFERROR(VLOOKUP($A50,base!$ES$45:$EY$78,6,FALSE),"") ->  | L61: 0 | AA61: A11 | AB61: Tecnología | AC61: =+IFERROR(VLOOKUP($AA61&"."&AC$45,'td1'!$AC$2039:$AO$2566,'información graf'!$G$2,FALSE),"") ->  | AD61: =+IFERROR(VLOOKUP($AA61&"."&AD$45,'td1'!$AC$2039:$AO$2566,'información graf'!$G$2,FALSE),"") ->  | AE61: =+IFERROR(VLOOKUP($AA61&"."&AE$45,'td1'!$AC$2039:$AO$2566,'información graf'!$G$2,FALSE),"") ->  | AF61: =+IFERROR(VLOOKUP($AA61&"."&AF$45,'td1'!$AC$2039:$AO$2566,'información graf'!$G$2,FALSE),"") ->  | AG61: =+IFERROR(VLOOKUP($AA61&"."&AG$45,'td1'!$AC$2039:$AO$2566,'información graf'!$G$2,FALSE),"") ->  | AH61: =+IFERROR(VLOOKUP($AA61&"."&AH$45,'td1'!$AC$2039:$AO$2566,'información graf'!$G$2,FALSE),"") ->  | AI61: =+IFERROR(VLOOKUP($AA61&"."&AI$45,'td1'!$AC$2039:$AO$2566,'información graf'!$G$2,FALSE),"") ->  | AJ61: =+IFERROR(VLOOKUP($AA61&"."&AJ$45,'td1'!$AC$2039:$AO$2566,7,FALSE),"") -> 
G62: =+IFERROR(VLOOKUP($A51,base!$ES$45:$EY$78,2,FALSE),"") ->  | H62: =+IFERROR(VLOOKUP($A51,base!$ES$45:$EY$78,3,FALSE),"") ->  | I62: =+IFERROR(VLOOKUP($A51,base!$ES$45:$EY$78,4,FALSE),"") ->  | J62: =+IFERROR(VLOOKUP($A51,base!$ES$45:$EY$78,5,FALSE),"") ->  | K62: =+IFERROR(VLOOKUP($A51,base!$ES$45:$EY$78,6,FALSE),"") ->  | L62: 0 | AA62: A13 | AB62: Planeación | AC62: =+IFERROR(VLOOKUP($AA62&"."&AC$45,'td1'!$AC$2039:$AO$2566,'información graf'!$G$2,FALSE),"") ->  | AD62: =+IFERROR(VLOOKUP($AA62&"."&AD$45,'td1'!$AC$2039:$AO$2566,'información graf'!$G$2,FALSE),"") ->  | AE62: =+IFERROR(VLOOKUP($AA62&"."&AE$45,'td1'!$AC$2039:$AO$2566,'información graf'!$G$2,FALSE),"") ->  | AF62: =+IFERROR(VLOOKUP($AA62&"."&AF$45,'td1'!$AC$2039:$AO$2566,'información graf'!$G$2,FALSE),"") ->  | AG62: =+IFERROR(VLOOKUP($AA62&"."&AG$45,'td1'!$AC$2039:$AO$2566,'información graf'!$G$2,FALSE),"") ->  | AH62: =+IFERROR(VLOOKUP($AA62&"."&AH$45,'td1'!$AC$2039:$AO$2566,'información graf'!$G$2,FALSE),"") ->  | AI62: =+IFERROR(VLOOKUP($AA62&"."&AI$45,'td1'!$AC$2039:$AO$2566,'información graf'!$G$2,FALSE),"") ->  | AJ62: =+IFERROR(VLOOKUP($AA62&"."&AJ$45,'td1'!$AC$2039:$AO$2566,7,FALSE),"") -> 
G63: =+IFERROR(VLOOKUP($A52,base!$ES$45:$EY$78,2,FALSE),"") ->  | H63: =+IFERROR(VLOOKUP($A52,base!$ES$45:$EY$78,3,FALSE),"") ->  | I63: =+IFERROR(VLOOKUP($A52,base!$ES$45:$EY$78,4,FALSE),"") ->  | J63: =+IFERROR(VLOOKUP($A52,base!$ES$45:$EY$78,5,FALSE),"") ->  | K63: =+IFERROR(VLOOKUP($A52,base!$ES$45:$EY$78,6,FALSE),"") ->  | L63: 0 | AA63: A14 | AB63: SNBF | AC63: =+IFERROR(VLOOKUP($AA63&"."&AC$45,'td1'!$AC$2039:$AO$2566,'información graf'!$G$2,FALSE),"") ->  | AD63: =+IFERROR(VLOOKUP($AA63&"."&AD$45,'td1'!$AC$2039:$AO$2566,'información graf'!$G$2,FALSE),"") ->  | AE63: =+IFERROR(VLOOKUP($AA63&"."&AE$45,'td1'!$AC$2039:$AO$2566,'información graf'!$G$2,FALSE),"") ->  | AF63: =+IFERROR(VLOOKUP($AA63&"."&AF$45,'td1'!$AC$2039:$AO$2566,'información graf'!$G$2,FALSE),"") ->  | AG63: =+IFERROR(VLOOKUP($AA63&"."&AG$45,'td1'!$AC$2039:$AO$2566,'información graf'!$G$2,FALSE),"") ->  | AH63: =+IFERROR(VLOOKUP($AA63&"."&AH$45,'td1'!$AC$2039:$AO$2566,'información graf'!$G$2,FALSE),"") ->  | AI63: =+IFERROR(VLOOKUP($AA63&"."&AI$45,'td1'!$AC$2039:$AO$2566,'información graf'!$G$2,FALSE),"") ->  | AJ63: =+IFERROR(VLOOKUP($AA63&"."&AJ$45,'td1'!$AC$2039:$AO$2566,7,FALSE),"") -> 
G64: =+IFERROR(VLOOKUP($A53,base!$ES$45:$EY$78,2,FALSE),"") ->  | H64: =+IFERROR(VLOOKUP($A53,base!$ES$45:$EY$78,3,FALSE),"") ->  | I64: =+IFERROR(VLOOKUP($A53,base!$ES$45:$EY$78,4,FALSE),"") ->  | J64: =+IFERROR(VLOOKUP($A53,base!$ES$45:$EY$78,5,FALSE),"") ->  | K64: =+IFERROR(VLOOKUP($A53,base!$ES$45:$EY$78,6,FALSE),"") ->  | L64: 0 | AA64: a15 | AB64: Control Interno | AC64: =+IFERROR(VLOOKUP($AA64&"."&AC$45,'td1'!$AC$2039:$AO$2566,'información graf'!$G$2,FALSE),"") ->  | AD64: =+IFERROR(VLOOKUP($AA64&"."&AD$45,'td1'!$AC$2039:$AO$2566,'información graf'!$G$2,FALSE),"") ->  | AE64: =+IFERROR(VLOOKUP($AA64&"."&AE$45,'td1'!$AC$2039:$AO$2566,'información graf'!$G$2,FALSE),"") ->  | AF64: =+IFERROR(VLOOKUP($AA64&"."&AF$45,'td1'!$AC$2039:$AO$2566,'información graf'!$G$2,FALSE),"") ->  | AG64: =+IFERROR(VLOOKUP($AA64&"."&AG$45,'td1'!$AC$2039:$AO$2566,'información graf'!$G$2,FALSE),"") ->  | AH64: =+IFERROR(VLOOKUP($AA64&"."&AH$45,'td1'!$AC$2039:$AO$2566,'información graf'!$G$2,FALSE),"") ->  | AI64: =+IFERROR(VLOOKUP($AA64&"."&AI$45,'td1'!$AC$2039:$AO$2566,'información graf'!$G$2,FALSE),"") ->  | AJ64: =+IFERROR(VLOOKUP($AA64&"."&AJ$45,'td1'!$AC$2039:$AO$2566,7,FALSE),"") -> 
G65: =+IFERROR(VLOOKUP($A54,base!$ES$45:$EY$78,2,FALSE),"") ->  | H65: =+IFERROR(VLOOKUP($A54,base!$ES$45:$EY$78,3,FALSE),"") ->  | I65: =+IFERROR(VLOOKUP($A54,base!$ES$45:$EY$78,4,FALSE),"") ->  | J65: =+IFERROR(VLOOKUP($A54,base!$ES$45:$EY$78,5,FALSE),"") ->  | K65: =+IFERROR(VLOOKUP($A54,base!$ES$45:$EY$78,6,FALSE),"") ->  | L65: 0
C69: Indicadores criticos | Q69: =+A47 ->  | R69: =+A48 ->  | S69: =+A49 ->  | T69: =+A50 ->  | U69: =+A51 ->  | V69: =+A52 ->  | W69: =+A53 ->  | X69: =+A54 ->  | Z69: fr
C70: Área | D70: Cod | E70: Nombre | Q70: =+C47 ->  | R70: =+C48 ->  | S70: =+C49 ->  | T70: =+C50 ->  | U70: =+C51 ->  | V70: =+C52 ->  | W70: =+C53 ->  | X70: =+C54 ->  | Z70: Frecuencia
A72: =+IF($C$3=base!$FA$1,base!FA6,IF($C$3=base!$FH$1,base!FH6,IF($C$3=base!$FP$1,base!FP6,IF($C$3=base!$FZ$1,base!FZ6,IF($C$3=base!$GG$1,base!GG6,IF($C$3=base!$GR$1,base!GR6,"")))))) ->  | B72: 6 | C72: =+IFERROR(VLOOKUP(VLOOKUP(D72,tablero!$B$4:$BD$166,55,FALSE),referencias!$D$107:$F$128,3,FALSE),"") ->  | D72: =+IF(A72="Total general","",IF(A72=0,"",A72)) ->  | E72: =+IFERROR(VLOOKUP(D72,tablero!$B$4:$BD$166,2,FALSE),"") ->  | Q72: =+IFERROR(IF($C72="","",IF(HLOOKUP(Q$69,base!$FB$1:$GX$60,$B72,FALSE)=1,"x","")),"") ->  | R72: =+IFERROR(IF($C72="","",IF(HLOOKUP(R$69,base!$FB$1:$GX$60,$B72,FALSE)=1,"x","")),"") ->  | S72: =+IFERROR(IF($C72="","",IF(HLOOKUP(S$69,base!$FB$1:$GX$60,$B72,FALSE)=1,"x","")),"") ->  | T72: =+IFERROR(IF($C72="","",IF(HLOOKUP(T$69,base!$FB$1:$GX$60,$B72,FALSE)=1,"x","")),"") ->  | U72: =+IFERROR(IF($C72="","",IF(HLOOKUP(U$69,base!$FB$1:$GX$60,$B72,FALSE)=1,"x","")),"") ->  | V72: =+IFERROR(IF($C72="","",IF(HLOOKUP(V$69,base!$FB$1:$GX$60,$B72,FALSE)=1,"x","")),"") ->  | W72: =+IFERROR(IF($C72="","",IF(HLOOKUP(W$69,base!$FB$1:$GX$60,$B72,FALSE)=1,"x","")),"") ->  | X72: =+IFERROR(IF($C72="","",IF(HLOOKUP(X$69,base!$FB$1:$GX$60,$B72,FALSE)=1,"x","")),"") ->  | Z72: =+IF(COUNTIF(Q72:X72,"x")=0,"",COUNTIF(Q72:X72,"x")) -> 
